Workbook

Sheet Introduction
C4: Joint Monitoring Programme for Water Supply, Sanitation and Hygiene
C6: Estimates on household water, sanitation and hygiene by wealth quintile and sub-national region in
C7: =+Water!B5 -> Comoros
C9: Updated May 2021
C11: Follow the links below to find the following information:
C13: JMP Estimates
C14: WASH status and trends by wealth quintile (customized quintiles made without water and sanitation assets)
C15: Water
C16: Sanitation
C17: Hygiene
C19: Data inputs
C20: customized wealth quintiles and subnational data:
C21: =IF(INDIRECT(CONCATENATE("Water","!B105"))=0,"",INDIRECT(CONCATENATE("Water","!B105"))) -> MICS00
C22: =IF(INDIRECT(CONCATENATE("Water","!B106"))=0,"",INDIRECT(CONCATENATE("Water","!B106"))) -> WHS03
C23: =IF(INDIRECT(CONCATENATE("Water","!B107"))=0,"",INDIRECT(CONCATENATE("Water","!B107"))) -> DHS12
C24: =IF(INDIRECT(CONCATENATE("Water","!B108"))=0,"",INDIRECT(CONCATENATE("Water","!B108"))) -> 
C25: =IF(INDIRECT(CONCATENATE("Water","!B109"))=0,"",INDIRECT(CONCATENATE("Water","!B109"))) -> 
C26: =IF(INDIRECT(CONCATENATE("Water","!B110"))=0,"",INDIRECT(CONCATENATE("Water","!B110"))) -> 
C27: =IF(INDIRECT(CONCATENATE("Water","!B111"))=0,"",INDIRECT(CONCATENATE("Water","!B111"))) -> 
C28: =IF(INDIRECT(CONCATENATE("Water","!B112"))=0,"",INDIRECT(CONCATENATE("Water","!B112"))) -> 
C29: =IF(INDIRECT(CONCATENATE("Water","!B113"))=0,"",INDIRECT(CONCATENATE("Water","!B113"))) -> 
C30: =IF(INDIRECT(CONCATENATE("Water","!B114"))=0,"",INDIRECT(CONCATENATE("Water","!B114"))) -> 
C31: =IF(INDIRECT(CONCATENATE("Water","!B115"))=0,"",INDIRECT(CONCATENATE("Water","!B115"))) -> 
C32: =IF(INDIRECT(CONCATENATE("Water","!B116"))=0,"",INDIRECT(CONCATENATE("Water","!B116"))) -> 
L55: =+IF(ISNUMBER(M48), "", "Insufficient data to estimate safely managed sanitation services at national level") -> Insufficient data to estimate safely managed sanitation services at national level

Sheet Water
A1: BGD
B4: Summary of trends in use of drinking water by wealth quintile (%)
B5: =IF(ISERROR(INDIRECT(CONCATENATE($B105,"!A2"))),"",INDIRECT(CONCATENATE($B105,"!A2"))) -> Comoros
B7: =B118 -> National use of drinking water sources, 2000–2018 | J7: =B218 -> Urban use of drinking water sources, 2000–2018 | R7: =B318 -> Rural use of drinking water sources, 2000–2018
B31: =IF(ISERROR(INDIRECT(CONCATENATE($B105,"!A2"))),"",INDIRECT(CONCATENATE($B105,"!A2"))) -> Comoros | F31: Poorest | J31: Poor | N31: Middle | R31: Rich | V31: Richest
F32: Basic | G32: Limited | H32: Unimproved | I32: Surface water | J32: Basic | K32: Limited | L32: Unimproved | M32: Surface water | N32: Basic | O32: Limited | P32: Unimproved | Q32: Surface water | R32: Basic | S32: Limited | T32: Unimproved | U32: Surface water | V32: Basic | W32: Limited | X32: Unimproved | Y32: Surface water
B33: NATIONAL | D33: Estimate | E33: =C99 -> 2000 | F33: =E99 -> 76.70013772 | G33: =F99 -> 8.108760567 | H33: 9.924012711 | I33: 5.267088999 | J33: =J99 -> 82.98062032 | K33: =K99 -> 7.031551107 | L33: 6.555975305 | M33: 3.431853266 | N33: =O99 -> 89.72693957 | O33: =P99 -> 3.486337757 | P33: 5.797656914 | Q33: 0.989065761 | R33: =T99 -> 92.22463212 | S33: =U99 -> 2.535795085 | T33: 4.840353879 | U33: 0.3992189182 | V33: =Y99 -> 96.05037414 | W33: =Z99 -> 1.309004452 | X33: 2.137764579 | Y33: 0.5028568245
E34: =C100 -> 2018 | F34: =E100 -> 75.95216555 | G34: 8.029684734 | H34: 13.97933121 | I34: 2.0388185 | J34: =J100 -> 82.85997667 | K34: 7.021328093 | L34: 9.290670782 | M34: 0.8280244557 | N34: =O100 -> 86.23063164 | O34: 3.350488809 | P34: 10.23372385 | Q34: 0.1851557065 | R34: =T100 -> 90.90702901 | S34: 2.499566461 | T34: 6.593404534 | U34: 0 | V34: =Y100 -> 92.87438252 | W34: 1.265721047 | X34: 5.71037257 | Y34: 0.1495238626
B36: URBAN | D36: Estimate | E36: =C199 -> 2000 | F36: =E199 -> 66.34155957 | G36: =F199 -> 6.340604926 | H36: 27.00292685 | I36: 0.3149086537 | J36: =J199 -> 86.91535047 | K36: =K199 -> 3.932114054 | L36: 9.152535481 | M36: 0 | N36: =O199 -> 91.88088483 | O36: =P199 -> 4.422008726 | P36: 3.008632512 | Q36: 0.6884739364 | R36: =T199 -> 95.77540931 | S36: =U199 -> 1.107723519 | T36: 3.116867168 | U36: 0 | V36: =Y199 -> 96.12712732 | W36: =Z199 -> 0.5478247282 | X36: 3.325047956 | Y36: 0
E37: =C200 -> 2018 | F37: =E200 -> 86.48696718 | G37: 8.266005407 | H37: 4.599512192 | I37: 0.6475152244 | J37: =J200 -> 95.33805725 | K37: 4.313163472 | L37: 0 | M37: 0.3487792725 | N37: =O200 -> 95.4082286 | O37: 4.591771402 | P37: 0 | Q37: 0 | R37: =T200 -> 98.44751584 | S37: 1.138628688 | T37: 0.413855472 | U37: 0 | V37: =Y200 -> 98.24428434 | W37: 0.5598903231 | X37: 0.8458253406 | Y37: 0.35
B39: RURAL | D39: Estimate | E39: =C299 -> 2000 | F39: =E299 -> 79.33666042 | G39: =F299 -> 8.907930637 | H39: 6.014901982 | I39: 5.740506959 | J39: =J299 -> 81.08705819 | K39: =K299 -> 8.440170222 | L39: 5.43234808 | M39: 5.040423507 | N39: =O299 -> 92.16933825 | O39: =P299 -> 2.547863554 | P39: 4.393022743 | Q39: 0.8897754492 | R39: =T299 -> 88.84853332 | S39: =U299 -> 2.879275862 | T39: 7.667836809 | U39: 0.6043540105 | V39: =Y299 -> 96.4596565 | W39: =Z299 -> 1.324429757 | X39: 1.297660889 | Y39: 0.9182528551
E40: =C300 -> 2018 | F40: =E300 -> 74.36007576 | G40: 8.349159059 | H40: 14.74751634 | I40: 2.54324884 | J40: =J300 -> 78.31092034 | K40: 8.151208253 | L40: 12.62794199 | M40: 0.9099294155 | N40: =O300 -> 83.63518163 | O40: 2.311951405 | P40: 13.50116288 | Q40: 0.5517040918 | R40: =T300 -> 84.29692462 | S40: 2.731773854 | T40: 12.95536053 | U40: 0.01594099824 | V40: =Y300 -> 88.42191725 | W40: 1.214068375 | X40: 10.28372319 | Y40: 0.08029119082
A97: NATIONAL | D97: Poorest | I97: Poor | N97: Middle | S97: Rich | X97: Richest
D98: Improved | E98: Basic | F98: Limited | G98: Unimproved | H98: Surface water | I98: Improved | J98: Basic | K98: Limited | L98: Unimproved | M98: Surface water | N98: Improved | O98: Basic | P98: Limited | Q98: Unimproved | R98: Surface water | S98: Improved | T98: Basic | U98: Limited | V98: Unimproved | W98: Surface water | X98: Improved | Y98: Basic | Z98: Limited | AA98: Unimproved | AB98: Surface water
A99: Forecast period: | C99: 2000 | D99: =IF((D101+H101)>100,D101*100/(D101+H101),D101) -> 84.80889829 | E99: =D99*AVERAGEIF(E105:E116,">0")/100 -> 76.70013772 | F99: =D99*(100-AVERAGEIF(E105:E116,">0"))/100 -> 8.108760567 | G99: =100-(E99+F99+H99) -> 9.924012711 | H99: =IF((D101+H101)>100,H101*100/(D101+H101),H101) -> 5.267088999 | I99: =IF((I101+M101)>100,I101*100/(I101+M101),I101) -> 90.01217143 | J99: =I99*AVERAGEIF(J105:J116,">0")/100 -> 82.98062032 | K99: =I99*(100-AVERAGEIF(J105:J116,">0"))/100 -> 7.031551107 | L99: =100-(J99+K99+M99) -> 6.555975305 | M99: =IF((I101+M101)>100,M101*100/(I101+M101),M101) -> 3.431853266 | N99: =IF((N101+R101)>100,N101*100/(N101+R101),N101) -> 93.21327732 | O99: =N99*AVERAGEIF(O105:O116,">0")/100 -> 89.72693957 | P99: =N99*(100-AVERAGEIF(O105:O116,">0"))/100 -> 3.486337757 | Q99: =100-(O99+P99+R99) -> 5.797656914 | R99: =IF((N101+R101)>100,R101*100/(N101+R101),R101) -> 0.989065761 | S99: =IF((S101+W101)>100,S101*100/(S101+W101),S101) -> 94.7604272 | T99: =S99*AVERAGEIF(T105:T116,">0")/100 -> 92.22463212 | U99: =S99*(100-AVERAGEIF(T105:T116,">0"))/100 -> 2.535795085 | V99: =100-(T99+U99+W99) -> 4.840353879 | W99: =IF((S101+W101)>100,W101*100/(S101+W101),W101) -> 0.3992189182 | X99: =IF((X101+AB101)>100,X101*100/(X101+AB101),X101) -> 97.3593786 | Y99: =X99*AVERAGEIF(Y105:Y116,">0")/100 -> 96.05037414 | Z99: =X99*(100-AVERAGEIF(Y105:Y116,">0"))/100 -> 1.309004452 | AA99: =100-(Y99+Z99+AB99) -> 2.137764579 | AB99: =IF((X101+AB101)>100,AB101*100/(X101+AB101),AB101) -> 0.5028568245
C100: 2018 | D100: =IF((D102+H102)>100,D102*100/(D102+H102),D102) -> 83.98185029 | E100: =D100*AVERAGEIF(E105:E116,">0")/100 -> 75.95216555 | F100: =D100*(100-AVERAGEIF(E105:E116,">0"))/100 -> 8.029684734 | G100: =100-(E100+F100+H100) -> 13.97933121 | H100: =IF((D102+H102)>100,H102*100/(D102+H102),H102) -> 2.0388185 | I100: =IF((I102+M102)>100,I102*100/(I102+M102),I102) -> 89.88130476 | J100: =I100*AVERAGEIF(J105:J116,">0")/100 -> 82.85997667 | K100: =I100*(100-AVERAGEIF(J105:J116,">0"))/100 -> 7.021328093 | L100: =100-(J100+K100+M100) -> 9.290670782 | M100: =IF((I102+M102)>100,M102*100/(I102+M102),M102) -> 0.8280244557 | N100: =IF((N102+R102)>100,N102*100/(N102+R102),N102) -> 89.58112045 | O100: =N100*AVERAGEIF(O105:O116,">0")/100 -> 86.23063164 | P100: =N100*(100-AVERAGEIF(O105:O116,">0"))/100 -> 3.350488809 | Q100: =100-(O100+P100+R100) -> 10.23372385 | R100: =IF((N102+R102)>100,R102*100/(N102+R102),R102) -> 0.1851557065 | S100: =IF((S102+W102)>100,S102*100/(S102+W102),S102) -> 93.40659547 | T100: =S100*AVERAGEIF(T105:T116,">0")/100 -> 90.90702901 | U100: =S100*(100-AVERAGEIF(T105:T116,">0"))/100 -> 2.499566461 | V100: =100-(T100+U100+W100) -> 6.593404534 | W100: =IF((S102+W102)>100,W102*100/(S102+W102),W102) -> 0 | X100: =IF((X102+AB102)>100,X102*100/(X102+AB102),X102) -> 94.14010357 | Y100: =X100*AVERAGEIF(Y105:Y116,">0")/100 -> 92.87438252 | Z100: =X100*(100-AVERAGEIF(Y105:Y116,">0"))/100 -> 1.265721047 | AA100: =100-(Y100+Z100+AB100) -> 5.71037257 | AB100: =IF((X102+AB102)>100,AB102*100/(X102+AB102),AB102) -> 0.1495238626
A101: Regression period: | C101: =MinRegYear(C99,C105:C116) -> 2000 | D101: =IF(MAX(C105:C116)-MIN(C105:C116)<5,AVERAGEIF(C105:C116,">0",D105:D116), IF(FORECAST($C101,D$105:D$116,$C$105:$C$116)<0,0, IF(FORECAST($C101,D$105:D$116,$C$105:$C$116)>100,100, FORECAST($C101,D$105:D$116,$C$105:$C$116)))) -> 84.80889829 | H101: =IF(MAX(C105:C116)-MIN(C105:C116)<5,AVERAGEIF(C105:C116,">0",H105:H116), IF(FORECAST($C101,H$105:H$116,$C$105:$C$116)<0,0, IF(FORECAST($C101,H$105:H$116,$C$105:$C$116)>100,100, FORECAST($C101,H$105:H$116,$C$105:$C$116)))) -> 5.267088999 | I101: =IF(MAX(C105:C116)-MIN(C105:C116)<5,AVERAGEIF(C105:C116,">0",I105:I116), IF(FORECAST($C101,I$105:I$116,$C$105:$C$116)<0,0, IF(FORECAST($C101,I$105:I$116,$C$105:$C$116)>100,100, FORECAST($C101,I$105:I$116,$C$105:$C$116)))) -> 90.01217143 | M101: =IF(MAX(C105:C116)-MIN(C105:C116)<5,AVERAGEIF(C105:C116,">0",M105:M116), IF(FORECAST($C101,M$105:M$116,$C$105:$C$116)<0,0, IF(FORECAST($C101,M$105:M$116,$C$105:$C$116)>100,100, FORECAST($C101,M$105:M$116,$C$105:$C$116)))) -> 3.431853266 | N101: =IF(MAX(C105:C116)-MIN(C105:C116)<5,AVERAGEIF(C105:C116,">0",N105:N116), IF(FORECAST($C101,N$105:N$116,$C$105:$C$116)<0,0, IF(FORECAST($C101,N$105:N$116,$C$105:$C$116)>100,100, FORECAST($C101,N$105:N$116,$C$105:$C$116)))) -> 93.21327732 | R101: =IF(MAX(C105:C116)-MIN(C105:C116)<5,AVERAGEIF(C105:C116,">0",R105:R116), IF(FORECAST($C101,R$105:R$116,$C$105:$C$116)<0,0, IF(FORECAST($C101,R$105:R$116,$C$105:$C$116)>100,100, FORECAST($C101,R$105:R$116,$C$105:$C$116)))) -> 0.989065761 | S101: =IF(MAX(C105:C116)-MIN(C105:C116)<5,AVERAGEIF(C105:C116,">0",S105:S116), IF(FORECAST($C101,S$105:S$116,$C$105:$C$116)<0,0, IF(FORECAST($C101,S$105:S$116,$C$105:$C$116)>100,100, FORECAST($C101,S$105:S$116,$C$105:$C$116)))) -> 94.7604272 | W101: =IF(MAX(C105:C116)-MIN(C105:C116)<5,AVERAGEIF(C105:C116,">0",W105:W116), IF(FORECAST($C101,W$105:W$116,$C$105:$C$116)<0,0, IF(FORECAST($C101,W$105:W$116,$C$105:$C$116)>100,100, FORECAST($C101,W$105:W$116,$C$105:$C$116)))) -> 0.3992189182 | X101: =IF(MAX(C105:C116)-MIN(C105:C116)<5,AVERAGEIF(C105:C116,">0",X105:X116), IF(FORECAST($C101,X$105:X$116,$C$105:$C$116)<0,0, IF(FORECAST($C101,X$105:X$116,$C$105:$C$116)>100,100, FORECAST($C101,X$105:X$116,$C$105:$C$116)))) -> 97.3593786 | AB101: =IF(MAX(C105:C116)-MIN(C105:C116)<5,AVERAGEIF(C105:C116,">0",AB105:AB116), IF(FORECAST($C101,AB$105:AB$116,$C$105:$C$116)<0,0, IF(FORECAST($C101,AB$105:AB$116,$C$105:$C$116)>100,100, FORECAST($C101,AB$105:AB$116,$C$105:$C$116)))) -> 0.5028568245
C102: =MaxRegYear(C100,C105:C116) -> 2014 | D102: =IF(MAX(C105:C116)-MIN(C105:C116)<5,AVERAGEIF(C105:C116,">0",D105:D116), IF(FORECAST($C102,D$105:D$116,$C$105:$C$116)<0,0, IF(FORECAST($C102,D$105:D$116,$C$105:$C$116)>100,100, FORECAST($C102,D$105:D$116,$C$105:$C$116)))) -> 83.98185029 | H102: =IF(MAX(C105:C116)-MIN(C105:C116)<5,AVERAGEIF(C105:C116,">0",H105:H116), IF(FORECAST($C102,H$105:H$116,$C$105:$C$116)<0,0, IF(FORECAST($C102,H$105:H$116,$C$105:$C$116)>100,100, FORECAST($C102,H$105:H$116,$C$105:$C$116)))) -> 2.0388185 | I102: =IF(MAX(C105:C116)-MIN(C105:C116)<5,AVERAGEIF(C105:C116,">0",I105:I116), IF(FORECAST($C102,I$105:I$116,$C$105:$C$116)<0,0, IF(FORECAST($C102,I$105:I$116,$C$105:$C$116)>100,100, FORECAST($C102,I$105:I$116,$C$105:$C$116)))) -> 89.88130476 | M102: =IF(MAX(C105:C116)-MIN(C105:C116)<5,AVERAGEIF(C105:C116,">0",M105:M116), IF(FORECAST($C102,M$105:M$116,$C$105:$C$116)<0,0, IF(FORECAST($C102,M$105:M$116,$C$105:$C$116)>100,100, FORECAST($C102,M$105:M$116,$C$105:$C$116)))) -> 0.8280244557 | N102: =IF(MAX(C105:C116)-MIN(C105:C116)<5,AVERAGEIF(C105:C116,">0",N105:N116), IF(FORECAST($C102,N$105:N$116,$C$105:$C$116)<0,0, IF(FORECAST($C102,N$105:N$116,$C$105:$C$116)>100,100, FORECAST($C102,N$105:N$116,$C$105:$C$116)))) -> 89.58112045 | R102: =IF(MAX(C105:C116)-MIN(C105:C116)<5,AVERAGEIF(C105:C116,">0",R105:R116), IF(FORECAST($C102,R$105:R$116,$C$105:$C$116)<0,0, IF(FORECAST($C102,R$105:R$116,$C$105:$C$116)>100,100, FORECAST($C102,R$105:R$116,$C$105:$C$116)))) -> 0.1851557065 | S102: =IF(MAX(C105:C116)-MIN(C105:C116)<5,AVERAGEIF(C105:C116,">0",S105:S116), IF(FORECAST($C102,S$105:S$116,$C$105:$C$116)<0,0, IF(FORECAST($C102,S$105:S$116,$C$105:$C$116)>100,100, FORECAST($C102,S$105:S$116,$C$105:$C$116)))) -> 93.40659547 | W102: =IF(MAX(C105:C116)-MIN(C105:C116)<5,AVERAGEIF(C105:C116,">0",W105:W116), IF(FORECAST($C102,W$105:W$116,$C$105:$C$116)<0,0, IF(FORECAST($C102,W$105:W$116,$C$105:$C$116)>100,100, FORECAST($C102,W$105:W$116,$C$105:$C$116)))) -> 0 | X102: =IF(MAX(C105:C116)-MIN(C105:C116)<5,AVERAGEIF(C105:C116,">0",X105:X116), IF(FORECAST($C102,X$105:X$116,$C$105:$C$116)<0,0, IF(FORECAST($C102,X$105:X$116,$C$105:$C$116)>100,100, FORECAST($C102,X$105:X$116,$C$105:$C$116)))) -> 94.14010357 | AB102: =IF(MAX(C105:C116)-MIN(C105:C116)<5,AVERAGEIF(C105:C116,">0",AB105:AB116), IF(FORECAST($C102,AB$105:AB$116,$C$105:$C$116)<0,0, IF(FORECAST($C102,AB$105:AB$116,$C$105:$C$116)>100,100, FORECAST($C102,AB$105:AB$116,$C$105:$C$116)))) -> 0.1495238626
B104: Survey | C104: Year | D104: Improved | E104: % Improved < = 30min | H104: Surface water | I104: Improved | J104: % Improved < = 30min | M104: Surface water | N104: Improved | O104: % Improved < = 30min | R104: Surface water | S104: Improved | T104: % Improved < = 30min | W104: Surface water | X104: Improved | Y104: % Improved < = 30min | AB104: Surface water
B105: MICS00 | C105: 2000 | D105: =IF(ISERROR(INDIRECT(CONCATENATE($B105,"!C16"))),"",INDIRECT(CONCATENATE($B105,"!C16"))) -> 84.80889829 | E105: =IF(ISERROR(INDIRECT(CONCATENATE($B105,"!C23"))),"",INDIRECT(CONCATENATE($B105,"!C23"))) -> 93.98017823 | H105: =IF(ISERROR(INDIRECT(CONCATENATE($B105,"!C21"))),"",INDIRECT(CONCATENATE($B105,"!C21"))) -> 5.267088999 | I105: =IF(ISERROR(INDIRECT(CONCATENATE($B105,"!D16"))),"",INDIRECT(CONCATENATE($B105,"!D16"))) -> 90.01217143 | J105: =IF(ISERROR(INDIRECT(CONCATENATE($B105,"!D23"))),"",INDIRECT(CONCATENATE($B105,"!D23"))) -> 94.40434239 | M105: =IF(ISERROR(INDIRECT(CONCATENATE($B105,"!D21"))),"",INDIRECT(CONCATENATE($B105,"!D21"))) -> 3.431853266 | N105: =IF(ISERROR(INDIRECT(CONCATENATE($B105,"!E16"))),"",INDIRECT(CONCATENATE($B105,"!E16"))) -> 93.21327732 | O105: =IF(ISERROR(INDIRECT(CONCATENATE($B105,"!E23"))),"",INDIRECT(CONCATENATE($B105,"!E23"))) -> 96.77450789 | R105: =IF(ISERROR(INDIRECT(CONCATENATE($B105,"!E21"))),"",INDIRECT(CONCATENATE($B105,"!E21"))) -> 0.989065761 | S105: =IF(ISERROR(INDIRECT(CONCATENATE($B105,"!F16"))),"",INDIRECT(CONCATENATE($B105,"!F16"))) -> 94.7604272 | T105: =IF(ISERROR(INDIRECT(CONCATENATE($B105,"!F23"))),"",INDIRECT(CONCATENATE($B105,"!F23"))) -> 97.44435918 | W105: =IF(ISERROR(INDIRECT(CONCATENATE($B105,"!F21"))),"",INDIRECT(CONCATENATE($B105,"!F21"))) -> 0.3992189182 | X105: =IF(ISERROR(INDIRECT(CONCATENATE($B105,"!G16"))),"",INDIRECT(CONCATENATE($B105,"!G16"))) -> 97.3593786 | Y105: =IF(ISERROR(INDIRECT(CONCATENATE($B105,"!G23"))),"",INDIRECT(CONCATENATE($B105,"!G23"))) -> 99.67660448 | AB105: =IF(ISERROR(INDIRECT(CONCATENATE($B105,"!G221"))),"",INDIRECT(CONCATENATE($B105,"!G21"))) -> 0.5028568245
B106: WHS03 | D106: 67.90346309 | E106: 94.03617867 | H106: 0 | I106: 64.24550567 | J106: 91.06032327 | M106: 0 | N106: 75.82872105 | O106: 95.50497335 | R106: 0 | S106: 81.95275831 | T106: 98.62762166 | W106: 0 | X106: 94.74654681 | Y106: 98.48987209 | AB106: 0
B107: DHS12 | C107: 2012 | D107: 84.1 | E107: 83.3 | H107: 2.5 | I107: 89.9 | J107: 91.1 | M107: 1.2 | N107: 90.1 | O107: 96.5 | R107: 0.3 | S107: 93.6 | T107: 95.9 | W107: 0 | X107: 94.6 | Y107: 97.8 | AB107: 0.2
D111: =IF(ISERROR(INDIRECT(CONCATENATE($B111,"!C16"))),"",INDIRECT(CONCATENATE($B111,"!C16"))) ->  | E111: =IF(ISERROR(INDIRECT(CONCATENATE($B111,"!C23"))),"",INDIRECT(CONCATENATE($B111,"!C23"))) ->  | H111: =IF(ISERROR(INDIRECT(CONCATENATE($B111,"!C21"))),"",INDIRECT(CONCATENATE($B111,"!C21"))) ->  | I111: =IF(ISERROR(INDIRECT(CONCATENATE($B111,"!D16"))),"",INDIRECT(CONCATENATE($B111,"!D16"))) ->  | J111: =IF(ISERROR(INDIRECT(CONCATENATE($B111,"!D23"))),"",INDIRECT(CONCATENATE($B111,"!D23"))) ->  | M111: =IF(ISERROR(INDIRECT(CONCATENATE($B111,"!D21"))),"",INDIRECT(CONCATENATE($B111,"!D21"))) ->  | N111: =IF(ISERROR(INDIRECT(CONCATENATE($B111,"!E16"))),"",INDIRECT(CONCATENATE($B111,"!E16"))) ->  | O111: =IF(ISERROR(INDIRECT(CONCATENATE($B111,"!E23"))),"",INDIRECT(CONCATENATE($B111,"!E23"))) ->  | R111: =IF(ISERROR(INDIRECT(CONCATENATE($B111,"!E21"))),"",INDIRECT(CONCATENATE($B111,"!E21"))) ->  | S111: =IF(ISERROR(INDIRECT(CONCATENATE($B111,"!F16"))),"",INDIRECT(CONCATENATE($B111,"!F16"))) ->  | T111: =IF(ISERROR(INDIRECT(CONCATENATE($B111,"!F23"))),"",INDIRECT(CONCATENATE($B111,"!F23"))) ->  | W111: =IF(ISERROR(INDIRECT(CONCATENATE($B111,"!F21"))),"",INDIRECT(CONCATENATE($B111,"!F21"))) ->  | X111: =IF(ISERROR(INDIRECT(CONCATENATE($B111,"!G16"))),"",INDIRECT(CONCATENATE($B111,"!G16"))) ->  | Y111: =IF(ISERROR(INDIRECT(CONCATENATE($B111,"!G23"))),"",INDIRECT(CONCATENATE($B111,"!G23"))) ->  | AB111: =IF(ISERROR(INDIRECT(CONCATENATE($B111,"!G221"))),"",INDIRECT(CONCATENATE($B111,"!G21"))) -> 
D112: =IF(ISERROR(INDIRECT(CONCATENATE($B112,"!C16"))),"",INDIRECT(CONCATENATE($B112,"!C16"))) ->  | E112: =IF(ISERROR(INDIRECT(CONCATENATE($B112,"!C23"))),"",INDIRECT(CONCATENATE($B112,"!C23"))) ->  | H112: =IF(ISERROR(INDIRECT(CONCATENATE($B112,"!C21"))),"",INDIRECT(CONCATENATE($B112,"!C21"))) ->  | I112: =IF(ISERROR(INDIRECT(CONCATENATE($B112,"!D16"))),"",INDIRECT(CONCATENATE($B112,"!D16"))) ->  | J112: =IF(ISERROR(INDIRECT(CONCATENATE($B112,"!D23"))),"",INDIRECT(CONCATENATE($B112,"!D23"))) ->  | M112: =IF(ISERROR(INDIRECT(CONCATENATE($B112,"!D21"))),"",INDIRECT(CONCATENATE($B112,"!D21"))) ->  | N112: =IF(ISERROR(INDIRECT(CONCATENATE($B112,"!E16"))),"",INDIRECT(CONCATENATE($B112,"!E16"))) ->  | O112: =IF(ISERROR(INDIRECT(CONCATENATE($B112,"!E23"))),"",INDIRECT(CONCATENATE($B112,"!E23"))) ->  | R112: =IF(ISERROR(INDIRECT(CONCATENATE($B112,"!E21"))),"",INDIRECT(CONCATENATE($B112,"!E21"))) ->  | S112: =IF(ISERROR(INDIRECT(CONCATENATE($B112,"!F16"))),"",INDIRECT(CONCATENATE($B112,"!F16"))) ->  | T112: =IF(ISERROR(INDIRECT(CONCATENATE($B112,"!F23"))),"",INDIRECT(CONCATENATE($B112,"!F23"))) ->  | W112: =IF(ISERROR(INDIRECT(CONCATENATE($B112,"!F21"))),"",INDIRECT(CONCATENATE($B112,"!F21"))) ->  | X112: =IF(ISERROR(INDIRECT(CONCATENATE($B112,"!G16"))),"",INDIRECT(CONCATENATE($B112,"!G16"))) ->  | Y112: =IF(ISERROR(INDIRECT(CONCATENATE($B112,"!G23"))),"",INDIRECT(CONCATENATE($B112,"!G23"))) ->  | AB112: =IF(ISERROR(INDIRECT(CONCATENATE($B112,"!G221"))),"",INDIRECT(CONCATENATE($B112,"!G21"))) -> 
B118: =CONCATENATE("National use of drinking water sources, ",C99,"–",C100) -> National use of drinking water sources, 2000–2018 | S118: Data points used for regression
E153: =IF(ISERROR(INDIRECT(CONCATENATE($B153,"!M18"))),"",INDIRECT(CONCATENATE($B153,"!M18"))) ->  | F153: =IF(ISERROR(INDIRECT(CONCATENATE($B153,"!M19"))),"",INDIRECT(CONCATENATE($B153,"!M19"))) ->  | G153: =IF(ISERROR(INDIRECT(CONCATENATE($B153,"!M20"))),"",INDIRECT(CONCATENATE($B153,"!M20"))) ->  | H153: =IF(ISERROR(INDIRECT(CONCATENATE($B153,"!M21"))),"",INDIRECT(CONCATENATE($B153,"!M21"))) ->  | J153: =IF(ISERROR(INDIRECT(CONCATENATE($B153,"!N18"))),"",INDIRECT(CONCATENATE($B153,"!N18"))) ->  | K153: =IF(ISERROR(INDIRECT(CONCATENATE($B153,"!N19"))),"",INDIRECT(CONCATENATE($B153,"!N19"))) ->  | L153: =IF(ISERROR(INDIRECT(CONCATENATE($B153,"!N20"))),"",INDIRECT(CONCATENATE($B153,"!N20"))) ->  | M153: =IF(ISERROR(INDIRECT(CONCATENATE($B153,"!N21"))),"",INDIRECT(CONCATENATE($B153,"!N21"))) ->  | O153: =IF(ISERROR(INDIRECT(CONCATENATE($B153,"!O18"))),"",INDIRECT(CONCATENATE($B153,"!O18"))) ->  | P153: =IF(ISERROR(INDIRECT(CONCATENATE($B153,"!O19"))),"",INDIRECT(CONCATENATE($B153,"!O19"))) ->  | Q153: =IF(ISERROR(INDIRECT(CONCATENATE($B153,"!O20"))),"",INDIRECT(CONCATENATE($B153,"!O20"))) ->  | R153: =IF(ISERROR(INDIRECT(CONCATENATE($B153,"!O21"))),"",INDIRECT(CONCATENATE($B153,"!O21"))) ->  | T153: =IF(ISERROR(INDIRECT(CONCATENATE($B153,"!P18"))),"",INDIRECT(CONCATENATE($B153,"!P18"))) ->  | U153: =IF(ISERROR(INDIRECT(CONCATENATE($B153,"!P19"))),"",INDIRECT(CONCATENATE($B153,"!P19"))) ->  | V153: =IF(ISERROR(INDIRECT(CONCATENATE($B153,"!P20"))),"",INDIRECT(CONCATENATE($B153,"!P20"))) ->  | W153: =IF(ISERROR(INDIRECT(CONCATENATE($B153,"!P21"))),"",INDIRECT(CONCATENATE($B153,"!P21"))) ->  | Y153: =IF(ISERROR(INDIRECT(CONCATENATE($B153,"!Q18"))),"",INDIRECT(CONCATENATE($B153,"!Q18"))) ->  | Z153: =IF(ISERROR(INDIRECT(CONCATENATE($B153,"!Q19"))),"",INDIRECT(CONCATENATE($B153,"!Q19"))) ->  | AA153: =IF(ISERROR(INDIRECT(CONCATENATE($B153,"!Q20"))),"",INDIRECT(CONCATENATE($B153,"!Q20"))) ->  | AB153: =IF(ISERROR(INDIRECT(CONCATENATE($B153,"!Q21"))),"",INDIRECT(CONCATENATE($B153,"!Q1"))) -> 
A197: URBAN | D197: Poorest | I197: Poor | N197: Middle | S197: Rich | X197: Richest
D198: Improved | E198: Basic | F198: Limited | G198: Unimproved | H198: Surface water | I198: Improved | J198: Basic | K198: Limited | L198: Unimproved | M198: Surface water | N198: Improved | O198: Basic | P198: Limited | Q198: Unimproved | R198: Surface water | S198: Improved | T198: Basic | U198: Limited | V198: Unimproved | W198: Surface water | X198: Improved | Y198: Basic | Z198: Limited | AA198: Unimproved | AB198: Surface water
A199: Forecast period: | C199: 2000 | D199: =IF((D201+H201)>100,D201*100/(D201+H201),D201) -> 72.6821645 | E199: =D199*AVERAGEIF(E205:E216,">0")/100 -> 66.34155957 | F199: =D199*(100-AVERAGEIF(E205:E216,">0"))/100 -> 6.340604926 | G199: =100-(E199+F199+H199) -> 27.00292685 | H199: =IF((D201+H201)>100,H201*100/(D201+H201),H201) -> 0.3149086537 | I199: =IF((I201+M201)>100,I201*100/(I201+M201),I201) -> 90.84746452 | J199: =I199*AVERAGEIF(J205:J216,">0")/100 -> 86.91535047 | K199: =I199*(100-AVERAGEIF(J205:J216,">0"))/100 -> 3.932114054 | L199: =100-(J199+K199+M199) -> 9.152535481 | M199: =IF((I201+M201)>100,M201*100/(I201+M201),M201) -> 0 | N199: =IF((N201+R201)>100,N201*100/(N201+R201),N201) -> 96.30289355 | O199: =N199*AVERAGEIF(O205:O216,">0")/100 -> 91.88088483 | P199: =N199*(100-AVERAGEIF(O205:O216,">0"))/100 -> 4.422008726 | Q199: =100-(O199+P199+R199) -> 3.008632512 | R199: =IF((N201+R201)>100,R201*100/(N201+R201),R201) -> 0.6884739364 | S199: =IF((S201+W201)>100,S201*100/(S201+W201),S201) -> 96.88313283 | T199: =S199*AVERAGEIF(T205:T216,">0")/100 -> 95.77540931 | U199: =S199*(100-AVERAGEIF(T205:T216,">0"))/100 -> 1.107723519 | V199: =100-(T199+U199+W199) -> 3.116867168 | W199: =IF((S201+W201)>100,W201*100/(S201+W201),W201) -> 0 | X199: =IF((X201+AB201)>100,X201*100/(X201+AB201),X201) -> 96.67495204 | Y199: =X199*AVERAGEIF(Y205:Y216,">0")/100 -> 96.12712732 | Z199: =X199*(100-AVERAGEIF(Y205:Y216,">0"))/100 -> 0.5478247282 | AA199: =100-(Y199+Z199+AB199) -> 3.325047956 | AB199: =IF((X201+AB201)>100,AB201*100/(X201+AB201),AB201) -> 0
C200: 2018 | D200: =IF((D202+H202)>100,D202*100/(D202+H202),D202) -> 94.75297258 | E200: =D200*AVERAGEIF(E205:E216,">0")/100 -> 86.48696718 | F200: =D200*(100-AVERAGEIF(E205:E216,">0"))/100 -> 8.266005407 | G200: =100-(E200+F200+H200) -> 4.599512192 | H200: =IF((D202+H202)>100,H202*100/(D202+H202),H202) -> 0.6475152244 | I200: =IF((I202+M202)>100,I202*100/(I202+M202),I202) -> 99.65122073 | J200: =I200*AVERAGEIF(J205:J216,">0")/100 -> 95.33805725 | K200: =I200*(100-AVERAGEIF(J205:J216,">0"))/100 -> 4.313163472 | L200: =100-(J200+K200+M200) -> 0 | M200: =IF((I202+M202)>100,M202*100/(I202+M202),M202) -> 0.3487792725 | N200: =IF((N202+R202)>100,N202*100/(N202+R202),N202) -> 100 | O200: =N200*AVERAGEIF(O205:O216,">0")/100 -> 95.4082286 | P200: =N200*(100-AVERAGEIF(O205:O216,">0"))/100 -> 4.591771402 | Q200: =100-(O200+P200+R200) -> 0 | R200: =IF((N202+R202)>100,R202*100/(N202+R202),R202) -> 0 | S200: =IF((S202+W202)>100,S202*100/(S202+W202),S202) -> 99.58614453 | T200: =S200*AVERAGEIF(T205:T216,">0")/100 -> 98.44751584 | U200: =S200*(100-AVERAGEIF(T205:T216,">0"))/100 -> 1.138628688 | V200: =100-(T200+U200+W200) -> 0.413855472 | W200: =IF((S202+W202)>100,W202*100/(S202+W202),W202) -> 0 | X200: =IF((X202+AB202)>100,X202*100/(X202+AB202),X202) -> 98.80417466 | Y200: =X200*AVERAGEIF(Y205:Y216,">0")/100 -> 98.24428434 | Z200: =X200*(100-AVERAGEIF(Y205:Y216,">0"))/100 -> 0.5598903231 | AA200: =100-(Y200+Z200+AB200) -> 0.8458253406 | AB200: =IF((X202+AB202)>100,AB202*100/(X202+AB202),AB202) -> 0.35
A201: Regression period: | C201: =MinRegYear(C199,C205:C216) -> 2000 | D201: =IF(MAX(C205:C216)-MIN(C205:C216)<5,AVERAGEIF(C205:C216,">0",D205:D216), IF(FORECAST($C201,D$205:D$216,$C$205:$C$216)<0,0, IF(FORECAST($C201,D$205:D$216,$C$205:$C$216)>100,100, FORECAST($C201,D$205:D$216,$C$205:$C$216)))) -> 72.6821645 | H201: =IF(MAX(C205:C216)-MIN(C205:C216)<5,AVERAGEIF(C205:C216,">0",H205:H216), IF(FORECAST($C201,H$205:H$216,$C$205:$C$216)<0,0, IF(FORECAST($C201,H$205:H$216,$C$205:$C$216)>100,100, FORECAST($C201,H$205:H$216,$C$205:$C$216)))) -> 0.3149086537 | I201: =IF(MAX(C205:C216)-MIN(C205:C216)<5,AVERAGEIF(C205:C216,">0",I205:I216), IF(FORECAST($C201,I$205:I$216,$C$205:$C$216)<0,0, IF(FORECAST($C201,I$205:I$216,$C$205:$C$216)>100,100, FORECAST($C201,I$205:I$216,$C$205:$C$216)))) -> 90.84746452 | M201: =IF(MAX(C205:C216)-MIN(C205:C216)<5,AVERAGEIF(C205:C216,">0",M205:M216), IF(FORECAST($C201,M$205:M$216,$C$205:$C$216)<0,0, IF(FORECAST($C201,M$205:M$216,$C$205:$C$216)>100,100, FORECAST($C201,M$205:M$216,$C$205:$C$216)))) -> 0 | N201: =IF(MAX(C205:C216)-MIN(C205:C216)<5,AVERAGEIF(C205:C216,">0",N205:N216), IF(FORECAST($C201,N$205:N$216,$C$205:$C$216)<0,0, IF(FORECAST($C201,N$205:N$216,$C$205:$C$216)>100,100, FORECAST($C201,N$205:N$216,$C$205:$C$216)))) -> 96.30289355 | R201: =IF(MAX(C205:C216)-MIN(C205:C216)<5,AVERAGEIF(C205:C216,">0",R205:R216), IF(FORECAST($C201,R$205:R$216,$C$205:$C$216)<0,0, IF(FORECAST($C201,R$205:R$216,$C$205:$C$216)>100,100, FORECAST($C201,R$205:R$216,$C$205:$C$216)))) -> 0.6884739364 | S201: =IF(MAX(C205:C216)-MIN(C205:C216)<5,AVERAGEIF(C205:C216,">0",S205:S216), IF(FORECAST($C201,S$205:S$216,$C$205:$C$216)<0,0, IF(FORECAST($C201,S$205:S$216,$C$205:$C$216)>100,100, FORECAST($C201,S$205:S$216,$C$205:$C$216)))) -> 96.88313283 | W201: =IF(MAX(C205:C216)-MIN(C205:C216)<5,AVERAGEIF(C205:C216,">0",W205:W216), IF(FORECAST($C201,W$205:W$216,$C$205:$C$216)<0,0, IF(FORECAST($C201,W$205:W$216,$C$205:$C$216)>100,100, FORECAST($C201,W$205:W$216,$C$205:$C$216)))) -> 0 | X201: =IF(MAX(C205:C216)-MIN(C205:C216)<5,AVERAGEIF(C205:C216,">0",X205:X216), IF(FORECAST($C201,X$205:X$216,$C$205:$C$216)<0,0, IF(FORECAST($C201,X$205:X$216,$C$205:$C$216)>100,100, FORECAST($C201,X$205:X$216,$C$205:$C$216)))) -> 96.67495204 | AB201: =IF(MAX(C205:C216)-MIN(C205:C216)<5,AVERAGEIF(C205:C216,">0",AB205:AB216), IF(FORECAST($C201,AB$205:AB$216,$C$205:$C$216)<0,0, IF(FORECAST($C201,AB$205:AB$216,$C$205:$C$216)>100,100, FORECAST($C201,AB$205:AB$216,$C$205:$C$216)))) -> 0
C202: =MaxRegYear(C200,C205:C216) -> 2014 | D202: =IF(MAX(C205:C216)-MIN(C205:C216)<5,AVERAGEIF(C205:C216,">0",D205:D216), IF(FORECAST($C202,D$205:D$216,$C$205:$C$216)<0,0, IF(FORECAST($C202,D$205:D$216,$C$205:$C$216)>100,100, FORECAST($C202,D$205:D$216,$C$205:$C$216)))) -> 94.75297258 | H202: =IF(MAX(C205:C216)-MIN(C205:C216)<5,AVERAGEIF(C205:C216,">0",H205:H216), IF(FORECAST($C202,H$205:H$216,$C$205:$C$216)<0,0, IF(FORECAST($C202,H$205:H$216,$C$205:$C$216)>100,100, FORECAST($C202,H$205:H$216,$C$205:$C$216)))) -> 0.6475152244 | I202: =IF(MAX(C205:C216)-MIN(C205:C216)<5,AVERAGEIF(C205:C216,">0",I205:I216), IF(FORECAST($C202,I$205:I$216,$C$205:$C$216)<0,0, IF(FORECAST($C202,I$205:I$216,$C$205:$C$216)>100,100, FORECAST($C202,I$205:I$216,$C$205:$C$216)))) -> 100 | M202: =IF(MAX(C205:C216)-MIN(C205:C216)<5,AVERAGEIF(C205:C216,">0",M205:M216), IF(FORECAST($C202,M$205:M$216,$C$205:$C$216)<0,0, IF(FORECAST($C202,M$205:M$216,$C$205:$C$216)>100,100, FORECAST($C202,M$205:M$216,$C$205:$C$216)))) -> 0.35 | N202: =IF(MAX(C205:C216)-MIN(C205:C216)<5,AVERAGEIF(C205:C216,">0",N205:N216), IF(FORECAST($C202,N$205:N$216,$C$205:$C$216)<0,0, IF(FORECAST($C202,N$205:N$216,$C$205:$C$216)>100,100, FORECAST($C202,N$205:N$216,$C$205:$C$216)))) -> 100 | R202: =IF(MAX(C205:C216)-MIN(C205:C216)<5,AVERAGEIF(C205:C216,">0",R205:R216), IF(FORECAST($C202,R$205:R$216,$C$205:$C$216)<0,0, IF(FORECAST($C202,R$205:R$216,$C$205:$C$216)>100,100, FORECAST($C202,R$205:R$216,$C$205:$C$216)))) -> 0 | S202: =IF(MAX(C205:C216)-MIN(C205:C216)<5,AVERAGEIF(C205:C216,">0",S205:S216), IF(FORECAST($C202,S$205:S$216,$C$205:$C$216)<0,0, IF(FORECAST($C202,S$205:S$216,$C$205:$C$216)>100,100, FORECAST($C202,S$205:S$216,$C$205:$C$216)))) -> 99.58614453 | W202: =IF(MAX(C205:C216)-MIN(C205:C216)<5,AVERAGEIF(C205:C216,">0",W205:W216), IF(FORECAST($C202,W$205:W$216,$C$205:$C$216)<0,0, IF(FORECAST($C202,W$205:W$216,$C$205:$C$216)>100,100, FORECAST($C202,W$205:W$216,$C$205:$C$216)))) -> 0 | X202: =IF(MAX(C205:C216)-MIN(C205:C216)<5,AVERAGEIF(C205:C216,">0",X205:X216), IF(FORECAST($C202,X$205:X$216,$C$205:$C$216)<0,0, IF(FORECAST($C202,X$205:X$216,$C$205:$C$216)>100,100, FORECAST($C202,X$205:X$216,$C$205:$C$216)))) -> 98.80417466 | AB202: =IF(MAX(C205:C216)-MIN(C205:C216)<5,AVERAGEIF(C205:C216,">0",AB205:AB216), IF(FORECAST($C202,AB$205:AB$216,$C$205:$C$216)<0,0, IF(FORECAST($C202,AB$205:AB$216,$C$205:$C$216)>100,100, FORECAST($C202,AB$205:AB$216,$C$205:$C$216)))) -> 0.35
B204: Survey | C204: Year | D204: Improved | E204: % Improved < = 30min | H204: Surface water | I204: Improved | J204: % Improved < = 30min | M204: Surface water | N204: Improved | O204: % Improved < = 30min | R204: Surface water | S204: Improved | T204: % Improved < = 30min | W204: Surface water | X204: Improved | Y204: % Improved < = 30min | AB204: Surface water
B205: MICS00 | C205: 2000 | D205: =IF(ISERROR(INDIRECT(CONCATENATE($B205,"!H16"))),"",INDIRECT(CONCATENATE($B205,"!H16"))) -> 72.6821645 | E205: =IF(ISERROR(INDIRECT(CONCATENATE($B205,"!H23"))),"",INDIRECT(CONCATENATE($B205,"!H23"))) -> 98.53048604 | H205: =IF(ISERROR(INDIRECT(CONCATENATE($B205,"!H21"))),"",INDIRECT(CONCATENATE($B205,"!H21"))) -> 0.3149086537 | I205: =IF(ISERROR(INDIRECT(CONCATENATE($B205,"!I16"))),"",INDIRECT(CONCATENATE($B205,"!I16"))) -> 90.84746452 | J205: =IF(ISERROR(INDIRECT(CONCATENATE($B205,"!I23"))),"",INDIRECT(CONCATENATE($B205,"!I23"))) -> 98.03198032 | M205: =IF(ISERROR(INDIRECT(CONCATENATE($B205,"!I21"))),"",INDIRECT(CONCATENATE($B205,"!I21"))) -> 0 | N205: =IF(ISERROR(INDIRECT(CONCATENATE($B205,"!J16"))),"",INDIRECT(CONCATENATE($B205,"!J16"))) -> 96.30289355 | O205: =IF(ISERROR(INDIRECT(CONCATENATE($B205,"!J23"))),"",INDIRECT(CONCATENATE($B205,"!J23"))) -> 99.34692932 | R205: =IF(ISERROR(INDIRECT(CONCATENATE($B205,"!J21"))),"",INDIRECT(CONCATENATE($B205,"!J21"))) -> 0.6884739364 | S205: =IF(ISERROR(INDIRECT(CONCATENATE($B205,"!K16"))),"",INDIRECT(CONCATENATE($B205,"!K16"))) -> 96.88313283 | T205: =IF(ISERROR(INDIRECT(CONCATENATE($B205,"!K23"))),"",INDIRECT(CONCATENATE($B205,"!K23"))) -> 99.76991836 | W205: =IF(ISERROR(INDIRECT(CONCATENATE($B205,"!K21"))),"",INDIRECT(CONCATENATE($B205,"!K21"))) -> 0 | X205: =IF(ISERROR(INDIRECT(CONCATENATE($B205,"!L16"))),"",INDIRECT(CONCATENATE($B205,"!L16"))) -> 96.67495204 | Y205: =IF(ISERROR(INDIRECT(CONCATENATE($B205,"!L23"))),"",INDIRECT(CONCATENATE($B205,"!L23"))) -> 100 | AB205: =IF(ISERROR(INDIRECT(CONCATENATE($B205,"!L221"))),"",INDIRECT(CONCATENATE($B205,"!L21"))) -> 0
B206: WHS03 | D206: 79.1908301 | E206: 86.69828624 | H206: 0 | I206: 91.08930689 | J206: 96.58324105 | M206: 0 | N206: 87.28754566 | O206: 94.47775647 | R206: 0 | S206: 94.87049108 | T206: 100 | W206: 0 | X206: 96.10424345 | Y206: 100 | AB206: 0
B207: DHS12 | C207: 2012 | D207: 91.6 | E207: 88.6 | H207: 0.6 | I207: 99.1 | J207: 92.4 | M207: 0.3 | N207: 99.5 | O207: 92.4 | R207: 0 | S207: 99.2 | T207: 96.8 | W207: 0 | X207: 98.5 | Y207: 98.3 | AB207: 0.3
B218: =CONCATENATE("Urban use of drinking water sources, ",C199,"–",C200) -> Urban use of drinking water sources, 2000–2018 | S218: Data points used for regression
E253: =IF(ISERROR(INDIRECT(CONCATENATE($B253,"!M18"))),"",INDIRECT(CONCATENATE($B253,"!M18"))) ->  | F253: =IF(ISERROR(INDIRECT(CONCATENATE($B253,"!M19"))),"",INDIRECT(CONCATENATE($B253,"!M19"))) ->  | G253: =IF(ISERROR(INDIRECT(CONCATENATE($B253,"!M20"))),"",INDIRECT(CONCATENATE($B253,"!M20"))) ->  | H253: =IF(ISERROR(INDIRECT(CONCATENATE($B253,"!M21"))),"",INDIRECT(CONCATENATE($B253,"!M21"))) ->  | J253: =IF(ISERROR(INDIRECT(CONCATENATE($B253,"!N18"))),"",INDIRECT(CONCATENATE($B253,"!N18"))) ->  | K253: =IF(ISERROR(INDIRECT(CONCATENATE($B253,"!N19"))),"",INDIRECT(CONCATENATE($B253,"!N19"))) ->  | L253: =IF(ISERROR(INDIRECT(CONCATENATE($B253,"!N20"))),"",INDIRECT(CONCATENATE($B253,"!N20"))) ->  | M253: =IF(ISERROR(INDIRECT(CONCATENATE($B253,"!N21"))),"",INDIRECT(CONCATENATE($B253,"!N21"))) ->  | O253: =IF(ISERROR(INDIRECT(CONCATENATE($B253,"!O18"))),"",INDIRECT(CONCATENATE($B253,"!O18"))) ->  | P253: =IF(ISERROR(INDIRECT(CONCATENATE($B253,"!O19"))),"",INDIRECT(CONCATENATE($B253,"!O19"))) ->  | Q253: =IF(ISERROR(INDIRECT(CONCATENATE($B253,"!O20"))),"",INDIRECT(CONCATENATE($B253,"!O20"))) ->  | R253: =IF(ISERROR(INDIRECT(CONCATENATE($B253,"!O21"))),"",INDIRECT(CONCATENATE($B253,"!O21"))) ->  | T253: =IF(ISERROR(INDIRECT(CONCATENATE($B253,"!P18"))),"",INDIRECT(CONCATENATE($B253,"!P18"))) ->  | U253: =IF(ISERROR(INDIRECT(CONCATENATE($B253,"!P19"))),"",INDIRECT(CONCATENATE($B253,"!P19"))) ->  | V253: =IF(ISERROR(INDIRECT(CONCATENATE($B253,"!P20"))),"",INDIRECT(CONCATENATE($B253,"!P20"))) ->  | W253: =IF(ISERROR(INDIRECT(CONCATENATE($B253,"!P21"))),"",INDIRECT(CONCATENATE($B253,"!P21"))) ->  | Y253: =IF(ISERROR(INDIRECT(CONCATENATE($B253,"!Q18"))),"",INDIRECT(CONCATENATE($B253,"!Q18"))) ->  | Z253: =IF(ISERROR(INDIRECT(CONCATENATE($B253,"!Q19"))),"",INDIRECT(CONCATENATE($B253,"!Q19"))) ->  | AA253: =IF(ISERROR(INDIRECT(CONCATENATE($B253,"!Q20"))),"",INDIRECT(CONCATENATE($B253,"!Q20"))) ->  | AB253: =IF(ISERROR(INDIRECT(CONCATENATE($B253,"!Q21"))),"",INDIRECT(CONCATENATE($B253,"!Q1"))) -> 
E254: =IF(ISERROR(INDIRECT(CONCATENATE($B254,"!M18"))),"",INDIRECT(CONCATENATE($B254,"!M18"))) ->  | F254: =IF(ISERROR(INDIRECT(CONCATENATE($B254,"!M19"))),"",INDIRECT(CONCATENATE($B254,"!M19"))) ->  | G254: =IF(ISERROR(INDIRECT(CONCATENATE($B254,"!M20"))),"",INDIRECT(CONCATENATE($B254,"!M20"))) ->  | H254: =IF(ISERROR(INDIRECT(CONCATENATE($B254,"!M21"))),"",INDIRECT(CONCATENATE($B254,"!M21"))) ->  | J254: =IF(ISERROR(INDIRECT(CONCATENATE($B254,"!N18"))),"",INDIRECT(CONCATENATE($B254,"!N18"))) ->  | K254: =IF(ISERROR(INDIRECT(CONCATENATE($B254,"!N19"))),"",INDIRECT(CONCATENATE($B254,"!N19"))) ->  | L254: =IF(ISERROR(INDIRECT(CONCATENATE($B254,"!N20"))),"",INDIRECT(CONCATENATE($B254,"!N20"))) ->  | M254: =IF(ISERROR(INDIRECT(CONCATENATE($B254,"!N21"))),"",INDIRECT(CONCATENATE($B254,"!N21"))) ->  | O254: =IF(ISERROR(INDIRECT(CONCATENATE($B254,"!O18"))),"",INDIRECT(CONCATENATE($B254,"!O18"))) ->  | P254: =IF(ISERROR(INDIRECT(CONCATENATE($B254,"!O19"))),"",INDIRECT(CONCATENATE($B254,"!O19"))) ->  | Q254: =IF(ISERROR(INDIRECT(CONCATENATE($B254,"!O20"))),"",INDIRECT(CONCATENATE($B254,"!O20"))) ->  | R254: =IF(ISERROR(INDIRECT(CONCATENATE($B254,"!O21"))),"",INDIRECT(CONCATENATE($B254,"!O21"))) ->  | T254: =IF(ISERROR(INDIRECT(CONCATENATE($B254,"!P18"))),"",INDIRECT(CONCATENATE($B254,"!P18"))) ->  | U254: =IF(ISERROR(INDIRECT(CONCATENATE($B254,"!P19"))),"",INDIRECT(CONCATENATE($B254,"!P19"))) ->  | V254: =IF(ISERROR(INDIRECT(CONCATENATE($B254,"!P20"))),"",INDIRECT(CONCATENATE($B254,"!P20"))) ->  | W254: =IF(ISERROR(INDIRECT(CONCATENATE($B254,"!P21"))),"",INDIRECT(CONCATENATE($B254,"!P21"))) ->  | Y254: =IF(ISERROR(INDIRECT(CONCATENATE($B254,"!Q18"))),"",INDIRECT(CONCATENATE($B254,"!Q18"))) ->  | Z254: =IF(ISERROR(INDIRECT(CONCATENATE($B254,"!Q19"))),"",INDIRECT(CONCATENATE($B254,"!Q19"))) ->  | AA254: =IF(ISERROR(INDIRECT(CONCATENATE($B254,"!Q20"))),"",INDIRECT(CONCATENATE($B254,"!Q20"))) ->  | AB254: =IF(ISERROR(INDIRECT(CONCATENATE($B254,"!Q21"))),"",INDIRECT(CONCATENATE($B254,"!Q1"))) -> 
E255: =IF(ISERROR(INDIRECT(CONCATENATE($B255,"!M18"))),"",INDIRECT(CONCATENATE($B255,"!M18"))) ->  | F255: =IF(ISERROR(INDIRECT(CONCATENATE($B255,"!M19"))),"",INDIRECT(CONCATENATE($B255,"!M19"))) ->  | G255: =IF(ISERROR(INDIRECT(CONCATENATE($B255,"!M20"))),"",INDIRECT(CONCATENATE($B255,"!M20"))) ->  | H255: =IF(ISERROR(INDIRECT(CONCATENATE($B255,"!M21"))),"",INDIRECT(CONCATENATE($B255,"!M21"))) ->  | J255: =IF(ISERROR(INDIRECT(CONCATENATE($B255,"!N18"))),"",INDIRECT(CONCATENATE($B255,"!N18"))) ->  | K255: =IF(ISERROR(INDIRECT(CONCATENATE($B255,"!N19"))),"",INDIRECT(CONCATENATE($B255,"!N19"))) ->  | L255: =IF(ISERROR(INDIRECT(CONCATENATE($B255,"!N20"))),"",INDIRECT(CONCATENATE($B255,"!N20"))) ->  | M255: =IF(ISERROR(INDIRECT(CONCATENATE($B255,"!N21"))),"",INDIRECT(CONCATENATE($B255,"!N21"))) ->  | O255: =IF(ISERROR(INDIRECT(CONCATENATE($B255,"!O18"))),"",INDIRECT(CONCATENATE($B255,"!O18"))) ->  | P255: =IF(ISERROR(INDIRECT(CONCATENATE($B255,"!O19"))),"",INDIRECT(CONCATENATE($B255,"!O19"))) ->  | Q255: =IF(ISERROR(INDIRECT(CONCATENATE($B255,"!O20"))),"",INDIRECT(CONCATENATE($B255,"!O20"))) ->  | R255: =IF(ISERROR(INDIRECT(CONCATENATE($B255,"!O21"))),"",INDIRECT(CONCATENATE($B255,"!O21"))) ->  | T255: =IF(ISERROR(INDIRECT(CONCATENATE($B255,"!P18"))),"",INDIRECT(CONCATENATE($B255,"!P18"))) ->  | U255: =IF(ISERROR(INDIRECT(CONCATENATE($B255,"!P19"))),"",INDIRECT(CONCATENATE($B255,"!P19"))) ->  | V255: =IF(ISERROR(INDIRECT(CONCATENATE($B255,"!P20"))),"",INDIRECT(CONCATENATE($B255,"!P20"))) ->  | W255: =IF(ISERROR(INDIRECT(CONCATENATE($B255,"!P21"))),"",INDIRECT(CONCATENATE($B255,"!P21"))) ->  | Y255: =IF(ISERROR(INDIRECT(CONCATENATE($B255,"!Q18"))),"",INDIRECT(CONCATENATE($B255,"!Q18"))) ->  | Z255: =IF(ISERROR(INDIRECT(CONCATENATE($B255,"!Q19"))),"",INDIRECT(CONCATENATE($B255,"!Q19"))) ->  | AA255: =IF(ISERROR(INDIRECT(CONCATENATE($B255,"!Q20"))),"",INDIRECT(CONCATENATE($B255,"!Q20"))) ->  | AB255: =IF(ISERROR(INDIRECT(CONCATENATE($B255,"!Q21"))),"",INDIRECT(CONCATENATE($B255,"!Q1"))) -> 
E256: =IF(ISERROR(INDIRECT(CONCATENATE($B256,"!M18"))),"",INDIRECT(CONCATENATE($B256,"!M18"))) ->  | F256: =IF(ISERROR(INDIRECT(CONCATENATE($B256,"!M19"))),"",INDIRECT(CONCATENATE($B256,"!M19"))) ->  | G256: =IF(ISERROR(INDIRECT(CONCATENATE($B256,"!M20"))),"",INDIRECT(CONCATENATE($B256,"!M20"))) ->  | H256: =IF(ISERROR(INDIRECT(CONCATENATE($B256,"!M21"))),"",INDIRECT(CONCATENATE($B256,"!M21"))) ->  | J256: =IF(ISERROR(INDIRECT(CONCATENATE($B256,"!N18"))),"",INDIRECT(CONCATENATE($B256,"!N18"))) ->  | K256: =IF(ISERROR(INDIRECT(CONCATENATE($B256,"!N19"))),"",INDIRECT(CONCATENATE($B256,"!N19"))) ->  | L256: =IF(ISERROR(INDIRECT(CONCATENATE($B256,"!N20"))),"",INDIRECT(CONCATENATE($B256,"!N20"))) ->  | M256: =IF(ISERROR(INDIRECT(CONCATENATE($B256,"!N21"))),"",INDIRECT(CONCATENATE($B256,"!N21"))) ->  | O256: =IF(ISERROR(INDIRECT(CONCATENATE($B256,"!O18"))),"",INDIRECT(CONCATENATE($B256,"!O18"))) ->  | P256: =IF(ISERROR(INDIRECT(CONCATENATE($B256,"!O19"))),"",INDIRECT(CONCATENATE($B256,"!O19"))) ->  | Q256: =IF(ISERROR(INDIRECT(CONCATENATE($B256,"!O20"))),"",INDIRECT(CONCATENATE($B256,"!O20"))) ->  | R256: =IF(ISERROR(INDIRECT(CONCATENATE($B256,"!O21"))),"",INDIRECT(CONCATENATE($B256,"!O21"))) ->  | T256: =IF(ISERROR(INDIRECT(CONCATENATE($B256,"!P18"))),"",INDIRECT(CONCATENATE($B256,"!P18"))) ->  | U256: =IF(ISERROR(INDIRECT(CONCATENATE($B256,"!P19"))),"",INDIRECT(CONCATENATE($B256,"!P19"))) ->  | V256: =IF(ISERROR(INDIRECT(CONCATENATE($B256,"!P20"))),"",INDIRECT(CONCATENATE($B256,"!P20"))) ->  | W256: =IF(ISERROR(INDIRECT(CONCATENATE($B256,"!P21"))),"",INDIRECT(CONCATENATE($B256,"!P21"))) ->  | Y256: =IF(ISERROR(INDIRECT(CONCATENATE($B256,"!Q18"))),"",INDIRECT(CONCATENATE($B256,"!Q18"))) ->  | Z256: =IF(ISERROR(INDIRECT(CONCATENATE($B256,"!Q19"))),"",INDIRECT(CONCATENATE($B256,"!Q19"))) ->  | AA256: =IF(ISERROR(INDIRECT(CONCATENATE($B256,"!Q20"))),"",INDIRECT(CONCATENATE($B256,"!Q20"))) ->  | AB256: =IF(ISERROR(INDIRECT(CONCATENATE($B256,"!Q21"))),"",INDIRECT(CONCATENATE($B256,"!Q1"))) -> 
E257: =IF(ISERROR(INDIRECT(CONCATENATE($B257,"!M18"))),"",INDIRECT(CONCATENATE($B257,"!M18"))) ->  | F257: =IF(ISERROR(INDIRECT(CONCATENATE($B257,"!M19"))),"",INDIRECT(CONCATENATE($B257,"!M19"))) ->  | G257: =IF(ISERROR(INDIRECT(CONCATENATE($B257,"!M20"))),"",INDIRECT(CONCATENATE($B257,"!M20"))) ->  | H257: =IF(ISERROR(INDIRECT(CONCATENATE($B257,"!M21"))),"",INDIRECT(CONCATENATE($B257,"!M21"))) ->  | J257: =IF(ISERROR(INDIRECT(CONCATENATE($B257,"!N18"))),"",INDIRECT(CONCATENATE($B257,"!N18"))) ->  | K257: =IF(ISERROR(INDIRECT(CONCATENATE($B257,"!N19"))),"",INDIRECT(CONCATENATE($B257,"!N19"))) ->  | L257: =IF(ISERROR(INDIRECT(CONCATENATE($B257,"!N20"))),"",INDIRECT(CONCATENATE($B257,"!N20"))) ->  | M257: =IF(ISERROR(INDIRECT(CONCATENATE($B257,"!N21"))),"",INDIRECT(CONCATENATE($B257,"!N21"))) ->  | O257: =IF(ISERROR(INDIRECT(CONCATENATE($B257,"!O18"))),"",INDIRECT(CONCATENATE($B257,"!O18"))) ->  | P257: =IF(ISERROR(INDIRECT(CONCATENATE($B257,"!O19"))),"",INDIRECT(CONCATENATE($B257,"!O19"))) ->  | Q257: =IF(ISERROR(INDIRECT(CONCATENATE($B257,"!O20"))),"",INDIRECT(CONCATENATE($B257,"!O20"))) ->  | R257: =IF(ISERROR(INDIRECT(CONCATENATE($B257,"!O21"))),"",INDIRECT(CONCATENATE($B257,"!O21"))) ->  | T257: =IF(ISERROR(INDIRECT(CONCATENATE($B257,"!P18"))),"",INDIRECT(CONCATENATE($B257,"!P18"))) ->  | U257: =IF(ISERROR(INDIRECT(CONCATENATE($B257,"!P19"))),"",INDIRECT(CONCATENATE($B257,"!P19"))) ->  | V257: =IF(ISERROR(INDIRECT(CONCATENATE($B257,"!P20"))),"",INDIRECT(CONCATENATE($B257,"!P20"))) ->  | W257: =IF(ISERROR(INDIRECT(CONCATENATE($B257,"!P21"))),"",INDIRECT(CONCATENATE($B257,"!P21"))) ->  | Y257: =IF(ISERROR(INDIRECT(CONCATENATE($B257,"!Q18"))),"",INDIRECT(CONCATENATE($B257,"!Q18"))) ->  | Z257: =IF(ISERROR(INDIRECT(CONCATENATE($B257,"!Q19"))),"",INDIRECT(CONCATENATE($B257,"!Q19"))) ->  | AA257: =IF(ISERROR(INDIRECT(CONCATENATE($B257,"!Q20"))),"",INDIRECT(CONCATENATE($B257,"!Q20"))) ->  | AB257: =IF(ISERROR(INDIRECT(CONCATENATE($B257,"!Q21"))),"",INDIRECT(CONCATENATE($B257,"!Q1"))) -> 
A297: RURAL | D297: Poorest | I297: Poor | N297: Middle | S297: Rich | X297: Richest
D298: Improved | E298: Basic | F298: Limited | G298: Unimproved | H298: Surface water | I298: Improved | J298: Basic | K298: Limited | L298: Unimproved | M298: Surface water | N298: Improved | O298: Basic | P298: Limited | Q298: Unimproved | R298: Surface water | S298: Improved | T298: Basic | U298: Limited | V298: Unimproved | W298: Surface water | X298: Improved | Y298: Basic | Z298: Limited | AA298: Unimproved | AB298: Surface water
A299: Forecast period: | C299: 2000 | D299: =IF((D301+H301)>100,D301*100/(D301+H301),D301) -> 88.24459106 | E299: =D299*AVERAGEIF(E305:E316,">0")/100 -> 79.33666042 | F299: =D299*(100-AVERAGEIF(E305:E316,">0"))/100 -> 8.907930637 | G299: =100-(E299+F299+H299) -> 6.014901982 | H299: =IF((D301+H301)>100,H301*100/(D301+H301),H301) -> 5.740506959 | I299: =IF((I301+M301)>100,I301*100/(I301+M301),I301) -> 89.52722841 | J299: =I299*AVERAGEIF(J305:J316,">0")/100 -> 81.08705819 | K299: =I299*(100-AVERAGEIF(J305:J316,">0"))/100 -> 8.440170222 | L299: =100-(J299+K299+M299) -> 5.43234808 | M299: =IF((I301+M301)>100,M301*100/(I301+M301),M301) -> 5.040423507 | N299: =IF((N301+R301)>100,N301*100/(N301+R301),N301) -> 94.71720181 | O299: =N299*AVERAGEIF(O305:O316,">0")/100 -> 92.16933825 | P299: =N299*(100-AVERAGEIF(O305:O316,">0"))/100 -> 2.547863554 | Q299: =100-(O299+P299+R299) -> 4.393022743 | R299: =IF((N301+R301)>100,R301*100/(N301+R301),R301) -> 0.8897754492 | S299: =IF((S301+W301)>100,S301*100/(S301+W301),S301) -> 91.72780918 | T299: =S299*AVERAGEIF(T305:T316,">0")/100 -> 88.84853332 | U299: =S299*(100-AVERAGEIF(T305:T316,">0"))/100 -> 2.879275862 | V299: =100-(T299+U299+W299) -> 7.667836809 | W299: =IF((S301+W301)>100,W301*100/(S301+W301),W301) -> 0.6043540105 | X299: =IF((X301+AB301)>100,X301*100/(X301+AB301),X301) -> 97.78408626 | Y299: =X299*AVERAGEIF(Y305:Y316,">0")/100 -> 96.4596565 | Z299: =X299*(100-AVERAGEIF(Y305:Y316,">0"))/100 -> 1.324429757 | AA299: =100-(Y299+Z299+AB299) -> 1.297660889 | AB299: =IF((X301+AB301)>100,AB301*100/(X301+AB301),AB301) -> 0.9182528551
C300: 2018 | D300: =IF((D302+H302)>100,D302*100/(D302+H302),D302) -> 82.70923482 | E300: =D300*AVERAGEIF(E305:E316,">0")/100 -> 74.36007576 | F300: =D300*(100-AVERAGEIF(E305:E316,">0"))/100 -> 8.349159059 | G300: =100-(E300+F300+H300) -> 14.74751634 | H300: =IF((D302+H302)>100,H302*100/(D302+H302),H302) -> 2.54324884 | I300: =IF((I302+M302)>100,I302*100/(I302+M302),I302) -> 86.4621286 | J300: =I300*AVERAGEIF(J305:J316,">0")/100 -> 78.31092034 | K300: =I300*(100-AVERAGEIF(J305:J316,">0"))/100 -> 8.151208253 | L300: =100-(J300+K300+M300) -> 12.62794199 | M300: =IF((I302+M302)>100,M302*100/(I302+M302),M302) -> 0.9099294155 | N300: =IF((N302+R302)>100,N302*100/(N302+R302),N302) -> 85.94713303 | O300: =N300*AVERAGEIF(O305:O316,">0")/100 -> 83.63518163 | P300: =N300*(100-AVERAGEIF(O305:O316,">0"))/100 -> 2.311951405 | Q300: =100-(O300+P300+R300) -> 13.50116288 | R300: =IF((N302+R302)>100,R302*100/(N302+R302),R302) -> 0.5517040918 | S300: =IF((S302+W302)>100,S302*100/(S302+W302),S302) -> 87.02869847 | T300: =S300*AVERAGEIF(T305:T316,">0")/100 -> 84.29692462 | U300: =S300*(100-AVERAGEIF(T305:T316,">0"))/100 -> 2.731773854 | V300: =100-(T300+U300+W300) -> 12.95536053 | W300: =IF((S302+W302)>100,W302*100/(S302+W302),W302) -> 0.01594099824 | X300: =IF((X302+AB302)>100,X302*100/(X302+AB302),X302) -> 89.63598562 | Y300: =X300*AVERAGEIF(Y305:Y316,">0")/100 -> 88.42191725 | Z300: =X300*(100-AVERAGEIF(Y305:Y316,">0"))/100 -> 1.214068375 | AA300: =100-(Y300+Z300+AB300) -> 10.28372319 | AB300: =IF((X302+AB302)>100,AB302*100/(X302+AB302),AB302) -> 0.08029119082
A301: Regression period: | C301: =MinRegYear(C299,C305:C316) -> 2000 | D301: =IF(MAX(C305:C316)-MIN(C305:C316)<5,AVERAGEIF(C305:C316,">0",D305:D316), IF(FORECAST($C301,D$305:D$316,$C$305:$C$316)<0,0, IF(FORECAST($C301,D$305:D$316,$C$305:$C$316)>100,100, FORECAST($C301,D$305:D$316,$C$305:$C$316)))) -> 88.24459106 | H301: =IF(MAX(C305:C316)-MIN(C305:C316)<5,AVERAGEIF(C305:C316,">0",H305:H316), IF(FORECAST($C301,H$305:H$316,$C$305:$C$316)<0,0, IF(FORECAST($C301,H$305:H$316,$C$305:$C$316)>100,100, FORECAST($C301,H$305:H$316,$C$305:$C$316)))) -> 5.740506959 | I301: =IF(MAX(C305:C316)-MIN(C305:C316)<5,AVERAGEIF(C305:C316,">0",I305:I316), IF(FORECAST($C301,I$305:I$316,$C$305:$C$316)<0,0, IF(FORECAST($C301,I$305:I$316,$C$305:$C$316)>100,100, FORECAST($C301,I$305:I$316,$C$305:$C$316)))) -> 89.52722841 | M301: =IF(MAX(C305:C316)-MIN(C305:C316)<5,AVERAGEIF(C305:C316,">0",M305:M316), IF(FORECAST($C301,M$305:M$316,$C$305:$C$316)<0,0, IF(FORECAST($C301,M$305:M$316,$C$305:$C$316)>100,100, FORECAST($C301,M$305:M$316,$C$305:$C$316)))) -> 5.040423507 | N301: =IF(MAX(C305:C316)-MIN(C305:C316)<5,AVERAGEIF(C305:C316,">0",N305:N316), IF(FORECAST($C301,N$305:N$316,$C$305:$C$316)<0,0, IF(FORECAST($C301,N$305:N$316,$C$305:$C$316)>100,100, FORECAST($C301,N$305:N$316,$C$305:$C$316)))) -> 94.71720181 | R301: =IF(MAX(C305:C316)-MIN(C305:C316)<5,AVERAGEIF(C305:C316,">0",R305:R316), IF(FORECAST($C301,R$305:R$316,$C$305:$C$316)<0,0, IF(FORECAST($C301,R$305:R$316,$C$305:$C$316)>100,100, FORECAST($C301,R$305:R$316,$C$305:$C$316)))) -> 0.8897754492 | S301: =IF(MAX(C305:C316)-MIN(C305:C316)<5,AVERAGEIF(C305:C316,">0",S305:S316), IF(FORECAST($C301,S$305:S$316,$C$305:$C$316)<0,0, IF(FORECAST($C301,S$305:S$316,$C$305:$C$316)>100,100, FORECAST($C301,S$305:S$316,$C$305:$C$316)))) -> 91.72780918 | W301: =IF(MAX(C305:C316)-MIN(C305:C316)<5,AVERAGEIF(C305:C316,">0",W305:W316), IF(FORECAST($C301,W$305:W$316,$C$305:$C$316)<0,0, IF(FORECAST($C301,W$305:W$316,$C$305:$C$316)>100,100, FORECAST($C301,W$305:W$316,$C$305:$C$316)))) -> 0.6043540105 | X301: =IF(MAX(C305:C316)-MIN(C305:C316)<5,AVERAGEIF(C305:C316,">0",X305:X316), IF(FORECAST($C301,X$305:X$316,$C$305:$C$316)<0,0, IF(FORECAST($C301,X$305:X$316,$C$305:$C$316)>100,100, FORECAST($C301,X$305:X$316,$C$305:$C$316)))) -> 97.78408626 | AB301: =IF(MAX(C305:C316)-MIN(C305:C316)<5,AVERAGEIF(C305:C316,">0",AB305:AB316), IF(FORECAST($C301,AB$305:AB$316,$C$305:$C$316)<0,0, IF(FORECAST($C301,AB$305:AB$316,$C$305:$C$316)>100,100, FORECAST($C301,AB$305:AB$316,$C$305:$C$316)))) -> 0.9182528551
C302: =MaxRegYear(C300,C305:C316) -> 2014 | D302: =IF(MAX(C305:C316)-MIN(C305:C316)<5,AVERAGEIF(C305:C316,">0",D305:D316), IF(FORECAST($C302,D$305:D$316,$C$305:$C$316)<0,0, IF(FORECAST($C302,D$305:D$316,$C$305:$C$316)>100,100, FORECAST($C302,D$305:D$316,$C$305:$C$316)))) -> 82.70923482 | H302: =IF(MAX(C305:C316)-MIN(C305:C316)<5,AVERAGEIF(C305:C316,">0",H305:H316), IF(FORECAST($C302,H$305:H$316,$C$305:$C$316)<0,0, IF(FORECAST($C302,H$305:H$316,$C$305:$C$316)>100,100, FORECAST($C302,H$305:H$316,$C$305:$C$316)))) -> 2.54324884 | I302: =IF(MAX(C305:C316)-MIN(C305:C316)<5,AVERAGEIF(C305:C316,">0",I305:I316), IF(FORECAST($C302,I$305:I$316,$C$305:$C$316)<0,0, IF(FORECAST($C302,I$305:I$316,$C$305:$C$316)>100,100, FORECAST($C302,I$305:I$316,$C$305:$C$316)))) -> 86.4621286 | M302: =IF(MAX(C305:C316)-MIN(C305:C316)<5,AVERAGEIF(C305:C316,">0",M305:M316), IF(FORECAST($C302,M$305:M$316,$C$305:$C$316)<0,0, IF(FORECAST($C302,M$305:M$316,$C$305:$C$316)>100,100, FORECAST($C302,M$305:M$316,$C$305:$C$316)))) -> 0.9099294155 | N302: =IF(MAX(C305:C316)-MIN(C305:C316)<5,AVERAGEIF(C305:C316,">0",N305:N316), IF(FORECAST($C302,N$305:N$316,$C$305:$C$316)<0,0, IF(FORECAST($C302,N$305:N$316,$C$305:$C$316)>100,100, FORECAST($C302,N$305:N$316,$C$305:$C$316)))) -> 85.94713303 | R302: =IF(MAX(C305:C316)-MIN(C305:C316)<5,AVERAGEIF(C305:C316,">0",R305:R316), IF(FORECAST($C302,R$305:R$316,$C$305:$C$316)<0,0, IF(FORECAST($C302,R$305:R$316,$C$305:$C$316)>100,100, FORECAST($C302,R$305:R$316,$C$305:$C$316)))) -> 0.5517040918 | S302: =IF(MAX(C305:C316)-MIN(C305:C316)<5,AVERAGEIF(C305:C316,">0",S305:S316), IF(FORECAST($C302,S$305:S$316,$C$305:$C$316)<0,0, IF(FORECAST($C302,S$305:S$316,$C$305:$C$316)>100,100, FORECAST($C302,S$305:S$316,$C$305:$C$316)))) -> 87.02869847 | W302: =IF(MAX(C305:C316)-MIN(C305:C316)<5,AVERAGEIF(C305:C316,">0",W305:W316), IF(FORECAST($C302,W$305:W$316,$C$305:$C$316)<0,0, IF(FORECAST($C302,W$305:W$316,$C$305:$C$316)>100,100, FORECAST($C302,W$305:W$316,$C$305:$C$316)))) -> 0.01594099824 | X302: =IF(MAX(C305:C316)-MIN(C305:C316)<5,AVERAGEIF(C305:C316,">0",X305:X316), IF(FORECAST($C302,X$305:X$316,$C$305:$C$316)<0,0, IF(FORECAST($C302,X$305:X$316,$C$305:$C$316)>100,100, FORECAST($C302,X$305:X$316,$C$305:$C$316)))) -> 89.63598562 | AB302: =IF(MAX(C305:C316)-MIN(C305:C316)<5,AVERAGEIF(C305:C316,">0",AB305:AB316), IF(FORECAST($C302,AB$305:AB$316,$C$305:$C$316)<0,0, IF(FORECAST($C302,AB$305:AB$316,$C$305:$C$316)>100,100, FORECAST($C302,AB$305:AB$316,$C$305:$C$316)))) -> 0.08029119082
B304: Survey | C304: Year | D304: Improved | E304: % Improved < = 30min | H304: Surface water | I304: Improved | J304: % Improved < = 30min | M304: Surface water | N304: Improved | O304: % Improved < = 30min | R304: Surface water | S304: Improved | T304: % Improved < = 30min | W304: Surface water | X304: Improved | Y304: % Improved < = 30min | AB304: Surface water
B305: MICS00 | C305: 2000 | D305: =IF(ISERROR(INDIRECT(CONCATENATE($B305,"!M16"))),"",INDIRECT(CONCATENATE($B305,"!M16"))) -> 88.24459106 | E305: =IF(ISERROR(INDIRECT(CONCATENATE($B305,"!M23"))),"",INDIRECT(CONCATENATE($B305,"!M23"))) -> 93.17786848 | H305: =IF(ISERROR(INDIRECT(CONCATENATE($B305,"!M21"))),"",INDIRECT(CONCATENATE($B305,"!M21"))) -> 5.740506959 | I305: =IF(ISERROR(INDIRECT(CONCATENATE($B305,"!N16"))),"",INDIRECT(CONCATENATE($B305,"!N16"))) -> 89.52722841 | J305: =IF(ISERROR(INDIRECT(CONCATENATE($B305,"!N23"))),"",INDIRECT(CONCATENATE($B305,"!N23"))) -> 94.21582984 | M305: =IF(ISERROR(INDIRECT(CONCATENATE($B305,"!N21"))),"",INDIRECT(CONCATENATE($B305,"!N21"))) -> 5.040423507 | N305: =IF(ISERROR(INDIRECT(CONCATENATE($B305,"!O16"))),"",INDIRECT(CONCATENATE($B305,"!O16"))) -> 94.71720181 | O305: =IF(ISERROR(INDIRECT(CONCATENATE($B305,"!O23"))),"",INDIRECT(CONCATENATE($B305,"!O23"))) -> 96.85081204 | R305: =IF(ISERROR(INDIRECT(CONCATENATE($B305,"!O21"))),"",INDIRECT(CONCATENATE($B305,"!O21"))) -> 0.8897754492 | S305: =IF(ISERROR(INDIRECT(CONCATENATE($B305,"!P16"))),"",INDIRECT(CONCATENATE($B305,"!P16"))) -> 91.72780918 | T305: =IF(ISERROR(INDIRECT(CONCATENATE($B305,"!P23"))),"",INDIRECT(CONCATENATE($B305,"!P23"))) -> 95.26743508 | W305: =IF(ISERROR(INDIRECT(CONCATENATE($B305,"!P21"))),"",INDIRECT(CONCATENATE($B305,"!P21"))) -> 0.6043540105 | X305: =IF(ISERROR(INDIRECT(CONCATENATE($B305,"!Q16"))),"",INDIRECT(CONCATENATE($B305,"!Q16"))) -> 97.78408626 | Y305: =IF(ISERROR(INDIRECT(CONCATENATE($B305,"!Q23"))),"",INDIRECT(CONCATENATE($B305,"!Q23"))) -> 99.30304383 | AB305: =IF(ISERROR(INDIRECT(CONCATENATE($B305,"!Q221"))),"",INDIRECT(CONCATENATE($B305,"!Q21"))) -> 0.9182528551
B306: WHS03 | D306: 68.45759633 | E306: 95.53835822 | H306: 0 | I306: 63.96791563 | J306: 88.40170111 | M306: 0 | N306: 64.83254422 | O306: 97.57928037 | R306: 0 | S306: 77.90652209 | T306: 97.71576137 | W306: 0 | X306: 83.31395144 | Y306: 98.73362703 | AB306: 0
B307: DHS12 | C307: 2012 | D307: 83.5 | E307: 81 | H307: 3 | I307: 86.9 | J307: 89.1 | M307: 1.5 | N307: 87.2 | O307: 97.5 | R307: 0.6 | S307: 87.7 | T307: 97.6 | W307: 0.1 | X307: 90.8 | Y307: 97.9 | AB307: 0.2
B318: =CONCATENATE("Rural use of drinking water sources, ",C299,"–",C300) -> Rural use of drinking water sources, 2000–2018 | S318: Data points used for regression

Sheet Sanitation
B4: Summary of trends in use of sanitation facilities by wealth quintile (%)
B5: =IF(ISERROR(INDIRECT(CONCATENATE($B105,"!A2"))),"",INDIRECT(CONCATENATE($B105,"!A2"))) -> Comoros
B7: =B118 -> National use of sanitation facilities, 2000–2018 | J7: =B218 -> Urban use of sanitation facilities, 2000–2018 | R7: =B318 -> Rural use of sanitation facilities, 2000–2018
B31: =IF(ISERROR(INDIRECT(CONCATENATE($B105,"!A2"))),"",INDIRECT(CONCATENATE($B105,"!A2"))) -> Comoros | F31: Poorest | J31: Poor | N31: Middle | R31: Rich | V31: Richest
F32: Basic | G32: Limited | H32: Unimproved | I32: Open defecation | J32: Basic | K32: Limited | L32: Unimproved | M32: Open defecation | N32: Basic | O32: Limited | P32: Unimproved | Q32: Open defecation | R32: Basic | S32: Limited | T32: Unimproved | U32: Open defecation | V32: Basic | W32: Limited | X32: Unimproved | Y32: Open defecation
B33: NATIONAL | D33: Estimate | E33: =C99 -> 2000 | F33: =E99 -> 2.802596912 | G33: =F99 -> 0.7877670321 | H33: 95.43651076 | I33: 0.9731252973 | J33: =J99 -> 10.00593811 | K33: =K99 -> 2.82831421 | L33: 86.83851143 | M33: 0.327236246 | N33: =O99 -> 20.82422933 | O33: =P99 -> 4.580703018 | P33: 74.5399355 | Q33: 0.05513215065 | R33: =T99 -> 33.46295371 | S33: =U99 -> 6.328122668 | T33: 60.01106533 | U33: 0.197858295 | V33: =Y99 -> 60.9589562 | W33: =Z99 -> 5.86529005 | X33: 32.88489328 | Y33: 0.2908604635
E34: =C100 -> 2018 | F34: =E100 -> 29.15684582 | G34: 8.195542428 | H34: 62.12401892 | I34: 0.5235928284 | J34: =J100 -> 24.64328277 | K34: 6.965758336 | L34: 68.01889851 | M34: 0.3720603846 | N34: =O100 -> 25.44936556 | O34: 5.598093633 | P34: 68.14760646 | Q34: 0.8049343443 | R34: =T100 -> 33.55828091 | S34: 6.346149834 | T34: 59.65628317 | U34: 0.4392860833 | V34: =Y100 -> 54.14481808 | W34: 5.209653881 | X34: 40.64552804 | Y34: 0
B36: URBAN | D36: Estimate | E36: =C199 -> 2000 | F36: =E199 -> 4.677636399 | G36: =F199 -> 1.485020476 | H36: 93.21740646 | I36: 0.6199366618 | J36: =J199 -> 26.52959625 | K36: =K199 -> 5.979783618 | L36: 67.49062014 | M36: 0 | N36: =O199 -> 33.46465717 | O36: =P199 -> 6.93185569 | P36: 58.84520172 | Q36: 0.7582854192 | R36: =T199 -> 49.09632307 | S36: =U199 -> 9.066575272 | T36: 41.83710166 | U36: 0 | V36: =Y199 -> 78.35408071 | W36: =Z199 -> 7.542027322 | X36: 14.10389197 | Y36: 0
E37: =C200 -> 2018 | F37: =E200 -> 30.71651963 | G37: 9.751647353 | H37: 59.15448764 | I37: 0.3773453742 | J37: =J200 -> 33.8968604 | K37: 7.640368465 | L37: 57.32037384 | M37: 1.142397289 | N37: =O200 -> 42.01541168 | O37: 8.703055556 | P37: 49.23697416 | Q37: 0.04455860062 | R37: =T200 -> 54.97113513 | S37: 10.1514717 | T37: 34.71583542 | U37: 0.1615577446 | V37: =Y200 -> 67.87976185 | W37: 6.53381437 | X37: 25.51217353 | Y37: 0.0742502481
B39: RURAL | D39: Estimate | E39: =C299 -> 2000 | F39: =E299 -> 2.666414717 | G39: =F299 -> 0.737177082 | H39: 95.35077852 | I39: 1.24562968 | J39: =J299 -> 6.52935627 | K39: =K299 -> 2.076552561 | L39: 91.16766825 | M39: 0.2264229152 | N39: =O299 -> 15.79860714 | O39: =P299 -> 2.774113391 | P39: 81.34966947 | Q39: 0.0776099994 | R39: =T299 -> 27.66718439 | S39: =U299 -> 6.244413412 | T39: 66.0884022 | U39: 0 | V39: =Y299 -> 52.40927336 | W39: =Z299 -> 3.475218226 | X39: 43.66238781 | Y39: 0.4531206067
E40: =C300 -> 2018 | F40: =E300 -> 27.68509708 | G40: 7.654030317 | H40: 64.09504043 | I40: 0.565832178 | J40: =J300 -> 24.97467774 | K40: 7.942778567 | L40: 66.48739598 | M40: 0.5951477081 | N40: =O300 -> 21.96588556 | O40: 3.857039848 | P40: 74.03962197 | Q40: 0.1374526159 | R40: =T300 -> 23.75322166 | S40: 5.361041941 | T40: 70.03844396 | U40: 0.8472924369 | V40: =Y300 -> 38.78074094 | W40: 2.571520823 | X40: 58.50890087 | Y40: 0.1388373727
A97: NATIONAL | D97: Poorest | I97: Poor | N97: Middle | S97: Rich | X97: Richest
D98: Improved | E98: Basic | F98: Limited | G98: Unimproved | H98: Open defecation | I98: Improved | J98: Basic | K98: Limited | L98: Unimproved | M98: Open defecation | N98: Improved | O98: Basic | P98: Limited | Q98: Unimproved | R98: Open defecation | S98: Improved | T98: Basic | U98: Limited | V98: Unimproved | W98: Open defecation | X98: Improved | Y98: Basic | Z98: Limited | AA98: Unimproved | AB98: Open defecation
A99: Forecast period: | C99: 2000 | D99: =IF((D101+H101)>100,D101*100/(D101+H101),D101) -> 3.590363944 | E99: =D99*AVERAGEIF(E105:E116,">0")/100 -> 2.802596912 | F99: =D99*(100-AVERAGEIF(E105:E116,">0"))/100 -> 0.7877670321 | G99: =100-(E99+F99+H99) -> 95.43651076 | H99: =IF((D101+H101)>100,H101*100/(D101+H101),H101) -> 0.9731252973 | I99: =IF((I101+M101)>100,I101*100/(I101+M101),I101) -> 12.83425232 | J99: =I99*AVERAGEIF(J105:J116,">0")/100 -> 10.00593811 | K99: =I99*(100-AVERAGEIF(J105:J116,">0"))/100 -> 2.82831421 | L99: =100-(J99+K99+M99) -> 86.83851143 | M99: =IF((I101+M101)>100,M101*100/(I101+M101),M101) -> 0.327236246 | N99: =IF((N101+R101)>100,N101*100/(N101+R101),N101) -> 25.40493235 | O99: =N99*AVERAGEIF(O105:O116,">0")/100 -> 20.82422933 | P99: =N99*(100-AVERAGEIF(O105:O116,">0"))/100 -> 4.580703018 | Q99: =100-(O99+P99+R99) -> 74.5399355 | R99: =IF((N101+R101)>100,R101*100/(N101+R101),R101) -> 0.05513215065 | S99: =IF((S101+W101)>100,S101*100/(S101+W101),S101) -> 39.79107638 | T99: =S99*AVERAGEIF(T105:T116,">0")/100 -> 33.46295371 | U99: =S99*(100-AVERAGEIF(T105:T116,">0"))/100 -> 6.328122668 | V99: =100-(T99+U99+W99) -> 60.01106533 | W99: =IF((S101+W101)>100,W101*100/(S101+W101),W101) -> 0.197858295 | X99: =IF((X101+AB101)>100,X101*100/(X101+AB101),X101) -> 66.82424626 | Y99: =X99*AVERAGEIF(Y105:Y116,">0")/100 -> 60.9589562 | Z99: =X99*(100-AVERAGEIF(Y105:Y116,">0"))/100 -> 5.86529005 | AA99: =100-(Y99+Z99+AB99) -> 32.88489328 | AB99: =IF((X101+AB101)>100,AB101*100/(X101+AB101),AB101) -> 0.2908604635
C100: 2018 | D100: =IF((D102+H102)>100,D102*100/(D102+H102),D102) -> 37.35238825 | E100: =D100*AVERAGEIF(E105:E116,">0")/100 -> 29.15684582 | F100: =D100*(100-AVERAGEIF(E105:E116,">0"))/100 -> 8.195542428 | G100: =100-(E100+F100+H100) -> 62.12401892 | H100: =IF((D102+H102)>100,H102*100/(D102+H102),H102) -> 0.5235928284 | I100: =IF((I102+M102)>100,I102*100/(I102+M102),I102) -> 31.6090411 | J100: =I100*AVERAGEIF(J105:J116,">0")/100 -> 24.64328277 | K100: =I100*(100-AVERAGEIF(J105:J116,">0"))/100 -> 6.965758336 | L100: =100-(J100+K100+M100) -> 68.01889851 | M100: =IF((I102+M102)>100,M102*100/(I102+M102),M102) -> 0.3720603846 | N100: =IF((N102+R102)>100,N102*100/(N102+R102),N102) -> 31.04745919 | O100: =N100*AVERAGEIF(O105:O116,">0")/100 -> 25.44936556 | P100: =N100*(100-AVERAGEIF(O105:O116,">0"))/100 -> 5.598093633 | Q100: =100-(O100+P100+R100) -> 68.14760646 | R100: =IF((N102+R102)>100,R102*100/(N102+R102),R102) -> 0.8049343443 | S100: =IF((S102+W102)>100,S102*100/(S102+W102),S102) -> 39.90443074 | T100: =S100*AVERAGEIF(T105:T116,">0")/100 -> 33.55828091 | U100: =S100*(100-AVERAGEIF(T105:T116,">0"))/100 -> 6.346149834 | V100: =100-(T100+U100+W100) -> 59.65628317 | W100: =IF((S102+W102)>100,W102*100/(S102+W102),W102) -> 0.4392860833 | X100: =IF((X102+AB102)>100,X102*100/(X102+AB102),X102) -> 59.35447196 | Y100: =X100*AVERAGEIF(Y105:Y116,">0")/100 -> 54.14481808 | Z100: =X100*(100-AVERAGEIF(Y105:Y116,">0"))/100 -> 5.209653881 | AA100: =100-(Y100+Z100+AB100) -> 40.64552804 | AB100: =IF((X102+AB102)>100,AB102*100/(X102+AB102),AB102) -> 0
A101: Regression period: | C101: =MinRegYear(C99,C105:C116) -> 2000 | D101: =IF(MAX(C105:C116)-MIN(C105:C116)<5,AVERAGEIF(C105:C116,">0",D105:D116), IF(FORECAST($C101,D$105:D$116,$C$105:$C$116)<0,0, IF(FORECAST($C101,D$105:D$116,$C$105:$C$116)>100,100, FORECAST($C101,D$105:D$116,$C$105:$C$116)))) -> 3.590363944 | H101: =IF(MAX(C105:C116)-MIN(C105:C116)<5,AVERAGEIF(C105:C116,">0",H105:H116), IF(FORECAST($C101,H$105:H$116,$C$105:$C$116)<0,0, IF(FORECAST($C101,H$105:H$116,$C$105:$C$116)>100,100, FORECAST($C101,H$105:H$116,$C$105:$C$116)))) -> 0.9731252973 | I101: =IF(MAX(C105:C116)-MIN(C105:C116)<5,AVERAGEIF(C105:C116,">0",I105:I116), IF(FORECAST($C101,I$105:I$116,$C$105:$C$116)<0,0, IF(FORECAST($C101,I$105:I$116,$C$105:$C$116)>100,100, FORECAST($C101,I$105:I$116,$C$105:$C$116)))) -> 12.83425232 | M101: =IF(MAX(C105:C116)-MIN(C105:C116)<5,AVERAGEIF(C105:C116,">0",M105:M116), IF(FORECAST($C101,M$105:M$116,$C$105:$C$116)<0,0, IF(FORECAST($C101,M$105:M$116,$C$105:$C$116)>100,100, FORECAST($C101,M$105:M$116,$C$105:$C$116)))) -> 0.327236246 | N101: =IF(MAX(C105:C116)-MIN(C105:C116)<5,AVERAGEIF(C105:C116,">0",N105:N116), IF(FORECAST($C101,N$105:N$116,$C$105:$C$116)<0,0, IF(FORECAST($C101,N$105:N$116,$C$105:$C$116)>100,100, FORECAST($C101,N$105:N$116,$C$105:$C$116)))) -> 25.40493235 | R101: =IF(MAX(C105:C116)-MIN(C105:C116)<5,AVERAGEIF(C105:C116,">0",R105:R116), IF(FORECAST($C101,R$105:R$116,$C$105:$C$116)<0,0, IF(FORECAST($C101,R$105:R$116,$C$105:$C$116)>100,100, FORECAST($C101,R$105:R$116,$C$105:$C$116)))) -> 0.05513215065 | S101: =IF(MAX(C105:C116)-MIN(C105:C116)<5,AVERAGEIF(C105:C116,">0",S105:S116), IF(FORECAST($C101,S$105:S$116,$C$105:$C$116)<0,0, IF(FORECAST($C101,S$105:S$116,$C$105:$C$116)>100,100, FORECAST($C101,S$105:S$116,$C$105:$C$116)))) -> 39.79107638 | W101: =IF(MAX(C105:C116)-MIN(C105:C116)<5,AVERAGEIF(C105:C116,">0",W105:W116), IF(FORECAST($C101,W$105:W$116,$C$105:$C$116)<0,0, IF(FORECAST($C101,W$105:W$116,$C$105:$C$116)>100,100, FORECAST($C101,W$105:W$116,$C$105:$C$116)))) -> 0.197858295 | X101: =IF(MAX(C105:C116)-MIN(C105:C116)<5,AVERAGEIF(C105:C116,">0",X105:X116), IF(FORECAST($C101,X$105:X$116,$C$105:$C$116)<0,0, IF(FORECAST($C101,X$105:X$116,$C$105:$C$116)>100,100, FORECAST($C101,X$105:X$116,$C$105:$C$116)))) -> 66.82424626 | AB101: =IF(MAX(C105:C116)-MIN(C105:C116)<5,AVERAGEIF(C105:C116,">0",AB105:AB116), IF(FORECAST($C101,AB$105:AB$116,$C$105:$C$116)<0,0, IF(FORECAST($C101,AB$105:AB$116,$C$105:$C$116)>100,100, FORECAST($C101,AB$105:AB$116,$C$105:$C$116)))) -> 0.2908604635
C102: =MaxRegYear(C100,C105:C116) -> 2014 | D102: =IF(MAX(C105:C116)-MIN(C105:C116)<5,AVERAGEIF(C105:C116,">0",D105:D116), IF(FORECAST($C102,D$105:D$116,$C$105:$C$116)<0,0, IF(FORECAST($C102,D$105:D$116,$C$105:$C$116)>100,100, FORECAST($C102,D$105:D$116,$C$105:$C$116)))) -> 37.35238825 | H102: =IF(MAX(C105:C116)-MIN(C105:C116)<5,AVERAGEIF(C105:C116,">0",H105:H116), IF(FORECAST($C102,H$105:H$116,$C$105:$C$116)<0,0, IF(FORECAST($C102,H$105:H$116,$C$105:$C$116)>100,100, FORECAST($C102,H$105:H$116,$C$105:$C$116)))) -> 0.5235928284 | I102: =IF(MAX(C105:C116)-MIN(C105:C116)<5,AVERAGEIF(C105:C116,">0",I105:I116), IF(FORECAST($C102,I$105:I$116,$C$105:$C$116)<0,0, IF(FORECAST($C102,I$105:I$116,$C$105:$C$116)>100,100, FORECAST($C102,I$105:I$116,$C$105:$C$116)))) -> 31.6090411 | M102: =IF(MAX(C105:C116)-MIN(C105:C116)<5,AVERAGEIF(C105:C116,">0",M105:M116), IF(FORECAST($C102,M$105:M$116,$C$105:$C$116)<0,0, IF(FORECAST($C102,M$105:M$116,$C$105:$C$116)>100,100, FORECAST($C102,M$105:M$116,$C$105:$C$116)))) -> 0.3720603846 | N102: =IF(MAX(C105:C116)-MIN(C105:C116)<5,AVERAGEIF(C105:C116,">0",N105:N116), IF(FORECAST($C102,N$105:N$116,$C$105:$C$116)<0,0, IF(FORECAST($C102,N$105:N$116,$C$105:$C$116)>100,100, FORECAST($C102,N$105:N$116,$C$105:$C$116)))) -> 31.04745919 | R102: =IF(MAX(C105:C116)-MIN(C105:C116)<5,AVERAGEIF(C105:C116,">0",R105:R116), IF(FORECAST($C102,R$105:R$116,$C$105:$C$116)<0,0, IF(FORECAST($C102,R$105:R$116,$C$105:$C$116)>100,100, FORECAST($C102,R$105:R$116,$C$105:$C$116)))) -> 0.8049343443 | S102: =IF(MAX(C105:C116)-MIN(C105:C116)<5,AVERAGEIF(C105:C116,">0",S105:S116), IF(FORECAST($C102,S$105:S$116,$C$105:$C$116)<0,0, IF(FORECAST($C102,S$105:S$116,$C$105:$C$116)>100,100, FORECAST($C102,S$105:S$116,$C$105:$C$116)))) -> 39.90443074 | W102: =IF(MAX(C105:C116)-MIN(C105:C116)<5,AVERAGEIF(C105:C116,">0",W105:W116), IF(FORECAST($C102,W$105:W$116,$C$105:$C$116)<0,0, IF(FORECAST($C102,W$105:W$116,$C$105:$C$116)>100,100, FORECAST($C102,W$105:W$116,$C$105:$C$116)))) -> 0.4392860833 | X102: =IF(MAX(C105:C116)-MIN(C105:C116)<5,AVERAGEIF(C105:C116,">0",X105:X116), IF(FORECAST($C102,X$105:X$116,$C$105:$C$116)<0,0, IF(FORECAST($C102,X$105:X$116,$C$105:$C$116)>100,100, FORECAST($C102,X$105:X$116,$C$105:$C$116)))) -> 59.35447196 | AB102: =IF(MAX(C105:C116)-MIN(C105:C116)<5,AVERAGEIF(C105:C116,">0",AB105:AB116), IF(FORECAST($C102,AB$105:AB$116,$C$105:$C$116)<0,0, IF(FORECAST($C102,AB$105:AB$116,$C$105:$C$116)>100,100, FORECAST($C102,AB$105:AB$116,$C$105:$C$116)))) -> 0
B104: Survey | C104: Year | D104: Improved | E104: Not shared | H104: Open defecation | I104: Improved | J104: Not shared | M104: Open defecation | N104: Improved | O104: Not shared | R104: Open defecation | S104: Improved | T104: Not shared | W104: Open defecation | X104: Improved | Y104: Not shared | AB104: Open defecation
B105: MICS00 | C105: 2000 | D105: =IF(ISERROR(INDIRECT(CONCATENATE($B105,"!C122"))),"",INDIRECT(CONCATENATE($B105,"!C122"))) -> 6.102554012 | E105: =IF(ISERROR(INDIRECT(CONCATENATE($B105,"!C129"))),"",INDIRECT(CONCATENATE($B105,"!C129"))) -> N/a | H105: =IF(ISERROR(INDIRECT(CONCATENATE($B105,"!C127"))),"",INDIRECT(CONCATENATE($B105,"!C127"))) -> 1.630722981 | I105: =IF(ISERROR(INDIRECT(CONCATENATE($B105,"!D122"))),"",INDIRECT(CONCATENATE($B105,"!D122"))) -> 13.64839351 | J105: =IF(ISERROR(INDIRECT(CONCATENATE($B105,"!D129"))),"",INDIRECT(CONCATENATE($B105,"!D129"))) -> N/a | M105: =IF(ISERROR(INDIRECT(CONCATENATE($B105,"!D127"))),"",INDIRECT(CONCATENATE($B105,"!D127"))) -> 0.5798673099 | N105: =IF(ISERROR(INDIRECT(CONCATENATE($B105,"!E122"))),"",INDIRECT(CONCATENATE($B105,"!E122"))) -> 24.63757752 | O105: =IF(ISERROR(INDIRECT(CONCATENATE($B105,"!E129"))),"",INDIRECT(CONCATENATE($B105,"!E129"))) -> N/a | R105: =IF(ISERROR(INDIRECT(CONCATENATE($B105,"!E127"))),"",INDIRECT(CONCATENATE($B105,"!E127"))) -> 0.2169851876 | S105: =IF(ISERROR(INDIRECT(CONCATENATE($B105,"!F122"))),"",INDIRECT(CONCATENATE($B105,"!F122"))) -> 39.10544808 | T105: =IF(ISERROR(INDIRECT(CONCATENATE($B105,"!F129"))),"",INDIRECT(CONCATENATE($B105,"!F129"))) -> N/a | W105: =IF(ISERROR(INDIRECT(CONCATENATE($B105,"!F127"))),"",INDIRECT(CONCATENATE($B105,"!F127"))) -> 0.3850529107 | X105: =IF(ISERROR(INDIRECT(CONCATENATE($B105,"!G122"))),"",INDIRECT(CONCATENATE($B105,"!G122"))) -> 63.77667955 | Y105: =IF(ISERROR(INDIRECT(CONCATENATE($B105,"!G129"))),"",INDIRECT(CONCATENATE($B105,"!G129"))) -> N/a | AB105: =IF(ISERROR(INDIRECT(CONCATENATE($B105,"!G2127"))),"",INDIRECT(CONCATENATE($B105,"!G127"))) -> 0.4563159827
B106: WHS03 | C106: 2003 | D106: 7.47549668 | E106: 83.70043927 | H106: 0 | I106: 15.77189977 | J106: 91.94947976 | M106: 0 | N106: 27.63718502 | O106: 89.18097468 | R106: 0 | S106: 40.72953767 | T106: 94.60041709 | W106: 0 | X106: 69.2870026 | Y106: 92.77092325 | AB106: 0
B107: DHS12 | C107: 2012 | D107: 33.36663861 | E107: 72.41726665 | H107: 0.8070109803 | I107: 29.19830882 | J107: 63.97605235 | M107: 0.4498672909 | N107: 29.98559898 | O107: 74.75750029 | R107: 0.7517707575 | S107: 39.6596945 | T107: 73.59284007 | W107: 0.4671946045 | X107: 59.40572701 | Y107: 89.67469977 | AB107: 0.06499988446
B118: =CONCATENATE("National use of sanitation facilities, ",C99,"–",C100) -> National use of sanitation facilities, 2000–2018 | S118: Data points used for regression
A197: URBAN | D197: Poorest | I197: Poor | N197: Middle | S197: Rich | X197: Richest
D198: Improved | E198: Basic | F198: Limited | G198: Unimproved | H198: Open defecation | I198: Improved | J198: Basic | K198: Limited | L198: Unimproved | M198: Open defecation | N198: Improved | O198: Basic | P198: Limited | Q198: Unimproved | R198: Open defecation | S198: Improved | T198: Basic | U198: Limited | V198: Unimproved | W198: Open defecation | X198: Improved | Y198: Basic | Z198: Limited | AA198: Unimproved | AB198: Open defecation
A199: Forecast period: | C199: 2000 | D199: =IF((D201+H201)>100,D201*100/(D201+H201),D201) -> 6.162656875 | E199: =D199*AVERAGEIF(E205:E216,">0")/100 -> 4.677636399 | F199: =D199*(100-AVERAGEIF(E205:E216,">0"))/100 -> 1.485020476 | G199: =100-(E199+F199+H199) -> 93.21740646 | H199: =IF((D201+H201)>100,H201*100/(D201+H201),H201) -> 0.6199366618 | I199: =IF((I201+M201)>100,I201*100/(I201+M201),I201) -> 32.50937986 | J199: =I199*AVERAGEIF(J205:J216,">0")/100 -> 26.52959625 | K199: =I199*(100-AVERAGEIF(J205:J216,">0"))/100 -> 5.979783618 | L199: =100-(J199+K199+M199) -> 67.49062014 | M199: =IF((I201+M201)>100,M201*100/(I201+M201),M201) -> 0 | N199: =IF((N201+R201)>100,N201*100/(N201+R201),N201) -> 40.39651286 | O199: =N199*AVERAGEIF(O205:O216,">0")/100 -> 33.46465717 | P199: =N199*(100-AVERAGEIF(O205:O216,">0"))/100 -> 6.93185569 | Q199: =100-(O199+P199+R199) -> 58.84520172 | R199: =IF((N201+R201)>100,R201*100/(N201+R201),R201) -> 0.7582854192 | S199: =IF((S201+W201)>100,S201*100/(S201+W201),S201) -> 58.16289834 | T199: =S199*AVERAGEIF(T205:T216,">0")/100 -> 49.09632307 | U199: =S199*(100-AVERAGEIF(T205:T216,">0"))/100 -> 9.066575272 | V199: =100-(T199+U199+W199) -> 41.83710166 | W199: =IF((S201+W201)>100,W201*100/(S201+W201),W201) -> 0 | X199: =IF((X201+AB201)>100,X201*100/(X201+AB201),X201) -> 85.89610803 | Y199: =X199*AVERAGEIF(Y205:Y216,">0")/100 -> 78.35408071 | Z199: =X199*(100-AVERAGEIF(Y205:Y216,">0"))/100 -> 7.542027322 | AA199: =100-(Y199+Z199+AB199) -> 14.10389197 | AB199: =IF((X201+AB201)>100,AB201*100/(X201+AB201),AB201) -> 0
C200: 2018 | D200: =IF((D202+H202)>100,D202*100/(D202+H202),D202) -> 40.46816698 | E200: =D200*AVERAGEIF(E205:E216,">0")/100 -> 30.71651963 | F200: =D200*(100-AVERAGEIF(E205:E216,">0"))/100 -> 9.751647353 | G200: =100-(E200+F200+H200) -> 59.15448764 | H200: =IF((D202+H202)>100,H202*100/(D202+H202),H202) -> 0.3773453742 | I200: =IF((I202+M202)>100,I202*100/(I202+M202),I202) -> 41.53722887 | J200: =I200*AVERAGEIF(J205:J216,">0")/100 -> 33.8968604 | K200: =I200*(100-AVERAGEIF(J205:J216,">0"))/100 -> 7.640368465 | L200: =100-(J200+K200+M200) -> 57.32037384 | M200: =IF((I202+M202)>100,M202*100/(I202+M202),M202) -> 1.142397289 | N200: =IF((N202+R202)>100,N202*100/(N202+R202),N202) -> 50.71846724 | O200: =N200*AVERAGEIF(O205:O216,">0")/100 -> 42.01541168 | P200: =N200*(100-AVERAGEIF(O205:O216,">0"))/100 -> 8.703055556 | Q200: =100-(O200+P200+R200) -> 49.23697416 | R200: =IF((N202+R202)>100,R202*100/(N202+R202),R202) -> 0.04455860062 | S200: =IF((S202+W202)>100,S202*100/(S202+W202),S202) -> 65.12260684 | T200: =S200*AVERAGEIF(T205:T216,">0")/100 -> 54.97113513 | U200: =S200*(100-AVERAGEIF(T205:T216,">0"))/100 -> 10.1514717 | V200: =100-(T200+U200+W200) -> 34.71583542 | W200: =IF((S202+W202)>100,W202*100/(S202+W202),W202) -> 0.1615577446 | X200: =IF((X202+AB202)>100,X202*100/(X202+AB202),X202) -> 74.41357622 | Y200: =X200*AVERAGEIF(Y205:Y216,">0")/100 -> 67.87976185 | Z200: =X200*(100-AVERAGEIF(Y205:Y216,">0"))/100 -> 6.53381437 | AA200: =100-(Y200+Z200+AB200) -> 25.51217353 | AB200: =IF((X202+AB202)>100,AB202*100/(X202+AB202),AB202) -> 0.0742502481
A201: Regression period: | C201: =MinRegYear(C199,C205:C216) -> 2000 | D201: =IF(MAX(C205:C216)-MIN(C205:C216)<5,AVERAGEIF(C205:C216,">0",D205:D216), IF(FORECAST($C201,D$205:D$216,$C$205:$C$216)<0,0, IF(FORECAST($C201,D$205:D$216,$C$205:$C$216)>100,100, FORECAST($C201,D$205:D$216,$C$205:$C$216)))) -> 6.162656875 | H201: =IF(MAX(C205:C216)-MIN(C205:C216)<5,AVERAGEIF(C205:C216,">0",H205:H216), IF(FORECAST($C201,H$205:H$216,$C$205:$C$216)<0,0, IF(FORECAST($C201,H$205:H$216,$C$205:$C$216)>100,100, FORECAST($C201,H$205:H$216,$C$205:$C$216)))) -> 0.6199366618 | I201: =IF(MAX(C205:C216)-MIN(C205:C216)<5,AVERAGEIF(C205:C216,">0",I205:I216), IF(FORECAST($C201,I$205:I$216,$C$205:$C$216)<0,0, IF(FORECAST($C201,I$205:I$216,$C$205:$C$216)>100,100, FORECAST($C201,I$205:I$216,$C$205:$C$216)))) -> 32.50937986 | M201: =IF(MAX(C205:C216)-MIN(C205:C216)<5,AVERAGEIF(C205:C216,">0",M205:M216), IF(FORECAST($C201,M$205:M$216,$C$205:$C$216)<0,0, IF(FORECAST($C201,M$205:M$216,$C$205:$C$216)>100,100, FORECAST($C201,M$205:M$216,$C$205:$C$216)))) -> 0 | N201: =IF(MAX(C205:C216)-MIN(C205:C216)<5,AVERAGEIF(C205:C216,">0",N205:N216), IF(FORECAST($C201,N$205:N$216,$C$205:$C$216)<0,0, IF(FORECAST($C201,N$205:N$216,$C$205:$C$216)>100,100, FORECAST($C201,N$205:N$216,$C$205:$C$216)))) -> 40.39651286 | R201: =IF(MAX(C205:C216)-MIN(C205:C216)<5,AVERAGEIF(C205:C216,">0",R205:R216), IF(FORECAST($C201,R$205:R$216,$C$205:$C$216)<0,0, IF(FORECAST($C201,R$205:R$216,$C$205:$C$216)>100,100, FORECAST($C201,R$205:R$216,$C$205:$C$216)))) -> 0.7582854192 | S201: =IF(MAX(C205:C216)-MIN(C205:C216)<5,AVERAGEIF(C205:C216,">0",S205:S216), IF(FORECAST($C201,S$205:S$216,$C$205:$C$216)<0,0, IF(FORECAST($C201,S$205:S$216,$C$205:$C$216)>100,100, FORECAST($C201,S$205:S$216,$C$205:$C$216)))) -> 58.16289834 | W201: =IF(MAX(C205:C216)-MIN(C205:C216)<5,AVERAGEIF(C205:C216,">0",W205:W216), IF(FORECAST($C201,W$205:W$216,$C$205:$C$216)<0,0, IF(FORECAST($C201,W$205:W$216,$C$205:$C$216)>100,100, FORECAST($C201,W$205:W$216,$C$205:$C$216)))) -> 0 | X201: =IF(MAX(C205:C216)-MIN(C205:C216)<5,AVERAGEIF(C205:C216,">0",X205:X216), IF(FORECAST($C201,X$205:X$216,$C$205:$C$216)<0,0, IF(FORECAST($C201,X$205:X$216,$C$205:$C$216)>100,100, FORECAST($C201,X$205:X$216,$C$205:$C$216)))) -> 85.89610803 | AB201: =IF(MAX(C205:C216)-MIN(C205:C216)<5,AVERAGEIF(C205:C216,">0",AB205:AB216), IF(FORECAST($C201,AB$205:AB$216,$C$205:$C$216)<0,0, IF(FORECAST($C201,AB$205:AB$216,$C$205:$C$216)>100,100, FORECAST($C201,AB$205:AB$216,$C$205:$C$216)))) -> 0
C202: =MaxRegYear(C200,C205:C216) -> 2014 | D202: =IF(MAX(C205:C216)-MIN(C205:C216)<5,AVERAGEIF(C205:C216,">0",D205:D216), IF(FORECAST($C202,D$205:D$216,$C$205:$C$216)<0,0, IF(FORECAST($C202,D$205:D$216,$C$205:$C$216)>100,100, FORECAST($C202,D$205:D$216,$C$205:$C$216)))) -> 40.46816698 | H202: =IF(MAX(C205:C216)-MIN(C205:C216)<5,AVERAGEIF(C205:C216,">0",H205:H216), IF(FORECAST($C202,H$205:H$216,$C$205:$C$216)<0,0, IF(FORECAST($C202,H$205:H$216,$C$205:$C$216)>100,100, FORECAST($C202,H$205:H$216,$C$205:$C$216)))) -> 0.3773453742 | I202: =IF(MAX(C205:C216)-MIN(C205:C216)<5,AVERAGEIF(C205:C216,">0",I205:I216), IF(FORECAST($C202,I$205:I$216,$C$205:$C$216)<0,0, IF(FORECAST($C202,I$205:I$216,$C$205:$C$216)>100,100, FORECAST($C202,I$205:I$216,$C$205:$C$216)))) -> 41.53722887 | M202: =IF(MAX(C205:C216)-MIN(C205:C216)<5,AVERAGEIF(C205:C216,">0",M205:M216), IF(FORECAST($C202,M$205:M$216,$C$205:$C$216)<0,0, IF(FORECAST($C202,M$205:M$216,$C$205:$C$216)>100,100, FORECAST($C202,M$205:M$216,$C$205:$C$216)))) -> 1.142397289 | N202: =IF(MAX(C205:C216)-MIN(C205:C216)<5,AVERAGEIF(C205:C216,">0",N205:N216), IF(FORECAST($C202,N$205:N$216,$C$205:$C$216)<0,0, IF(FORECAST($C202,N$205:N$216,$C$205:$C$216)>100,100, FORECAST($C202,N$205:N$216,$C$205:$C$216)))) -> 50.71846724 | R202: =IF(MAX(C205:C216)-MIN(C205:C216)<5,AVERAGEIF(C205:C216,">0",R205:R216), IF(FORECAST($C202,R$205:R$216,$C$205:$C$216)<0,0, IF(FORECAST($C202,R$205:R$216,$C$205:$C$216)>100,100, FORECAST($C202,R$205:R$216,$C$205:$C$216)))) -> 0.04455860062 | S202: =IF(MAX(C205:C216)-MIN(C205:C216)<5,AVERAGEIF(C205:C216,">0",S205:S216), IF(FORECAST($C202,S$205:S$216,$C$205:$C$216)<0,0, IF(FORECAST($C202,S$205:S$216,$C$205:$C$216)>100,100, FORECAST($C202,S$205:S$216,$C$205:$C$216)))) -> 65.12260684 | W202: =IF(MAX(C205:C216)-MIN(C205:C216)<5,AVERAGEIF(C205:C216,">0",W205:W216), IF(FORECAST($C202,W$205:W$216,$C$205:$C$216)<0,0, IF(FORECAST($C202,W$205:W$216,$C$205:$C$216)>100,100, FORECAST($C202,W$205:W$216,$C$205:$C$216)))) -> 0.1615577446 | X202: =IF(MAX(C205:C216)-MIN(C205:C216)<5,AVERAGEIF(C205:C216,">0",X205:X216), IF(FORECAST($C202,X$205:X$216,$C$205:$C$216)<0,0, IF(FORECAST($C202,X$205:X$216,$C$205:$C$216)>100,100, FORECAST($C202,X$205:X$216,$C$205:$C$216)))) -> 74.41357622 | AB202: =IF(MAX(C205:C216)-MIN(C205:C216)<5,AVERAGEIF(C205:C216,">0",AB205:AB216), IF(FORECAST($C202,AB$205:AB$216,$C$205:$C$216)<0,0, IF(FORECAST($C202,AB$205:AB$216,$C$205:$C$216)>100,100, FORECAST($C202,AB$205:AB$216,$C$205:$C$216)))) -> 0.0742502481
B204: Survey | C204: Year | D204: Improved | E204: Not shared | H204: Open defecation | I204: Improved | J204: Not shared | M204: Open defecation | N204: Improved | O204: Not shared | R204: Open defecation | S204: Improved | T204: Not shared | W204: Open defecation | X204: Improved | Y204: Not shared | AB204: Open defecation
B205: MICS00 | C205: 2000 | D205: =IF(ISERROR(INDIRECT(CONCATENATE($B205,"!H122"))),"",INDIRECT(CONCATENATE($B205,"!H122"))) -> 9.236446683 | E205: =IF(ISERROR(INDIRECT(CONCATENATE($B205,"!H129"))),"",INDIRECT(CONCATENATE($B205,"!H129"))) -> N/a | H205: =IF(ISERROR(INDIRECT(CONCATENATE($B205,"!H127"))),"",INDIRECT(CONCATENATE($B205,"!H127"))) -> 1.045901273 | I205: =IF(ISERROR(INDIRECT(CONCATENATE($B205,"!I122"))),"",INDIRECT(CONCATENATE($B205,"!I122"))) -> 32.72750625 | J205: =IF(ISERROR(INDIRECT(CONCATENATE($B205,"!I129"))),"",INDIRECT(CONCATENATE($B205,"!I129"))) -> N/a | M205: =IF(ISERROR(INDIRECT(CONCATENATE($B205,"!I127"))),"",INDIRECT(CONCATENATE($B205,"!I127"))) -> 0 | N205: =IF(ISERROR(INDIRECT(CONCATENATE($B205,"!J122"))),"",INDIRECT(CONCATENATE($B205,"!J122"))) -> 39.39895515 | O205: =IF(ISERROR(INDIRECT(CONCATENATE($B205,"!J129"))),"",INDIRECT(CONCATENATE($B205,"!J129"))) -> N/a | R205: =IF(ISERROR(INDIRECT(CONCATENATE($B205,"!J127"))),"",INDIRECT(CONCATENATE($B205,"!J127"))) -> 1.212293388 | S205: =IF(ISERROR(INDIRECT(CONCATENATE($B205,"!K122"))),"",INDIRECT(CONCATENATE($B205,"!K122"))) -> 56.16297257 | T205: =IF(ISERROR(INDIRECT(CONCATENATE($B205,"!K129"))),"",INDIRECT(CONCATENATE($B205,"!K129"))) -> N/a | W205: =IF(ISERROR(INDIRECT(CONCATENATE($B205,"!K127"))),"",INDIRECT(CONCATENATE($B205,"!K127"))) -> 0 | X205: =IF(ISERROR(INDIRECT(CONCATENATE($B205,"!L122"))),"",INDIRECT(CONCATENATE($B205,"!L122"))) -> 82.65173313 | Y205: =IF(ISERROR(INDIRECT(CONCATENATE($B205,"!L129"))),"",INDIRECT(CONCATENATE($B205,"!L129"))) -> N/a | AB205: =IF(ISERROR(INDIRECT(CONCATENATE($B205,"!L2127"))),"",INDIRECT(CONCATENATE($B205,"!L127"))) -> 0
B206: WHS03 | C206: 2003 | D206: 9.415451203 | E206: 87.96756693 | H206: 0 | I206: 34.15308376 | J206: 92.31482321 | M206: 0 | N206: 43.93843716 | O206: 91.6424453 | R206: 0 | S206: 62.32083214 | T206: 92.30298181 | W206: 0 | X206: 87.76139871 | Y206: 94.66813857 | AB206: 0
B207: DHS12 | C207: 2012 | D207: 36.59197643 | E207: 63.83826921 | H207: 0.553989476 | I207: 40.32024495 | J207: 70.89712581 | M207: 1.001202118 | N207: 48.91138309 | O207: 74.03847516 | R207: 0.2978555642 | S207: 63.46172084 | T207: 76.52052758 | W207: 0.1415899335 | X207: 74.97247961 | Y207: 87.77104874 | AB207: 0.06507325115
B218: =CONCATENATE("Urban use of sanitation facilities, ",C199,"–",C200) -> Urban use of sanitation facilities, 2000–2018 | S218: Data points used for regression
A297: RURAL | D297: Poorest | I297: Poor | N297: Middle | S297: Rich | X297: Richest
D298: Improved | E298: Basic | F298: Limited | G298: Unimproved | H298: Open defecation | I298: Improved | J298: Basic | K298: Limited | L298: Unimproved | M298: Open defecation | N298: Improved | O298: Basic | P298: Limited | Q298: Unimproved | R298: Open defecation | S298: Improved | T298: Basic | U298: Limited | V298: Unimproved | W298: Open defecation | X298: Improved | Y298: Basic | Z298: Limited | AA298: Unimproved | AB298: Open defecation
A299: Forecast period: | C299: 2000 | D299: =IF((D301+H301)>100,D301*100/(D301+H301),D301) -> 3.403591799 | E299: =D299*AVERAGEIF(E305:E316,">0")/100 -> 2.666414717 | F299: =D299*(100-AVERAGEIF(E305:E316,">0"))/100 -> 0.737177082 | G299: =100-(E299+F299+H299) -> 95.35077852 | H299: =IF((D301+H301)>100,H301*100/(D301+H301),H301) -> 1.24562968 | I299: =IF((I301+M301)>100,I301*100/(I301+M301),I301) -> 8.605908832 | J299: =I299*AVERAGEIF(J305:J316,">0")/100 -> 6.52935627 | K299: =I299*(100-AVERAGEIF(J305:J316,">0"))/100 -> 2.076552561 | L299: =100-(J299+K299+M299) -> 91.16766825 | M299: =IF((I301+M301)>100,M301*100/(I301+M301),M301) -> 0.2264229152 | N299: =IF((N301+R301)>100,N301*100/(N301+R301),N301) -> 18.57272053 | O299: =N299*AVERAGEIF(O305:O316,">0")/100 -> 15.79860714 | P299: =N299*(100-AVERAGEIF(O305:O316,">0"))/100 -> 2.774113391 | Q299: =100-(O299+P299+R299) -> 81.34966947 | R299: =IF((N301+R301)>100,R301*100/(N301+R301),R301) -> 0.0776099994 | S299: =IF((S301+W301)>100,S301*100/(S301+W301),S301) -> 33.9115978 | T299: =S299*AVERAGEIF(T305:T316,">0")/100 -> 27.66718439 | U299: =S299*(100-AVERAGEIF(T305:T316,">0"))/100 -> 6.244413412 | V299: =100-(T299+U299+W299) -> 66.0884022 | W299: =IF((S301+W301)>100,W301*100/(S301+W301),W301) -> 0 | X299: =IF((X301+AB301)>100,X301*100/(X301+AB301),X301) -> 55.88449159 | Y299: =X299*AVERAGEIF(Y305:Y316,">0")/100 -> 52.40927336 | Z299: =X299*(100-AVERAGEIF(Y305:Y316,">0"))/100 -> 3.475218226 | AA299: =100-(Y299+Z299+AB299) -> 43.66238781 | AB299: =IF((X301+AB301)>100,AB301*100/(X301+AB301),AB301) -> 0.4531206067
C300: 2018 | D300: =IF((D302+H302)>100,D302*100/(D302+H302),D302) -> 35.3391274 | E300: =D300*AVERAGEIF(E305:E316,">0")/100 -> 27.68509708 | F300: =D300*(100-AVERAGEIF(E305:E316,">0"))/100 -> 7.654030317 | G300: =100-(E300+F300+H300) -> 64.09504043 | H300: =IF((D302+H302)>100,H302*100/(D302+H302),H302) -> 0.565832178 | I300: =IF((I302+M302)>100,I302*100/(I302+M302),I302) -> 32.91745631 | J300: =I300*AVERAGEIF(J305:J316,">0")/100 -> 24.97467774 | K300: =I300*(100-AVERAGEIF(J305:J316,">0"))/100 -> 7.942778567 | L300: =100-(J300+K300+M300) -> 66.48739598 | M300: =IF((I302+M302)>100,M302*100/(I302+M302),M302) -> 0.5951477081 | N300: =IF((N302+R302)>100,N302*100/(N302+R302),N302) -> 25.82292541 | O300: =N300*AVERAGEIF(O305:O316,">0")/100 -> 21.96588556 | P300: =N300*(100-AVERAGEIF(O305:O316,">0"))/100 -> 3.857039848 | Q300: =100-(O300+P300+R300) -> 74.03962197 | R300: =IF((N302+R302)>100,R302*100/(N302+R302),R302) -> 0.1374526159 | S300: =IF((S302+W302)>100,S302*100/(S302+W302),S302) -> 29.1142636 | T300: =S300*AVERAGEIF(T305:T316,">0")/100 -> 23.75322166 | U300: =S300*(100-AVERAGEIF(T305:T316,">0"))/100 -> 5.361041941 | V300: =100-(T300+U300+W300) -> 70.03844396 | W300: =IF((S302+W302)>100,W302*100/(S302+W302),W302) -> 0.8472924369 | X300: =IF((X302+AB302)>100,X302*100/(X302+AB302),X302) -> 41.35226176 | Y300: =X300*AVERAGEIF(Y305:Y316,">0")/100 -> 38.78074094 | Z300: =X300*(100-AVERAGEIF(Y305:Y316,">0"))/100 -> 2.571520823 | AA300: =100-(Y300+Z300+AB300) -> 58.50890087 | AB300: =IF((X302+AB302)>100,AB302*100/(X302+AB302),AB302) -> 0.1388373727
A301: Regression period: | C301: =MinRegYear(C299,C305:C316) -> 2000 | D301: =IF(MAX(C305:C316)-MIN(C305:C316)<5,AVERAGEIF(C305:C316,">0",D305:D316), IF(FORECAST($C301,D$305:D$316,$C$305:$C$316)<0,0, IF(FORECAST($C301,D$305:D$316,$C$305:$C$316)>100,100, FORECAST($C301,D$305:D$316,$C$305:$C$316)))) -> 3.403591799 | H301: =IF(MAX(C305:C316)-MIN(C305:C316)<5,AVERAGEIF(C305:C316,">0",H305:H316), IF(FORECAST($C301,H$305:H$316,$C$305:$C$316)<0,0, IF(FORECAST($C301,H$305:H$316,$C$305:$C$316)>100,100, FORECAST($C301,H$305:H$316,$C$305:$C$316)))) -> 1.24562968 | I301: =IF(MAX(C305:C316)-MIN(C305:C316)<5,AVERAGEIF(C305:C316,">0",I305:I316), IF(FORECAST($C301,I$305:I$316,$C$305:$C$316)<0,0, IF(FORECAST($C301,I$305:I$316,$C$305:$C$316)>100,100, FORECAST($C301,I$305:I$316,$C$305:$C$316)))) -> 8.605908832 | M301: =IF(MAX(C305:C316)-MIN(C305:C316)<5,AVERAGEIF(C305:C316,">0",M305:M316), IF(FORECAST($C301,M$305:M$316,$C$305:$C$316)<0,0, IF(FORECAST($C301,M$305:M$316,$C$305:$C$316)>100,100, FORECAST($C301,M$305:M$316,$C$305:$C$316)))) -> 0.2264229152 | N301: =IF(MAX(C305:C316)-MIN(C305:C316)<5,AVERAGEIF(C305:C316,">0",N305:N316), IF(FORECAST($C301,N$305:N$316,$C$305:$C$316)<0,0, IF(FORECAST($C301,N$305:N$316,$C$305:$C$316)>100,100, FORECAST($C301,N$305:N$316,$C$305:$C$316)))) -> 18.57272053 | R301: =IF(MAX(C305:C316)-MIN(C305:C316)<5,AVERAGEIF(C305:C316,">0",R305:R316), IF(FORECAST($C301,R$305:R$316,$C$305:$C$316)<0,0, IF(FORECAST($C301,R$305:R$316,$C$305:$C$316)>100,100, FORECAST($C301,R$305:R$316,$C$305:$C$316)))) -> 0.0776099994 | S301: =IF(MAX(C305:C316)-MIN(C305:C316)<5,AVERAGEIF(C305:C316,">0",S305:S316), IF(FORECAST($C301,S$305:S$316,$C$305:$C$316)<0,0, IF(FORECAST($C301,S$305:S$316,$C$305:$C$316)>100,100, FORECAST($C301,S$305:S$316,$C$305:$C$316)))) -> 33.9115978 | W301: =IF(MAX(C305:C316)-MIN(C305:C316)<5,AVERAGEIF(C305:C316,">0",W305:W316), IF(FORECAST($C301,W$305:W$316,$C$305:$C$316)<0,0, IF(FORECAST($C301,W$305:W$316,$C$305:$C$316)>100,100, FORECAST($C301,W$305:W$316,$C$305:$C$316)))) -> 0 | X301: =IF(MAX(C305:C316)-MIN(C305:C316)<5,AVERAGEIF(C305:C316,">0",X305:X316), IF(FORECAST($C301,X$305:X$316,$C$305:$C$316)<0,0, IF(FORECAST($C301,X$305:X$316,$C$305:$C$316)>100,100, FORECAST($C301,X$305:X$316,$C$305:$C$316)))) -> 55.88449159 | AB301: =IF(MAX(C305:C316)-MIN(C305:C316)<5,AVERAGEIF(C305:C316,">0",AB305:AB316), IF(FORECAST($C301,AB$305:AB$316,$C$305:$C$316)<0,0, IF(FORECAST($C301,AB$305:AB$316,$C$305:$C$316)>100,100, FORECAST($C301,AB$305:AB$316,$C$305:$C$316)))) -> 0.4531206067
C302: =MaxRegYear(C300,C305:C316) -> 2014 | D302: =IF(MAX(C305:C316)-MIN(C305:C316)<5,AVERAGEIF(C305:C316,">0",D305:D316), IF(FORECAST($C302,D$305:D$316,$C$305:$C$316)<0,0, IF(FORECAST($C302,D$305:D$316,$C$305:$C$316)>100,100, FORECAST($C302,D$305:D$316,$C$305:$C$316)))) -> 35.3391274 | H302: =IF(MAX(C305:C316)-MIN(C305:C316)<5,AVERAGEIF(C305:C316,">0",H305:H316), IF(FORECAST($C302,H$305:H$316,$C$305:$C$316)<0,0, IF(FORECAST($C302,H$305:H$316,$C$305:$C$316)>100,100, FORECAST($C302,H$305:H$316,$C$305:$C$316)))) -> 0.565832178 | I302: =IF(MAX(C305:C316)-MIN(C305:C316)<5,AVERAGEIF(C305:C316,">0",I305:I316), IF(FORECAST($C302,I$305:I$316,$C$305:$C$316)<0,0, IF(FORECAST($C302,I$305:I$316,$C$305:$C$316)>100,100, FORECAST($C302,I$305:I$316,$C$305:$C$316)))) -> 32.91745631 | M302: =IF(MAX(C305:C316)-MIN(C305:C316)<5,AVERAGEIF(C305:C316,">0",M305:M316), IF(FORECAST($C302,M$305:M$316,$C$305:$C$316)<0,0, IF(FORECAST($C302,M$305:M$316,$C$305:$C$316)>100,100, FORECAST($C302,M$305:M$316,$C$305:$C$316)))) -> 0.5951477081 | N302: =IF(MAX(C305:C316)-MIN(C305:C316)<5,AVERAGEIF(C305:C316,">0",N305:N316), IF(FORECAST($C302,N$305:N$316,$C$305:$C$316)<0,0, IF(FORECAST($C302,N$305:N$316,$C$305:$C$316)>100,100, FORECAST($C302,N$305:N$316,$C$305:$C$316)))) -> 25.82292541 | R302: =IF(MAX(C305:C316)-MIN(C305:C316)<5,AVERAGEIF(C305:C316,">0",R305:R316), IF(FORECAST($C302,R$305:R$316,$C$305:$C$316)<0,0, IF(FORECAST($C302,R$305:R$316,$C$305:$C$316)>100,100, FORECAST($C302,R$305:R$316,$C$305:$C$316)))) -> 0.1374526159 | S302: =IF(MAX(C305:C316)-MIN(C305:C316)<5,AVERAGEIF(C305:C316,">0",S305:S316), IF(FORECAST($C302,S$305:S$316,$C$305:$C$316)<0,0, IF(FORECAST($C302,S$305:S$316,$C$305:$C$316)>100,100, FORECAST($C302,S$305:S$316,$C$305:$C$316)))) -> 29.1142636 | W302: =IF(MAX(C305:C316)-MIN(C305:C316)<5,AVERAGEIF(C305:C316,">0",W305:W316), IF(FORECAST($C302,W$305:W$316,$C$305:$C$316)<0,0, IF(FORECAST($C302,W$305:W$316,$C$305:$C$316)>100,100, FORECAST($C302,W$305:W$316,$C$305:$C$316)))) -> 0.8472924369 | X302: =IF(MAX(C305:C316)-MIN(C305:C316)<5,AVERAGEIF(C305:C316,">0",X305:X316), IF(FORECAST($C302,X$305:X$316,$C$305:$C$316)<0,0, IF(FORECAST($C302,X$305:X$316,$C$305:$C$316)>100,100, FORECAST($C302,X$305:X$316,$C$305:$C$316)))) -> 41.35226176 | AB302: =IF(MAX(C305:C316)-MIN(C305:C316)<5,AVERAGEIF(C305:C316,">0",AB305:AB316), IF(FORECAST($C302,AB$305:AB$316,$C$305:$C$316)<0,0, IF(FORECAST($C302,AB$305:AB$316,$C$305:$C$316)>100,100, FORECAST($C302,AB$305:AB$316,$C$305:$C$316)))) -> 0.1388373727
B304: Survey | C304: Year | D304: Improved | E304: Not shared | H304: Open defecation | I304: Improved | J304: Not shared | M304: Open defecation | N304: Improved | O304: Not shared | R304: Open defecation | S304: Improved | T304: Not shared | W304: Open defecation | X304: Improved | Y304: Not shared | AB304: Open defecation
B305: MICS00 | C305: 2000 | D305: =IF(ISERROR(INDIRECT(CONCATENATE($B305,"!M122"))),"",INDIRECT(CONCATENATE($B305,"!M122"))) -> 5.992344545 | E305: =IF(ISERROR(INDIRECT(CONCATENATE($B305,"!M129"))),"",INDIRECT(CONCATENATE($B305,"!M129"))) -> N/a | H305: =IF(ISERROR(INDIRECT(CONCATENATE($B305,"!M127"))),"",INDIRECT(CONCATENATE($B305,"!M127"))) -> 2.07059877 | I305: =IF(ISERROR(INDIRECT(CONCATENATE($B305,"!N122"))),"",INDIRECT(CONCATENATE($B305,"!N122"))) -> 9.903685132 | J305: =IF(ISERROR(INDIRECT(CONCATENATE($B305,"!N129"))),"",INDIRECT(CONCATENATE($B305,"!N129"))) -> N/a | M305: =IF(ISERROR(INDIRECT(CONCATENATE($B305,"!N127"))),"",INDIRECT(CONCATENATE($B305,"!N127"))) -> 0.4554994433 | N305: =IF(ISERROR(INDIRECT(CONCATENATE($B305,"!O122"))),"",INDIRECT(CONCATENATE($B305,"!O122"))) -> 18.10407538 | O305: =IF(ISERROR(INDIRECT(CONCATENATE($B305,"!O129"))),"",INDIRECT(CONCATENATE($B305,"!O129"))) -> N/a | R305: =IF(ISERROR(INDIRECT(CONCATENATE($B305,"!O127"))),"",INDIRECT(CONCATENATE($B305,"!O127"))) -> 0.1454350623 | S305: =IF(ISERROR(INDIRECT(CONCATENATE($B305,"!P122"))),"",INDIRECT(CONCATENATE($B305,"!P122"))) -> 32.24281914 | T305: =IF(ISERROR(INDIRECT(CONCATENATE($B305,"!P129"))),"",INDIRECT(CONCATENATE($B305,"!P129"))) -> N/a | W305: =IF(ISERROR(INDIRECT(CONCATENATE($B305,"!P127"))),"",INDIRECT(CONCATENATE($B305,"!P127"))) -> 0.1293588462 | X305: =IF(ISERROR(INDIRECT(CONCATENATE($B305,"!Q122"))),"",INDIRECT(CONCATENATE($B305,"!Q122"))) -> 54.3892682 | Y305: =IF(ISERROR(INDIRECT(CONCATENATE($B305,"!Q129"))),"",INDIRECT(CONCATENATE($B305,"!Q129"))) -> N/a | AB305: =IF(ISERROR(INDIRECT(CONCATENATE($B305,"!Q2127"))),"",INDIRECT(CONCATENATE($B305,"!Q127"))) -> 0.7424512562
B306: WHS03 | C306: 2003 | D306: 6.795250528 | E306: 84.24878756 | H306: 0 | I306: 12.08515775 | J306: 86.62400837 | M306: 0 | N306: 20.75119606 | O306: 92.86147052 | R306: 0 | S306: 35.10863583 | T306: 91.64687916 | W306: 0 | X306: 54.76407352 | Y306: 93.82088156 | AB306: 0
B307: DHS12 | C307: 2012 | D307: 31.63982561 | E307: 72.43361588 | H307: 0.9379358035 | I307: 29.8769702 | J307: 65.11722891 | M307: 0.6188315803 | N307: 24.63096681 | O307: 77.26554036 | R307: 0.151512025 | S307: 29.2433375 | T307: 71.52552311 | W307: 0.7701868333 | X307: 42.9298868 | Y307: 93.74197129 | AB307: 0.2801785274
B318: =CONCATENATE("Rural use of sanitation facilities, ",C299,"–",C300) -> Rural use of sanitation facilities, 2000–2018 | S318: Data points used for regression

Sheet Hygiene
B4: Access to hygiene facilities by wealth quintile (%)
B5: =IF(ISERROR(INDIRECT(CONCATENATE($E$32,"!A2"))),"",INDIRECT(CONCATENATE($E$32,"!A2"))) -> Comoros
B7: =CONCATENATE("National ",IF(ISERROR(INDIRECT(CONCATENATE($E$32,"!A2"))),"",INDIRECT(CONCATENATE($E$32,"!A210")))) -> National Access to hygiene facilities | K7: =CONCATENATE("Urban ",IF(ISERROR(INDIRECT(CONCATENATE($E$32,"!A2"))),"",INDIRECT(CONCATENATE($E$32,"!A210")))) -> Urban Access to hygiene facilities | S7: =CONCATENATE("Rural ",IF(ISERROR(INDIRECT(CONCATENATE($E$32,"!A2"))),"",INDIRECT(CONCATENATE($E$32,"!A210")))) -> Rural Access to hygiene facilities
E32: =INDEX(B88:B100,A88) -> DHS12 | G32: =IF(ISERROR(INDIRECT(CONCATENATE($E$32,"!A2"))),"",INDIRECT(CONCATENATE($E$32,"!A2"))) -> Comoros | K32: Poorest | N32: Poor | Q32: Middle | T32: Rich | W32: Richest
K33: Basic | L33: Limited | M33: No facility | N33: Basic | O33: Limited | P33: No facility | Q33: Basic | R33: Limited | S33: No facility | T33: Basic | U33: Limited | V33: No facility | W33: Basic | X33: Limited | Y33: No facility
B34: >>> Select Survey : | G34: NATIONAL | J34: =IF(ISERROR(INDIRECT(CONCATENATE(#REF!,"!A2"))),"",INDIRECT(CONCATENATE(#REF!,"!A210"))) ->  | K34: =IF(ISERROR(INDIRECT(CONCATENATE($E$32,"!C222"))),"",INDIRECT(CONCATENATE($E$32,"!C222"))) -> 12.54827606 | L34: =IF(ISERROR(INDIRECT(CONCATENATE($E$32,"!C223"))),"",INDIRECT(CONCATENATE($E$32,"!C223"))) -> 38.00605782 | M34: =IF(ISERROR(INDIRECT(CONCATENATE($E$32,"!C224"))),"",INDIRECT(CONCATENATE($E$32,"!C224"))) -> 49.44566612 | N34: =IF(ISERROR(INDIRECT(CONCATENATE($E$32,"!D222"))),"",INDIRECT(CONCATENATE($E$32,"!D222"))) -> 10.68948773 | O34: =IF(ISERROR(INDIRECT(CONCATENATE($E$32,"!D223"))),"",INDIRECT(CONCATENATE($E$32,"!D223"))) -> 34.39195703 | P34: =IF(ISERROR(INDIRECT(CONCATENATE($E$32,"!D224"))),"",INDIRECT(CONCATENATE($E$32,"!D224"))) -> 54.91855524 | Q34: =IF(ISERROR(INDIRECT(CONCATENATE($E$32,"!E222"))),"",INDIRECT(CONCATENATE($E$32,"!E222"))) -> 13.44886057 | R34: =IF(ISERROR(INDIRECT(CONCATENATE($E$32,"!E223"))),"",INDIRECT(CONCATENATE($E$32,"!E223"))) -> 31.1859281 | S34: =IF(ISERROR(INDIRECT(CONCATENATE($E$32,"!E224"))),"",INDIRECT(CONCATENATE($E$32,"!E224"))) -> 55.36521133 | T34: =IF(ISERROR(INDIRECT(CONCATENATE($E$32,"!F222"))),"",INDIRECT(CONCATENATE($E$32,"!F222"))) -> 15.9021298 | U34: =IF(ISERROR(INDIRECT(CONCATENATE($E$32,"!F223"))),"",INDIRECT(CONCATENATE($E$32,"!F223"))) -> 35.69798012 | V34: =IF(ISERROR(INDIRECT(CONCATENATE($E$32,"!F224"))),"",INDIRECT(CONCATENATE($E$32,"!F224"))) -> 48.39989008 | W34: =IF(ISERROR(INDIRECT(CONCATENATE($E$32,"!G222"))),"",INDIRECT(CONCATENATE($E$32,"!G222"))) -> 26.3372888 | X34: =IF(ISERROR(INDIRECT(CONCATENATE($E$32,"!G223"))),"",INDIRECT(CONCATENATE($E$32,"!G223"))) -> 40.70680864 | Y34: =IF(ISERROR(INDIRECT(CONCATENATE($E$32,"!G224"))),"",INDIRECT(CONCATENATE($E$32,"!G224"))) -> 32.95590257
G37: URBAN | J37: =IF(ISERROR(INDIRECT(CONCATENATE(#REF!,"!A2"))),"",INDIRECT(CONCATENATE(#REF!,"!A210"))) ->  | K37: =IF(ISERROR(INDIRECT(CONCATENATE($E$32,"!H222"))),"",INDIRECT(CONCATENATE($E$32,"!H222"))) -> 12.73373961 | L37: =IF(ISERROR(INDIRECT(CONCATENATE($E$32,"!H223"))),"",INDIRECT(CONCATENATE($E$32,"!H223"))) -> 48.19784645 | M37: =IF(ISERROR(INDIRECT(CONCATENATE($E$32,"!H224"))),"",INDIRECT(CONCATENATE($E$32,"!H224"))) -> 39.06841394 | N37: =IF(ISERROR(INDIRECT(CONCATENATE($E$32,"!I222"))),"",INDIRECT(CONCATENATE($E$32,"!I222"))) -> 9.401939743 | O37: =IF(ISERROR(INDIRECT(CONCATENATE($E$32,"!I223"))),"",INDIRECT(CONCATENATE($E$32,"!I223"))) -> 31.82433038 | P37: =IF(ISERROR(INDIRECT(CONCATENATE($E$32,"!I224"))),"",INDIRECT(CONCATENATE($E$32,"!I224"))) -> 58.77372987 | Q37: =IF(ISERROR(INDIRECT(CONCATENATE($E$32,"!J222"))),"",INDIRECT(CONCATENATE($E$32,"!J222"))) -> 13.98667278 | R37: =IF(ISERROR(INDIRECT(CONCATENATE($E$32,"!J223"))),"",INDIRECT(CONCATENATE($E$32,"!J223"))) -> 38.7702437 | S37: =IF(ISERROR(INDIRECT(CONCATENATE($E$32,"!J224"))),"",INDIRECT(CONCATENATE($E$32,"!J224"))) -> 47.24308352 | T37: =IF(ISERROR(INDIRECT(CONCATENATE($E$32,"!K222"))),"",INDIRECT(CONCATENATE($E$32,"!K222"))) -> 21.133875 | U37: =IF(ISERROR(INDIRECT(CONCATENATE($E$32,"!K223"))),"",INDIRECT(CONCATENATE($E$32,"!K223"))) -> 45.64981286 | V37: =IF(ISERROR(INDIRECT(CONCATENATE($E$32,"!K224"))),"",INDIRECT(CONCATENATE($E$32,"!K224"))) -> 33.21631214 | W37: =IF(ISERROR(INDIRECT(CONCATENATE($E$32,"!L222"))),"",INDIRECT(CONCATENATE($E$32,"!L222"))) -> 33.15640473 | X37: =IF(ISERROR(INDIRECT(CONCATENATE($E$32,"!L223"))),"",INDIRECT(CONCATENATE($E$32,"!L223"))) -> 45.76088589 | Y37: =IF(ISERROR(INDIRECT(CONCATENATE($E$32,"!L224"))),"",INDIRECT(CONCATENATE($E$32,"!L224"))) -> 21.08270938
G40: RURAL | J40: =IF(ISERROR(INDIRECT(CONCATENATE(#REF!,"!A2"))),"",INDIRECT(CONCATENATE(#REF!,"!A210"))) ->  | K40: =IF(ISERROR(INDIRECT(CONCATENATE($E$32,"!M222"))),"",INDIRECT(CONCATENATE($E$32,"!M222"))) -> 12.67289349 | L40: =IF(ISERROR(INDIRECT(CONCATENATE($E$32,"!M223"))),"",INDIRECT(CONCATENATE($E$32,"!M223"))) -> 32.54884626 | M40: =IF(ISERROR(INDIRECT(CONCATENATE($E$32,"!M224"))),"",INDIRECT(CONCATENATE($E$32,"!M224"))) -> 54.77826026 | N40: =IF(ISERROR(INDIRECT(CONCATENATE($E$32,"!N222"))),"",INDIRECT(CONCATENATE($E$32,"!N222"))) -> 9.020603041 | O40: =IF(ISERROR(INDIRECT(CONCATENATE($E$32,"!N223"))),"",INDIRECT(CONCATENATE($E$32,"!N223"))) -> 32.64140314 | P40: =IF(ISERROR(INDIRECT(CONCATENATE($E$32,"!N224"))),"",INDIRECT(CONCATENATE($E$32,"!N224"))) -> 58.33799382 | Q40: =IF(ISERROR(INDIRECT(CONCATENATE($E$32,"!O222"))),"",INDIRECT(CONCATENATE($E$32,"!O222"))) -> 14.78632018 | R40: =IF(ISERROR(INDIRECT(CONCATENATE($E$32,"!O223"))),"",INDIRECT(CONCATENATE($E$32,"!O223"))) -> 33.74875995 | S40: =IF(ISERROR(INDIRECT(CONCATENATE($E$32,"!O224"))),"",INDIRECT(CONCATENATE($E$32,"!O224"))) -> 51.46491987 | T40: =IF(ISERROR(INDIRECT(CONCATENATE($E$32,"!P222"))),"",INDIRECT(CONCATENATE($E$32,"!P222"))) -> 17.36504276 | U40: =IF(ISERROR(INDIRECT(CONCATENATE($E$32,"!P223"))),"",INDIRECT(CONCATENATE($E$32,"!P223"))) -> 31.60047085 | V40: =IF(ISERROR(INDIRECT(CONCATENATE($E$32,"!P224"))),"",INDIRECT(CONCATENATE($E$32,"!P224"))) -> 51.03448639 | W40: =IF(ISERROR(INDIRECT(CONCATENATE($E$32,"!Q222"))),"",INDIRECT(CONCATENATE($E$32,"!Q222"))) -> 19.70899826 | X40: =IF(ISERROR(INDIRECT(CONCATENATE($E$32,"!Q223"))),"",INDIRECT(CONCATENATE($E$32,"!Q223"))) -> 35.24562178 | Y40: =IF(ISERROR(INDIRECT(CONCATENATE($E$32,"!Q224"))),"",INDIRECT(CONCATENATE($E$32,"!Q224"))) -> 45.04537995
A88: 3 | B88: MICS00
B89: WHS03
B90: DHS12
B91: Template

Sheet MICS00
A2: =A1026 -> Comoros
A3: =A1034 -> 2000
A4: Use of drinking water sources
A5: by wealth quintile and sub-national region
A6: Notes:
A7: WHO/UNICEF JMP customised wealth index excludes water,
A8: sanitation and hygiene assets.
A9: Survey used for analysis: | B9: =A1025 -> MICS00
A10: =B1028 -> 
A11: =B1027 -> 
A14: Use of drinking water sources | C14: NATIONAL wealth index quintile | H14: URBAN wealth index quintile | M14: RURAL wealth index quintile | R14: Ile | BA14: Raw numbers of respondents: | BB14: Use of drinking water sources | BC14: NATIONAL wealth index quintile | BH14: URBAN wealth index quintile | BM14: RURAL wealth index quintile | BR14: SUB-REGIONS:
A15: Weighted percentage (used in graphs) | C15: Poorest | D15: Poor | E15: Middle | F15: Rich | G15: Richest | H15: Poorest | I15: Poor | J15: Middle | K15: Rich | L15: Richest | M15: Poorest | N15: Poor | O15: Middle | P15: Rich | Q15: Richest | R15: Mwali | S15: Ndzuwani | T15: Ngazidja | BA15: Water data, raw numbers (weighted) | BC15: Poorest | BD15: Poor | BE15: Middle | BF15: Rich | BG15: Richest | BH15: Poorest | BI15: Poor | BJ15: Middle | BK15: Rich | BL15: Richest | BM15: Poorest | BN15: Poor | BO15: Middle | BP15: Rich | BQ15: Richest | BR15: Mwali | BS15: Ndzuwani | BT15: Ngazidja
A16: Water | B16: Improved | C16: 84.80889829 | D16: 90.01217143 | E16: 93.21327732 | F16: 94.7604272 | G16: 97.3593786 | H16: 72.6821645 | I16: 90.84746452 | J16: 96.30289355 | K16: 96.88313283 | L16: 96.67495204 | M16: 88.24459106 | N16: 89.52722841 | O16: 94.71720181 | P16: 91.72780918 | Q16: 97.78408626 | R16: 68.95349315 | S16: 90.62031659 | T16: 95.76423663 | BA16: Water | BB16: Improved | BC16: N/A | BD16: N/A | BE16: N/A | BF16: N/A | BG16: N/A | BH16: N/A | BI16: N/A | BJ16: N/A | BK16: N/A | BL16: N/A | BM16: N/A | BN16: N/A | BO16: N/A | BP16: N/A | BQ16: N/A | BR16: N/A | BS16: N/A | BT16: N/A
B17: Not Improved | C17: 15.19110171 | D17: 9.987828571 | E17: 6.786722675 | F17: 5.239572797 | G17: 2.640621404 | H17: 27.3178355 | I17: 9.152535481 | J17: 3.697106448 | K17: 3.116867168 | L17: 3.325047956 | M17: 11.75540894 | N17: 10.47277159 | O17: 5.282798192 | P17: 8.272190819 | Q17: 2.215913744 | R17: 31.04650685 | S17: 9.379683411 | T17: 4.235763367 | BB17: Not Improved | BC17: N/A | BD17: N/A | BE17: N/A | BF17: N/A | BG17: N/A | BH17: N/A | BI17: N/A | BJ17: N/A | BK17: N/A | BL17: N/A | BM17: N/A | BN17: N/A | BO17: N/A | BP17: N/A | BQ17: N/A | BR17: N/A | BS17: N/A | BT17: N/A
A18: Water ladder | B18: Basic | C18: =C16*C23/100 -> 79.70355377 | D18: =D16*D23/100 -> 84.97539851 | E18: =E16*E23/100 -> 90.20669041 | F18: 92.33869104 | G18: 97.04452272 | H18: 71.61408995 | I18: 89.05956854 | J18: 95.67396759 | K18: 96.66022253 | L18: 96.67495204 | M18: 82.22442899 | N18: 84.34882119 | O18: 91.73437909 | P18: 87.38673107 | Q18: 97.10257403 | R18: 68.82960135 | S18: 86.40628619 | T18: 92.68992639 | BA18: Water ladder | BB18: Basic | BC18: N/A | BD18: N/A | BE18: N/A | BF18: N/A | BG18: N/A | BH18: N/A | BI18: N/A | BJ18: N/A | BK18: N/A | BL18: N/A | BM18: N/A | BN18: N/A | BO18: N/A | BP18: N/A | BQ18: N/A | BR18: N/A | BS18: N/A | BT18: N/A
B19: Limited | C19: =C16*C22/100 -> 5.105344519 | D19: =D16*D22/100 -> 5.036772923 | E19: =E16*E22/100 -> 3.00658691 | F19: 2.421736163 | G19: 0.3148558717 | H19: 1.068074551 | I19: 1.787895981 | J19: 0.6289259596 | K19: 0.2229103055 | L19: 0 | M19: 6.020162065 | N19: 5.178407227 | O19: 2.982822718 | P19: 4.341078115 | Q19: 0.6815122222 | R19: 0.1238918007 | S19: 4.214030398 | T19: 3.074310243 | BB19: Limited | BC19: N/A | BD19: N/A | BE19: N/A | BF19: N/A | BG19: N/A | BH19: N/A | BI19: N/A | BJ19: N/A | BK19: N/A | BL19: N/A | BM19: N/A | BN19: N/A | BO19: N/A | BP19: N/A | BQ19: N/A | BR19: N/A | BS19: N/A | BT19: N/A
B20: Unimproved | C20: =100-C18-C19-C21 -> 9.924012711 | D20: =100-D18-D19-D21 -> 6.555975305 | E20: =100-E18-E19-E21 -> 5.797656914 | F20: 4.840353879 | G20: 2.137764579 | H20: 27.00292685 | I20: 9.152535481 | J20: 3.008632512 | K20: 3.116867168 | L20: 3.325047956 | M20: 6.014901982 | N20: 5.43234808 | O20: 4.393022743 | P20: 7.667836809 | Q20: 1.297660889 | R20: 20.14402839 | S20: 5.31117235 | T20: 4.235763367 | BB20: Unimproved | BC20: N/A | BD20: N/A | BE20: N/A | BF20: N/A | BG20: N/A | BH20: N/A | BI20: N/A | BJ20: N/A | BK20: N/A | BL20: N/A | BM20: N/A | BN20: N/A | BO20: N/A | BP20: N/A | BQ20: N/A | BR20: N/A | BS20: N/A | BT20: N/A
B21: Surface water | C21: 5.267088999 | D21: 3.431853266 | E21: 0.989065761 | F21: 0.3992189182 | G21: 0.5028568245 | H21: 0.3149086537 | I21: 0 | J21: 0.6884739364 | K21: 0 | L21: 0 | M21: 5.740506959 | N21: 5.040423507 | O21: 0.8897754492 | P21: 0.6043540105 | Q21: 0.9182528551 | R21: 10.90247846 | S21: 4.068511062 | T21: 0 | BB21: Surface water | BC21: N/A | BD21: N/A | BE21: N/A | BF21: N/A | BG21: N/A | BH21: N/A | BI21: N/A | BJ21: N/A | BK21: N/A | BL21: N/A | BM21: N/A | BN21: N/A | BO21: N/A | BP21: N/A | BQ21: N/A | BR21: N/A | BS21: N/A | BT21: N/A
A22: Improved water point at more than 30 minutes | B22: Yes | C22: 6.019821767 | D22: 5.595657613 | E22: 3.225492115 | F22: 2.555640825 | G22: 0.3233955231 | H22: 1.469513956 | I22: 1.96801968 | J22: 0.6530706777 | K22: 0.2300816447 | L22: 0 | M22: 6.822131524 | N22: 5.784170156 | O22: 3.149187963 | P22: 4.732564915 | Q22: 0.6969561698 | R22: 0.1796744371 | S22: 4.650204895 | T22: 3.210290554 | BA22: Improved water point at more than 30 minutes | BB22: Yes | BC22: N/A | BD22: N/A | BE22: N/A | BF22: N/A | BG22: N/A | BH22: N/A | BI22: N/A | BJ22: N/A | BK22: N/A | BL22: N/A | BM22: N/A | BN22: N/A | BO22: N/A | BP22: N/A | BQ22: N/A | BR22: N/A | BS22: N/A | BT22: N/A
B23: No | C23: 93.98017823 | D23: 94.40434239 | E23: 96.77450789 | F23: 97.44435918 | G23: 99.67660448 | H23: 98.53048604 | I23: 98.03198032 | J23: 99.34692932 | K23: 99.76991836 | L23: 100 | M23: 93.17786848 | N23: 94.21582984 | O23: 96.85081204 | P23: 95.26743508 | Q23: 99.30304383 | R23: 99.82032556 | S23: 95.3497951 | T23: 96.78970945 | BB23: No | BC23: N/A | BD23: N/A | BE23: N/A | BF23: N/A | BG23: N/A | BH23: N/A | BI23: N/A | BJ23: N/A | BK23: N/A | BL23: N/A | BM23: N/A | BN23: N/A | BO23: N/A | BP23: N/A | BQ23: N/A | BR23: N/A | BS23: N/A | BT23: N/A
A24: Manually calculated ratios | B24: Improved wells
B25: Improved springs
B26: Other
C27: NATIONAL wealth index quintile | H27: URBAN wealth index quintile | M27: RURAL wealth index quintile | R27: Ile | BA27: Raw numbers of respondents: | BB27: Use of drinking water sources | BC27: NATIONAL wealth index quintile | BH27: URBAN wealth index quintile | BM27: RURAL wealth index quintile | BR27: SUB-REGIONS:
A28: Percentage based on weighted population | C28: Poorest | D28: Poor | E28: Middle | F28: Rich | G28: Richest | H28: Poorest | I28: Poor | J28: Middle | K28: Rich | L28: Richest | M28: Poorest | N28: Poor | O28: Middle | P28: Rich | Q28: Richest | R28: Mwali | S28: Ndzuwani | T28: Ngazidja | BA28: Water data, raw numbers (weighted) | BC28: Poorest | BD28: Poor | BE28: Middle | BF28: Rich | BG28: Richest | BH28: Poorest | BI28: Poor | BJ28: Middle | BK28: Rich | BL28: Richest | BM28: Poorest | BN28: Poor | BO28: Middle | BP28: Rich | BQ28: Richest | BR28: Mwali | BS28: Ndzuwani | BT28: Ngazidja
A29: Piped water | B29: Yes | C29: 53.06426108 | D29: 33.36002269 | E29: 25.15890757 | F29: 35.22647523 | G29: 50.12053584 | H29: 61.77017183 | I29: 60.34120511 | J29: 73.18221765 | K29: 73.15646068 | L29: 75.52232783 | M29: 53.2499263 | N29: 29.88455306 | O29: 17.66557112 | P29: 31.89120513 | Q29: 23.97123342 | R29: 63.43606252 | S29: 89.11323567 | T29: 12.27976337 | BA29: Piped water | BB29: Yes | BC29: N/A | BD29: N/A | BE29: N/A | BF29: N/A | BG29: N/A | BH29: N/A | BI29: N/A | BJ29: N/A | BK29: N/A | BL29: N/A | BM29: N/A | BN29: N/A | BO29: N/A | BP29: N/A | BQ29: N/A | BR29: N/A | BS29: N/A | BT29: N/A
B30: No | C30: 46.93573892 | D30: 66.63997731 | E30: 74.84109243 | F30: 64.77352477 | G30: 49.87946416 | H30: 38.22982817 | I30: 39.65879489 | J30: 26.81778235 | K30: 26.84353932 | L30: 24.47767217 | M30: 46.7500737 | N30: 70.11544694 | O30: 82.33442888 | P30: 68.10879487 | Q30: 76.02876658 | R30: 36.56393748 | S30: 10.88676433 | T30: 87.72023663 | BB30: No | BC30: N/A | BD30: N/A | BE30: N/A | BF30: N/A | BG30: N/A | BH30: N/A | BI30: N/A | BJ30: N/A | BK30: N/A | BL30: N/A | BM30: N/A | BN30: N/A | BO30: N/A | BP30: N/A | BQ30: N/A | BR30: N/A | BS30: N/A | BT30: N/A
A31: Piped water on premises | B31: Yes | C31: 15.25905599 | D31: 12.7467447 | E31: 10.85195771 | F31: 21.02109379 | G31: 38.71837839 | H31: 14.52106601 | I31: 30.80872072 | J31: 52.79156586 | K31: 57.55016544 | L31: 65.49711195 | M31: 14.92875847 | N31: 12.97892076 | O31: 6.002684384 | P31: 15.00392174 | Q31: 16.15492528 | R31: 27.53369826 | S31: 45.25059945 | T31: 6.415037435 | BA31: Piped water on premises | BB31: Yes | BC31: N/A | BD31: N/A | BE31: N/A | BF31: N/A | BG31: N/A | BH31: N/A | BI31: N/A | BJ31: N/A | BK31: N/A | BL31: N/A | BM31: N/A | BN31: N/A | BO31: N/A | BP31: N/A | BQ31: N/A | BR31: N/A | BS31: N/A | BT31: N/A
B32: No | C32: 84.74094401 | D32: 87.2532553 | E32: 89.14804229 | F32: 78.97890621 | G32: 61.28162161 | H32: 85.47893399 | I32: 69.19127928 | J32: 47.20843414 | K32: 42.44983456 | L32: 34.50288805 | M32: 85.07124153 | N32: 87.02107924 | O32: 93.99731562 | P32: 84.99607826 | Q32: 83.84507472 | R32: 72.46630174 | S32: 54.74940055 | T32: 93.58496256 | BB32: No | BC32: N/A | BD32: N/A | BE32: N/A | BF32: N/A | BG32: N/A | BH32: N/A | BI32: N/A | BJ32: N/A | BK32: N/A | BL32: N/A | BM32: N/A | BN32: N/A | BO32: N/A | BP32: N/A | BQ32: N/A | BR32: N/A | BS32: N/A | BT32: N/A
A33: Piped water into dwelling | B33: Yes | C33: N/A | D33: N/A | E33: N/A | F33: N/A | G33: N/A | H33: N/A | I33: N/A | J33: N/A | K33: N/A | L33: N/A | M33: N/A | N33: N/A | O33: N/A | P33: N/A | Q33: N/A | R33: N/A | S33: N/A | T33: N/A | BA33: Piped water into dwelling | BB33: Yes | BC33: N/A | BD33: N/A | BE33: N/A | BF33: N/A | BG33: N/A | BH33: N/A | BI33: N/A | BJ33: N/A | BK33: N/A | BL33: N/A | BM33: N/A | BN33: N/A | BO33: N/A | BP33: N/A | BQ33: N/A | BR33: N/A | BS33: N/A | BT33: N/A
B34: No | C34: N/A | D34: N/A | E34: N/A | F34: N/A | G34: N/A | H34: N/A | I34: N/A | J34: N/A | K34: N/A | L34: N/A | M34: N/A | N34: N/A | O34: N/A | P34: N/A | Q34: N/A | R34: N/A | S34: N/A | T34: N/A | BB34: No | BC34: N/A | BD34: N/A | BE34: N/A | BF34: N/A | BG34: N/A | BH34: N/A | BI34: N/A | BJ34: N/A | BK34: N/A | BL34: N/A | BM34: N/A | BN34: N/A | BO34: N/A | BP34: N/A | BQ34: N/A | BR34: N/A | BS34: N/A | BT34: N/A
A35: Water source on premises | B35: Yes | C35: 22.14231294 | D35: 34.85265303 | E35: 44.1606805 | F35: 55.25117483 | G35: 71.89988567 | H35: 16.94269506 | I35: 44.92826621 | J35: 67.62795944 | K35: 74.00876363 | L35: 82.81093221 | M35: 22.01510173 | N35: 35.35098836 | O35: 44.04976514 | P35: 46.45361188 | Q35: 64.6384682 | R35: 30.73777437 | S35: 46.18863375 | T35: 47.4072315 | BA35: Water source on premises | BB35: Yes | BC35: N/A | BD35: N/A | BE35: N/A | BF35: N/A | BG35: N/A | BH35: N/A | BI35: N/A | BJ35: N/A | BK35: N/A | BL35: N/A | BM35: N/A | BN35: N/A | BO35: N/A | BP35: N/A | BQ35: N/A | BR35: N/A | BS35: N/A | BT35: N/A
B36: No | C36: 77.85768706 | D36: 65.14734697 | E36: 55.8393195 | F36: 44.74882517 | G36: 28.10011433 | H36: 83.05730494 | I36: 55.07173379 | J36: 32.37204056 | K36: 25.99123637 | L36: 17.18906779 | M36: 77.98489827 | N36: 64.64901164 | O36: 55.95023486 | P36: 53.54638812 | Q36: 35.3615318 | R36: 69.26222563 | S36: 53.81136625 | T36: 52.5927685 | BB36: No | BC36: N/A | BD36: N/A | BE36: N/A | BF36: N/A | BG36: N/A | BH36: N/A | BI36: N/A | BJ36: N/A | BK36: N/A | BL36: N/A | BM36: N/A | BN36: N/A | BO36: N/A | BP36: N/A | BQ36: N/A | BR36: N/A | BS36: N/A | BT36: N/A
A37: Improved Water source on premises | B37: Yes | C37: 25.87281646 | D37: 37.98232993 | E37: 45.5802574 | F37: 57.8412652 | G37: 73.4745544 | H37: 23.31066387 | I37: 49.45461764 | J37: 69.94663873 | K37: 75.97634399 | L37: 85.65913969 | M37: 24.66024001 | N37: 39.17067752 | O37: 44.41845283 | P37: 49.87231533 | Q37: 65.23709485 | R37: 44.57754489 | S37: 50.96940233 | T37: 48.37982022 | BA37: Improved water source on premises | BB37: Yes | BC37: N/A | BD37: N/A | BE37: N/A | BF37: N/A | BG37: N/A | BH37: N/A | BI37: N/A | BJ37: N/A | BK37: N/A | BL37: N/A | BM37: N/A | BN37: N/A | BO37: N/A | BP37: N/A | BQ37: N/A | BR37: N/A | BS37: N/A | BT37: N/A
B38: No | C38: 74.12718354 | D38: 62.01767007 | E38: 54.4197426 | F38: 42.1587348 | G38: 26.5254456 | H38: 76.68933613 | I38: 50.54538236 | J38: 30.05336127 | K38: 24.02365601 | L38: 14.34086031 | M38: 75.33975999 | N38: 60.82932248 | O38: 55.58154717 | P38: 50.12768467 | Q38: 34.76290515 | R38: 55.42245511 | S38: 49.03059767 | T38: 51.62017978 | BB38: No | BC38: N/A | BD38: N/A | BE38: N/A | BF38: N/A | BG38: N/A | BH38: N/A | BI38: N/A | BJ38: N/A | BK38: N/A | BL38: N/A | BM38: N/A | BN38: N/A | BO38: N/A | BP38: N/A | BQ38: N/A | BR38: N/A | BS38: N/A | BT38: N/A
A39: Piped water on premises available when needed | B39: Yes | C39: N/A | D39: N/A | E39: N/A | F39: N/A | G39: N/A | H39: N/A | I39: N/A | J39: N/A | K39: N/A | L39: N/A | M39: N/A | N39: N/A | O39: N/A | P39: N/A | Q39: N/A | R39: N/A | S39: N/A | T39: N/A | BA39: Piped water on premises available when needed | BB39: Yes | BC39: N/A | BD39: N/A | BE39: N/A | BF39: N/A | BG39: N/A | BH39: N/A | BI39: N/A | BJ39: N/A | BK39: N/A | BL39: N/A | BM39: N/A | BN39: N/A | BO39: N/A | BP39: N/A | BQ39: N/A | BR39: N/A | BS39: N/A | BT39: N/A
B40: No | C40: N/A | D40: N/A | E40: N/A | F40: N/A | G40: N/A | H40: N/A | I40: N/A | J40: N/A | K40: N/A | L40: N/A | M40: N/A | N40: N/A | O40: N/A | P40: N/A | Q40: N/A | R40: N/A | S40: N/A | T40: N/A | BB40: No | BC40: N/A | BD40: N/A | BE40: N/A | BF40: N/A | BG40: N/A | BH40: N/A | BI40: N/A | BJ40: N/A | BK40: N/A | BL40: N/A | BM40: N/A | BN40: N/A | BO40: N/A | BP40: N/A | BQ40: N/A | BR40: N/A | BS40: N/A | BT40: N/A
A41: Water point at more than 30 minutes | B41: Yes | C41: 7.649206279 | D41: 6.308972551 | E41: 4.046194053 | F41: 3.381968503 | G41: 0.3158470164 | H41: 2.311191296 | I41: 2.903676239 | J41: 1.321275891 | K41: 0.2234953163 | L41: 0 | M41: 8.729965172 | N41: 6.669380805 | O41: 3.276544076 | P41: 6.311877777 | Q41: 0.8233879655 | R41: 1.695826556 | S41: 7.342287137 | T41: 3.231986024 | BA41: Water point at more than 30 minutes | BB41: Yes | BC41: N/A | BD41: N/A | BE41: N/A | BF41: N/A | BG41: N/A | BH41: N/A | BI41: N/A | BJ41: N/A | BK41: N/A | BL41: N/A | BM41: N/A | BN41: N/A | BO41: N/A | BP41: N/A | BQ41: N/A | BR41: N/A | BS41: N/A | BT41: N/A
B42: No | C42: 92.35079372 | D42: 93.69102745 | E42: 95.95380595 | F42: 96.6180315 | G42: 99.68415298 | H42: 97.6888087 | I42: 97.09632376 | J42: 98.67872411 | K42: 99.77650468 | L42: 100 | M42: 91.27003483 | N42: 93.33061919 | O42: 96.72345592 | P42: 93.68812222 | Q42: 99.17661203 | R42: 98.30417344 | S42: 92.65771286 | T42: 96.76801398 | BB42: No | BC42: N/A | BD42: N/A | BE42: N/A | BF42: N/A | BG42: N/A | BH42: N/A | BI42: N/A | BJ42: N/A | BK42: N/A | BL42: N/A | BM42: N/A | BN42: N/A | BO42: N/A | BP42: N/A | BQ42: N/A | BR42: N/A | BS42: N/A | BT42: N/A
A43: Water source available when needed | B43: Yes | C43: N/A | D43: N/A | E43: N/A | F43: N/A | G43: N/A | H43: N/A | I43: N/A | J43: N/A | K43: N/A | L43: N/A | M43: N/A | N43: N/A | O43: N/A | P43: N/A | Q43: N/A | R43: N/A | S43: N/A | T43: N/A | BA43: Water source available when needed | BB43: Yes | BC43: N/A | BD43: N/A | BE43: N/A | BF43: N/A | BG43: N/A | BH43: N/A | BI43: N/A | BJ43: N/A | BK43: N/A | BL43: N/A | BM43: N/A | BN43: N/A | BO43: N/A | BP43: N/A | BQ43: N/A | BR43: N/A | BS43: N/A | BT43: N/A
B44: No | C44: N/A | D44: N/A | E44: N/A | F44: N/A | G44: N/A | H44: N/A | I44: N/A | J44: N/A | K44: N/A | L44: N/A | M44: N/A | N44: N/A | O44: N/A | P44: N/A | Q44: N/A | R44: N/A | S44: N/A | T44: N/A | BB44: No | BC44: N/A | BD44: N/A | BE44: N/A | BF44: N/A | BG44: N/A | BH44: N/A | BI44: N/A | BJ44: N/A | BK44: N/A | BL44: N/A | BM44: N/A | BN44: N/A | BO44: N/A | BP44: N/A | BQ44: N/A | BR44: N/A | BS44: N/A | BT44: N/A
A45: Improved water source available when needed | B45: Yes | C45: N/A | D45: N/A | E45: N/A | F45: N/A | G45: N/A | H45: N/A | I45: N/A | J45: N/A | K45: N/A | L45: N/A | M45: N/A | N45: N/A | O45: N/A | P45: N/A | Q45: N/A | R45: N/A | S45: N/A | T45: N/A | BA45: Improved water source available when needed | BB45: Yes | BC45: N/A | BD45: N/A | BE45: N/A | BF45: N/A | BG45: N/A | BH45: N/A | BI45: N/A | BJ45: N/A | BK45: N/A | BL45: N/A | BM45: N/A | BN45: N/A | BO45: N/A | BP45: N/A | BQ45: N/A | BR45: N/A | BS45: N/A | BT45: N/A
B46: No | C46: N/A | D46: N/A | E46: N/A | F46: N/A | G46: N/A | H46: N/A | I46: N/A | J46: N/A | K46: N/A | L46: N/A | M46: N/A | N46: N/A | O46: N/A | P46: N/A | Q46: N/A | R46: N/A | S46: N/A | T46: N/A | BB46: No | BC46: N/A | BD46: N/A | BE46: N/A | BF46: N/A | BG46: N/A | BH46: N/A | BI46: N/A | BJ46: N/A | BK46: N/A | BL46: N/A | BM46: N/A | BN46: N/A | BO46: N/A | BP46: N/A | BQ46: N/A | BR46: N/A | BS46: N/A | BT46: N/A
A47: Microbiological quality at point of collection | B47: Not contaminated (No E. coli in 100 mL) | C47: N/A | D47: N/A | E47: N/A | F47: N/A | G47: N/A | H47: N/A | I47: N/A | J47: N/A | K47: N/A | L47: N/A | M47: N/A | N47: N/A | O47: N/A | P47: N/A | Q47: N/A | R47: N/A | S47: N/A | T47: N/A | BA47: Microbiological quality at point of collection | BB47: Not contaminated (No E. coli in 100 mL) | BC47: N/A | BD47: N/A | BE47: N/A | BF47: N/A | BG47: N/A | BH47: N/A | BI47: N/A | BJ47: N/A | BK47: N/A | BL47: N/A | BM47: N/A | BN47: N/A | BO47: N/A | BP47: N/A | BQ47: N/A | BR47: N/A | BS47: N/A | BT47: N/A
B48: Contaminated (E. coli detected in 100 mL) | C48: N/A | D48: N/A | E48: N/A | F48: N/A | G48: N/A | H48: N/A | I48: N/A | J48: N/A | K48: N/A | L48: N/A | M48: N/A | N48: N/A | O48: N/A | P48: N/A | Q48: N/A | R48: N/A | S48: N/A | T48: N/A | BB48: Contaminated (E. coli detected in 100 mL) | BC48: N/A | BD48: N/A | BE48: N/A | BF48: N/A | BG48: N/A | BH48: N/A | BI48: N/A | BJ48: N/A | BK48: N/A | BL48: N/A | BM48: N/A | BN48: N/A | BO48: N/A | BP48: N/A | BQ48: N/A | BR48: N/A | BS48: N/A | BT48: N/A
B49: Highly contaminated (>100 CFU/100 mL) | C49: N/A | D49: N/A | E49: N/A | F49: N/A | G49: N/A | H49: N/A | I49: N/A | J49: N/A | K49: N/A | L49: N/A | M49: N/A | N49: N/A | O49: N/A | P49: N/A | Q49: N/A | R49: N/A | S49: N/A | T49: N/A | BB49: Highly contaminated (>100 CFU/100 mL) | BC49: N/A | BD49: N/A | BE49: N/A | BF49: N/A | BG49: N/A | BH49: N/A | BI49: N/A | BJ49: N/A | BK49: N/A | BL49: N/A | BM49: N/A | BN49: N/A | BO49: N/A | BP49: N/A | BQ49: N/A | BR49: N/A | BS49: N/A | BT49: N/A
A50: Microbiological quality of improved water sources at point of collection | B50: Not contaminated (No E. coli in 100 mL) | C50: N/A | D50: N/A | E50: N/A | F50: N/A | G50: N/A | H50: N/A | I50: N/A | J50: N/A | K50: N/A | L50: N/A | M50: N/A | N50: N/A | O50: N/A | P50: N/A | Q50: N/A | R50: N/A | S50: N/A | T50: N/A | BA50: Microbiological quality of improved water sources at point of collection | BB50: Not contaminated (No E. coli in 100 mL) | BC50: N/A | BD50: N/A | BE50: N/A | BF50: N/A | BG50: N/A | BH50: N/A | BI50: N/A | BJ50: N/A | BK50: N/A | BL50: N/A | BM50: N/A | BN50: N/A | BO50: N/A | BP50: N/A | BQ50: N/A | BR50: N/A | BS50: N/A | BT50: N/A
B51: Contaminated (E. coli detected in 100 mL) | C51: N/A | D51: N/A | E51: N/A | F51: N/A | G51: N/A | H51: N/A | I51: N/A | J51: N/A | K51: N/A | L51: N/A | M51: N/A | N51: N/A | O51: N/A | P51: N/A | Q51: N/A | R51: N/A | S51: N/A | T51: N/A | BB51: Contaminated (E. coli detected in 100 mL) | BC51: N/A | BD51: N/A | BE51: N/A | BF51: N/A | BG51: N/A | BH51: N/A | BI51: N/A | BJ51: N/A | BK51: N/A | BL51: N/A | BM51: N/A | BN51: N/A | BO51: N/A | BP51: N/A | BQ51: N/A | BR51: N/A | BS51: N/A | BT51: N/A
B52: Highly contaminated (>100 CFU/100 mL) | C52: N/A | D52: N/A | E52: N/A | F52: N/A | G52: N/A | H52: N/A | I52: N/A | J52: N/A | K52: N/A | L52: N/A | M52: N/A | N52: N/A | O52: N/A | P52: N/A | Q52: N/A | R52: N/A | S52: N/A | T52: N/A | BB52: Highly contaminated (>100 CFU/100 mL) | BC52: N/A | BD52: N/A | BE52: N/A | BF52: N/A | BG52: N/A | BH52: N/A | BI52: N/A | BJ52: N/A | BK52: N/A | BL52: N/A | BM52: N/A | BN52: N/A | BO52: N/A | BP52: N/A | BQ52: N/A | BR52: N/A | BS52: N/A | BT52: N/A
A53: Microbiological quality of piped on premises at point of collection | B53: Not contaminated (No E. coli in 100 mL) | C53: N/A | D53: N/A | E53: N/A | F53: N/A | G53: N/A | H53: N/A | I53: N/A | J53: N/A | K53: N/A | L53: N/A | M53: N/A | N53: N/A | O53: N/A | P53: N/A | Q53: N/A | R53: N/A | S53: N/A | T53: N/A | BA53: Microbiological quality of piped on premises at point of collection | BB53: Not contaminated (No E. coli in 100 mL) | BC53: N/A | BD53: N/A | BE53: N/A | BF53: N/A | BG53: N/A | BH53: N/A | BI53: N/A | BJ53: N/A | BK53: N/A | BL53: N/A | BM53: N/A | BN53: N/A | BO53: N/A | BP53: N/A | BQ53: N/A | BR53: N/A | BS53: N/A | BT53: N/A
B54: Contaminated (E. coli detected in 100 mL) | C54: N/A | D54: N/A | E54: N/A | F54: N/A | G54: N/A | H54: N/A | I54: N/A | J54: N/A | K54: N/A | L54: N/A | M54: N/A | N54: N/A | O54: N/A | P54: N/A | Q54: N/A | R54: N/A | S54: N/A | T54: N/A | BB54: Contaminated (E. coli detected in 100 mL) | BC54: N/A | BD54: N/A | BE54: N/A | BF54: N/A | BG54: N/A | BH54: N/A | BI54: N/A | BJ54: N/A | BK54: N/A | BL54: N/A | BM54: N/A | BN54: N/A | BO54: N/A | BP54: N/A | BQ54: N/A | BR54: N/A | BS54: N/A | BT54: N/A
B55: Highly contaminated (>100 CFU/100 mL) | C55: N/A | D55: N/A | E55: N/A | F55: N/A | G55: N/A | H55: N/A | I55: N/A | J55: N/A | K55: N/A | L55: N/A | M55: N/A | N55: N/A | O55: N/A | P55: N/A | Q55: N/A | R55: N/A | S55: N/A | T55: N/A | BB55: Highly contaminated (>100 CFU/100 mL) | BC55: N/A | BD55: N/A | BE55: N/A | BF55: N/A | BG55: N/A | BH55: N/A | BI55: N/A | BJ55: N/A | BK55: N/A | BL55: N/A | BM55: N/A | BN55: N/A | BO55: N/A | BP55: N/A | BQ55: N/A | BR55: N/A | BS55: N/A | BT55: N/A
C56: NATIONAL wealth index quintile | H56: URBAN wealth index quintile | M56: RURAL wealth index quintile | R56: Ile | BA56: Raw numbers of respondents: | BB56: Use of drinking water sources | BC56: NATIONAL wealth index quintile | BH56: URBAN wealth index quintile | BM56: RURAL wealth index quintile | BR56: SUB-REGIONS:
A57: Percentage based on weighted population | C57: Poorest | D57: Poor | E57: Middle | F57: Rich | G57: Richest | H57: Poorest | I57: Poor | J57: Middle | K57: Rich | L57: Richest | M57: Poorest | N57: Poor | O57: Middle | P57: Rich | Q57: Richest | R57: Mwali | S57: Ndzuwani | T57: Ngazidja | BA57: Water data, raw numbers (weighted) | BC57: Poorest | BD57: Poor | BE57: Middle | BF57: Rich | BG57: Richest | BH57: Poorest | BI57: Poor | BJ57: Middle | BK57: Rich | BL57: Richest | BM57: Poorest | BN57: Poor | BO57: Middle | BP57: Rich | BQ57: Richest | BR57: Mwali | BS57: Ndzuwani | BT57: Ngazidja
A58: Principal source d'eau | B58: Eau du robinet dans le logement | C58: 4.249083195 | D58: 4.782098793 | E58: 3.9614508 | F58: 8.229770766 | G58: 19.53603901 | H58: 3.435824395 | I58: 10.52279782 | J58: 17.60947955 | K58: 22.23001395 | L58: 49.66714572 | M58: 4.435627474 | N58: 4.630049974 | O58: 1.390137645 | P58: 7.383108491 | Q58: 5.777968154 | R58: 1.198328324 | S58: 20.80255455 | T58: 2.988631335
B59: Eau du robinet dans la cours | C59: 11.00997279 | D59: 7.964645909 | E59: 6.890506913 | F59: 12.79132302 | G59: 19.18233938 | H59: 11.08524162 | I59: 20.2859229 | J59: 35.18208631 | K59: 35.32015148 | L59: 15.82996623 | M59: 10.493131 | N59: 8.348870789 | O59: 4.61254674 | P59: 7.620813248 | Q59: 10.37695713 | R59: 26.33536994 | S59: 24.4480449 | T59: 3.4264061
B60: Borne fontaine | C60: 37.80520509 | D60: 20.61327799 | E60: 14.30694986 | F60: 14.20538144 | G60: 11.40215745 | H60: 47.24910582 | I60: 29.53248439 | J60: 20.39065179 | K60: 15.60629524 | L60: 10.02521588 | M60: 38.32116783 | N60: 16.9056323 | O60: 11.66288673 | P60: 16.88728339 | Q60: 7.816308138 | R60: 35.90236426 | S60: 43.86263622 | T60: 5.864725932
B61: Puits à pompe | C61: 0.1434137847 | D61: 0.3944458732 | E61: 1.634264345 | F61: 0.8203410706 | G61: 1.70296243 | H61: 0.8968996463 | I61: 4.213828521 | J61: 1.514826972 | K61: 2.551057871 | L61: 0.8927451042 | M61: 0.08459125971 | N61: 0.08476992774 | O61: 1.025307578 | P61: 0.6907314195 | Q61: 1.326921385 | R61: 0.340702452 | S61: 0.1787380442 | T61: 1.3825177
B62: Puits protégé | C62: 1.13457498 | D62: 1.89906681 | E62: 1.336767226 | F62: 2.810337004 | G62: 4.71055913 | H62: 1.255659505 | I62: 4.183781397 | J62: 3.207868883 | K62: 6.135279906 | L62: 4.151264735 | M62: 0.789902381 | N62: 1.610724819 | O62: 2.127252316 | P62: 1.292625979 | Q62: 4.150158374 | R62: 2.973602621 | S62: 0 | T62: 3.447916238
B63: Source protégée | C63: 1.737978373 | D63: 1.831247616 | E63: 1.227474427 | F63: 2.481028807 | G63: 2.626708542 | H63: 0.3734218215 | I63: 0 | J63: 1.467560943 | K63: 0 | L63: 0 | M63: 2.105293196 | N63: 1.829488438 | O63: 1.780064578 | P63: 1.809483874 | Q63: 4.597766485 | R63: 0 | S63: 0.6964613144 | T63: 2.863585314
B64: Eau de pluie / Citerne | C64: 28.72867007 | D64: 52.27380882 | E64: 63.64689021 | F64: 53.42224509 | G64: 37.70906431 | H64: 8.027251834 | I64: 22.10864949 | J64: 16.9304191 | K64: 14.10583119 | L64: 16.10861437 | M64: 32.01487792 | N64: 55.89163902 | O64: 72.11900622 | P64: 55.77902478 | Q64: 63.37098578 | R64: 2.20312556 | S64: 0.4927212158 | T64: 75.55051789
B65: Eau en bouteille | C65: 0 | D65: 0.2535796207 | E65: 0 | F65: 0 | G65: 0.3361889437 | H65: 0.3587598585 | I65: 0 | J65: 0 | K65: 0.2225007588 | L65: 0 | M65: 0 | N65: 0.2260531406 | O65: 0 | P65: 0 | Q65: 0.3670208086 | R65: 0 | S65: 0 | T65: 0.1904533324
B66: Puits non protégé | C66: 1.621559302 | D66: 1.881369784 | E66: 2.05349219 | F66: 0.6608172377 | G66: 0.4641678319 | H66: 0 | I66: 0.08871217939 | J66: 0.2673224069 | K66: 0.4005013658 | L66: 0.223186276 | M66: 1.841401735 | N66: 1.784425013 | O66: 2.535110137 | P66: 1.159200607 | Q66: 0.9115571475 | R66: 2.353944213 | S66: 0 | T66: 1.842402831
B67: Source non protégée | C67: 2.107703443 | D67: 1.064001366 | E67: 1.409333434 | F67: 2.003852083 | G67: 0.06340867225 | H67: 0.4036048408 | I67: 0.8871217939 | J67: 0.2227686724 | K67: 0 | L67: 0 | M67: 2.67624128 | N67: 1.150859339 | O67: 0.7605699461 | P67: 3.388646438 | Q67: 0.08073256351 | R67: 0.6504319537 | S67: 3.659916933 | T67: 0.2983276581
B68: Mare, ruisseau ou fleuve | C68: 5.207012341 | D68: 3.424714594 | E68: 0.9853132338 | F68: 0.3973093402 | G68: 0.501548987 | H68: 0.3111848512 | I68: 0 | J68: 0.6801604628 | K68: 0 | L68: 0 | M68: 5.667078954 | N68: 5.040423507 | O68: 0.8887698252 | P68: 0.6014492183 | Q68: 0.9130679642 | R68: 10.90247846 | S68: 4.053055514 | T68: 0
B69: Camion citerne,vendeur d'eau | C69: 0 | D69: 0 | E69: 0.2089735443 | F69: 0 | G69: 0.1533594047 | H69: 0 | I69: 0 | J69: 0 | K69: 0.712002428 | L69: 0 | M69: 0 | N69: 0 | O69: 0 | P69: 0.264738003 | Q69: 0 | R69: 0 | S69: 0.1391603397 | T69: 0.04948279208
B70: Autre | C70: 5.405936496 | D70: 1.916980671 | E70: 0.3150840096 | F70: 0.7140823608 | G70: 0.6421925071 | H70: 26.04291308 | I70: 5.228296134 | J70: 1.158397097 | K70: 1.646505615 | L70: 1.339117656 | M70: 0.6450533459 | N70: 0.9855916876 | O70: 0 | P70: 0.1588428018 | Q70: 0 | R70: 16.79894977 | S70: 0.1548211884 | T70: 0.60773361
B71: Manquant | C71: 0.7449220476 | D71: 1.479451126 | E71: 2.023499808 | F71: 1.242670907 | G71: 0.8926237031 | H71: 0.5601327322 | I71: 2.948405373 | J71: 1.056581668 | K71: 1.069860187 | L71: 1.405645982 | M71: 0.7936209038 | N71: 1.228905614 | O71: 1.098348284 | P71: 2.766139455 | Q71: 0.3105560688 | R71: 0.340702452 | S71: 1.442309606 | T71: 1.319279361
B72: Ne sait pas | C72: 0.1039680808 | D72: 0.2213110313 | E72: 0 | F72: 0.220840869 | G72: 0.07667970234 | H72: 0 | I72: 0 | J72: 0.3118761414 | K72: 0 | L72: 0.3570980417 | M72: 0.1320127224 | N72: 0.2825664258 | O72: 0 | P72: 0.1979122987 | Q72: 0 | R72: 0 | S72: 0.06958016983 | T72: 0.1680199073
A108: =A1026 -> Comoros
A109: =A1034 -> 2000
A110: Use of sanitation facilities
A111: by wealth quintile and sub-national region
A112: Notes:
A113: WHO/UNICEF JMP customised wealth index excludes water,
A114: sanitation and hygiene assets.
A115: Survey used for analysis: | B115: =A1025 -> MICS00
A116: =B1030 -> Ratio of Improved latrines based on: | B116: WHS03
A117: =B1029 -> Ratio of Shared improved based on: | B117: WHS03
A120: Use of sanitation facilities | C120: NATIONAL wealth index quintile | H120: URBAN wealth index quintile | M120: RURAL wealth index quintile | R120: Ile | BA120: Raw numbers of respondents: | BB120: Use of sanitation facilities | BC120: NATIONAL wealth index quintile | BH120: URBAN wealth index quintile | BM120: RURAL wealth index quintile | BR120: SUB-REGIONS:
A121: Weighted percentage (used in graphs) | C121: Poorest | D121: Poor | E121: Middle | F121: Rich | G121: Richest | H121: Poorest | I121: Poor | J121: Middle | K121: Rich | L121: Richest | M121: Poorest | N121: Poor | O121: Middle | P121: Rich | Q121: Richest | R121: Mwali | S121: Ndzuwani | T121: Ngazidja | BA121: Sanitation data, raw numbers (weighted) | BC121: Poorest | BD121: Poor | BE121: Middle | BF121: Rich | BG121: Richest | BH121: Poorest | BI121: Poor | BJ121: Middle | BK121: Rich | BL121: Richest | BM121: Poorest | BN121: Poor | BO121: Middle | BP121: Rich | BQ121: Richest | BR121: Mwali | BS121: Ndzuwani | BT121: Ngazidja
A122: Sanitation | B122: Improved | C122: =C153+C154+C155+(C156)*'WHS03'!C130/100 -> 6.102554012 | D122: =D153+D154+D155+(D156)*'WHS03'!D130/100 -> 13.64839351 | E122: =E153+E154+E155+(E156)*'WHS03'!E130/100 -> 24.63757752 | F122: =F153+F154+F155+(F156)*'WHS03'!F130/100 -> 39.10544808 | G122: =G153+G154+G155+(G156)*'WHS03'!G130/100 -> 63.77667955 | H122: =H153+H154+H155+(H156)*'WHS03'!H130/100 -> 9.236446683 | I122: =I153+I154+I155+(I156)*'WHS03'!I130/100 -> 32.72750625 | J122: =J153+J154+J155+(J156)*'WHS03'!J130/100 -> 39.39895515 | K122: =K153+K154+K155+(K156)*'WHS03'!K130/100 -> 56.16297257 | L122: =L153+L154+L155+(L156)*'WHS03'!L130/100 -> 82.65173313 | M122: =M153+M154+M155+(M156)*'WHS03'!M130/100 -> 5.992344545 | N122: =N153+N154+N155+(N156)*'WHS03'!N130/100 -> 9.903685132 | O122: =O153+O154+O155+(O156)*'WHS03'!O130/100 -> 18.10407538 | P122: =P153+P154+P155+(P156)*'WHS03'!P130/100 -> 32.24281914 | Q122: =Q153+Q154+Q155+(Q156)*'WHS03'!Q130/100 -> 54.3892682 | R122: =R153+R154+R155+(R156+R157)*'DHS12'!R130/100 -> 41.62650426 | S122: =S153+S154+S155+(S156+S157)*'DHS12'!S130/100 -> 45.83586696 | T122: =T153+T154+T155+(T156+T157)*'DHS12'!T130/100 -> 14.94138966 | BA122: Sanitation | BB122: Improved | BC122: N/A | BD122: N/A | BE122: N/A | BF122: N/A | BG122: N/A | BH122: N/A | BI122: N/A | BJ122: N/A | BK122: N/A | BL122: N/A | BM122: N/A | BN122: N/A | BO122: N/A | BP122: N/A | BQ122: N/A | BR122: N/A | BS122: N/A | BT122: N/A
B123: Not Improved | C123: =100-C122 -> 93.89744599 | D123: =100-D122 -> 86.35160649 | E123: 75.36242248 | F123: 60.89455192 | G123: 36.22332045 | H123: 90.76355332 | I123: 67.27249375 | J123: 60.60104485 | K123: 43.83702743 | L123: 17.34826687 | M123: 94.00765546 | N123: 90.09631487 | O123: 81.89592462 | P123: 67.75718086 | Q123: 45.6107318 | R123: 58.37349574 | S123: 54.16413304 | T123: 85.05861034 | BB123: Not Improved | BC123: N/A | BD123: N/A | BE123: N/A | BF123: N/A | BG123: N/A | BH123: N/A | BI123: N/A | BJ123: N/A | BK123: N/A | BL123: N/A | BM123: N/A | BN123: N/A | BO123: N/A | BP123: N/A | BQ123: N/A | BR123: N/A | BS123: N/A | BT123: N/A
A124: Sanitation ladder | B124: Basic | C124: =C122*'WHS03'!C129/100 -> 5.107864515 | D124: =D122*'WHS03'!D129/100 -> 12.54962683 | E124: =E122*'WHS03'!E129/100 -> 21.97203177 | F124: =F122*'WHS03'!F129/100 -> 36.99391699 | G124: =G122*'WHS03'!G129/100 -> 59.16621444 | H124: =H122*'WHS03'!H129/100 -> 8.125077418 | I124: =I122*'WHS03'!I129/100 -> 30.21233953 | J124: =J122*'WHS03'!J129/100 -> 36.10616593 | K124: =K122*'WHS03'!K129/100 -> 51.84009835 | L124: =L122*'WHS03'!L129/100 -> 78.24485725 | M124: =M122*'WHS03'!M129/100 -> 5.048477625 | N124: =N122*'WHS03'!N129/100 -> 8.578969037 | O124: =O122*'WHS03'!O129/100 -> 16.81171063 | P124: =P122*'WHS03'!P129/100 -> 29.5495375 | Q124: =Q122*'WHS03'!Q129/100 -> 51.0284909 | R124: =R122*'DHS12'!R129/100 -> 33.41936734 | S124: =S122*'DHS12'!S129/100 -> 31.98342342 | T124: =T122*'DHS12'!T129/100 -> 13.97619485 | BA124: Sanitation ladder | BB124: Basic | BC124: N/A | BD124: N/A | BE124: N/A | BF124: N/A | BG124: N/A | BH124: N/A | BI124: N/A | BJ124: N/A | BK124: N/A | BL124: N/A | BM124: N/A | BN124: N/A | BO124: N/A | BP124: N/A | BQ124: N/A | BR124: N/A | BS124: N/A | BT124: N/A
B125: Limited | C125: =C122*'WHS03'!C128/100 -> 0.9946894973 | D125: =D122*'WHS03'!D128/100 -> 1.098766682 | E125: =E122*'WHS03'!E128/100 -> 2.665545749 | F125: =F122*'WHS03'!F128/100 -> 2.111531089 | G125: =G122*'WHS03'!G128/100 -> 4.610465115 | H125: =H122*'WHS03'!H128/100 -> 1.111369265 | I125: =I122*'WHS03'!I128/100 -> 2.515166714 | J125: =J122*'WHS03'!J128/100 -> 3.292789228 | K125: =K122*'WHS03'!K128/100 -> 4.322874217 | L125: =L122*'WHS03'!L128/100 -> 4.406875879 | M125: =M122*'WHS03'!M128/100 -> 0.9438669196 | N125: =N122*'WHS03'!N128/100 -> 1.324716094 | O125: =O122*'WHS03'!O128/100 -> 1.292364758 | P125: =P122*'WHS03'!P128/100 -> 2.693281646 | Q125: =Q122*'WHS03'!Q128/100 -> 3.360777298 | R125: =R122*'DHS12'!R128/100 -> 8.207136916 | S125: =S122*'DHS12'!S128/100 -> 13.85244354 | T125: =T122*'DHS12'!T128/100 -> 0.965194813 | BB125: Limited | BC125: N/A | BD125: N/A | BE125: N/A | BF125: N/A | BG125: N/A | BH125: N/A | BI125: N/A | BJ125: N/A | BK125: N/A | BL125: N/A | BM125: N/A | BN125: N/A | BO125: N/A | BP125: N/A | BQ125: N/A | BR125: N/A | BS125: N/A | BT125: N/A
B126: Unimproved | C126: =100-(C124+C125+C127) -> 92.26672301 | D126: =100-(D124+D125+D127) -> 85.77173918 | E126: 75.1454373 | F126: 60.50949901 | G126: 35.76700446 | H126: 89.71765204 | I126: 67.27249375 | J126: 59.38875146 | K126: 43.83702743 | L126: 17.34826687 | M126: 91.93705669 | N126: 89.64081543 | O126: 81.75048955 | P126: 67.62782201 | Q126: 44.86828055 | R126: 54.46493458 | S126: 53.34308703 | T126: 84.91551647 | BB126: Unimproved | BC126: N/A | BD126: N/A | BE126: N/A | BF126: N/A | BG126: N/A | BH126: N/A | BI126: N/A | BJ126: N/A | BK126: N/A | BL126: N/A | BM126: N/A | BN126: N/A | BO126: N/A | BP126: N/A | BQ126: N/A | BR126: N/A | BS126: N/A | BT126: N/A
B127: Open defecation | C127: =C160 -> 1.630722981 | D127: =D160 -> 0.5798673099 | E127: 0.2169851876 | F127: 0.3850529107 | G127: 0.4563159827 | H127: 1.045901273 | I127: 0 | J127: 1.212293388 | K127: 0 | L127: 0 | M127: 2.07059877 | N127: 0.4554994433 | O127: 0.1454350623 | P127: 0.1293588462 | Q127: 0.7424512562 | R127: 3.908561166 | S127: 0.821046004 | T127: 0.1430938703 | BB127: Open defecation | BC127: N/A | BD127: N/A | BE127: N/A | BF127: N/A | BG127: N/A | BH127: N/A | BI127: N/A | BJ127: N/A | BK127: N/A | BL127: N/A | BM127: N/A | BN127: N/A | BO127: N/A | BP127: N/A | BQ127: N/A | BR127: N/A | BS127: N/A | BT127: N/A
A128: Shared among Improved Sanitation | B128: Yes | C128: N/a | D128: N/a | E128: N/a | F128: N/a | G128: N/a | H128: N/a | I128: N/a | J128: N/a | K128: N/a | L128: N/a | M128: N/a | N128: N/a | O128: N/a | P128: N/a | Q128: N/a | R128: N/a | S128: N/a | T128: N/a | BA128: Shared among improved sanitation facilities | BB128: Yes | BC128: N/A | BD128: N/A | BE128: N/A | BF128: N/A | BG128: N/A | BH128: N/A | BI128: N/A | BJ128: N/A | BK128: N/A | BL128: N/A | BM128: N/A | BN128: N/A | BO128: N/A | BP128: N/A | BQ128: N/A | BR128: N/A | BS128: N/A | BT128: N/A
B129: No | C129: N/a | D129: N/a | E129: N/a | F129: N/a | G129: N/a | H129: N/a | I129: N/a | J129: N/a | K129: N/a | L129: N/a | M129: N/a | N129: N/a | O129: N/a | P129: N/a | Q129: N/a | R129: N/a | S129: N/a | T129: N/a | BB129: No | BC129: N/A | BD129: N/A | BE129: N/A | BF129: N/A | BG129: N/A | BH129: N/A | BI129: N/A | BJ129: N/A | BK129: N/A | BL129: N/A | BM129: N/A | BN129: N/A | BO129: N/A | BP129: N/A | BQ129: N/A | BR129: N/A | BS129: N/A | BT129: N/A
A130: Manually calculated ratios | B130: Improved latrines
B131: Other
B132: Other
C133: NATIONAL wealth index quintile | H133: URBAN wealth index quintile | M133: RURAL wealth index quintile | R133: Ile | BA133: Raw numbers of respondents: | BB133: Use of sanitation facilities | BC133: NATIONAL wealth index quintile | BH133: URBAN wealth index quintile | BM133: RURAL wealth index quintile | BR133: SUB-REGIONS:
A134: Percentage based on weighted population | C134: Poorest | D134: Poor | E134: Middle | F134: Rich | G134: Richest | H134: Poorest | I134: Poor | J134: Middle | K134: Rich | L134: Richest | M134: Poorest | N134: Poor | O134: Middle | P134: Rich | Q134: Richest | R134: Mwali | S134: Ndzuwani | T134: Ngazidja | BA134: Sanitation data, raw numbers (weighted) | BC134: Poorest | BD134: Poor | BE134: Middle | BF134: Rich | BG134: Richest | BH134: Poorest | BI134: Poor | BJ134: Middle | BK134: Rich | BL134: Richest | BM134: Poorest | BN134: Poor | BO134: Middle | BP134: Rich | BQ134: Richest | BR134: Mwali | BS134: Ndzuwani | BT134: Ngazidja
A135: Sanitation type | B135: Sewer connection | C135: N/A | D135: N/A | E135: N/A | F135: N/A | G135: N/A | H135: N/A | I135: N/A | J135: N/A | K135: N/A | L135: N/A | M135: N/A | N135: N/A | O135: N/A | P135: N/A | Q135: N/A | R135: N/A | S135: N/A | T135: N/A | BA135: Sanitation type | BB135: Sewer connection | BC135: N/A | BD135: N/A | BE135: N/A | BF135: N/A | BG135: N/A | BH135: N/A | BI135: N/A | BJ135: N/A | BK135: N/A | BL135: N/A | BM135: N/A | BN135: N/A | BO135: N/A | BP135: N/A | BQ135: N/A | BR135: N/A | BS135: N/A | BT135: N/A
B136: Septic tank connection | C136: N/A | D136: N/A | E136: N/A | F136: N/A | G136: N/A | H136: N/A | I136: N/A | J136: N/A | K136: N/A | L136: N/A | M136: N/A | N136: N/A | O136: N/A | P136: N/A | Q136: N/A | R136: N/A | S136: N/A | T136: N/A | BB136: Septic tank connection | BC136: N/A | BD136: N/A | BE136: N/A | BF136: N/A | BG136: N/A | BH136: N/A | BI136: N/A | BJ136: N/A | BK136: N/A | BL136: N/A | BM136: N/A | BN136: N/A | BO136: N/A | BP136: N/A | BQ136: N/A | BR136: N/A | BS136: N/A | BT136: N/A
B137: Improved latrines | C137: N/A | D137: N/A | E137: N/A | F137: N/A | G137: N/A | H137: N/A | I137: N/A | J137: N/A | K137: N/A | L137: N/A | M137: N/A | N137: N/A | O137: N/A | P137: N/A | Q137: N/A | R137: N/A | S137: N/A | T137: N/A | BB137: Improved latrines | BC137: N/A | BD137: N/A | BE137: N/A | BF137: N/A | BG137: N/A | BH137: N/A | BI137: N/A | BJ137: N/A | BK137: N/A | BL137: N/A | BM137: N/A | BN137: N/A | BO137: N/A | BP137: N/A | BQ137: N/A | BR137: N/A | BS137: N/A | BT137: N/A
B138: Unimproved facilities | C138: N/A | D138: N/A | E138: N/A | F138: N/A | G138: N/A | H138: N/A | I138: N/A | J138: N/A | K138: N/A | L138: N/A | M138: N/A | N138: N/A | O138: N/A | P138: N/A | Q138: N/A | R138: N/A | S138: N/A | T138: N/A | BB138: Unimproved facilities | BC138: N/A | BD138: N/A | BE138: N/A | BF138: N/A | BG138: N/A | BH138: N/A | BI138: N/A | BJ138: N/A | BK138: N/A | BL138: N/A | BM138: N/A | BN138: N/A | BO138: N/A | BP138: N/A | BQ138: N/A | BR138: N/A | BS138: N/A | BT138: N/A
B139: Open defecation | C139: 1.630722981 | D139: 0.5798673099 | E139: 0.2169851876 | F139: 0.3850529107 | G139: 0.4563159827 | H139: 1.045901273 | I139: 0 | J139: 1.212293388 | K139: 0 | L139: 0 | M139: 2.07059877 | N139: 0.4554994433 | O139: 0.1454350623 | P139: 0.1293588462 | Q139: 0.7424512562 | R139: 3.908561166 | S139: 0.821046004 | T139: 0.1430938703 | BB139: Open defecation | BC139: N/A | BD139: N/A | BE139: N/A | BF139: N/A | BG139: N/A | BH139: N/A | BI139: N/A | BJ139: N/A | BK139: N/A | BL139: N/A | BM139: N/A | BN139: N/A | BO139: N/A | BP139: N/A | BQ139: N/A | BR139: N/A | BS139: N/A | BT139: N/A
A140: Septic tank emptying practices | B140: Not emptied/treated and disposed in situ | C140: N/A | D140: N/A | E140: N/A | F140: N/A | G140: N/A | H140: N/A | I140: N/A | J140: N/A | K140: N/A | L140: N/A | M140: N/A | N140: N/A | O140: N/A | P140: N/A | Q140: N/A | R140: N/A | S140: N/A | T140: N/A | BA140: Septic tank emptying practices | BB140: Not emptied/treated and disposed in situ | BC140: N/A | BD140: N/A | BE140: N/A | BF140: N/A | BG140: N/A | BH140: N/A | BI140: N/A | BJ140: N/A | BK140: N/A | BL140: N/A | BM140: N/A | BN140: N/A | BO140: N/A | BP140: N/A | BQ140: N/A | BR140: N/A | BS140: N/A | BT140: N/A
B141: Emptied and buried on site | C141: N/A | D141: N/A | E141: N/A | F141: N/A | G141: N/A | H141: N/A | I141: N/A | J141: N/A | K141: N/A | L141: N/A | M141: N/A | N141: N/A | O141: N/A | P141: N/A | Q141: N/A | R141: N/A | S141: N/A | T141: N/A | BB141: Emptied and buried on site | BC141: N/A | BD141: N/A | BE141: N/A | BF141: N/A | BG141: N/A | BH141: N/A | BI141: N/A | BJ141: N/A | BK141: N/A | BL141: N/A | BM141: N/A | BN141: N/A | BO141: N/A | BP141: N/A | BQ141: N/A | BR141: N/A | BS141: N/A | BT141: N/A
B142: Emptied and discharged locally | C142: N/A | D142: N/A | E142: N/A | F142: N/A | G142: N/A | H142: N/A | I142: N/A | J142: N/A | K142: N/A | L142: N/A | M142: N/A | N142: N/A | O142: N/A | P142: N/A | Q142: N/A | R142: N/A | S142: N/A | T142: N/A | BB142: Emptied and discharged locally | BC142: N/A | BD142: N/A | BE142: N/A | BF142: N/A | BG142: N/A | BH142: N/A | BI142: N/A | BJ142: N/A | BK142: N/A | BL142: N/A | BM142: N/A | BN142: N/A | BO142: N/A | BP142: N/A | BQ142: N/A | BR142: N/A | BS142: N/A | BT142: N/A
B143: Emptied and removed offsite | C143: N/A | D143: N/A | E143: N/A | F143: N/A | G143: N/A | H143: N/A | I143: N/A | J143: N/A | K143: N/A | L143: N/A | M143: N/A | N143: N/A | O143: N/A | P143: N/A | Q143: N/A | R143: N/A | S143: N/A | T143: N/A | BB143: Emptied and removed offsite | BC143: N/A | BD143: N/A | BE143: N/A | BF143: N/A | BG143: N/A | BH143: N/A | BI143: N/A | BJ143: N/A | BK143: N/A | BL143: N/A | BM143: N/A | BN143: N/A | BO143: N/A | BP143: N/A | BQ143: N/A | BR143: N/A | BS143: N/A | BT143: N/A
A144: Latrine emptying practices | B144: Not emptied/treated and disposed in situ | C144: N/A | D144: N/A | E144: N/A | F144: N/A | G144: N/A | H144: N/A | I144: N/A | J144: N/A | K144: N/A | L144: N/A | M144: N/A | N144: N/A | O144: N/A | P144: N/A | Q144: N/A | R144: N/A | S144: N/A | T144: N/A | BA144: Latrine emptying practices | BB144: Not emptied/treated and disposed in situ | BC144: N/A | BD144: N/A | BE144: N/A | BF144: N/A | BG144: N/A | BH144: N/A | BI144: N/A | BJ144: N/A | BK144: N/A | BL144: N/A | BM144: N/A | BN144: N/A | BO144: N/A | BP144: N/A | BQ144: N/A | BR144: N/A | BS144: N/A | BT144: N/A
B145: Emptied and buried on site | C145: N/A | D145: N/A | E145: N/A | F145: N/A | G145: N/A | H145: N/A | I145: N/A | J145: N/A | K145: N/A | L145: N/A | M145: N/A | N145: N/A | O145: N/A | P145: N/A | Q145: N/A | R145: N/A | S145: N/A | T145: N/A | BB145: Emptied and buried on site | BC145: N/A | BD145: N/A | BE145: N/A | BF145: N/A | BG145: N/A | BH145: N/A | BI145: N/A | BJ145: N/A | BK145: N/A | BL145: N/A | BM145: N/A | BN145: N/A | BO145: N/A | BP145: N/A | BQ145: N/A | BR145: N/A | BS145: N/A | BT145: N/A
B146: Emptied and discharged locally | C146: N/A | D146: N/A | E146: N/A | F146: N/A | G146: N/A | H146: N/A | I146: N/A | J146: N/A | K146: N/A | L146: N/A | M146: N/A | N146: N/A | O146: N/A | P146: N/A | Q146: N/A | R146: N/A | S146: N/A | T146: N/A | BB146: Emptied and discharged locally | BC146: N/A | BD146: N/A | BE146: N/A | BF146: N/A | BG146: N/A | BH146: N/A | BI146: N/A | BJ146: N/A | BK146: N/A | BL146: N/A | BM146: N/A | BN146: N/A | BO146: N/A | BP146: N/A | BQ146: N/A | BR146: N/A | BS146: N/A | BT146: N/A
B147: Emptied and removed offsite | C147: N/A | D147: N/A | E147: N/A | F147: N/A | G147: N/A | H147: N/A | I147: N/A | J147: N/A | K147: N/A | L147: N/A | M147: N/A | N147: N/A | O147: N/A | P147: N/A | Q147: N/A | R147: N/A | S147: N/A | T147: N/A | BB147: Emptied and removed offsite | BC147: N/A | BD147: N/A | BE147: N/A | BF147: N/A | BG147: N/A | BH147: N/A | BI147: N/A | BJ147: N/A | BK147: N/A | BL147: N/A | BM147: N/A | BN147: N/A | BO147: N/A | BP147: N/A | BQ147: N/A | BR147: N/A | BS147: N/A | BT147: N/A
A148: Shared among improved sanitation facilities | B148: Yes | C148: N/A | D148: N/A | E148: N/A | F148: N/A | G148: N/A | H148: N/A | I148: N/A | J148: N/A | K148: N/A | L148: N/A | M148: N/A | N148: N/A | O148: N/A | P148: N/A | Q148: N/A | R148: N/A | S148: N/A | T148: N/A | BA148: Shared among improved sanitation facilities | BB148: Yes | BC148: N/A | BD148: N/A | BE148: N/A | BF148: N/A | BG148: N/A | BH148: N/A | BI148: N/A | BJ148: N/A | BK148: N/A | BL148: N/A | BM148: N/A | BN148: N/A | BO148: N/A | BP148: N/A | BQ148: N/A | BR148: N/A | BS148: N/A | BT148: N/A
B149: No | C149: N/A | D149: N/A | E149: N/A | F149: N/A | G149: N/A | H149: N/A | I149: N/A | J149: N/A | K149: N/A | L149: N/A | M149: N/A | N149: N/A | O149: N/A | P149: N/A | Q149: N/A | R149: N/A | S149: N/A | T149: N/A | BB149: No | BC149: N/A | BD149: N/A | BE149: N/A | BF149: N/A | BG149: N/A | BH149: N/A | BI149: N/A | BJ149: N/A | BK149: N/A | BL149: N/A | BM149: N/A | BN149: N/A | BO149: N/A | BP149: N/A | BQ149: N/A | BR149: N/A | BS149: N/A | BT149: N/A
B150: DK/missing | C150: N/A | D150: N/A | E150: N/A | F150: N/A | G150: N/A | H150: N/A | I150: N/A | J150: N/A | K150: N/A | L150: N/A | M150: N/A | N150: N/A | O150: N/A | P150: N/A | Q150: N/A | R150: N/A | S150: N/A | T150: N/A | BB150: DK/missing | BC150: N/A | BD150: N/A | BE150: N/A | BF150: N/A | BG150: N/A | BH150: N/A | BI150: N/A | BJ150: N/A | BK150: N/A | BL150: N/A | BM150: N/A | BN150: N/A | BO150: N/A | BP150: N/A | BQ150: N/A | BR150: N/A | BS150: N/A | BT150: N/A
A151: Shared among all sanitation facilities | B151: Yes | C151: N/A | D151: N/A | E151: N/A | F151: N/A | G151: N/A | H151: N/A | I151: N/A | J151: N/A | K151: N/A | L151: N/A | M151: N/A | N151: N/A | O151: N/A | P151: N/A | Q151: N/A | R151: N/A | S151: N/A | T151: N/A | BA151: Shared among all sanitation facilities | BB151: Yes | BC151: N/A | BD151: N/A | BE151: N/A | BF151: N/A | BG151: N/A | BH151: N/A | BI151: N/A | BJ151: N/A | BK151: N/A | BL151: N/A | BM151: N/A | BN151: N/A | BO151: N/A | BP151: N/A | BQ151: N/A | BR151: N/A | BS151: N/A | BT151: N/A
B152: No | C152: N/A | D152: N/A | E152: N/A | F152: N/A | G152: N/A | H152: N/A | I152: N/A | J152: N/A | K152: N/A | L152: N/A | M152: N/A | N152: N/A | O152: N/A | P152: N/A | Q152: N/A | R152: N/A | S152: N/A | T152: N/A | BB152: No | BC152: N/A | BD152: N/A | BE152: N/A | BF152: N/A | BG152: N/A | BH152: N/A | BI152: N/A | BJ152: N/A | BK152: N/A | BL152: N/A | BM152: N/A | BN152: N/A | BO152: N/A | BP152: N/A | BQ152: N/A | BR152: N/A | BS152: N/A | BT152: N/A
A153: Type de toilette | B153: Chase d'eau avec égout ou avec fosse septique | C153: 0.08882771057 | D153: 0.1859267294 | E153: 0.1792867946 | F153: 0.9334030667 | G153: 5.895223033 | H153: 0.8715843939 | I153: 0.3548487176 | J153: 0.8465209552 | K153: 4.245776728 | L153: 17.58939693 | M153: 0.1127883463 | N153: 0 | O153: 0.1292756109 | P153: 0.9011901922 | Q153: 1.597206184 | R153: 1.291247174 | S153: 2.240608922 | T153: 1.102284528 | BA153: Type de toilette | BB153: Chase d'eau avec égout ou avec fosse septique | BC153: 4.838692 | BD153: 10.162645 | BE153: 9.717768 | BF153: 51.259823 | BG153: 321.603655 | BH153: 10.162645 | BI153: 4.183128 | BJ153: 9.934929 | BK153: 49.889233 | BL153: 206.046212 | BM153: 4.838692 | BN153: 0 | BO153: 5.53464 | BP153: 38.557574 | BQ153: 68.43553 | BR153: 28.842055 | BS153: 182.37282 | BT153: 186.367708
B154: Latrine à évacuation | C154: 0 | D154: 0.2002783484 | E154: 0.5235304551 | F154: 0.6440214419 | G154: 4.42362075 | H154: 0 | I154: 0.3548487176 | J154: 1.559380707 | K154: 1.579329143 | L154: 15.65952444 | M154: 0 | N154: 0.2557122288 | O154: 0.565099866 | P154: 0.4981210282 | Q154: 0.8187387268 | R154: 0.1858377011 | S154: 0.3809673615 | T154: 1.661135408 | BB154: Latrine à évacuation | BC154: 0 | BD154: 10.947096 | BE154: 28.376588 | BF154: 35.367813 | BG154: 241.322948 | BH154: 0 | BI154: 4.183128 | BJ154: 18.301185 | BK154: 18.557622 | BL154: 183.439245 | BM154: 0 | BN154: 10.947096 | BO154: 24.19346 | BP154: 21.312192 | BQ154: 35.080517 | BR154: 4.15098 | BS154: 31.008576 | BT154: 280.854889
B155: Latrine améliorée à ventillation | C155: 0.3095399422 | D155: 0.1554888587 | E155: 1.424759422 | F155: 2.469645566 | G155: 6.171896307 | H155: 0 | I155: 1.774243588 | J155: 1.128410102 | K155: 1.732796886 | L155: 3.7413773 | M155: 0.3930361141 | N155: 0.1130265703 | O155: 0.5531005104 | P155: 2.076021262 | Q155: 7.990256862 | R155: 0.4955672028 | S155: 1.804318038 | T155: 2.466246015 | BB155: Latrine améliorée à ventillation | BC155: 16.8615 | BD155: 8.498929 | BE155: 77.225328 | BF155: 135.625861 | BG155: 336.697085 | BH155: 0 | BI155: 20.91564 | BJ155: 13.243233 | BK155: 20.360917 | BL155: 43.827348 | BM155: 16.8615 | BN155: 4.838692 | BO155: 23.679735 | BP155: 88.822919 | BQ155: 342.358719 | BR155: 11.06928 | BS155: 146.861224 | BT155: 416.978199
B156: Latrine traditionnelle | C156: 81.12595259 | D156: 79.34708242 | E156: 78.32458344 | F156: 83.95413201 | G156: 75.27300994 | H156: 84.93854883 | I156: 87.2841533 | J156: 84.80124804 | K156: 85.17063316 | L156: 56.13913652 | M156: 80.74051224 | N156: 77.93562835 | O156: 77.52065781 | P156: 80.48955245 | Q156: 81.28071394 | R156: 88.16004143 | S156: 81.43090444 | T156: 77.60682404 | BB156: Latrine traditionnelle | BC156: 4419.155861 | BD156: 4337.064568 | BE156: 4245.377538 | BF156: 4610.520471 | BG156: 4106.388339 | BH156: 990.38065 | BI156: 1028.947739 | BJ156: 995.243382 | BK156: 1000.78215 | BL156: 657.626664 | BM156: 3463.819477 | BN156: 3336.44116 | BO156: 3318.869897 | BP156: 3443.759044 | BQ156: 3482.636614 | BR156: 1969.194446 | BS156: 6628.012381 | BT156: 13121.29995
B157: Trou ouvert | C157: 13.32799122 | D157: 16.79543627 | E157: 15.435055 | F157: 9.017278587 | G157: 5.587712081 | H157: 9.117487024 | I157: 7.630248235 | J157: 6.65679074 | K157: 7.004463167 | L157: 3.570980417 | M157: 13.53225138 | N157: 17.838298 | O157: 18.05287414 | P157: 12.17825682 | Q157: 5.695235335 | R157: 1.03384684 | S157: 10.52367069 | T157: 14.20105139 | BB157: Trou ouvert | BC157: 726.012683 | BD157: 918.028607 | BE157: 836.616461 | BF157: 495.203113 | BG157: 304.827929 | BH157: 106.309595 | BI157: 89.94905 | BJ157: 78.125347 | BK157: 82.30468 | BL157: 41.83128 | BM157: 580.542216 | BN157: 763.661408 | BO157: 772.892571 | BP157: 521.048767 | BQ157: 244.023879 | BR157: 23.09261 | BS157: 856.566928 | BT157: 2401.029255
B158: Sceau | C158: 0.2802101905 | D158: 0.1036130867 | E158: 0.3794011865 | F158: 0.06607054329 | G158: 0 | H158: 0 | I158: 0 | J158: 0.3091638467 | K158: 0 | L158: 0 | M158: 0 | N158: 0.4888379101 | O158: 0.4803348861 | P158: 0 | Q158: 0 | R158: 0 | S158: 0.197654489 | T158: 0.1717126443 | BB158: Sceau | BC158: 15.263827 | BD158: 5.66343 | BE158: 20.564441 | BF158: 3.628405 | BG158: 0 | BH158: 0 | BI158: 0 | BJ158: 3.628405 | BK158: 0 | BL158: 0 | BM158: 0 | BN158: 20.927257 | BO158: 20.564441 | BP158: 0 | BQ158: 0 | BR158: 0 | BS158: 16.087951 | BT158: 29.032152
B159: Autre | C159: 3.236755371 | D159: 2.455258159 | E159: 3.4746038 | F159: 2.520874421 | G159: 2.063900104 | H159: 4.026478484 | I159: 2.557301354 | J159: 3.486192221 | K159: 0 | L159: 2.96981218 | M159: 3.150813151 | N159: 2.686944358 | O159: 2.500308584 | P159: 3.7274994 | Q159: 1.875397694 | R159: 4.924898482 | S159: 2.564082364 | T159: 2.550209788 | BB159: Autre | BC159: 176.315051 | BD159: 134.202958 | BE159: 188.331738 | BF159: 138.439203 | BG159: 112.592486 | BH159: 46.948605 | BI159: 30.146703 | BJ159: 40.914607 | BK159: 0 | BL159: 34.789058 | BM159: 135.171894 | BN159: 115.028671 | BO159: 107.045001 | BP159: 159.481689 | BQ159: 80.355208 | BR159: 110.005424 | BS159: 208.701718 | BT159: 431.174294
B160: Pas de toilette ou brousse ou champ | C160: 1.630722981 | D160: 0.5798673099 | E160: 0.2169851876 | F160: 0.3850529107 | G160: 0.4563159827 | H160: 1.045901273 | I160: 0 | J160: 1.212293388 | K160: 0 | L160: 0 | M160: 2.07059877 | N160: 0.4554994433 | O160: 0.1454350623 | P160: 0.1293588462 | Q160: 0.7424512562 | R160: 3.908561166 | S160: 0.821046004 | T160: 0.1430938703 | BB160: Pas de toilette ou brousse ou champ | BC160: 88.830008 | BD160: 31.695204 | BE160: 11.76111 | BF160: 21.146003 | BG160: 24.893526 | BH160: 12.195174 | BI160: 0 | BJ160: 14.227703 | BK160: 0 | BL160: 0 | BM160: 88.830008 | BN160: 19.50003 | BO160: 6.22647 | BP160: 5.53464 | BQ160: 31.811826 | BR160: 87.303917 | BS160: 66.828474 | BT160: 24.19346
B161: 97 | C161: 0 | D161: 0.177048825 | E161: 0.04179470887 | F161: 0.009521454317 | G161: 0.1283218008 | H161: 0 | I161: 0.04435608969 | J161: 0 | K161: 0.2670009105 | L161: 0.3297722127 | M161: 0 | N161: 0.2260531406 | O161: 0.05291353174 | P161: 0 | Q161: 0 | R161: 0 | S161: 0.03674769101 | T161: 0.09744231668 | BB161: 97 | BC161: 0 | BD161: 9.677384 | BE161: 2.265372 | BF161: 0.522891 | BG161: 7.000373 | BH161: 0 | BI161: 0.522891 | BJ161: 0 | BK161: 3.137346 | BL161: 3.863027 | BM161: 0 | BN161: 9.677384 | BO161: 2.265372 | BP161: 0 | BQ161: 0 | BR161: 0 | BS161: 2.991053 | BT161: 16.474967
BB162: Total | BC162: 5447.277622 | BD162: 5465.940821 | BE162: 5420.236344 | BF162: 5491.713583 | BG162: 5455.326341 | BH162: 1165.996669 | BI162: 1178.848279 | BJ162: 1173.618791 | BK162: 1175.031948 | BL162: 1171.422834 | BM162: 4290.063787 | BN162: 4281.021698 | BO162: 4281.271587 | BP162: 4278.516825 | BQ162: 4284.702293 | BR162: 2233.658712 | BS162: 8139.431125 | BT162: 16907.40487
A208: =A1026 -> Comoros
A209: =A1034 -> 2000
A210: Access to hygiene facilities
A211: by wealth quintile and sub-national region
A212: Notes:
A213: WHO/UNICEF JMP customised wealth index excludes water,
A214: sanitation and hygiene assets.
A215: Survey used for analysis: | B215: =A1025 -> MICS00
A220: Access to handwashing | C220: NATIONAL wealth index quintile | H220: URBAN wealth index quintile | M220: RURAL wealth index quintile | R220: Ile | BA220: Raw numbers of respondents: | BB220: Access to handwashing | BC220: NATIONAL wealth index quintile | BH220: URBAN wealth index quintile | BM220: RURAL wealth index quintile | BR220: SUB-REGIONS:
A221: Weighted percentage (used in graphs) | C221: Poorest | D221: Poor | E221: Middle | F221: Rich | G221: Richest | H221: Poorest | I221: Poor | J221: Middle | K221: Rich | L221: Richest | M221: Poorest | N221: Poor | O221: Middle | P221: Rich | Q221: Richest | R221: Mwali | S221: Ndzuwani | T221: Ngazidja | BA221: Hygiene data, raw numbers (weighted) | BC221: Poorest | BD221: Poor | BE221: Middle | BF221: Rich | BG221: Richest | BH221: Poorest | BI221: Poor | BJ221: Middle | BK221: Rich | BL221: Richest | BM221: Poorest | BN221: Poor | BO221: Middle | BP221: Rich | BQ221: Richest | BR221: Mwali | BS221: Ndzuwani | BT221: Ngazidja
A222: Hygiene ladder | B222: Basic | C222: N/A | D222: N/A | E222: N/A | F222: N/A | G222: N/A | H222: N/A | I222: N/A | J222: N/A | K222: N/A | L222: N/A | M222: N/A | N222: N/A | O222: N/A | P222: N/A | Q222: N/A | R222: N/A | S222: N/A | T222: N/A | BA222: Hygiene ladder | BB222: Basic | BC222: N/A | BD222: N/A | BE222: N/A | BF222: N/A | BG222: N/A | BH222: N/A | BI222: N/A | BJ222: N/A | BK222: N/A | BL222: N/A | BM222: N/A | BN222: N/A | BO222: N/A | BP222: N/A | BQ222: N/A | BR222: N/A | BS222: N/A | BT222: N/A
B223: Limited | C223: N/A | D223: N/A | E223: N/A | F223: N/A | G223: N/A | H223: N/A | I223: N/A | J223: N/A | K223: N/A | L223: N/A | M223: N/A | N223: N/A | O223: N/A | P223: N/A | Q223: N/A | R223: N/A | S223: N/A | T223: N/A | BB223: Limited | BC223: N/A | BD223: N/A | BE223: N/A | BF223: N/A | BG223: N/A | BH223: N/A | BI223: N/A | BJ223: N/A | BK223: N/A | BL223: N/A | BM223: N/A | BN223: N/A | BO223: N/A | BP223: N/A | BQ223: N/A | BR223: N/A | BS223: N/A | BT223: N/A
B224: No facility | C224: N/A | D224: N/A | E224: N/A | F224: N/A | G224: N/A | H224: N/A | I224: N/A | J224: N/A | K224: N/A | L224: N/A | M224: N/A | N224: N/A | O224: N/A | P224: N/A | Q224: N/A | R224: N/A | S224: N/A | T224: N/A | BB224: No facility | BC224: N/A | BD224: N/A | BE224: N/A | BF224: N/A | BG224: N/A | BH224: N/A | BI224: N/A | BJ224: N/A | BK224: N/A | BL224: N/A | BM224: N/A | BN224: N/A | BO224: N/A | BP224: N/A | BQ224: N/A | BR224: N/A | BS224: N/A | BT224: N/A
BA225: Observed handwashing place | BB225: Fixed | BC225: N/A | BD225: N/A | BE225: N/A | BF225: N/A | BG225: N/A | BH225: N/A | BI225: N/A | BJ225: N/A | BK225: N/A | BL225: N/A | BM225: N/A | BN225: N/A | BO225: N/A | BP225: N/A | BQ225: N/A | BR225: N/A | BS225: N/A | BT225: N/A
BB226: Mobile | BC226: N/A | BD226: N/A | BE226: N/A | BF226: N/A | BG226: N/A | BH226: N/A | BI226: N/A | BJ226: N/A | BK226: N/A | BL226: N/A | BM226: N/A | BN226: N/A | BO226: N/A | BP226: N/A | BQ226: N/A | BR226: N/A | BS226: N/A | BT226: N/A
BA227: Water / Soap | BB227: Water and soap | BC227: N/A | BD227: N/A | BE227: N/A | BF227: N/A | BG227: N/A | BH227: N/A | BI227: N/A | BJ227: N/A | BK227: N/A | BL227: N/A | BM227: N/A | BN227: N/A | BO227: N/A | BP227: N/A | BQ227: N/A | BR227: N/A | BS227: N/A | BT227: N/A
BB228: Water only | BC228: N/A | BD228: N/A | BE228: N/A | BF228: N/A | BG228: N/A | BH228: N/A | BI228: N/A | BJ228: N/A | BK228: N/A | BL228: N/A | BM228: N/A | BN228: N/A | BO228: N/A | BP228: N/A | BQ228: N/A | BR228: N/A | BS228: N/A | BT228: N/A
BB229: Soap only | BC229: N/A | BD229: N/A | BE229: N/A | BF229: N/A | BG229: N/A | BH229: N/A | BI229: N/A | BJ229: N/A | BK229: N/A | BL229: N/A | BM229: N/A | BN229: N/A | BO229: N/A | BP229: N/A | BQ229: N/A | BR229: N/A | BS229: N/A | BT229: N/A
BB230: Neither | BC230: N/A | BD230: N/A | BE230: N/A | BF230: N/A | BG230: N/A | BH230: N/A | BI230: N/A | BJ230: N/A | BK230: N/A | BL230: N/A | BM230: N/A | BN230: N/A | BO230: N/A | BP230: N/A | BQ230: N/A | BR230: N/A | BS230: N/A | BT230: N/A
BA259: Raw numbers of respondents: | BB259: Menstrual health and hygiene | BC259: NATIONAL wealth index quintile | BH259: URBAN wealth index quintile | BM259: RURAL wealth index quintile | BR259: SUB-REGIONS:
BA260: MHH data, raw numbers (weighted) | BC260: Poorest | BD260: Poor | BE260: Middle | BF260: Rich | BG260: Richest | BH260: Poorest | BI260: Poor | BJ260: Middle | BK260: Rich | BL260: Richest | BM260: Poorest | BN260: Poor | BO260: Middle | BP260: Rich | BQ260: Richest | BR260: Mwali | BS260: Ndzuwani | BT260: Ngazidja
BA261: Private place to wash and change | BB261: Yes | BC261: N/A | BD261: N/A | BE261: N/A | BF261: N/A | BG261: N/A | BH261: N/A | BI261: N/A | BJ261: N/A | BK261: N/A | BL261: N/A | BM261: N/A | BN261: N/A | BO261: N/A | BP261: N/A | BQ261: N/A | BR261: N/A | BS261: N/A | BT261: N/A
BB262: No | BC262: N/A | BD262: N/A | BE262: N/A | BF262: N/A | BG262: N/A | BH262: N/A | BI262: N/A | BJ262: N/A | BK262: N/A | BL262: N/A | BM262: N/A | BN262: N/A | BO262: N/A | BP262: N/A | BQ262: N/A | BR262: N/A | BS262: N/A | BT262: N/A
BB263: DK/not sure/missing | BC263: N/A | BD263: N/A | BE263: N/A | BF263: N/A | BG263: N/A | BH263: N/A | BI263: N/A | BJ263: N/A | BK263: N/A | BL263: N/A | BM263: N/A | BN263: N/A | BO263: N/A | BP263: N/A | BQ263: N/A | BR263: N/A | BS263: N/A | BT263: N/A
BA264: Use of menstrual materials | BB264: Materials reusable | BC264: N/A | BD264: N/A | BE264: N/A | BF264: N/A | BG264: N/A | BH264: N/A | BI264: N/A | BJ264: N/A | BK264: N/A | BL264: N/A | BM264: N/A | BN264: N/A | BO264: N/A | BP264: N/A | BQ264: N/A | BR264: N/A | BS264: N/A | BT264: N/A
BB265: Materials not reusable | BC265: N/A | BD265: N/A | BE265: N/A | BF265: N/A | BG265: N/A | BH265: N/A | BI265: N/A | BJ265: N/A | BK265: N/A | BL265: N/A | BM265: N/A | BN265: N/A | BO265: N/A | BP265: N/A | BQ265: N/A | BR265: N/A | BS265: N/A | BT265: N/A
BB266: No materials used | BC266: N/A | BD266: N/A | BE266: N/A | BF266: N/A | BG266: N/A | BH266: N/A | BI266: N/A | BJ266: N/A | BK266: N/A | BL266: N/A | BM266: N/A | BN266: N/A | BO266: N/A | BP266: N/A | BQ266: N/A | BR266: N/A | BS266: N/A | BT266: N/A
BB267: DK/not sure/missing | BC267: N/A | BD267: N/A | BE267: N/A | BF267: N/A | BG267: N/A | BH267: N/A | BI267: N/A | BJ267: N/A | BK267: N/A | BL267: N/A | BM267: N/A | BN267: N/A | BO267: N/A | BP267: N/A | BQ267: N/A | BR267: N/A | BS267: N/A | BT267: N/A
BA268: Use of menstrual materials with private place to wash and change | BB268: Materials reusable | BC268: N/A | BD268: N/A | BE268: N/A | BF268: N/A | BG268: N/A | BH268: N/A | BI268: N/A | BJ268: N/A | BK268: N/A | BL268: N/A | BM268: N/A | BN268: N/A | BO268: N/A | BP268: N/A | BQ268: N/A | BR268: N/A | BS268: N/A | BT268: N/A
BB269: Materials not reusable | BC269: N/A | BD269: N/A | BE269: N/A | BF269: N/A | BG269: N/A | BH269: N/A | BI269: N/A | BJ269: N/A | BK269: N/A | BL269: N/A | BM269: N/A | BN269: N/A | BO269: N/A | BP269: N/A | BQ269: N/A | BR269: N/A | BS269: N/A | BT269: N/A
BB270: No materials used | BC270: N/A | BD270: N/A | BE270: N/A | BF270: N/A | BG270: N/A | BH270: N/A | BI270: N/A | BJ270: N/A | BK270: N/A | BL270: N/A | BM270: N/A | BN270: N/A | BO270: N/A | BP270: N/A | BQ270: N/A | BR270: N/A | BS270: N/A | BT270: N/A
BA271: Awareness of menstruation before menarche | BB271: Yes | BC271: N/A | BD271: N/A | BE271: N/A | BF271: N/A | BG271: N/A | BH271: N/A | BI271: N/A | BJ271: N/A | BK271: N/A | BL271: N/A | BM271: N/A | BN271: N/A | BO271: N/A | BP271: N/A | BQ271: N/A | BR271: N/A | BS271: N/A | BT271: N/A
BB272: No | BC272: N/A | BD272: N/A | BE272: N/A | BF272: N/A | BG272: N/A | BH272: N/A | BI272: N/A | BJ272: N/A | BK272: N/A | BL272: N/A | BM272: N/A | BN272: N/A | BO272: N/A | BP272: N/A | BQ272: N/A | BR272: N/A | BS272: N/A | BT272: N/A
BB273: DK/not sure/missing | BC273: N/A | BD273: N/A | BE273: N/A | BF273: N/A | BG273: N/A | BH273: N/A | BI273: N/A | BJ273: N/A | BK273: N/A | BL273: N/A | BM273: N/A | BN273: N/A | BO273: N/A | BP273: N/A | BQ273: N/A | BR273: N/A | BS273: N/A | BT273: N/A
BA274: Participation in (all) activities during menstruation | BB274: Yes | BC274: N/A | BD274: N/A | BE274: N/A | BF274: N/A | BG274: N/A | BH274: N/A | BI274: N/A | BJ274: N/A | BK274: N/A | BL274: N/A | BM274: N/A | BN274: N/A | BO274: N/A | BP274: N/A | BQ274: N/A | BR274: N/A | BS274: N/A | BT274: N/A
BB275: No | BC275: N/A | BD275: N/A | BE275: N/A | BF275: N/A | BG275: N/A | BH275: N/A | BI275: N/A | BJ275: N/A | BK275: N/A | BL275: N/A | BM275: N/A | BN275: N/A | BO275: N/A | BP275: N/A | BQ275: N/A | BR275: N/A | BS275: N/A | BT275: N/A
BB276: DK/not sure/missing/no such activity | BC276: N/A | BD276: N/A | BE276: N/A | BF276: N/A | BG276: N/A | BH276: N/A | BI276: N/A | BJ276: N/A | BK276: N/A | BL276: N/A | BM276: N/A | BN276: N/A | BO276: N/A | BP276: N/A | BQ276: N/A | BR276: N/A | BS276: N/A | BT276: N/A
BA277: Participation in specific activities during menstruation | BB277: Did not go to school (amongst those usually attending school) | BC277: N/A | BD277: N/A | BE277: N/A | BF277: N/A | BG277: N/A | BH277: N/A | BI277: N/A | BJ277: N/A | BK277: N/A | BL277: N/A | BM277: N/A | BN277: N/A | BO277: N/A | BP277: N/A | BQ277: N/A | BR277: N/A | BS277: N/A | BT277: N/A
BB278: Did not go to work (amongst those who usually work) | BC278: N/A | BD278: N/A | BE278: N/A | BF278: N/A | BG278: N/A | BH278: N/A | BI278: N/A | BJ278: N/A | BK278: N/A | BL278: N/A | BM278: N/A | BN278: N/A | BO278: N/A | BP278: N/A | BQ278: N/A | BR278: N/A | BS278: N/A | BT278: N/A
BB279: Did not participate in social activities | BC279: N/A | BD279: N/A | BE279: N/A | BF279: N/A | BG279: N/A | BH279: N/A | BI279: N/A | BJ279: N/A | BK279: N/A | BL279: N/A | BM279: N/A | BN279: N/A | BO279: N/A | BP279: N/A | BQ279: N/A | BR279: N/A | BS279: N/A | BT279: N/A
BB280: Did not cook food | BC280: N/A | BD280: N/A | BE280: N/A | BF280: N/A | BG280: N/A | BH280: N/A | BI280: N/A | BJ280: N/A | BK280: N/A | BL280: N/A | BM280: N/A | BN280: N/A | BO280: N/A | BP280: N/A | BQ280: N/A | BR280: N/A | BS280: N/A | BT280: N/A
BB281: Did not eat with others | BC281: N/A | BD281: N/A | BE281: N/A | BF281: N/A | BG281: N/A | BH281: N/A | BI281: N/A | BJ281: N/A | BK281: N/A | BL281: N/A | BM281: N/A | BN281: N/A | BO281: N/A | BP281: N/A | BQ281: N/A | BR281: N/A | BS281: N/A | BT281: N/A
BB282: Did not bathe in regular place | BC282: N/A | BD282: N/A | BE282: N/A | BF282: N/A | BG282: N/A | BH282: N/A | BI282: N/A | BJ282: N/A | BK282: N/A | BL282: N/A | BM282: N/A | BN282: N/A | BO282: N/A | BP282: N/A | BQ282: N/A | BR282: N/A | BS282: N/A | BT282: N/A
BB283: Did not participate in other activities | BC283: N/A | BD283: N/A | BE283: N/A | BF283: N/A | BG283: N/A | BH283: N/A | BI283: N/A | BJ283: N/A | BK283: N/A | BL283: N/A | BM283: N/A | BN283: N/A | BO283: N/A | BP283: N/A | BQ283: N/A | BR283: N/A | BS283: N/A | BT283: N/A
BB284: DK/not sure/missing/no such activity | BC284: N/A | BD284: N/A | BE284: N/A | BF284: N/A | BG284: N/A | BH284: N/A | BI284: N/A | BJ284: N/A | BK284: N/A | BL284: N/A | BM284: N/A | BN284: N/A | BO284: N/A | BP284: N/A | BQ284: N/A | BR284: N/A | BS284: N/A | BT284: N/A
BA339: Raw numbers of respondents: | BB339: Basic water, sanitation and hygiene | BC339: NATIONAL wealth index quintile | BH339: URBAN wealth index quintile | BM339: RURAL wealth index quintile | BR339: SUB-REGIONS:
BA340: WatSan data, raw numbers (weighted) | BC340: Poorest | BD340: Poor | BE340: Middle | BF340: Rich | BG340: Richest | BH340: Poorest | BI340: Poor | BJ340: Middle | BK340: Rich | BL340: Richest | BM340: Poorest | BN340: Poor | BO340: Middle | BP340: Rich | BQ340: Richest | BR340: Mwali | BS340: Ndzuwani | BT340: Ngazidja
BA341: Use of Basic Water Sanitation and Hygiene | BB341: Yes | BC341: N/A | BD341: N/A | BE341: N/A | BF341: N/A | BG341: N/A | BH341: N/A | BI341: N/A | BJ341: N/A | BK341: N/A | BL341: N/A | BM341: N/A | BN341: N/A | BO341: N/A | BP341: N/A | BQ341: N/A | BR341: N/A | BS341: N/A | BT341: N/A
BB342: No | BC342: N/A | BD342: N/A | BE342: N/A | BF342: N/A | BG342: N/A | BH342: N/A | BI342: N/A | BJ342: N/A | BK342: N/A | BL342: N/A | BM342: N/A | BN342: N/A | BO342: N/A | BP342: N/A | BQ342: N/A | BR342: N/A | BS342: N/A | BT342: N/A
BA343: Use of Basic Water and Sanitation | BB343: Yes | BC343: N/A | BD343: N/A | BE343: N/A | BF343: N/A | BG343: N/A | BH343: N/A | BI343: N/A | BJ343: N/A | BK343: N/A | BL343: N/A | BM343: N/A | BN343: N/A | BO343: N/A | BP343: N/A | BQ343: N/A | BR343: N/A | BS343: N/A | BT343: N/A
BB344: No | BC344: N/A | BD344: N/A | BE344: N/A | BF344: N/A | BG344: N/A | BH344: N/A | BI344: N/A | BJ344: N/A | BK344: N/A | BL344: N/A | BM344: N/A | BN344: N/A | BO344: N/A | BP344: N/A | BQ344: N/A | BR344: N/A | BS344: N/A | BT344: N/A
BA345: Use of Basic Water and Hygiene | BB345: Yes | BC345: N/A | BD345: N/A | BE345: N/A | BF345: N/A | BG345: N/A | BH345: N/A | BI345: N/A | BJ345: N/A | BK345: N/A | BL345: N/A | BM345: N/A | BN345: N/A | BO345: N/A | BP345: N/A | BQ345: N/A | BR345: N/A | BS345: N/A | BT345: N/A
BB346: No | BC346: N/A | BD346: N/A | BE346: N/A | BF346: N/A | BG346: N/A | BH346: N/A | BI346: N/A | BJ346: N/A | BK346: N/A | BL346: N/A | BM346: N/A | BN346: N/A | BO346: N/A | BP346: N/A | BQ346: N/A | BR346: N/A | BS346: N/A | BT346: N/A
BA347: Use of Basic Sanitation and Hygiene | BB347: Yes | BC347: N/A | BD347: N/A | BE347: N/A | BF347: N/A | BG347: N/A | BH347: N/A | BI347: N/A | BJ347: N/A | BK347: N/A | BL347: N/A | BM347: N/A | BN347: N/A | BO347: N/A | BP347: N/A | BQ347: N/A | BR347: N/A | BS347: N/A | BT347: N/A
BB348: No | BC348: N/A | BD348: N/A | BE348: N/A | BF348: N/A | BG348: N/A | BH348: N/A | BI348: N/A | BJ348: N/A | BK348: N/A | BL348: N/A | BM348: N/A | BN348: N/A | BO348: N/A | BP348: N/A | BQ348: N/A | BR348: N/A | BS348: N/A | BT348: N/A
BA349: Use of Basic Water | BB349: Yes | BC349: N/A | BD349: N/A | BE349: N/A | BF349: N/A | BG349: N/A | BH349: N/A | BI349: N/A | BJ349: N/A | BK349: N/A | BL349: N/A | BM349: N/A | BN349: N/A | BO349: N/A | BP349: N/A | BQ349: N/A | BR349: N/A | BS349: N/A | BT349: N/A
BB350: No | BC350: N/A | BD350: N/A | BE350: N/A | BF350: N/A | BG350: N/A | BH350: N/A | BI350: N/A | BJ350: N/A | BK350: N/A | BL350: N/A | BM350: N/A | BN350: N/A | BO350: N/A | BP350: N/A | BQ350: N/A | BR350: N/A | BS350: N/A | BT350: N/A
BA351: Use of Basic Sanitation | BB351: Yes | BC351: N/A | BD351: N/A | BE351: N/A | BF351: N/A | BG351: N/A | BH351: N/A | BI351: N/A | BJ351: N/A | BK351: N/A | BL351: N/A | BM351: N/A | BN351: N/A | BO351: N/A | BP351: N/A | BQ351: N/A | BR351: N/A | BS351: N/A | BT351: N/A
BB352: No | BC352: N/A | BD352: N/A | BE352: N/A | BF352: N/A | BG352: N/A | BH352: N/A | BI352: N/A | BJ352: N/A | BK352: N/A | BL352: N/A | BM352: N/A | BN352: N/A | BO352: N/A | BP352: N/A | BQ352: N/A | BR352: N/A | BS352: N/A | BT352: N/A
BA353: Access to Basic Hygiene | BB353: Yes | BC353: N/A | BD353: N/A | BE353: N/A | BF353: N/A | BG353: N/A | BH353: N/A | BI353: N/A | BJ353: N/A | BK353: N/A | BL353: N/A | BM353: N/A | BN353: N/A | BO353: N/A | BP353: N/A | BQ353: N/A | BR353: N/A | BS353: N/A | BT353: N/A
BB354: No | BC354: N/A | BD354: N/A | BE354: N/A | BF354: N/A | BG354: N/A | BH354: N/A | BI354: N/A | BJ354: N/A | BK354: N/A | BL354: N/A | BM354: N/A | BN354: N/A | BO354: N/A | BP354: N/A | BQ354: N/A | BR354: N/A | BS354: N/A | BT354: N/A
C399: INITIAL (national) Wealth Index | H399: URBAN Wealth Index | M399: RURAL Wealth Index
C400: Component Matrix | H400: Component Matrix | M400: Component Matrix
E401: Component | J401: Component | O401: Component
B402: Note: The INITIAL (national) Wealth Index is based on the first component of the Principal Component Analysis (PCA) which has been obtained at national level. The final national-level (NATIONAL) Wealth Index is based on the URBAN and RURAL specific wealth indexes. Regression procedures are used to establish the relationships between the two sets of scores (urban and rural) and the initial (national) wealth factors. This allows best use of the available information for each area and a better precision of the FINAL (NATIONAL) Wealth Index. For dependency reasons, all WASH variables (contained in the generic MICS and DHS scripts) have been excluded from the sets of asset variables used in the PCAs. The PCA can extracts as many components as there are asset variables in the input. Only the first of the components is used to represent the Wealth Index. The scores represent the weights of the asset variables on the Wealth Index (correlations between the variables and the component). The communalities are the proportion of each variable's variance that can be explained by the component. Proportion of explained variance is the part of the model's total variance that is explained by the component. For more information on the procedure used: The DHS Wealth Index, DHS Comparative Reports No. 6, Shea Oscar Rutstein, Kiersten Johnson, ORC Macro International Inc., 2004. The DHS Wealth Index: Approaches for Rural and Urban Areas, Shea O. Rutstein, ORC Macro International Inc., 2008. MICS Methodological Paper No. 4, Review of options for reporting water, sanitation and hygiene coverage by wealth quintile, UNICEF, 2016. | E402: 1 | J402: 1 | O402: 1
C403: TV/Vidéo | E403: 0.6924564672 | H403: TV/Vidéo | J403: 0.7091313193 | M403: Has earth/sand floor | O403: -0.714754168
C404: Electricité | E404: 0.6709285804 | H404: Electricité | J404: 0.6551369008 | M404: Has cement floor | O404: 0.709857334
C405: Has earth/sand floor | E405: -0.6519816941 | H405: Has cement wall | J405: 0.6420933501 | M405: Has jute roof | O405: -0.6729150288
C406: Réfrigérateur | E406: 0.6455698129 | H406: Réfrigérateur | J406: 0.6362055816 | M406: Has jute wall | O406: -0.6325278017
C407: Has cement wall | E407: 0.6230283769 | H407: Has jute roof | J407: -0.6095834789 | M407: Electricité | O407: 0.6180199256
C408: Has jute roof | E408: -0.5986329032 | H408: Téléphone | J408: 0.5976065846 | M408: TV/Vidéo | O408: 0.5793752699
C409: Has cement/concrete roof | E409: 0.5710176811 | H409: Has cement/concrete roof | J409: 0.5953187533 | M409: Réfrigérateur | O409: 0.5703625503
C410: Has cement floor | E410: 0.5645645212 | H410: Has jute wall | J410: -0.5451557754 | M410: Has cement wall | O410: 0.5580674895
C411: Has jute wall | E411: -0.5589293022 | H411: Household fuel type: grass, straw | J411: -0.5407817505 | M411: Has cement/concrete roof | O411: 0.4829935897
C412: Household fuel type: grass, straw | E412: -0.5554003067 | H412: Has earth/sand floor | J412: -0.5331918093 | M412: Radio | O412: 0.4632458873
C413: Téléphone | E413: 0.5469880333 | H413: Household fuel type: kerosene | J413: 0.5266069 | M413: Voiture | O413: 0.4208129006
C414: Household fuel type: kerosene | E414: 0.5421267946 | H414: Radio | J414: 0.4987786562 | M414: Téléphone | O414: 0.3531764857
C415: Radio | E415: 0.4740405439 | H415: Voiture | J415: 0.3823598591 | M415: Persons per sleeping rooms | O415: -0.3204693131
... 135 more rows

Sheet WHS03
A2: =A1026 -> Comoros
A3: =A1034 -> 2003
A4: Use of drinking water sources
A5: by wealth quintile and sub-national region
A6: Notes:
A7: WHO/UNICEF JMP customised wealth index excludes water,
A8: sanitation and hygiene assets.
A9: Survey used for analysis: | B9: =A1025 -> WHS03
A10: =B1028 -> 
A11: =B1027 -> 
A14: Use of drinking water sources | C14: NATIONAL wealth index quintile | H14: URBAN wealth index quintile | M14: RURAL wealth index quintile | BA14: Raw numbers of respondents: | BB14: Use of drinking water sources | BC14: NATIONAL wealth index quintile | BH14: URBAN wealth index quintile | BM14: RURAL wealth index quintile
A15: Weighted percentage (used in graphs) | C15: Poorest | D15: Poor | E15: Middle | F15: Rich | G15: Richest | H15: Poorest | I15: Poor | J15: Middle | K15: Rich | L15: Richest | M15: Poorest | N15: Poor | O15: Middle | P15: Rich | Q15: Richest | BA15: Water data, raw numbers (weighted) | BC15: Poorest | BD15: Poor | BE15: Middle | BF15: Rich | BG15: Richest | BH15: Poorest | BI15: Poor | BJ15: Middle | BK15: Rich | BL15: Richest | BM15: Poorest | BN15: Poor | BO15: Middle | BP15: Rich | BQ15: Richest
A16: Water | B16: Improved | C16: 67.90346309 | D16: 64.24550567 | E16: 75.82872105 | F16: 81.95275831 | G16: 94.74654681 | H16: 79.1908301 | I16: 91.08930689 | J16: 87.28754566 | K16: 94.87049108 | L16: 96.10424345 | M16: 68.45759633 | N16: 63.96791563 | O16: 64.83254422 | P16: 77.90652209 | Q16: 83.31395144 | BA16: Water | BB16: Improved | BC16: N/A | BD16: N/A | BE16: N/A | BF16: N/A | BG16: N/A | BH16: N/A | BI16: N/A | BJ16: N/A | BK16: N/A | BL16: N/A | BM16: N/A | BN16: N/A | BO16: N/A | BP16: N/A | BQ16: N/A
B17: Not Improved | C17: 32.09653691 | D17: 35.75449433 | E17: 24.17127895 | F17: 18.04724169 | G17: 5.253453192 | H17: 20.8091699 | I17: 8.910693106 | J17: 12.71245434 | K17: 5.129508918 | L17: 3.895756551 | M17: 31.54240367 | N17: 36.03208437 | O17: 35.16745578 | P17: 22.09347791 | Q17: 16.68604856 | BB17: Not Improved | BC17: N/A | BD17: N/A | BE17: N/A | BF17: N/A | BG17: N/A | BH17: N/A | BI17: N/A | BJ17: N/A | BK17: N/A | BL17: N/A | BM17: N/A | BN17: N/A | BO17: N/A | BP17: N/A | BQ17: N/A
A18: Water ladder | B18: Basic | C18: =C16*C23/100 -> 63.85382187 | D18: 58.50216515 | E18: 72.42019984 | F18: 80.8280564 | G18: 93.31575276 | H18: 68.65709256 | I18: 87.97700485 | J18: 82.46731482 | K18: 94.87049108 | L18: 96.10424345 | M18: 65.40326361 | N18: 56.54872558 | O18: 63.2631301 | P18: 76.12695122 | Q18: 82.25888608 | BA18: Water ladder | BB18: Basic | BC18: N/A | BD18: N/A | BE18: N/A | BF18: N/A | BG18: N/A | BH18: N/A | BI18: N/A | BJ18: N/A | BK18: N/A | BL18: N/A | BM18: N/A | BN18: N/A | BO18: N/A | BP18: N/A | BQ18: N/A
B19: Limited | C19: =C16*C22/100 -> 4.049641216 | D19: 5.743340519 | E19: 3.408521216 | F19: 1.124701902 | G19: 1.430794052 | H19: 10.53373754 | I19: 3.112302049 | J19: 4.820230842 | K19: 0 | L19: 0 | M19: 3.054332721 | N19: 7.41919005 | O19: 1.569414126 | P19: 1.779570873 | Q19: 1.055065361 | BB19: Limited | BC19: N/A | BD19: N/A | BE19: N/A | BF19: N/A | BG19: N/A | BH19: N/A | BI19: N/A | BJ19: N/A | BK19: N/A | BL19: N/A | BM19: N/A | BN19: N/A | BO19: N/A | BP19: N/A | BQ19: N/A
B20: Unimproved | C20: =100-C18-C19-C21 -> 32.09653691 | D20: 35.75449433 | E20: 24.17127895 | F20: 18.04724169 | G20: 5.253453192 | H20: 20.8091699 | I20: 8.910693106 | J20: 12.71245434 | K20: 5.129508918 | L20: 3.895756551 | M20: 31.54240367 | N20: 36.03208437 | O20: 35.16745578 | P20: 22.09347791 | Q20: 16.68604856 | BB20: Unimproved | BC20: N/A | BD20: N/A | BE20: N/A | BF20: N/A | BG20: N/A | BH20: N/A | BI20: N/A | BJ20: N/A | BK20: N/A | BL20: N/A | BM20: N/A | BN20: N/A | BO20: N/A | BP20: N/A | BQ20: N/A
B21: Surface water | C21: 0 | D21: 0 | E21: 0 | F21: 0 | G21: 0 | H21: 0 | I21: 0 | J21: 0 | K21: 0 | L21: 0 | M21: 0 | N21: 0 | O21: 0 | P21: 0 | Q21: 0 | BB21: Surface water | BC21: N/A | BD21: N/A | BE21: N/A | BF21: N/A | BG21: N/A | BH21: N/A | BI21: N/A | BJ21: N/A | BK21: N/A | BL21: N/A | BM21: N/A | BN21: N/A | BO21: N/A | BP21: N/A | BQ21: N/A
A22: Improved water point at more than 30 minutes | B22: Yes | C22: 5.963821331 | D22: 8.939676728 | E22: 4.495026646 | F22: 1.372378337 | G22: 1.510127915 | H22: 13.30171376 | I22: 3.416758954 | J22: 5.522243529 | K22: 0 | L22: 0 | M22: 4.461641783 | N22: 11.59829889 | O22: 2.420719633 | P22: 2.28423863 | Q22: 1.26637297 | BA22: Improved water point at more than 30 minutes | BB22: Yes | BC22: N/A | BD22: N/A | BE22: N/A | BF22: N/A | BG22: N/A | BH22: N/A | BI22: N/A | BJ22: N/A | BK22: N/A | BL22: N/A | BM22: N/A | BN22: N/A | BO22: N/A | BP22: N/A | BQ22: N/A
B23: No | C23: 94.03617867 | D23: 91.06032327 | E23: 95.50497335 | F23: 98.62762166 | G23: 98.48987209 | H23: 86.69828624 | I23: 96.58324105 | J23: 94.47775647 | K23: 100 | L23: 100 | M23: 95.53835822 | N23: 88.40170111 | O23: 97.57928037 | P23: 97.71576137 | Q23: 98.73362703 | BB23: No | BC23: N/A | BD23: N/A | BE23: N/A | BF23: N/A | BG23: N/A | BH23: N/A | BI23: N/A | BJ23: N/A | BK23: N/A | BL23: N/A | BM23: N/A | BN23: N/A | BO23: N/A | BP23: N/A | BQ23: N/A
A24: Manually calculated ratios | B24: Improved wells
B25: Improved springs
B26: Other
C27: NATIONAL wealth index quintile | H27: URBAN wealth index quintile | M27: RURAL wealth index quintile | BA27: Raw numbers of respondents: | BB27: Use of drinking water sources | BC27: NATIONAL wealth index quintile | BH27: URBAN wealth index quintile | BM27: RURAL wealth index quintile
A28: Percentage based on weighted population | C28: Poorest | D28: Poor | E28: Middle | F28: Rich | G28: Richest | H28: Poorest | I28: Poor | J28: Middle | K28: Rich | L28: Richest | M28: Poorest | N28: Poor | O28: Middle | P28: Rich | Q28: Richest | BA28: Water data, raw numbers (weighted) | BC28: Poorest | BD28: Poor | BE28: Middle | BF28: Rich | BG28: Richest | BH28: Poorest | BI28: Poor | BJ28: Middle | BK28: Rich | BL28: Richest | BM28: Poorest | BN28: Poor | BO28: Middle | BP28: Rich | BQ28: Richest
A29: Piped water | B29: Yes | C29: 4.870103616 | D29: 11.91646284 | E29: 20.94480726 | F29: 28.0839513 | G29: 46.47589182 | H29: 43.26384108 | I29: 55.23282215 | J29: 53.77626587 | K29: 52.43303272 | L29: 64.0391572 | M29: 3.118544086 | N29: 7.640539828 | O29: 9.033846173 | P29: 14.39775576 | Q29: 13.95402749 | BA29: Piped water | BB29: Yes | BC29: N/A | BD29: N/A | BE29: N/A | BF29: N/A | BG29: N/A | BH29: N/A | BI29: N/A | BJ29: N/A | BK29: N/A | BL29: N/A | BM29: N/A | BN29: N/A | BO29: N/A | BP29: N/A | BQ29: N/A
B30: No | C30: 95.12989638 | D30: 88.08353716 | E30: 79.05519274 | F30: 71.9160487 | G30: 53.52410818 | H30: 56.73615892 | I30: 44.76717785 | J30: 46.22373413 | K30: 47.56696728 | L30: 35.9608428 | M30: 96.88145591 | N30: 92.35946017 | O30: 90.96615383 | P30: 85.60224424 | Q30: 86.04597251 | BB30: No | BC30: N/A | BD30: N/A | BE30: N/A | BF30: N/A | BG30: N/A | BH30: N/A | BI30: N/A | BJ30: N/A | BK30: N/A | BL30: N/A | BM30: N/A | BN30: N/A | BO30: N/A | BP30: N/A | BQ30: N/A
A31: Piped water on premises | B31: Yes | C31: 1.17755153 | D31: 1.327389321 | E31: 3.6587721 | F31: 8.640217941 | G31: 32.53583653 | H31: 6.912892829 | I31: 12.80654864 | J31: 26.20580543 | K31: 33.19411638 | L31: 53.26719172 | M31: 0.3832471302 | N31: 1.902110512 | O31: 1.855064387 | P31: 1.898912521 | Q31: 6.55470572 | BA31: Piped water on premises | BB31: Yes | BC31: N/A | BD31: N/A | BE31: N/A | BF31: N/A | BG31: N/A | BH31: N/A | BI31: N/A | BJ31: N/A | BK31: N/A | BL31: N/A | BM31: N/A | BN31: N/A | BO31: N/A | BP31: N/A | BQ31: N/A
B32: No | C32: 98.82244847 | D32: 98.67261068 | E32: 96.3412279 | F32: 91.35978206 | G32: 67.46416347 | H32: 93.08710717 | I32: 87.19345136 | J32: 73.79419457 | K32: 66.80588362 | L32: 46.73280828 | M32: 99.61675287 | N32: 98.09788949 | O32: 98.14493561 | P32: 98.10108748 | Q32: 93.44529428 | BB32: No | BC32: N/A | BD32: N/A | BE32: N/A | BF32: N/A | BG32: N/A | BH32: N/A | BI32: N/A | BJ32: N/A | BK32: N/A | BL32: N/A | BM32: N/A | BN32: N/A | BO32: N/A | BP32: N/A | BQ32: N/A
A33: Piped water into dwelling | B33: Yes | C33: N/A | D33: N/A | E33: N/A | F33: N/A | G33: N/A | H33: N/A | I33: N/A | J33: N/A | K33: N/A | L33: N/A | M33: N/A | N33: N/A | O33: N/A | P33: N/A | Q33: N/A | BA33: Piped water into dwelling | BB33: Yes | BC33: N/A | BD33: N/A | BE33: N/A | BF33: N/A | BG33: N/A | BH33: N/A | BI33: N/A | BJ33: N/A | BK33: N/A | BL33: N/A | BM33: N/A | BN33: N/A | BO33: N/A | BP33: N/A | BQ33: N/A
B34: No | C34: N/A | D34: N/A | E34: N/A | F34: N/A | G34: N/A | H34: N/A | I34: N/A | J34: N/A | K34: N/A | L34: N/A | M34: N/A | N34: N/A | O34: N/A | P34: N/A | Q34: N/A | BB34: No | BC34: N/A | BD34: N/A | BE34: N/A | BF34: N/A | BG34: N/A | BH34: N/A | BI34: N/A | BJ34: N/A | BK34: N/A | BL34: N/A | BM34: N/A | BN34: N/A | BO34: N/A | BP34: N/A | BQ34: N/A
A35: Water source on premises | B35: Yes | C35: N/A | D35: N/A | E35: N/A | F35: N/A | G35: N/A | H35: N/A | I35: N/A | J35: N/A | K35: N/A | L35: N/A | M35: N/A | N35: N/A | O35: N/A | P35: N/A | Q35: N/A | BA35: Water source on premises | BB35: Yes | BC35: N/A | BD35: N/A | BE35: N/A | BF35: N/A | BG35: N/A | BH35: N/A | BI35: N/A | BJ35: N/A | BK35: N/A | BL35: N/A | BM35: N/A | BN35: N/A | BO35: N/A | BP35: N/A | BQ35: N/A
B36: No | C36: N/A | D36: N/A | E36: N/A | F36: N/A | G36: N/A | H36: N/A | I36: N/A | J36: N/A | K36: N/A | L36: N/A | M36: N/A | N36: N/A | O36: N/A | P36: N/A | Q36: N/A | BB36: No | BC36: N/A | BD36: N/A | BE36: N/A | BF36: N/A | BG36: N/A | BH36: N/A | BI36: N/A | BJ36: N/A | BK36: N/A | BL36: N/A | BM36: N/A | BN36: N/A | BO36: N/A | BP36: N/A | BQ36: N/A
A37: Improved Water source on premises | B37: Yes | C37: N/A | D37: N/A | E37: N/A | F37: N/A | G37: N/A | H37: N/A | I37: N/A | J37: N/A | K37: N/A | L37: N/A | M37: N/A | N37: N/A | O37: N/A | P37: N/A | Q37: N/A | BA37: Improved water source on premises | BB37: Yes | BC37: N/A | BD37: N/A | BE37: N/A | BF37: N/A | BG37: N/A | BH37: N/A | BI37: N/A | BJ37: N/A | BK37: N/A | BL37: N/A | BM37: N/A | BN37: N/A | BO37: N/A | BP37: N/A | BQ37: N/A
B38: No | C38: N/A | D38: N/A | E38: N/A | F38: N/A | G38: N/A | H38: N/A | I38: N/A | J38: N/A | K38: N/A | L38: N/A | M38: N/A | N38: N/A | O38: N/A | P38: N/A | Q38: N/A | BB38: No | BC38: N/A | BD38: N/A | BE38: N/A | BF38: N/A | BG38: N/A | BH38: N/A | BI38: N/A | BJ38: N/A | BK38: N/A | BL38: N/A | BM38: N/A | BN38: N/A | BO38: N/A | BP38: N/A | BQ38: N/A
A39: Piped water on premises available when needed | B39: Yes | C39: N/A | D39: N/A | E39: N/A | F39: N/A | G39: N/A | H39: N/A | I39: N/A | J39: N/A | K39: N/A | L39: N/A | M39: N/A | N39: N/A | O39: N/A | P39: N/A | Q39: N/A | BA39: Piped water on premises available when needed | BB39: Yes | BC39: N/A | BD39: N/A | BE39: N/A | BF39: N/A | BG39: N/A | BH39: N/A | BI39: N/A | BJ39: N/A | BK39: N/A | BL39: N/A | BM39: N/A | BN39: N/A | BO39: N/A | BP39: N/A | BQ39: N/A
B40: No | C40: N/A | D40: N/A | E40: N/A | F40: N/A | G40: N/A | H40: N/A | I40: N/A | J40: N/A | K40: N/A | L40: N/A | M40: N/A | N40: N/A | O40: N/A | P40: N/A | Q40: N/A | BB40: No | BC40: N/A | BD40: N/A | BE40: N/A | BF40: N/A | BG40: N/A | BH40: N/A | BI40: N/A | BJ40: N/A | BK40: N/A | BL40: N/A | BM40: N/A | BN40: N/A | BO40: N/A | BP40: N/A | BQ40: N/A
A41: Water point at more than 30 minutes | B41: Yes | C41: 8.059098128 | D41: 8.651410699 | E41: 3.54196374 | F41: 1.174775342 | G41: 1.431199286 | H41: 11.79200232 | I41: 3.176414631 | J41: 5.105042524 | K41: 0 | L41: 0 | M41: 6.79674791 | N41: 12.62701425 | O41: 2.068668016 | P41: 1.832165714 | Q41: 1.083974876 | BA41: Water point at more than 30 minutes | BB41: Yes | BC41: N/A | BD41: N/A | BE41: N/A | BF41: N/A | BG41: N/A | BH41: N/A | BI41: N/A | BJ41: N/A | BK41: N/A | BL41: N/A | BM41: N/A | BN41: N/A | BO41: N/A | BP41: N/A | BQ41: N/A
B42: No | C42: 91.94090187 | D42: 91.3485893 | E42: 96.45803626 | F42: 98.82522466 | G42: 98.56880071 | H42: 88.20799768 | I42: 96.82358537 | J42: 94.89495748 | K42: 100 | L42: 100 | M42: 93.20325209 | N42: 87.37298575 | O42: 97.93133198 | P42: 98.16783429 | Q42: 98.91602512 | BB42: No | BC42: N/A | BD42: N/A | BE42: N/A | BF42: N/A | BG42: N/A | BH42: N/A | BI42: N/A | BJ42: N/A | BK42: N/A | BL42: N/A | BM42: N/A | BN42: N/A | BO42: N/A | BP42: N/A | BQ42: N/A
A43: Water source available when needed | B43: Yes | C43: N/A | D43: N/A | E43: N/A | F43: N/A | G43: N/A | H43: N/A | I43: N/A | J43: N/A | K43: N/A | L43: N/A | M43: N/A | N43: N/A | O43: N/A | P43: N/A | Q43: N/A | BA43: Water source available when needed | BB43: Yes | BC43: N/A | BD43: N/A | BE43: N/A | BF43: N/A | BG43: N/A | BH43: N/A | BI43: N/A | BJ43: N/A | BK43: N/A | BL43: N/A | BM43: N/A | BN43: N/A | BO43: N/A | BP43: N/A | BQ43: N/A
B44: No | C44: N/A | D44: N/A | E44: N/A | F44: N/A | G44: N/A | H44: N/A | I44: N/A | J44: N/A | K44: N/A | L44: N/A | M44: N/A | N44: N/A | O44: N/A | P44: N/A | Q44: N/A | BB44: No | BC44: N/A | BD44: N/A | BE44: N/A | BF44: N/A | BG44: N/A | BH44: N/A | BI44: N/A | BJ44: N/A | BK44: N/A | BL44: N/A | BM44: N/A | BN44: N/A | BO44: N/A | BP44: N/A | BQ44: N/A
A45: Improved water source available when needed | B45: Yes | C45: N/A | D45: N/A | E45: N/A | F45: N/A | G45: N/A | H45: N/A | I45: N/A | J45: N/A | K45: N/A | L45: N/A | M45: N/A | N45: N/A | O45: N/A | P45: N/A | Q45: N/A | BA45: Improved water source available when needed | BB45: Yes | BC45: N/A | BD45: N/A | BE45: N/A | BF45: N/A | BG45: N/A | BH45: N/A | BI45: N/A | BJ45: N/A | BK45: N/A | BL45: N/A | BM45: N/A | BN45: N/A | BO45: N/A | BP45: N/A | BQ45: N/A
B46: No | C46: N/A | D46: N/A | E46: N/A | F46: N/A | G46: N/A | H46: N/A | I46: N/A | J46: N/A | K46: N/A | L46: N/A | M46: N/A | N46: N/A | O46: N/A | P46: N/A | Q46: N/A | BB46: No | BC46: N/A | BD46: N/A | BE46: N/A | BF46: N/A | BG46: N/A | BH46: N/A | BI46: N/A | BJ46: N/A | BK46: N/A | BL46: N/A | BM46: N/A | BN46: N/A | BO46: N/A | BP46: N/A | BQ46: N/A
A47: Microbiological quality at point of collection | B47: Not contaminated (No E. coli in 100 mL) | C47: N/A | D47: N/A | E47: N/A | F47: N/A | G47: N/A | H47: N/A | I47: N/A | J47: N/A | K47: N/A | L47: N/A | M47: N/A | N47: N/A | O47: N/A | P47: N/A | Q47: N/A | BA47: Microbiological quality at point of collection | BB47: Not contaminated (No E. coli in 100 mL) | BC47: N/A | BD47: N/A | BE47: N/A | BF47: N/A | BG47: N/A | BH47: N/A | BI47: N/A | BJ47: N/A | BK47: N/A | BL47: N/A | BM47: N/A | BN47: N/A | BO47: N/A | BP47: N/A | BQ47: N/A
B48: Contaminated (E. coli detected in 100 mL) | C48: N/A | D48: N/A | E48: N/A | F48: N/A | G48: N/A | H48: N/A | I48: N/A | J48: N/A | K48: N/A | L48: N/A | M48: N/A | N48: N/A | O48: N/A | P48: N/A | Q48: N/A | BB48: Contaminated (E. coli detected in 100 mL) | BC48: N/A | BD48: N/A | BE48: N/A | BF48: N/A | BG48: N/A | BH48: N/A | BI48: N/A | BJ48: N/A | BK48: N/A | BL48: N/A | BM48: N/A | BN48: N/A | BO48: N/A | BP48: N/A | BQ48: N/A
B49: Highly contaminated (>100 CFU/100 mL) | C49: N/A | D49: N/A | E49: N/A | F49: N/A | G49: N/A | H49: N/A | I49: N/A | J49: N/A | K49: N/A | L49: N/A | M49: N/A | N49: N/A | O49: N/A | P49: N/A | Q49: N/A | BB49: Highly contaminated (>100 CFU/100 mL) | BC49: N/A | BD49: N/A | BE49: N/A | BF49: N/A | BG49: N/A | BH49: N/A | BI49: N/A | BJ49: N/A | BK49: N/A | BL49: N/A | BM49: N/A | BN49: N/A | BO49: N/A | BP49: N/A | BQ49: N/A
A50: Microbiological quality of improved water sources at point of collection | B50: Not contaminated (No E. coli in 100 mL) | C50: N/A | D50: N/A | E50: N/A | F50: N/A | G50: N/A | H50: N/A | I50: N/A | J50: N/A | K50: N/A | L50: N/A | M50: N/A | N50: N/A | O50: N/A | P50: N/A | Q50: N/A | BA50: Microbiological quality of improved water sources at point of collection | BB50: Not contaminated (No E. coli in 100 mL) | BC50: N/A | BD50: N/A | BE50: N/A | BF50: N/A | BG50: N/A | BH50: N/A | BI50: N/A | BJ50: N/A | BK50: N/A | BL50: N/A | BM50: N/A | BN50: N/A | BO50: N/A | BP50: N/A | BQ50: N/A
B51: Contaminated (E. coli detected in 100 mL) | C51: N/A | D51: N/A | E51: N/A | F51: N/A | G51: N/A | H51: N/A | I51: N/A | J51: N/A | K51: N/A | L51: N/A | M51: N/A | N51: N/A | O51: N/A | P51: N/A | Q51: N/A | BB51: Contaminated (E. coli detected in 100 mL) | BC51: N/A | BD51: N/A | BE51: N/A | BF51: N/A | BG51: N/A | BH51: N/A | BI51: N/A | BJ51: N/A | BK51: N/A | BL51: N/A | BM51: N/A | BN51: N/A | BO51: N/A | BP51: N/A | BQ51: N/A
B52: Highly contaminated (>100 CFU/100 mL) | C52: N/A | D52: N/A | E52: N/A | F52: N/A | G52: N/A | H52: N/A | I52: N/A | J52: N/A | K52: N/A | L52: N/A | M52: N/A | N52: N/A | O52: N/A | P52: N/A | Q52: N/A | BB52: Highly contaminated (>100 CFU/100 mL) | BC52: N/A | BD52: N/A | BE52: N/A | BF52: N/A | BG52: N/A | BH52: N/A | BI52: N/A | BJ52: N/A | BK52: N/A | BL52: N/A | BM52: N/A | BN52: N/A | BO52: N/A | BP52: N/A | BQ52: N/A
A53: Microbiological quality of piped on premises at point of collection | B53: Not contaminated (No E. coli in 100 mL) | C53: N/A | D53: N/A | E53: N/A | F53: N/A | G53: N/A | H53: N/A | I53: N/A | J53: N/A | K53: N/A | L53: N/A | M53: N/A | N53: N/A | O53: N/A | P53: N/A | Q53: N/A | BA53: Microbiological quality of piped on premises at point of collection | BB53: Not contaminated (No E. coli in 100 mL) | BC53: N/A | BD53: N/A | BE53: N/A | BF53: N/A | BG53: N/A | BH53: N/A | BI53: N/A | BJ53: N/A | BK53: N/A | BL53: N/A | BM53: N/A | BN53: N/A | BO53: N/A | BP53: N/A | BQ53: N/A
B54: Contaminated (E. coli detected in 100 mL) | C54: N/A | D54: N/A | E54: N/A | F54: N/A | G54: N/A | H54: N/A | I54: N/A | J54: N/A | K54: N/A | L54: N/A | M54: N/A | N54: N/A | O54: N/A | P54: N/A | Q54: N/A | BB54: Contaminated (E. coli detected in 100 mL) | BC54: N/A | BD54: N/A | BE54: N/A | BF54: N/A | BG54: N/A | BH54: N/A | BI54: N/A | BJ54: N/A | BK54: N/A | BL54: N/A | BM54: N/A | BN54: N/A | BO54: N/A | BP54: N/A | BQ54: N/A
B55: Highly contaminated (>100 CFU/100 mL) | C55: N/A | D55: N/A | E55: N/A | F55: N/A | G55: N/A | H55: N/A | I55: N/A | J55: N/A | K55: N/A | L55: N/A | M55: N/A | N55: N/A | O55: N/A | P55: N/A | Q55: N/A | BB55: Highly contaminated (>100 CFU/100 mL) | BC55: N/A | BD55: N/A | BE55: N/A | BF55: N/A | BG55: N/A | BH55: N/A | BI55: N/A | BJ55: N/A | BK55: N/A | BL55: N/A | BM55: N/A | BN55: N/A | BO55: N/A | BP55: N/A | BQ55: N/A
C56: NATIONAL wealth index quintile | H56: URBAN wealth index quintile | M56: RURAL wealth index quintile | BA56: Raw numbers of respondents: | BB56: Use of drinking water sources | BC56: NATIONAL wealth index quintile | BH56: URBAN wealth index quintile | BM56: RURAL wealth index quintile
A57: Percentage based on weighted population | C57: Poorest | D57: Poor | E57: Middle | F57: Rich | G57: Richest | H57: Poorest | I57: Poor | J57: Middle | K57: Rich | L57: Richest | M57: Poorest | N57: Poor | O57: Middle | P57: Rich | Q57: Richest | BA57: Water data, raw numbers (weighted) | BC57: Poorest | BD57: Poor | BE57: Middle | BF57: Rich | BG57: Richest | BH57: Poorest | BI57: Poor | BJ57: Middle | BK57: Rich | BL57: Richest | BM57: Poorest | BN57: Poor | BO57: Middle | BP57: Rich | BQ57: Richest
A58: main source of drinking water | B58: Piped water through house connection or yard | C58: 1.180328605 | D58: 1.416034384 | E58: 3.854918128 | F58: 9.270145108 | G58: 33.12700496 | H58: 7.230571848 | I58: 13.19463266 | J58: 29.07498665 | K58: 33.78112389 | L58: 53.85951486 | M58: 0.3832471302 | N58: 2.005932881 | O58: 1.996899738 | P58: 1.96826648 | Q58: 6.854101583
B59: Public standpipe | C59: 3.701260406 | D59: 11.29622784 | E59: 18.21273599 | F59: 20.86130592 | G59: 14.19334278 | H59: 38.02144046 | I59: 43.71194067 | J59: 30.58905292 | K59: 19.57913893 | L59: 10.89174811 | M59: 2.735296956 | N59: 6.051648406 | O59: 7.727660327 | P59: 12.95533834 | Q59: 7.737296719
B60: Protected tube well or bore hole | C60: 28.30476673 | D60: 30.05881522 | E60: 31.71422175 | F60: 33.68722152 | G60: 28.56905094 | H60: 18.06674662 | I60: 20.9743214 | J60: 21.69417201 | K60: 24.97694088 | L60: 19.86259982 | M60: 30.51187168 | N60: 25.38890116 | O60: 34.95024412 | P60: 40.08487598 | Q60: 40.19160127
B61: Protected dug well or protected spring | C61: 17.14105225 | D61: 12.80263625 | E61: 19.87553452 | F61: 19.98750703 | G61: 16.90597866 | H61: 11.07078255 | I61: 13.06773782 | J61: 12.68313144 | K61: 14.61002884 | L61: 10.99215742 | M61: 15.04387163 | N61: 17.80317113 | O61: 17.50176916 | P61: 18.8537772 | Q61: 27.54684455
B62: Unprotected dug well or spring | C62: 31.93639697 | D62: 31.46408245 | E62: 20.10611662 | F62: 12.07236129 | G62: 3.531930919 | H62: 17.16998934 | I62: 6.150362753 | J62: 3.155648805 | K62: 3.451811268 | L62: 2.827091858 | M62: 31.54240367 | N62: 32.54054143 | O62: 30.21045982 | P62: 19.24809894 | Q62: 12.8805608
B63: Rainwater (into tank or cistern ) | C63: 17.23504627 | D63: 12.42276216 | E63: 5.678175517 | F63: 3.836286576 | G63: 3.672691738 | H63: 8.440469188 | I63: 2.901004691 | J63: 2.803008174 | K63: 3.600956178 | L63: 1.566887935 | M63: 19.40964295 | N63: 15.44951905 | O63: 6.465089167 | P63: 6.502271501 | Q63: 4.789595077
B64: Tanker-truck, vendor | C64: 0.5011487727 | D64: 0.5394416895 | E64: 0.5582974671 | F64: 0.2851725573 | G64: 0 | H64: 0 | I64: 0 | J64: 0 | K64: 0 | L64: 0 | M64: 0.3736659855 | N64: 0.7602859384 | O64: 1.147877666 | P64: 0.3873715617 | Q64: 0
A108: =A1026 -> Comoros
A109: =A1034 -> 2003
A110: Use of sanitation facilities
A111: by wealth quintile and sub-national region
A112: Notes:
A113: WHO/UNICEF JMP customised wealth index excludes water,
A114: sanitation and hygiene assets.
A115: Survey used for analysis: | B115: =A1025 -> WHS03
A116: =B1030 -> 
A117: =B1029 -> 
A120: Use of sanitation facilities | C120: NATIONAL wealth index quintile | H120: URBAN wealth index quintile | M120: RURAL wealth index quintile | BA120: Raw numbers of respondents: | BB120: Use of sanitation facilities | BC120: NATIONAL wealth index quintile | BH120: URBAN wealth index quintile | BM120: RURAL wealth index quintile
A121: Weighted percentage (used in graphs) | C121: Poorest | D121: Poor | E121: Middle | F121: Rich | G121: Richest | H121: Poorest | I121: Poor | J121: Middle | K121: Rich | L121: Richest | M121: Poorest | N121: Poor | O121: Middle | P121: Rich | Q121: Richest | BA121: Sanitation data, raw numbers (weighted) | BC121: Poorest | BD121: Poor | BE121: Middle | BF121: Rich | BG121: Richest | BH121: Poorest | BI121: Poor | BJ121: Middle | BK121: Rich | BL121: Richest | BM121: Poorest | BN121: Poor | BO121: Middle | BP121: Rich | BQ121: Richest
A122: Sanitation | B122: Improved | C122: 7.47549668 | D122: 15.77189977 | E122: 27.63718502 | F122: 40.72953767 | G122: 69.2870026 | H122: 9.415451203 | I122: 34.15308376 | J122: 43.93843716 | K122: 62.32083214 | L122: 87.76139871 | M122: 6.795250528 | N122: 12.08515775 | O122: 20.75119606 | P122: 35.10863583 | Q122: 54.76407352 | BA122: Sanitation | BB122: Improved | BC122: 524.9778557 | BD122: 1109.980425 | BE122: 1938.992253 | BF122: 2848.40484 | BG122: 4870.987334 | BH122: 191.8672848 | BI122: 699.9281998 | BJ122: 896.3333549 | BK122: 1284.49826 | BL122: 1772.092711 | BM122: 338.0337639 | BN122: 596.5630569 | BO122: 1044.993972 | BP122: 1746.237412 | BQ122: 2722.794692
B123: Not Improved | C123: 92.52450332 | D123: 84.22810023 | E123: 72.36281498 | F123: 59.27046233 | G123: 30.7129974 | H123: 90.5845488 | I123: 65.84691624 | J123: 56.06156284 | K123: 37.67916786 | L123: 12.23860129 | M123: 93.20474947 | N123: 87.91484225 | O123: 79.24880394 | P123: 64.89136417 | Q123: 45.23592648 | BB123: Not Improved | BC123: 6497.670648 | BD123: 5927.728672 | BE123: 5076.889618 | BF123: 4145.057405 | BG123: 2159.172943 | BH123: 1845.924433 | BI123: 1349.456871 | BJ123: 1143.642149 | BK123: 776.6074982 | BL123: 247.1238661 | BM123: 4636.525489 | BN123: 4339.765201 | BO123: 3990.831284 | BP123: 3227.574219 | BQ123: 2249.068277
A124: Sanitation ladder | B124: Basic | C124: =C122*C129/100 -> 6.257023558 | D124: 14.50217979 | E124: 24.64711097 | F124: 38.53031252 | G124: 64.278192 | H124: 8.282543339 | I124: 31.52835889 | J124: 40.26625824 | K124: 57.52398635 | L124: 83.08208254 | M124: 5.724916181 | N124: 10.46864806 | O124: 19.26986581 | P124: 32.17596905 | Q124: 51.38013656 | BA124: Sanitation ladder | BB124: Basic | BC124: 451.4696636 | BD124: 1024.474548 | BE124: 1750.639466 | BF124: 2701.600495 | BG124: 4580.899765 | BH124: 139.2616367 | BI124: 621.8652649 | BJ124: 896.3333549 | BK124: 1243.686404 | BL124: 1662.256131 | BM124: 281.3158169 | BN124: 559.3865891 | BO124: 959.0114737 | BP124: 1668.604198 | BQ124: 2477.36307
B125: Limited | C125: =C122*C128/100 -> 1.218473121 | D125: 1.269719983 | E125: 2.990074043 | F125: 2.199225153 | G125: 5.008810597 | H125: 1.132907864 | I125: 2.624724866 | J125: 3.67217892 | K125: 4.796845789 | L125: 4.679316168 | M125: 1.070334347 | N125: 1.616509689 | O125: 1.481330248 | P125: 2.932666777 | Q125: 3.383936963 | BB125: Limited | BC125: 73.50819206 | BD125: 66.91764259 | BE125: 188.352787 | BF125: 109.6278725 | BG125: 247.7857294 | BH125: 52.60564804 | BI125: 78.06293488 | BJ125: 0 | BK125: 40.81185532 | BL125: 87.63012886 | BM125: 56.71794701 | BN125: 37.1764679 | BO125: 67.39426422 | BP125: 77.63321495 | BQ125: 188.1597624
B126: Unimproved | C126: =100-C124-C125-C127 -> 92.52450332 | D126: 84.22810023 | E126: 72.36281498 | F126: 59.27046233 | G126: 30.7129974 | H126: 90.5845488 | I126: 65.84691624 | J126: 56.06156284 | K126: 37.67916786 | L126: 12.23860129 | M126: 93.20474947 | N126: 87.91484225 | O126: 79.24880394 | P126: 64.89136417 | Q126: 45.23592648 | BB126: Unimproved | BC126: 6497.670648 | BD126: 5927.728672 | BE126: 5076.889618 | BF126: 4145.057405 | BG126: 2159.172943 | BH126: 1845.924433 | BI126: 1349.456871 | BJ126: 1143.642149 | BK126: 776.6074982 | BL126: 247.1238661 | BM126: 4636.525489 | BN126: 4339.765201 | BO126: 3990.831284 | BP126: 3227.574219 | BQ126: 2249.068277
B127: Open defecation | C127: 0 | D127: 0 | E127: 0 | F127: 0 | G127: 0 | H127: 0 | I127: 0 | J127: 0 | K127: 0 | L127: 0 | M127: 0 | N127: 0 | O127: 0 | P127: 0 | Q127: 0 | BB127: Open defecation | BC127: 19.06485748 | BD127: 19.06485748 | BE127: 0 | BF127: 0 | BG127: 69.12862587 | BH127: 0 | BI127: 0 | BJ127: 0 | BK127: 45.89333344 | BL127: 0 | BM127: 0 | BN127: 19.06485748 | BO127: 19.06485748 | BP127: 0 | BQ127: 23.23529243
A128: Shared among Improved Sanitation | B128: Yes | C128: 16.29956073 | D128: 8.05052024 | E128: 10.81902532 | F128: 5.399582905 | G128: 7.229076752 | H128: 12.03243307 | I128: 7.685176789 | J128: 8.3575547 | K128: 7.697018194 | L128: 5.331861429 | M128: 15.75121244 | N128: 13.37599163 | O128: 7.138529478 | P128: 8.353120841 | Q128: 6.179118436 | BA128: Shared among improved sanitation facilities | BB128: Yes | BC128: N/A | BD128: N/A | BE128: N/A | BF128: N/A | BG128: N/A | BH128: N/A | BI128: N/A | BJ128: N/A | BK128: N/A | BL128: N/A | BM128: N/A | BN128: N/A | BO128: N/A | BP128: N/A | BQ128: N/A
B129: No | C129: 83.70043927 | D129: 91.94947976 | E129: 89.18097468 | F129: 94.60041709 | G129: 92.77092325 | H129: 87.96756693 | I129: 92.31482321 | J129: 91.6424453 | K129: 92.30298181 | L129: 94.66813857 | M129: 84.24878756 | N129: 86.62400837 | O129: 92.86147052 | P129: 91.64687916 | Q129: 93.82088156 | BB129: No | BC129: N/A | BD129: N/A | BE129: N/A | BF129: N/A | BG129: N/A | BH129: N/A | BI129: N/A | BJ129: N/A | BK129: N/A | BL129: N/A | BM129: N/A | BN129: N/A | BO129: N/A | BP129: N/A | BQ129: N/A
A130: Manually calculated ratios | B130: Improved latrines | C130: =C156/(C156+C157)*100 -> 7.031271963 | D130: 16.51818715 | E130: 28.7393815 | F130: 41.75896667 | G130: 62.81924889 | H130: 9.848134216 | I130: 34.64954872 | J130: 42.29258911 | K130: 57.06787423 | L130: 81.33618949 | M130: 6.795250528 | N130: 12.23438694 | O130: 21.74465474 | P130: 35.74064681 | Q130: 54.11254932
B131: Other
B132: Other
C133: NATIONAL wealth index quintile | H133: URBAN wealth index quintile | M133: RURAL wealth index quintile | BA133: Raw numbers of respondents: | BB133: Use of sanitation facilities | BC133: NATIONAL wealth index quintile | BH133: URBAN wealth index quintile | BM133: RURAL wealth index quintile
A134: Percentage based on weighted population | C134: Poorest | D134: Poor | E134: Middle | F134: Rich | G134: Richest | H134: Poorest | I134: Poor | J134: Middle | K134: Rich | L134: Richest | M134: Poorest | N134: Poor | O134: Middle | P134: Rich | Q134: Richest | BA134: Sanitation data, raw numbers (weighted) | BC134: Poorest | BD134: Poor | BE134: Middle | BF134: Rich | BG134: Richest | BH134: Poorest | BI134: Poor | BJ134: Middle | BK134: Rich | BL134: Richest | BM134: Poorest | BN134: Poor | BO134: Middle | BP134: Rich | BQ134: Richest
A135: Sanitation type | B135: Sewer connection | C135: 0.2714767438 | D135: 0.2708957875 | E135: 0 | F135: 0 | G135: 0.9833150759 | H135: 0 | I135: 0 | J135: 0 | K135: 2.226636516 | L135: 0 | M135: 0 | N135: 0.3862153505 | O135: 0.3785845719 | P135: 0 | Q135: 0.4673357367 | BA135: Sanitation type | BB135: Sewer connection | BC135: N/A | BD135: N/A | BE135: N/A | BF135: N/A | BG135: N/A | BH135: N/A | BI135: N/A | BJ135: N/A | BK135: N/A | BL135: N/A | BM135: N/A | BN135: N/A | BO135: N/A | BP135: N/A | BQ135: N/A
B136: Septic tank connection | C136: 0 | D136: 0 | E136: 0 | F136: 0 | G136: 0.3158740418 | H136: 0 | I136: 0 | J136: 0 | K136: 1.077404754 | L136: 0 | M136: 0 | N136: 0 | O136: 0 | P136: 0 | Q136: 0 | BB136: Septic tank connection | BC136: N/A | BD136: N/A | BE136: N/A | BF136: N/A | BG136: N/A | BH136: N/A | BI136: N/A | BJ136: N/A | BK136: N/A | BL136: N/A | BM136: N/A | BN136: N/A | BO136: N/A | BP136: N/A | BQ136: N/A
B137: Improved latrines | C137: 7.204019936 | D137: 15.50100398 | E137: 27.63718502 | F137: 40.72953767 | G137: 67.98781348 | H137: 9.415451203 | I137: 34.15308376 | J137: 43.93843716 | K137: 59.01679087 | L137: 87.76139871 | M137: 6.795250528 | N137: 11.6989424 | O137: 20.37261148 | P137: 35.10863583 | Q137: 54.29673779 | BB137: Improved latrines | BC137: N/A | BD137: N/A | BE137: N/A | BF137: N/A | BG137: N/A | BH137: N/A | BI137: N/A | BJ137: N/A | BK137: N/A | BL137: N/A | BM137: N/A | BN137: N/A | BO137: N/A | BP137: N/A | BQ137: N/A
B138: Unimproved facilities | C138: 92.52450332 | D138: 84.22810023 | E138: 72.36281498 | F138: 59.27046233 | G138: 30.7129974 | H138: 90.5845488 | I138: 65.84691624 | J138: 56.06156284 | K138: 37.67916786 | L138: 12.23860129 | M138: 93.20474947 | N138: 87.91484225 | O138: 79.24880394 | P138: 64.89136417 | Q138: 45.23592648 | BB138: Unimproved facilities | BC138: N/A | BD138: N/A | BE138: N/A | BF138: N/A | BG138: N/A | BH138: N/A | BI138: N/A | BJ138: N/A | BK138: N/A | BL138: N/A | BM138: N/A | BN138: N/A | BO138: N/A | BP138: N/A | BQ138: N/A
B139: Open defecation | C139: 0 | D139: 0 | E139: 0 | F139: 0 | G139: 0 | H139: 0 | I139: 0 | J139: 0 | K139: 0 | L139: 0 | M139: 0 | N139: 0 | O139: 0 | P139: 0 | Q139: 0 | BB139: Open defecation | BC139: N/A | BD139: N/A | BE139: N/A | BF139: N/A | BG139: N/A | BH139: N/A | BI139: N/A | BJ139: N/A | BK139: N/A | BL139: N/A | BM139: N/A | BN139: N/A | BO139: N/A | BP139: N/A | BQ139: N/A
A140: Septic tank emptying practices | B140: Not emptied/treated and disposed in situ | C140: N/A | D140: N/A | E140: N/A | F140: N/A | G140: N/A | H140: N/A | I140: N/A | J140: N/A | K140: N/A | L140: N/A | M140: N/A | N140: N/A | O140: N/A | P140: N/A | Q140: N/A | BA140: Septic tank emptying practices | BB140: Not emptied/treated and disposed in situ | BC140: N/A | BD140: N/A | BE140: N/A | BF140: N/A | BG140: N/A | BH140: N/A | BI140: N/A | BJ140: N/A | BK140: N/A | BL140: N/A | BM140: N/A | BN140: N/A | BO140: N/A | BP140: N/A | BQ140: N/A
B141: Emptied and buried on site | C141: N/A | D141: N/A | E141: N/A | F141: N/A | G141: N/A | H141: N/A | I141: N/A | J141: N/A | K141: N/A | L141: N/A | M141: N/A | N141: N/A | O141: N/A | P141: N/A | Q141: N/A | BB141: Emptied and buried on site | BC141: N/A | BD141: N/A | BE141: N/A | BF141: N/A | BG141: N/A | BH141: N/A | BI141: N/A | BJ141: N/A | BK141: N/A | BL141: N/A | BM141: N/A | BN141: N/A | BO141: N/A | BP141: N/A | BQ141: N/A
B142: Emptied and discharged locally | C142: N/A | D142: N/A | E142: N/A | F142: N/A | G142: N/A | H142: N/A | I142: N/A | J142: N/A | K142: N/A | L142: N/A | M142: N/A | N142: N/A | O142: N/A | P142: N/A | Q142: N/A | BB142: Emptied and discharged locally | BC142: N/A | BD142: N/A | BE142: N/A | BF142: N/A | BG142: N/A | BH142: N/A | BI142: N/A | BJ142: N/A | BK142: N/A | BL142: N/A | BM142: N/A | BN142: N/A | BO142: N/A | BP142: N/A | BQ142: N/A
B143: Emptied and removed offsite | C143: N/A | D143: N/A | E143: N/A | F143: N/A | G143: N/A | H143: N/A | I143: N/A | J143: N/A | K143: N/A | L143: N/A | M143: N/A | N143: N/A | O143: N/A | P143: N/A | Q143: N/A | BB143: Emptied and removed offsite | BC143: N/A | BD143: N/A | BE143: N/A | BF143: N/A | BG143: N/A | BH143: N/A | BI143: N/A | BJ143: N/A | BK143: N/A | BL143: N/A | BM143: N/A | BN143: N/A | BO143: N/A | BP143: N/A | BQ143: N/A
A144: Latrine emptying practices | B144: Not emptied/treated and disposed in situ | C144: N/A | D144: N/A | E144: N/A | F144: N/A | G144: N/A | H144: N/A | I144: N/A | J144: N/A | K144: N/A | L144: N/A | M144: N/A | N144: N/A | O144: N/A | P144: N/A | Q144: N/A | BA144: Latrine emptying practices | BB144: Not emptied/treated and disposed in situ | BC144: N/A | BD144: N/A | BE144: N/A | BF144: N/A | BG144: N/A | BH144: N/A | BI144: N/A | BJ144: N/A | BK144: N/A | BL144: N/A | BM144: N/A | BN144: N/A | BO144: N/A | BP144: N/A | BQ144: N/A
B145: Emptied and buried on site | C145: N/A | D145: N/A | E145: N/A | F145: N/A | G145: N/A | H145: N/A | I145: N/A | J145: N/A | K145: N/A | L145: N/A | M145: N/A | N145: N/A | O145: N/A | P145: N/A | Q145: N/A | BB145: Emptied and buried on site | BC145: N/A | BD145: N/A | BE145: N/A | BF145: N/A | BG145: N/A | BH145: N/A | BI145: N/A | BJ145: N/A | BK145: N/A | BL145: N/A | BM145: N/A | BN145: N/A | BO145: N/A | BP145: N/A | BQ145: N/A
B146: Emptied and discharged locally | C146: N/A | D146: N/A | E146: N/A | F146: N/A | G146: N/A | H146: N/A | I146: N/A | J146: N/A | K146: N/A | L146: N/A | M146: N/A | N146: N/A | O146: N/A | P146: N/A | Q146: N/A | BB146: Emptied and discharged locally | BC146: N/A | BD146: N/A | BE146: N/A | BF146: N/A | BG146: N/A | BH146: N/A | BI146: N/A | BJ146: N/A | BK146: N/A | BL146: N/A | BM146: N/A | BN146: N/A | BO146: N/A | BP146: N/A | BQ146: N/A
B147: Emptied and removed offsite | C147: N/A | D147: N/A | E147: N/A | F147: N/A | G147: N/A | H147: N/A | I147: N/A | J147: N/A | K147: N/A | L147: N/A | M147: N/A | N147: N/A | O147: N/A | P147: N/A | Q147: N/A | BB147: Emptied and removed offsite | BC147: N/A | BD147: N/A | BE147: N/A | BF147: N/A | BG147: N/A | BH147: N/A | BI147: N/A | BJ147: N/A | BK147: N/A | BL147: N/A | BM147: N/A | BN147: N/A | BO147: N/A | BP147: N/A | BQ147: N/A
A148: Shared among improved sanitation facilities | B148: Yes | C148: 16.03232527 | D148: 7.448193803 | E148: 9.988918774 | F148: 4.940010005 | G148: 6.923772786 | H148: 11.28508966 | I148: 7.459138336 | J148: 7.720833441 | K148: 7.350838215 | L148: 5.114636308 | M148: 15.4455014 | N148: 12.54712682 | O148: 6.523284556 | P148: 7.850223373 | Q148: 5.658382179 | BA148: Shared among improved sanitation facilities | BB148: Yes | BC148: N/A | BD148: N/A | BE148: N/A | BF148: N/A | BG148: N/A | BH148: N/A | BI148: N/A | BJ148: N/A | BK148: N/A | BL148: N/A | BM148: N/A | BN148: N/A | BO148: N/A | BP148: N/A | BQ148: N/A
B149: No | C149: 82.32814918 | D149: 85.06997373 | E149: 82.33842573 | F149: 86.54872332 | G149: 88.85294979 | H149: 82.5038356 | I149: 89.59963521 | J149: 84.66065514 | K149: 88.15157622 | L149: 90.8112683 | M149: 82.61362552 | N149: 81.25621254 | O149: 84.85806473 | P149: 86.12930263 | Q149: 85.91426266 | BB149: No | BC149: N/A | BD149: N/A | BE149: N/A | BF149: N/A | BG149: N/A | BH149: N/A | BI149: N/A | BJ149: N/A | BK149: N/A | BL149: N/A | BM149: N/A | BN149: N/A | BO149: N/A | BP149: N/A | BQ149: N/A
B150: DK/missing | C150: 1.639525555 | D150: 7.481832471 | E150: 7.672655499 | F150: 8.511266677 | G150: 4.223277419 | H150: 6.211074739 | I150: 2.941226449 | J150: 7.618511419 | K150: 4.497585565 | L150: 4.074095395 | M150: 1.940873072 | N150: 6.196660642 | O150: 8.618650713 | P150: 6.020473994 | Q150: 8.427355161 | BB150: DK/missing | BC150: N/A | BD150: N/A | BE150: N/A | BF150: N/A | BG150: N/A | BH150: N/A | BI150: N/A | BJ150: N/A | BK150: N/A | BL150: N/A | BM150: N/A | BN150: N/A | BO150: N/A | BP150: N/A | BQ150: N/A
A151: Shared among all sanitation facilities | B151: Yes | C151: 83.65645851 | D151: 91.94947976 | E151: 89.15285828 | F151: 94.57122255 | G151: 93.04139096 | H151: 87.86092419 | I151: 92.31482321 | J151: 91.6424453 | K151: 92.15969288 | L151: 94.63214316 | M151: 84.24878756 | N151: 86.57009596 | O151: 92.86147052 | P151: 91.64687916 | Q151: 94.2585338 | BA151: Shared among all sanitation facilities | BB151: Yes | BC151: N/A | BD151: N/A | BE151: N/A | BF151: N/A | BG151: N/A | BH151: N/A | BI151: N/A | BJ151: N/A | BK151: N/A | BL151: N/A | BM151: N/A | BN151: N/A | BO151: N/A | BP151: N/A | BQ151: N/A
B152: No | C152: 16.34354149 | D152: 8.05052024 | E152: 10.84714172 | F152: 5.42877745 | G152: 6.95860904 | H152: 12.13907581 | I152: 7.685176789 | J152: 8.3575547 | K152: 7.840307119 | L152: 5.367856837 | M152: 15.75121244 | N152: 13.42990404 | O152: 7.138529478 | P152: 8.353120841 | Q152: 5.741466196 | BB152: No | BC152: N/A | BD152: N/A | BE152: N/A | BF152: N/A | BG152: N/A | BH152: N/A | BI152: N/A | BJ152: N/A | BK152: N/A | BL152: N/A | BM152: N/A | BN152: N/A | BO152: N/A | BP152: N/A | BQ152: N/A
A153: What type of toilet facilities | B153: Flush to piped sewage system | C153: 0.2721972221 | D153: 0.2906243549 | E153: 0 | F153: 0 | G153: 1.003622197 | H153: 0 | I153: 0 | J153: 0 | K153: 2.284955486 | L153: 0 | M153: 0 | N153: 0.4107394738 | O153: 0.4059176795 | P153: 0 | Q153: 0.4875383807 | BA153: What type of toilet facilities | BB153: Flush to piped sewage system | BC153: 19.06485748 | BD153: 19.06485748 | BE153: 0 | BF153: 0 | BG153: 69.12862587 | BH153: 0 | BI153: 0 | BJ153: 0 | BK153: 45.89333344 | BL153: 0 | BM153: 0 | BN153: 19.06485748 | BO153: 19.06485748 | BP153: 0 | BQ153: 23.23529243
B154: Flush to septic tank | C154: 0 | D154: 0 | E154: 0 | F154: 0 | G154: 0.3223973756 | H154: 0 | I154: 0 | J154: 0 | K154: 1.10562361 | L154: 0 | M154: 0 | N154: 0 | O154: 0 | P154: 0 | Q154: 0 | BB154: Flush to septic tank | BC154: 0 | BD154: 0 | BE154: 0 | BF154: 0 | BG154: 22.20645142 | BH154: 0 | BI154: 0 | BJ154: 0 | BK154: 22.20645142 | BL154: 0 | BM154: 0 | BN154: 0 | BO154: 0 | BP154: 0 | BQ154: 0
B155: Pour flush latrine | C155: 0.2653922616 | D155: 0.2411563539 | E155: 0.5324503123 | F155: 2.680049648 | G155: 19.91789663 | H155: 0 | I155: 0.8240112752 | J155: 9.131167988 | K155: 12.64690893 | L155: 39.6548322 | M155: 0 | N155: 0.4004709418 | O155: 0.3368252726 | P155: 1.232159209 | Q155: 6.091476696 | BB155: Pour flush latrine | BC155: 18.58823395 | BD155: 15.81977367 | BE155: 35.4553318 | BF155: 176.2209578 | BG155: 1371.927433 | BH155: 0 | BI155: 16.39047432 | BJ155: 172.0823154 | BK155: 254.0131798 | BL155: 791.9110146 | BM155: 0 | BN155: 18.58823395 | BO155: 15.81977367 | BP155: 58.89678955 | BQ155: 290.3099489
B156: Covered dry latrine (with privacy) | C156: 6.957746588 | D156: 16.38874153 | E156: 28.58635858 | F156: 40.63980563 | G156: 49.4739803 | H156: 9.848134216 | I156: 34.36403253 | J156: 38.43078175 | K156: 47.91562073 | L156: 49.08246003 | M156: 6.795250528 | N156: 12.04133759 | O156: 21.50665117 | P156: 35.30026514 | Q156: 50.55247655 | BB156: Covered dry latrine (with privacy) | BC156: 487.3247643 | BD156: 1075.095794 | BE156: 1903.536922 | BF156: 2672.183882 | BG156: 3407.724824 | BH156: 191.8672848 | BI156: 683.5377254 | BJ156: 724.2510395 | BK156: 962.3852949 | BL156: 980.1816969 | BM156: 338.0337639 | BN156: 558.9099655 | BO156: 1010.109341 | BP156: 1687.340623 | BQ156: 2409.249451
B157: Uncovered dry latrine (without privacy) | C157: 91.99656244 | D157: 82.82760332 | E157: 70.88119111 | F157: 56.68014472 | G157: 29.2821035 | H157: 90.15186578 | I157: 64.81195619 | J157: 52.43805026 | K157: 36.04689124 | L157: 11.26270777 | M157: 93.20474947 | N157: 86.3807383 | O157: 77.39881055 | P157: 63.46757565 | Q157: 42.86850838 | BB157: Uncovered dry latrine (without privacy) | BC157: 6443.494678 | BD157: 5433.462221 | BE157: 4719.907363 | BF157: 3726.882223 | BG157: 2016.925875 | BH157: 1756.39297 | BI157: 1289.179815 | BJ157: 988.2263823 | BK157: 724.0018501 | BL157: 224.9174147 | BM157: 4636.525489 | BN157: 4009.442895 | BO157: 3635.213165 | BP157: 3033.72845 | BQ157: 2043.043928
B158: Other | C158: 0.5081014849 | D158: 0.2518744448 | E158: 0 | F158: 0 | G158: 0 | H158: 0 | I158: 0 | J158: 0 | K158: 0 | L158: 0 | M158: 0 | N158: 0.7667136899 | O158: 0.3517953276 | P158: 0 | Q158: 0 | BB158: Other | BC158: 35.58773422 | BD158: 16.52287674 | BE158: 0 | BF158: 0 | BG158: 0 | BH158: 0 | BI158: 0 | BJ158: 0 | BK158: 0 | BL158: 0 | BM158: 0 | BN158: 35.58773422 | BO158: 16.52287674 | BP158: 0 | BQ158: 0
BB159: Total | BC159: 7004.060267 | BD159: 6559.965523 | BE159: 6658.899616 | BF159: 6575.287063 | BG159: 6887.913209 | BH159: 1948.260255 | BI159: 1989.108015 | BJ159: 1884.559737 | BK159: 2008.50011 | BL159: 1997.010126 | BM159: 4974.559253 | BN159: 4641.593686 | BO159: 4696.730014 | BP159: 4779.965862 | BQ159: 4765.83862
A208: =A1026 -> Comoros
A209: =A1034 -> 2003
A210: Access to hygiene facilities
A211: by wealth quintile and sub-national region
A212: Notes:
A213: WHO/UNICEF JMP customised wealth index excludes water,
A214: sanitation and hygiene assets.
A215: Survey used for analysis: | B215: =A1025 -> WHS03
A220: Access to handwashing | C220: NATIONAL wealth index quintile | H220: URBAN wealth index quintile | M220: RURAL wealth index quintile | BA220: Raw numbers of respondents: | BB220: Access to handwashing | BC220: NATIONAL wealth index quintile | BH220: URBAN wealth index quintile | BM220: RURAL wealth index quintile
A221: Weighted percentage (used in graphs) | C221: Poorest | D221: Poor | E221: Middle | F221: Rich | G221: Richest | H221: Poorest | I221: Poor | J221: Middle | K221: Rich | L221: Richest | M221: Poorest | N221: Poor | O221: Middle | P221: Rich | Q221: Richest | BA221: Hygiene data, raw numbers (weighted) | BC221: Poorest | BD221: Poor | BE221: Middle | BF221: Rich | BG221: Richest | BH221: Poorest | BI221: Poor | BJ221: Middle | BK221: Rich | BL221: Richest | BM221: Poorest | BN221: Poor | BO221: Middle | BP221: Rich | BQ221: Richest
A222: Hygiene ladder | B222: Basic | C222: N/A | D222: N/A | E222: N/A | F222: N/A | G222: N/A | H222: N/A | I222: N/A | J222: N/A | K222: N/A | L222: N/A | M222: N/A | N222: N/A | O222: N/A | P222: N/A | Q222: N/A | BA222: Hygiene ladder | BB222: Basic | BC222: N/A | BD222: N/A | BE222: N/A | BF222: N/A | BG222: N/A | BH222: N/A | BI222: N/A | BJ222: N/A | BK222: N/A | BL222: N/A | BM222: N/A | BN222: N/A | BO222: N/A | BP222: N/A | BQ222: N/A
B223: Limited | C223: N/A | D223: N/A | E223: N/A | F223: N/A | G223: N/A | H223: N/A | I223: N/A | J223: N/A | K223: N/A | L223: N/A | M223: N/A | N223: N/A | O223: N/A | P223: N/A | Q223: N/A | BB223: Limited | BC223: N/A | BD223: N/A | BE223: N/A | BF223: N/A | BG223: N/A | BH223: N/A | BI223: N/A | BJ223: N/A | BK223: N/A | BL223: N/A | BM223: N/A | BN223: N/A | BO223: N/A | BP223: N/A | BQ223: N/A
B224: No facility | C224: N/A | D224: N/A | E224: N/A | F224: N/A | G224: N/A | H224: N/A | I224: N/A | J224: N/A | K224: N/A | L224: N/A | M224: N/A | N224: N/A | O224: N/A | P224: N/A | Q224: N/A | BB224: No facility | BC224: N/A | BD224: N/A | BE224: N/A | BF224: N/A | BG224: N/A | BH224: N/A | BI224: N/A | BJ224: N/A | BK224: N/A | BL224: N/A | BM224: N/A | BN224: N/A | BO224: N/A | BP224: N/A | BQ224: N/A
BA225: Observed handwashing place | BB225: Fixed | BC225: N/A | BD225: N/A | BE225: N/A | BF225: N/A | BG225: N/A | BH225: N/A | BI225: N/A | BJ225: N/A | BK225: N/A | BL225: N/A | BM225: N/A | BN225: N/A | BO225: N/A | BP225: N/A | BQ225: N/A
BB226: Mobile | BC226: N/A | BD226: N/A | BE226: N/A | BF226: N/A | BG226: N/A | BH226: N/A | BI226: N/A | BJ226: N/A | BK226: N/A | BL226: N/A | BM226: N/A | BN226: N/A | BO226: N/A | BP226: N/A | BQ226: N/A
BA227: Water / Soap | BB227: Water and soap | BC227: N/A | BD227: N/A | BE227: N/A | BF227: N/A | BG227: N/A | BH227: N/A | BI227: N/A | BJ227: N/A | BK227: N/A | BL227: N/A | BM227: N/A | BN227: N/A | BO227: N/A | BP227: N/A | BQ227: N/A
BB228: Water only | BC228: N/A | BD228: N/A | BE228: N/A | BF228: N/A | BG228: N/A | BH228: N/A | BI228: N/A | BJ228: N/A | BK228: N/A | BL228: N/A | BM228: N/A | BN228: N/A | BO228: N/A | BP228: N/A | BQ228: N/A
BB229: Soap only | BC229: N/A | BD229: N/A | BE229: N/A | BF229: N/A | BG229: N/A | BH229: N/A | BI229: N/A | BJ229: N/A | BK229: N/A | BL229: N/A | BM229: N/A | BN229: N/A | BO229: N/A | BP229: N/A | BQ229: N/A
BB230: Neither | BC230: N/A | BD230: N/A | BE230: N/A | BF230: N/A | BG230: N/A | BH230: N/A | BI230: N/A | BJ230: N/A | BK230: N/A | BL230: N/A | BM230: N/A | BN230: N/A | BO230: N/A | BP230: N/A | BQ230: N/A
BA259: Raw numbers of respondents: | BB259: Menstrual health and hygiene | BC259: NATIONAL wealth index quintile | BH259: URBAN wealth index quintile | BM259: RURAL wealth index quintile
BA260: MHH data, raw numbers (weighted) | BC260: Poorest | BD260: Poor | BE260: Middle | BF260: Rich | BG260: Richest | BH260: Poorest | BI260: Poor | BJ260: Middle | BK260: Rich | BL260: Richest | BM260: Poorest | BN260: Poor | BO260: Middle | BP260: Rich | BQ260: Richest
BA261: Private place to wash and change | BB261: Yes | BC261: N/A | BD261: N/A | BE261: N/A | BF261: N/A | BG261: N/A | BH261: N/A | BI261: N/A | BJ261: N/A | BK261: N/A | BL261: N/A | BM261: N/A | BN261: N/A | BO261: N/A | BP261: N/A | BQ261: N/A
BB262: No | BC262: N/A | BD262: N/A | BE262: N/A | BF262: N/A | BG262: N/A | BH262: N/A | BI262: N/A | BJ262: N/A | BK262: N/A | BL262: N/A | BM262: N/A | BN262: N/A | BO262: N/A | BP262: N/A | BQ262: N/A
BB263: DK/not sure/missing | BC263: N/A | BD263: N/A | BE263: N/A | BF263: N/A | BG263: N/A | BH263: N/A | BI263: N/A | BJ263: N/A | BK263: N/A | BL263: N/A | BM263: N/A | BN263: N/A | BO263: N/A | BP263: N/A | BQ263: N/A
BA264: Use of menstrual materials | BB264: Materials reusable | BC264: N/A | BD264: N/A | BE264: N/A | BF264: N/A | BG264: N/A | BH264: N/A | BI264: N/A | BJ264: N/A | BK264: N/A | BL264: N/A | BM264: N/A | BN264: N/A | BO264: N/A | BP264: N/A | BQ264: N/A
BB265: Materials not reusable | BC265: N/A | BD265: N/A | BE265: N/A | BF265: N/A | BG265: N/A | BH265: N/A | BI265: N/A | BJ265: N/A | BK265: N/A | BL265: N/A | BM265: N/A | BN265: N/A | BO265: N/A | BP265: N/A | BQ265: N/A
BB266: No materials used | BC266: N/A | BD266: N/A | BE266: N/A | BF266: N/A | BG266: N/A | BH266: N/A | BI266: N/A | BJ266: N/A | BK266: N/A | BL266: N/A | BM266: N/A | BN266: N/A | BO266: N/A | BP266: N/A | BQ266: N/A
BB267: DK/not sure/missing | BC267: N/A | BD267: N/A | BE267: N/A | BF267: N/A | BG267: N/A | BH267: N/A | BI267: N/A | BJ267: N/A | BK267: N/A | BL267: N/A | BM267: N/A | BN267: N/A | BO267: N/A | BP267: N/A | BQ267: N/A
BA268: Use of menstrual materials with private place to wash and change | BB268: Materials reusable | BC268: N/A | BD268: N/A | BE268: N/A | BF268: N/A | BG268: N/A | BH268: N/A | BI268: N/A | BJ268: N/A | BK268: N/A | BL268: N/A | BM268: N/A | BN268: N/A | BO268: N/A | BP268: N/A | BQ268: N/A
BB269: Materials not reusable | BC269: N/A | BD269: N/A | BE269: N/A | BF269: N/A | BG269: N/A | BH269: N/A | BI269: N/A | BJ269: N/A | BK269: N/A | BL269: N/A | BM269: N/A | BN269: N/A | BO269: N/A | BP269: N/A | BQ269: N/A
BB270: No materials used | BC270: N/A | BD270: N/A | BE270: N/A | BF270: N/A | BG270: N/A | BH270: N/A | BI270: N/A | BJ270: N/A | BK270: N/A | BL270: N/A | BM270: N/A | BN270: N/A | BO270: N/A | BP270: N/A | BQ270: N/A
BA271: Awareness of menstruation before menarche | BB271: Yes | BC271: N/A | BD271: N/A | BE271: N/A | BF271: N/A | BG271: N/A | BH271: N/A | BI271: N/A | BJ271: N/A | BK271: N/A | BL271: N/A | BM271: N/A | BN271: N/A | BO271: N/A | BP271: N/A | BQ271: N/A
BB272: No | BC272: N/A | BD272: N/A | BE272: N/A | BF272: N/A | BG272: N/A | BH272: N/A | BI272: N/A | BJ272: N/A | BK272: N/A | BL272: N/A | BM272: N/A | BN272: N/A | BO272: N/A | BP272: N/A | BQ272: N/A
BB273: DK/not sure/missing | BC273: N/A | BD273: N/A | BE273: N/A | BF273: N/A | BG273: N/A | BH273: N/A | BI273: N/A | BJ273: N/A | BK273: N/A | BL273: N/A | BM273: N/A | BN273: N/A | BO273: N/A | BP273: N/A | BQ273: N/A
BA274: Participation in (all) activities during menstruation | BB274: Yes | BC274: N/A | BD274: N/A | BE274: N/A | BF274: N/A | BG274: N/A | BH274: N/A | BI274: N/A | BJ274: N/A | BK274: N/A | BL274: N/A | BM274: N/A | BN274: N/A | BO274: N/A | BP274: N/A | BQ274: N/A
BB275: No | BC275: N/A | BD275: N/A | BE275: N/A | BF275: N/A | BG275: N/A | BH275: N/A | BI275: N/A | BJ275: N/A | BK275: N/A | BL275: N/A | BM275: N/A | BN275: N/A | BO275: N/A | BP275: N/A | BQ275: N/A
BB276: DK/not sure/missing/no such activity | BC276: N/A | BD276: N/A | BE276: N/A | BF276: N/A | BG276: N/A | BH276: N/A | BI276: N/A | BJ276: N/A | BK276: N/A | BL276: N/A | BM276: N/A | BN276: N/A | BO276: N/A | BP276: N/A | BQ276: N/A
BA277: Participation in specific activities during menstruation | BB277: Did not go to school (amongst those usually attending school) | BC277: N/A | BD277: N/A | BE277: N/A | BF277: N/A | BG277: N/A | BH277: N/A | BI277: N/A | BJ277: N/A | BK277: N/A | BL277: N/A | BM277: N/A | BN277: N/A | BO277: N/A | BP277: N/A | BQ277: N/A
BB278: Did not go to work (amongst those who usually work) | BC278: N/A | BD278: N/A | BE278: N/A | BF278: N/A | BG278: N/A | BH278: N/A | BI278: N/A | BJ278: N/A | BK278: N/A | BL278: N/A | BM278: N/A | BN278: N/A | BO278: N/A | BP278: N/A | BQ278: N/A
BB279: Did not participate in social activities | BC279: N/A | BD279: N/A | BE279: N/A | BF279: N/A | BG279: N/A | BH279: N/A | BI279: N/A | BJ279: N/A | BK279: N/A | BL279: N/A | BM279: N/A | BN279: N/A | BO279: N/A | BP279: N/A | BQ279: N/A
BB280: Did not cook food | BC280: N/A | BD280: N/A | BE280: N/A | BF280: N/A | BG280: N/A | BH280: N/A | BI280: N/A | BJ280: N/A | BK280: N/A | BL280: N/A | BM280: N/A | BN280: N/A | BO280: N/A | BP280: N/A | BQ280: N/A
BB281: Did not eat with others | BC281: N/A | BD281: N/A | BE281: N/A | BF281: N/A | BG281: N/A | BH281: N/A | BI281: N/A | BJ281: N/A | BK281: N/A | BL281: N/A | BM281: N/A | BN281: N/A | BO281: N/A | BP281: N/A | BQ281: N/A
BB282: Did not bathe in regular place | BC282: N/A | BD282: N/A | BE282: N/A | BF282: N/A | BG282: N/A | BH282: N/A | BI282: N/A | BJ282: N/A | BK282: N/A | BL282: N/A | BM282: N/A | BN282: N/A | BO282: N/A | BP282: N/A | BQ282: N/A
BB283: Did not participate in other activities | BC283: N/A | BD283: N/A | BE283: N/A | BF283: N/A | BG283: N/A | BH283: N/A | BI283: N/A | BJ283: N/A | BK283: N/A | BL283: N/A | BM283: N/A | BN283: N/A | BO283: N/A | BP283: N/A | BQ283: N/A
BB284: DK/not sure/missing/no such activity | BC284: N/A | BD284: N/A | BE284: N/A | BF284: N/A | BG284: N/A | BH284: N/A | BI284: N/A | BJ284: N/A | BK284: N/A | BL284: N/A | BM284: N/A | BN284: N/A | BO284: N/A | BP284: N/A | BQ284: N/A
BA339: Raw numbers of respondents: | BB339: Basic water, sanitation and hygiene | BC339: NATIONAL wealth index quintile | BH339: URBAN wealth index quintile | BM339: RURAL wealth index quintile
BA340: WatSan data, raw numbers (weighted) | BC340: Poorest | BD340: Poor | BE340: Middle | BF340: Rich | BG340: Richest | BH340: Poorest | BI340: Poor | BJ340: Middle | BK340: Rich | BL340: Richest | BM340: Poorest | BN340: Poor | BO340: Middle | BP340: Rich | BQ340: Richest
BA341: Use of Basic Water Sanitation and Hygiene | BB341: Yes | BC341: N/A | BD341: N/A | BE341: N/A | BF341: N/A | BG341: N/A | BH341: N/A | BI341: N/A | BJ341: N/A | BK341: N/A | BL341: N/A | BM341: N/A | BN341: N/A | BO341: N/A | BP341: N/A | BQ341: N/A
BB342: No | BC342: N/A | BD342: N/A | BE342: N/A | BF342: N/A | BG342: N/A | BH342: N/A | BI342: N/A | BJ342: N/A | BK342: N/A | BL342: N/A | BM342: N/A | BN342: N/A | BO342: N/A | BP342: N/A | BQ342: N/A
BA343: Use of Basic Water and Sanitation | BB343: Yes | BC343: N/A | BD343: N/A | BE343: N/A | BF343: N/A | BG343: N/A | BH343: N/A | BI343: N/A | BJ343: N/A | BK343: N/A | BL343: N/A | BM343: N/A | BN343: N/A | BO343: N/A | BP343: N/A | BQ343: N/A
BB344: No | BC344: N/A | BD344: N/A | BE344: N/A | BF344: N/A | BG344: N/A | BH344: N/A | BI344: N/A | BJ344: N/A | BK344: N/A | BL344: N/A | BM344: N/A | BN344: N/A | BO344: N/A | BP344: N/A | BQ344: N/A
BA345: Use of Basic Water and Hygiene | BB345: Yes | BC345: N/A | BD345: N/A | BE345: N/A | BF345: N/A | BG345: N/A | BH345: N/A | BI345: N/A | BJ345: N/A | BK345: N/A | BL345: N/A | BM345: N/A | BN345: N/A | BO345: N/A | BP345: N/A | BQ345: N/A
BB346: No | BC346: N/A | BD346: N/A | BE346: N/A | BF346: N/A | BG346: N/A | BH346: N/A | BI346: N/A | BJ346: N/A | BK346: N/A | BL346: N/A | BM346: N/A | BN346: N/A | BO346: N/A | BP346: N/A | BQ346: N/A
BA347: Use of Basic Sanitation and Hygiene | BB347: Yes | BC347: N/A | BD347: N/A | BE347: N/A | BF347: N/A | BG347: N/A | BH347: N/A | BI347: N/A | BJ347: N/A | BK347: N/A | BL347: N/A | BM347: N/A | BN347: N/A | BO347: N/A | BP347: N/A | BQ347: N/A
BB348: No | BC348: N/A | BD348: N/A | BE348: N/A | BF348: N/A | BG348: N/A | BH348: N/A | BI348: N/A | BJ348: N/A | BK348: N/A | BL348: N/A | BM348: N/A | BN348: N/A | BO348: N/A | BP348: N/A | BQ348: N/A
BA349: Use of Basic Water | BB349: Yes | BC349: N/A | BD349: N/A | BE349: N/A | BF349: N/A | BG349: N/A | BH349: N/A | BI349: N/A | BJ349: N/A | BK349: N/A | BL349: N/A | BM349: N/A | BN349: N/A | BO349: N/A | BP349: N/A | BQ349: N/A
BB350: No | BC350: N/A | BD350: N/A | BE350: N/A | BF350: N/A | BG350: N/A | BH350: N/A | BI350: N/A | BJ350: N/A | BK350: N/A | BL350: N/A | BM350: N/A | BN350: N/A | BO350: N/A | BP350: N/A | BQ350: N/A
BA351: Use of Basic Sanitation | BB351: Yes | BC351: N/A | BD351: N/A | BE351: N/A | BF351: N/A | BG351: N/A | BH351: N/A | BI351: N/A | BJ351: N/A | BK351: N/A | BL351: N/A | BM351: N/A | BN351: N/A | BO351: N/A | BP351: N/A | BQ351: N/A
BB352: No | BC352: N/A | BD352: N/A | BE352: N/A | BF352: N/A | BG352: N/A | BH352: N/A | BI352: N/A | BJ352: N/A | BK352: N/A | BL352: N/A | BM352: N/A | BN352: N/A | BO352: N/A | BP352: N/A | BQ352: N/A
BA353: Access to Basic Hygiene | BB353: Yes | BC353: N/A | BD353: N/A | BE353: N/A | BF353: N/A | BG353: N/A | BH353: N/A | BI353: N/A | BJ353: N/A | BK353: N/A | BL353: N/A | BM353: N/A | BN353: N/A | BO353: N/A | BP353: N/A | BQ353: N/A
BB354: No | BC354: N/A | BD354: N/A | BE354: N/A | BF354: N/A | BG354: N/A | BH354: N/A | BI354: N/A | BJ354: N/A | BK354: N/A | BL354: N/A | BM354: N/A | BN354: N/A | BO354: N/A | BP354: N/A | BQ354: N/A
C399: INITIAL (national) Wealth Index | H399: URBAN Wealth Index | M399: RURAL Wealth Index
C400: Component Matrix | H400: Component Matrix | M400: Component Matrix
E401: Component | J401: Component | O401: Component
B402: Note: The INITIAL (national) Wealth Index is based on the first component of the Principal Component Analysis (PCA) which has been obtained at national level. The final national-level (NATIONAL) Wealth Index is based on the URBAN and RURAL specific wealth indexes. Regression procedures are used to establish the relationships between the two sets of scores (urban and rural) and the initial (national) wealth factors. This allows best use of the available information for each area and a better precision of the FINAL (NATIONAL) Wealth Index. For dependency reasons, all WASH variables (contained in the generic MICS and DHS scripts) have been excluded from the sets of asset variables used in the PCAs. The PCA can extracts as many components as there are asset variables in the input. Only the first of the components is used to represent the Wealth Index. The scores represent the weights of the asset variables on the Wealth Index (correlations between the variables and the component). The communalities are the proportion of each variable's variance that can be explained by the component. Proportion of explained variance is the part of the model's total variance that is explained by the component. For more information on the procedure used: The DHS Wealth Index, DHS Comparative Reports No. 6, Shea Oscar Rutstein, Kiersten Johnson, ORC Macro International Inc., 2004. The DHS Wealth Index: Approaches for Rural and Urban Areas, Shea O. Rutstein, ORC Macro International Inc., 2008. MICS Methodological Paper No. 4, Review of options for reporting water, sanitation and hygiene coverage by wealth quintile, UNICEF, 2016. | E402: 1 | J402: 1 | O402: 1
C403: Has Television | E403: 0.7203121423 | H403: Has Television | J403: 0.6526544769 | M403: Has Television | O403: 0.7065833574
C404: Has Electricity | E404: 0.6985756839 | H404: Has Refrigerator | J404: 0.633139377 | M404: Has Refrigerator | O404: 0.6845315361
C405: Has Refrigerator | E405: 0.6957337341 | H405: Has Fix telephone | J405: 0.6322183659 | M405: Has Electricity | O405: 0.6769373388
C406: Uses wood fuel | E406: 0.6340294754 | H406: Uses wood fuel | J406: 0.5822307925 | M406: Has hearth floor | O406: 0.5246532958
C407: Uses kerozene fuel | E407: -0.6285931614 | H407: Has Clock | J407: 0.5720488823 | M407: Has cement, brick, stone or wood wall | O407: -0.5182748149
C408: Has Fix telephone | E408: 0.6236265009 | H408: Has Electricity | J408: 0.5663589809 | M408: Has Clock | O408: 0.5125205238
C409: Uses closed stove with chimney | E409: -0.6152158165 | H409: Uses kerozene fuel | J409: -0.5182742685 | M409: Has Fix telephone | O409: 0.5056719799
C410: Has Clock | E410: 0.5501411152 | H410: Uses closed stove with chimney | J410: -0.5092039284 | M410: Has hard floor | O410: -0.488864694
C411: Has cement, brick, stone or wood wall | E411: -0.5227125725 | H411: Has cement, brick, stone or wood wall | J411: -0.4814185345 | M411: Uses kerozene fuel | O411: -0.473399019
C412: Has hearth floor | E412: 0.4917314913 | H412: Has Car | J412: 0.4489640099 | M412: Uses closed stove with chimney | O412: -0.4546282656
C413: Has hard floor | E413: -0.4621729796 | H413: Has metal sheet wall | J413: 0.4437776818 | M413: Uses wood fuel | O413: 0.4455209458
C414: Permanent Income question 16 | E414: 0.4206404558 | H414: Permanent Income question 20 | J414: 0.4066606856 | M414: Permanent Income question 16 | O414: 0.4097509248
C415: Has metal sheet wall | E415: 0.4165191735 | H415: Has hearth floor | J415: 0.4018385442 | M415: Has Car | O415: 0.4091826073
C416: Has Car | E416: 0.3803911588 | H416: Has hard floor | J416: -0.3816287284 | M416: Has metal sheet wall | O416: 0.3607946698
C417: Permanent Income question 20 | E417: 0.3669460994 | H417: Has Bicycle | J417: 0.3551411768 | M417: Permanent Income question 18 | O417: 0.3342859856
C418: Has Bicycle | E418: 0.3409735213 | H418: Permanent Income question 16 | J418: 0.3065946097 | M418: Permanent Income question 20 | O418: 0.2900165853
C419: Permanent Income question 18 | E419: 0.2601359241 | H419: Has Computer | J419: 0.2699841028 | M419: Has Bicycle | O419: 0.2443161379
C420: Has Computer | E420: 0.2600798526 | H420: Permanent Income question 18 | J420: 0.2649163144 | M420: Uses gaz fuel | O420: -0.2208149905
C421: Uses gaz fuel | E421: -0.2311039521 | H421: Uses gaz fuel | J421: -0.2535357423 | M421: Has mud brick wall | O421: -0.1974033769
C422: Uses separate building as kitchen | E422: 0.1919680733 | H422: Has Clothes washing machine | J422: 0.2529051588 | M422: Has Bucket | O422: 0.1933507687
C423: Has mud brick wall | E423: -0.1884678581 | H423: Uses separate room as kitchen | J423: -0.2456367781 | M423: Has Mobile telephone | O423: 0.1756779835
C424: Has Bucket | E424: 0.1829912483 | H424: Uses separate building as kitchen | J424: 0.2393374209 | M424: Has Computer | O424: 0.163624861
C425: Has Clothes washing machine | E425: 0.1690234762 | H425: Has Dish washing machine | J425: 0.1171927341 | M425: Uses separate building as kitchen | O425: 0.1281421289
C426: Uses separate room as kitchen | E426: -0.1652211503 | H426: Permanent Income question 17 | J426: 0.1120141676 | M426: Uses living or sleeping room as kitchen | O426: -0.1168721194
... 166 more rows

Sheet DHS12
A2: =A1026 -> Comoros
A3: =A1034 -> 2012
A4: Use of drinking water sources
A5: by wealth quintile and sub-national region
A6: Notes:
A7: WHO/UNICEF JMP customised wealth index excludes water,
A8: sanitation and hygiene assets.
A9: Survey used for analysis: | B9: =A1025 -> DHS12
A10: =B1028 -> 
A11: =B1027 -> 
A14: Use of drinking water sources | C14: NATIONAL wealth index quintile | H14: URBAN wealth index quintile | M14: RURAL wealth index quintile | R14: SUB-REGIONS: | BA14: Raw numbers of respondents: | BB14: Use of drinking water sources | BC14: NATIONAL wealth index quintile | BH14: URBAN wealth index quintile | BM14: RURAL wealth index quintile | BR14: SUB-REGIONS:
A15: Weighted percentage (used in graphs) | C15: Poorest | D15: Poor | E15: Middle | F15: Rich | G15: Richest | H15: Poorest | I15: Poor | J15: Middle | K15: Rich | L15: Richest | M15: Poorest | N15: Poor | O15: Middle | P15: Rich | Q15: Richest | R15: Mohéli | S15: Ndzouani | T15: Ngazidja | BA15: Water data, raw numbers (weighted) | BC15: Poorest | BD15: Poor | BE15: Middle | BF15: Rich | BG15: Richest | BH15: Poorest | BI15: Poor | BJ15: Middle | BK15: Rich | BL15: Richest | BM15: Poorest | BN15: Poor | BO15: Middle | BP15: Rich | BQ15: Richest | BR15: Mohéli | BS15: Ndzouani | BT15: Ngazidja
A16: Water | B16: Improved | C16: 84.1 | D16: 89.9 | E16: 90.1 | F16: 93.6 | G16: 94.6 | H16: 91.6 | I16: 99.1 | J16: 99.5 | K16: 99.2 | L16: 98.5 | M16: 83.5 | N16: 86.9 | O16: 87.2 | P16: 87.7 | Q16: 90.8 | R16: 91.5 | S16: 90.6 | T16: 90.2 | BA16: Water | BB16: Improved | BC16: N/A | BD16: N/A | BE16: N/A | BF16: N/A | BG16: N/A | BH16: N/A | BI16: N/A | BJ16: N/A | BK16: N/A | BL16: N/A | BM16: N/A | BN16: N/A | BO16: N/A | BP16: N/A | BQ16: N/A | BR16: N/A | BS16: N/A | BT16: N/A
B17: Not Improved | C17: 15.9 | D17: 10.1 | E17: 9.9 | F17: 6.4 | G17: 5.4 | H17: 8.4 | I17: 0.9 | J17: 0.5 | K17: 0.8 | L17: 1.5 | M17: 16.5 | N17: 13.1 | O17: 12.8 | P17: 12.3 | Q17: 9.2 | R17: 8.5 | S17: 9.4 | T17: 9.8 | BB17: Not Improved | BC17: N/A | BD17: N/A | BE17: N/A | BF17: N/A | BG17: N/A | BH17: N/A | BI17: N/A | BJ17: N/A | BK17: N/A | BL17: N/A | BM17: N/A | BN17: N/A | BO17: N/A | BP17: N/A | BQ17: N/A | BR17: N/A | BS17: N/A | BT17: N/A
A18: Water ladder | B18: Basic | C18: 70 | D18: 82 | E18: 86.9 | F18: 89.7 | G18: 92.5 | H18: 81.2 | I18: 91.5 | J18: 91.9 | K18: 96 | L18: 96.8 | M18: 67.6 | N18: 77.5 | O18: 85 | P18: 85.5 | Q18: 88.9 | R18: 83.3 | S18: 81.3 | T18: 87.4 | BA18: Water ladder | BB18: Basic | BC18: N/A | BD18: N/A | BE18: N/A | BF18: N/A | BG18: N/A | BH18: N/A | BI18: N/A | BJ18: N/A | BK18: N/A | BL18: N/A | BM18: N/A | BN18: N/A | BO18: N/A | BP18: N/A | BQ18: N/A | BR18: N/A | BS18: N/A | BT18: N/A
B19: Limited | C19: 14.1 | D19: 8 | E19: 3.2 | F19: 3.9 | G19: 2.1 | H19: 10.4 | I19: 7.6 | J19: 7.6 | K19: 3.2 | L19: 1.7 | M19: 15.8 | N19: 9.5 | O19: 2.2 | P19: 2.1 | Q19: 1.9 | R19: 8.2 | S19: 9.3 | T19: 2.8 | BB19: Limited | BC19: N/A | BD19: N/A | BE19: N/A | BF19: N/A | BG19: N/A | BH19: N/A | BI19: N/A | BJ19: N/A | BK19: N/A | BL19: N/A | BM19: N/A | BN19: N/A | BO19: N/A | BP19: N/A | BQ19: N/A | BR19: N/A | BS19: N/A | BT19: N/A
B20: Unimproved | C20: 13.5 | D20: 8.9 | E20: 9.7 | F20: 6.4 | G20: 5.1 | H20: 7.7 | I20: 0.6 | J20: 0.5 | K20: 0.8 | L20: 1.3 | M20: 13.6 | N20: 11.6 | O20: 12.1 | P20: 12.2 | Q20: 9 | R20: 6.5 | S20: 8 | T20: 9.8 | BB20: Unimproved | BC20: N/A | BD20: N/A | BE20: N/A | BF20: N/A | BG20: N/A | BH20: N/A | BI20: N/A | BJ20: N/A | BK20: N/A | BL20: N/A | BM20: N/A | BN20: N/A | BO20: N/A | BP20: N/A | BQ20: N/A | BR20: N/A | BS20: N/A | BT20: N/A
B21: Surface water | C21: 2.5 | D21: 1.2 | E21: 0.3 | F21: 0 | G21: 0.2 | H21: 0.6 | I21: 0.3 | J21: 0 | K21: 0 | L21: 0.3 | M21: 3 | N21: 1.5 | O21: 0.6 | P21: 0.1 | Q21: 0.2 | R21: 2 | S21: 1.5 | T21: 0 | BB21: Surface water | BC21: N/A | BD21: N/A | BE21: N/A | BF21: N/A | BG21: N/A | BH21: N/A | BI21: N/A | BJ21: N/A | BK21: N/A | BL21: N/A | BM21: N/A | BN21: N/A | BO21: N/A | BP21: N/A | BQ21: N/A | BR21: N/A | BS21: N/A | BT21: N/A
A22: Improved water point at more than 30 minutes | B22: Yes | C22: 16.7 | D22: 8.9 | E22: 3.5 | F22: 4.1 | G22: 2.2 | H22: 11.4 | I22: 7.6 | J22: 7.6 | K22: 3.2 | L22: 1.7 | M22: 19 | N22: 10.9 | O22: 2.5 | P22: 2.4 | Q22: 2.1 | R22: 8.9 | S22: 10.2 | T22: 3.1 | BA22: Improved water point at more than 30 minutes | BB22: Yes | BC22: N/A | BD22: N/A | BE22: N/A | BF22: N/A | BG22: N/A | BH22: N/A | BI22: N/A | BJ22: N/A | BK22: N/A | BL22: N/A | BM22: N/A | BN22: N/A | BO22: N/A | BP22: N/A | BQ22: N/A | BR22: N/A | BS22: N/A | BT22: N/A
B23: No | C23: 83.3 | D23: 91.1 | E23: 96.5 | F23: 95.9 | G23: 97.8 | H23: 88.6 | I23: 92.4 | J23: 92.4 | K23: 96.8 | L23: 98.3 | M23: 81 | N23: 89.1 | O23: 97.5 | P23: 97.6 | Q23: 97.9 | R23: 91.1 | S23: 89.8 | T23: 96.9 | BB23: No | BC23: N/A | BD23: N/A | BE23: N/A | BF23: N/A | BG23: N/A | BH23: N/A | BI23: N/A | BJ23: N/A | BK23: N/A | BL23: N/A | BM23: N/A | BN23: N/A | BO23: N/A | BP23: N/A | BQ23: N/A | BR23: N/A | BS23: N/A | BT23: N/A
A24: Manually calculated ratios | B24: Improved wells
B25: Improved springs
B26: Other
C27: NATIONAL wealth index quintile | H27: URBAN wealth index quintile | M27: RURAL wealth index quintile | R27: SUB-REGIONS: | BA27: Raw numbers of respondents: | BB27: Use of drinking water sources | BC27: NATIONAL wealth index quintile | BH27: URBAN wealth index quintile | BM27: RURAL wealth index quintile | BR27: SUB-REGIONS:
A28: Percentage based on weighted population | C28: Poorest | D28: Poor | E28: Middle | F28: Rich | G28: Richest | H28: Poorest | I28: Poor | J28: Middle | K28: Rich | L28: Richest | M28: Poorest | N28: Poor | O28: Middle | P28: Rich | Q28: Richest | R28: Mohéli | S28: Ndzouani | T28: Ngazidja | BA28: Water data, raw numbers (weighted) | BC28: Poorest | BD28: Poor | BE28: Middle | BF28: Rich | BG28: Richest | BH28: Poorest | BI28: Poor | BJ28: Middle | BK28: Rich | BL28: Richest | BM28: Poorest | BN28: Poor | BO28: Middle | BP28: Rich | BQ28: Richest | BR28: Mohéli | BS28: Ndzouani | BT28: Ngazidja
A29: Piped water | B29: Yes | C29: 69.2 | D29: 56.5 | E29: 57.1 | F29: 57 | G29: 52.9 | H29: 87 | I29: 87.1 | J29: 83.4 | K29: 82.9 | L29: 73.2 | M29: 68.4 | N29: 52.4 | O29: 40.1 | P29: 45.9 | Q29: 30.6 | R29: 89.1 | S29: 86 | T29: 25.8 | BA29: Piped water | BB29: Yes | BC29: N/A | BD29: N/A | BE29: N/A | BF29: N/A | BG29: N/A | BH29: N/A | BI29: N/A | BJ29: N/A | BK29: N/A | BL29: N/A | BM29: N/A | BN29: N/A | BO29: N/A | BP29: N/A | BQ29: N/A | BR29: N/A | BS29: N/A | BT29: N/A
B30: No | C30: 30.8 | D30: 43.5 | E30: 42.9 | F30: 43 | G30: 47.1 | H30: 13 | I30: 12.9 | J30: 16.6 | K30: 17.1 | L30: 26.8 | M30: 31.6 | N30: 47.6 | O30: 59.9 | P30: 54.1 | Q30: 69.4 | R30: 10.9 | S30: 14 | T30: 74.2 | BB30: No | BC30: N/A | BD30: N/A | BE30: N/A | BF30: N/A | BG30: N/A | BH30: N/A | BI30: N/A | BJ30: N/A | BK30: N/A | BL30: N/A | BM30: N/A | BN30: N/A | BO30: N/A | BP30: N/A | BQ30: N/A | BR30: N/A | BS30: N/A | BT30: N/A
A31: Piped water on premises | B31: Yes | C31: 35.7 | D31: 29.8 | E31: 36.8 | F31: 39.8 | G31: 45.5 | H31: 50.6 | I31: 48.8 | J31: 54.5 | K31: 68.6 | L31: 67.1 | M31: 33.3 | N31: 25.6 | O31: 27.5 | P31: 31.3 | Q31: 23.1 | R31: 64.1 | S31: 60.7 | T31: 9.7 | BA31: Piped water on premises | BB31: Yes | BC31: N/A | BD31: N/A | BE31: N/A | BF31: N/A | BG31: N/A | BH31: N/A | BI31: N/A | BJ31: N/A | BK31: N/A | BL31: N/A | BM31: N/A | BN31: N/A | BO31: N/A | BP31: N/A | BQ31: N/A | BR31: N/A | BS31: N/A | BT31: N/A
B32: No | C32: 64.3 | D32: 70.2 | E32: 63.2 | F32: 60.2 | G32: 54.5 | H32: 49.4 | I32: 51.2 | J32: 45.5 | K32: 31.4 | L32: 32.9 | M32: 66.7 | N32: 74.4 | O32: 72.5 | P32: 68.7 | Q32: 76.9 | R32: 35.9 | S32: 39.3 | T32: 90.3 | BB32: No | BC32: N/A | BD32: N/A | BE32: N/A | BF32: N/A | BG32: N/A | BH32: N/A | BI32: N/A | BJ32: N/A | BK32: N/A | BL32: N/A | BM32: N/A | BN32: N/A | BO32: N/A | BP32: N/A | BQ32: N/A | BR32: N/A | BS32: N/A | BT32: N/A
A33: Piped water into dwelling | B33: Yes | C33: N/A | D33: N/A | E33: N/A | F33: N/A | G33: N/A | H33: N/A | I33: N/A | J33: N/A | K33: N/A | L33: N/A | M33: N/A | N33: N/A | O33: N/A | P33: N/A | Q33: N/A | R33: N/A | S33: N/A | T33: N/A | BA33: Piped water into dwelling | BB33: Yes | BC33: N/A | BD33: N/A | BE33: N/A | BF33: N/A | BG33: N/A | BH33: N/A | BI33: N/A | BJ33: N/A | BK33: N/A | BL33: N/A | BM33: N/A | BN33: N/A | BO33: N/A | BP33: N/A | BQ33: N/A | BR33: N/A | BS33: N/A | BT33: N/A
B34: No | C34: N/A | D34: N/A | E34: N/A | F34: N/A | G34: N/A | H34: N/A | I34: N/A | J34: N/A | K34: N/A | L34: N/A | M34: N/A | N34: N/A | O34: N/A | P34: N/A | Q34: N/A | R34: N/A | S34: N/A | T34: N/A | BB34: No | BC34: N/A | BD34: N/A | BE34: N/A | BF34: N/A | BG34: N/A | BH34: N/A | BI34: N/A | BJ34: N/A | BK34: N/A | BL34: N/A | BM34: N/A | BN34: N/A | BO34: N/A | BP34: N/A | BQ34: N/A | BR34: N/A | BS34: N/A | BT34: N/A
A35: Water source on premises | B35: Yes | C35: 46.5 | D35: 58.6 | E35: 65.7 | F35: 75.9 | G35: 89.1 | H35: 53.7 | I35: 57.1 | J35: 70.2 | K35: 86.4 | L35: 91 | M35: 43.4 | N35: 56 | O35: 68 | P35: 72 | Q35: 86 | R35: 64.8 | S35: 64 | T35: 70.8 | BA35: Water source on premises | BB35: Yes | BC35: N/A | BD35: N/A | BE35: N/A | BF35: N/A | BG35: N/A | BH35: N/A | BI35: N/A | BJ35: N/A | BK35: N/A | BL35: N/A | BM35: N/A | BN35: N/A | BO35: N/A | BP35: N/A | BQ35: N/A | BR35: N/A | BS35: N/A | BT35: N/A
B36: No | C36: 53.5 | D36: 41.4 | E36: 34.3 | F36: 24.1 | G36: 10.9 | H36: 46.3 | I36: 42.9 | J36: 29.8 | K36: 13.6 | L36: 9 | M36: 56.6 | N36: 44 | O36: 32 | P36: 28 | Q36: 14 | R36: 35.2 | S36: 36 | T36: 29.2 | BB36: No | BC36: N/A | BD36: N/A | BE36: N/A | BF36: N/A | BG36: N/A | BH36: N/A | BI36: N/A | BJ36: N/A | BK36: N/A | BL36: N/A | BM36: N/A | BN36: N/A | BO36: N/A | BP36: N/A | BQ36: N/A | BR36: N/A | BS36: N/A | BT36: N/A
A37: Improved Water source on premises | B37: Yes | C37: 46 | D37: 56.9 | E37: 63.2 | F37: 73.2 | G37: 85.7 | H37: 53.7 | I37: 57.1 | J37: 70.2 | K37: 86.1 | L37: 90.7 | M37: 42.9 | N37: 54.1 | O37: 64.8 | P37: 68.2 | Q37: 80.1 | R37: 64.8 | S37: 63.8 | T37: 66.3 | BA37: Improved water source on premises | BB37: Yes | BC37: N/A | BD37: N/A | BE37: N/A | BF37: N/A | BG37: N/A | BH37: N/A | BI37: N/A | BJ37: N/A | BK37: N/A | BL37: N/A | BM37: N/A | BN37: N/A | BO37: N/A | BP37: N/A | BQ37: N/A | BR37: N/A | BS37: N/A | BT37: N/A
B38: No | C38: 54 | D38: 43.1 | E38: 36.8 | F38: 26.8 | G38: 14.3 | H38: 46.3 | I38: 42.9 | J38: 29.8 | K38: 13.9 | L38: 9.3 | M38: 57.1 | N38: 45.9 | O38: 35.2 | P38: 31.8 | Q38: 19.9 | R38: 35.2 | S38: 36.2 | T38: 33.7 | BB38: No | BC38: N/A | BD38: N/A | BE38: N/A | BF38: N/A | BG38: N/A | BH38: N/A | BI38: N/A | BJ38: N/A | BK38: N/A | BL38: N/A | BM38: N/A | BN38: N/A | BO38: N/A | BP38: N/A | BQ38: N/A | BR38: N/A | BS38: N/A | BT38: N/A
A39: Piped water on premises available when needed | B39: Yes | C39: N/A | D39: N/A | E39: N/A | F39: N/A | G39: N/A | H39: N/A | I39: N/A | J39: N/A | K39: N/A | L39: N/A | M39: N/A | N39: N/A | O39: N/A | P39: N/A | Q39: N/A | R39: N/A | S39: N/A | T39: N/A | BA39: Piped water on premises available when needed | BB39: Yes | BC39: N/A | BD39: N/A | BE39: N/A | BF39: N/A | BG39: N/A | BH39: N/A | BI39: N/A | BJ39: N/A | BK39: N/A | BL39: N/A | BM39: N/A | BN39: N/A | BO39: N/A | BP39: N/A | BQ39: N/A | BR39: N/A | BS39: N/A | BT39: N/A
B40: No | C40: N/A | D40: N/A | E40: N/A | F40: N/A | G40: N/A | H40: N/A | I40: N/A | J40: N/A | K40: N/A | L40: N/A | M40: N/A | N40: N/A | O40: N/A | P40: N/A | Q40: N/A | R40: N/A | S40: N/A | T40: N/A | BB40: No | BC40: N/A | BD40: N/A | BE40: N/A | BF40: N/A | BG40: N/A | BH40: N/A | BI40: N/A | BJ40: N/A | BK40: N/A | BL40: N/A | BM40: N/A | BN40: N/A | BO40: N/A | BP40: N/A | BQ40: N/A | BR40: N/A | BS40: N/A | BT40: N/A
A41: Water point at more than 30 minutes | B41: Yes | C41: 20.2 | D41: 10.9 | E41: 5.1 | F41: 5.1 | G41: 2.7 | H41: 12 | I41: 8 | J41: 7.6 | K41: 3.4 | L41: 2.4 | M41: 22.2 | N41: 14.6 | O41: 4.4 | P41: 4.5 | Q41: 3.2 | R41: 10.6 | S41: 14.1 | T41: 3 | BA41: Water point at more than 30 minutes | BB41: Yes | BC41: N/A | BD41: N/A | BE41: N/A | BF41: N/A | BG41: N/A | BH41: N/A | BI41: N/A | BJ41: N/A | BK41: N/A | BL41: N/A | BM41: N/A | BN41: N/A | BO41: N/A | BP41: N/A | BQ41: N/A | BR41: N/A | BS41: N/A | BT41: N/A
B42: No | C42: 79.8 | D42: 89.1 | E42: 94.9 | F42: 94.9 | G42: 97.3 | H42: 88 | I42: 92 | J42: 92.4 | K42: 96.6 | L42: 97.6 | M42: 77.8 | N42: 85.4 | O42: 95.6 | P42: 95.5 | Q42: 96.8 | R42: 89.4 | S42: 85.9 | T42: 97 | BB42: No | BC42: N/A | BD42: N/A | BE42: N/A | BF42: N/A | BG42: N/A | BH42: N/A | BI42: N/A | BJ42: N/A | BK42: N/A | BL42: N/A | BM42: N/A | BN42: N/A | BO42: N/A | BP42: N/A | BQ42: N/A | BR42: N/A | BS42: N/A | BT42: N/A
A43: Water source available when needed | B43: Yes | C43: N/A | D43: N/A | E43: N/A | F43: N/A | G43: N/A | H43: N/A | I43: N/A | J43: N/A | K43: N/A | L43: N/A | M43: N/A | N43: N/A | O43: N/A | P43: N/A | Q43: N/A | R43: N/A | S43: N/A | T43: N/A | BA43: Water source available when needed | BB43: Yes | BC43: N/A | BD43: N/A | BE43: N/A | BF43: N/A | BG43: N/A | BH43: N/A | BI43: N/A | BJ43: N/A | BK43: N/A | BL43: N/A | BM43: N/A | BN43: N/A | BO43: N/A | BP43: N/A | BQ43: N/A | BR43: N/A | BS43: N/A | BT43: N/A
B44: No | C44: N/A | D44: N/A | E44: N/A | F44: N/A | G44: N/A | H44: N/A | I44: N/A | J44: N/A | K44: N/A | L44: N/A | M44: N/A | N44: N/A | O44: N/A | P44: N/A | Q44: N/A | R44: N/A | S44: N/A | T44: N/A | BB44: No | BC44: N/A | BD44: N/A | BE44: N/A | BF44: N/A | BG44: N/A | BH44: N/A | BI44: N/A | BJ44: N/A | BK44: N/A | BL44: N/A | BM44: N/A | BN44: N/A | BO44: N/A | BP44: N/A | BQ44: N/A | BR44: N/A | BS44: N/A | BT44: N/A
A45: Improved water source available when needed | B45: Yes | C45: N/A | D45: N/A | E45: N/A | F45: N/A | G45: N/A | H45: N/A | I45: N/A | J45: N/A | K45: N/A | L45: N/A | M45: N/A | N45: N/A | O45: N/A | P45: N/A | Q45: N/A | R45: N/A | S45: N/A | T45: N/A | BA45: Improved water source available when needed | BB45: Yes | BC45: N/A | BD45: N/A | BE45: N/A | BF45: N/A | BG45: N/A | BH45: N/A | BI45: N/A | BJ45: N/A | BK45: N/A | BL45: N/A | BM45: N/A | BN45: N/A | BO45: N/A | BP45: N/A | BQ45: N/A | BR45: N/A | BS45: N/A | BT45: N/A
B46: No | C46: N/A | D46: N/A | E46: N/A | F46: N/A | G46: N/A | H46: N/A | I46: N/A | J46: N/A | K46: N/A | L46: N/A | M46: N/A | N46: N/A | O46: N/A | P46: N/A | Q46: N/A | R46: N/A | S46: N/A | T46: N/A | BB46: No | BC46: N/A | BD46: N/A | BE46: N/A | BF46: N/A | BG46: N/A | BH46: N/A | BI46: N/A | BJ46: N/A | BK46: N/A | BL46: N/A | BM46: N/A | BN46: N/A | BO46: N/A | BP46: N/A | BQ46: N/A | BR46: N/A | BS46: N/A | BT46: N/A
A47: Microbiological quality at point of collection | B47: Not contaminated (No E. coli in 100 mL) | C47: N/A | D47: N/A | E47: N/A | F47: N/A | G47: N/A | H47: N/A | I47: N/A | J47: N/A | K47: N/A | L47: N/A | M47: N/A | N47: N/A | O47: N/A | P47: N/A | Q47: N/A | R47: N/A | S47: N/A | T47: N/A | BA47: Microbiological quality at point of collection | BB47: Not contaminated (No E. coli in 100 mL) | BC47: N/A | BD47: N/A | BE47: N/A | BF47: N/A | BG47: N/A | BH47: N/A | BI47: N/A | BJ47: N/A | BK47: N/A | BL47: N/A | BM47: N/A | BN47: N/A | BO47: N/A | BP47: N/A | BQ47: N/A | BR47: N/A | BS47: N/A | BT47: N/A
B48: Contaminated (E. coli detected in 100 mL) | C48: N/A | D48: N/A | E48: N/A | F48: N/A | G48: N/A | H48: N/A | I48: N/A | J48: N/A | K48: N/A | L48: N/A | M48: N/A | N48: N/A | O48: N/A | P48: N/A | Q48: N/A | R48: N/A | S48: N/A | T48: N/A | BB48: Contaminated (E. coli detected in 100 mL) | BC48: N/A | BD48: N/A | BE48: N/A | BF48: N/A | BG48: N/A | BH48: N/A | BI48: N/A | BJ48: N/A | BK48: N/A | BL48: N/A | BM48: N/A | BN48: N/A | BO48: N/A | BP48: N/A | BQ48: N/A | BR48: N/A | BS48: N/A | BT48: N/A
B49: Highly contaminated (>100 CFU/100 mL) | C49: N/A | D49: N/A | E49: N/A | F49: N/A | G49: N/A | H49: N/A | I49: N/A | J49: N/A | K49: N/A | L49: N/A | M49: N/A | N49: N/A | O49: N/A | P49: N/A | Q49: N/A | R49: N/A | S49: N/A | T49: N/A | BB49: Highly contaminated (>100 CFU/100 mL) | BC49: N/A | BD49: N/A | BE49: N/A | BF49: N/A | BG49: N/A | BH49: N/A | BI49: N/A | BJ49: N/A | BK49: N/A | BL49: N/A | BM49: N/A | BN49: N/A | BO49: N/A | BP49: N/A | BQ49: N/A | BR49: N/A | BS49: N/A | BT49: N/A
A50: Microbiological quality of improved water sources at point of collection | B50: Not contaminated (No E. coli in 100 mL) | C50: N/A | D50: N/A | E50: N/A | F50: N/A | G50: N/A | H50: N/A | I50: N/A | J50: N/A | K50: N/A | L50: N/A | M50: N/A | N50: N/A | O50: N/A | P50: N/A | Q50: N/A | R50: N/A | S50: N/A | T50: N/A | BA50: Microbiological quality of improved water sources at point of collection | BB50: Not contaminated (No E. coli in 100 mL) | BC50: N/A | BD50: N/A | BE50: N/A | BF50: N/A | BG50: N/A | BH50: N/A | BI50: N/A | BJ50: N/A | BK50: N/A | BL50: N/A | BM50: N/A | BN50: N/A | BO50: N/A | BP50: N/A | BQ50: N/A | BR50: N/A | BS50: N/A | BT50: N/A
B51: Contaminated (E. coli detected in 100 mL) | C51: N/A | D51: N/A | E51: N/A | F51: N/A | G51: N/A | H51: N/A | I51: N/A | J51: N/A | K51: N/A | L51: N/A | M51: N/A | N51: N/A | O51: N/A | P51: N/A | Q51: N/A | R51: N/A | S51: N/A | T51: N/A | BB51: Contaminated (E. coli detected in 100 mL) | BC51: N/A | BD51: N/A | BE51: N/A | BF51: N/A | BG51: N/A | BH51: N/A | BI51: N/A | BJ51: N/A | BK51: N/A | BL51: N/A | BM51: N/A | BN51: N/A | BO51: N/A | BP51: N/A | BQ51: N/A | BR51: N/A | BS51: N/A | BT51: N/A
B52: Highly contaminated (>100 CFU/100 mL) | C52: N/A | D52: N/A | E52: N/A | F52: N/A | G52: N/A | H52: N/A | I52: N/A | J52: N/A | K52: N/A | L52: N/A | M52: N/A | N52: N/A | O52: N/A | P52: N/A | Q52: N/A | R52: N/A | S52: N/A | T52: N/A | BB52: Highly contaminated (>100 CFU/100 mL) | BC52: N/A | BD52: N/A | BE52: N/A | BF52: N/A | BG52: N/A | BH52: N/A | BI52: N/A | BJ52: N/A | BK52: N/A | BL52: N/A | BM52: N/A | BN52: N/A | BO52: N/A | BP52: N/A | BQ52: N/A | BR52: N/A | BS52: N/A | BT52: N/A
A53: Microbiological quality of piped on premises at point of collection | B53: Not contaminated (No E. coli in 100 mL) | C53: N/A | D53: N/A | E53: N/A | F53: N/A | G53: N/A | H53: N/A | I53: N/A | J53: N/A | K53: N/A | L53: N/A | M53: N/A | N53: N/A | O53: N/A | P53: N/A | Q53: N/A | R53: N/A | S53: N/A | T53: N/A | BA53: Microbiological quality of piped on premises at point of collection | BB53: Not contaminated (No E. coli in 100 mL) | BC53: N/A | BD53: N/A | BE53: N/A | BF53: N/A | BG53: N/A | BH53: N/A | BI53: N/A | BJ53: N/A | BK53: N/A | BL53: N/A | BM53: N/A | BN53: N/A | BO53: N/A | BP53: N/A | BQ53: N/A | BR53: N/A | BS53: N/A | BT53: N/A
B54: Contaminated (E. coli detected in 100 mL) | C54: N/A | D54: N/A | E54: N/A | F54: N/A | G54: N/A | H54: N/A | I54: N/A | J54: N/A | K54: N/A | L54: N/A | M54: N/A | N54: N/A | O54: N/A | P54: N/A | Q54: N/A | R54: N/A | S54: N/A | T54: N/A | BB54: Contaminated (E. coli detected in 100 mL) | BC54: N/A | BD54: N/A | BE54: N/A | BF54: N/A | BG54: N/A | BH54: N/A | BI54: N/A | BJ54: N/A | BK54: N/A | BL54: N/A | BM54: N/A | BN54: N/A | BO54: N/A | BP54: N/A | BQ54: N/A | BR54: N/A | BS54: N/A | BT54: N/A
B55: Highly contaminated (>100 CFU/100 mL) | C55: N/A | D55: N/A | E55: N/A | F55: N/A | G55: N/A | H55: N/A | I55: N/A | J55: N/A | K55: N/A | L55: N/A | M55: N/A | N55: N/A | O55: N/A | P55: N/A | Q55: N/A | R55: N/A | S55: N/A | T55: N/A | BB55: Highly contaminated (>100 CFU/100 mL) | BC55: N/A | BD55: N/A | BE55: N/A | BF55: N/A | BG55: N/A | BH55: N/A | BI55: N/A | BJ55: N/A | BK55: N/A | BL55: N/A | BM55: N/A | BN55: N/A | BO55: N/A | BP55: N/A | BQ55: N/A | BR55: N/A | BS55: N/A | BT55: N/A
C56: NATIONAL wealth index quintile | H56: URBAN wealth index quintile | M56: RURAL wealth index quintile | R56: SUB-REGIONS: | BA56: Raw numbers of respondents: | BB56: Use of drinking water sources | BC56: NATIONAL wealth index quintile | BH56: URBAN wealth index quintile | BM56: RURAL wealth index quintile | BR56: SUB-REGIONS:
A57: Percentage based on weighted population | C57: Poorest | D57: Poor | E57: Middle | F57: Rich | G57: Richest | H57: Poorest | I57: Poor | J57: Middle | K57: Rich | L57: Richest | M57: Poorest | N57: Poor | O57: Middle | P57: Rich | Q57: Richest | R57: Mohéli | S57: Ndzouani | T57: Ngazidja | BA57: Water data, raw numbers (weighted) | BC57: Poorest | BD57: Poor | BE57: Middle | BF57: Rich | BG57: Richest | BH57: Poorest | BI57: Poor | BJ57: Middle | BK57: Rich | BL57: Richest | BM57: Poorest | BN57: Poor | BO57: Middle | BP57: Rich | BQ57: Richest | BR57: Mohéli | BS57: Ndzouani | BT57: Ngazidja
A58: Source of drinking water | B58: Piped into dwelling | C58: 6.515724296 | D58: 6.540635254 | E58: 15.20720037 | F58: 16.94612644 | G58: 21.14717723 | H58: 7.663244538 | I58: 22.11291474 | J58: 20.28169358 | K58: 28.47998734 | L58: 33.41178546 | M58: 6.254130396 | N58: 5.463430692 | O58: 9.603313911 | P58: 13.36614408 | Q58: 10.82493078 | R58: 14.09719678 | S58: 19.11183316 | T58: 7.113140699
B59: Piped to yard/plot | C59: 29.14422713 | D59: 23.27351081 | E59: 21.64279869 | F59: 22.83785145 | G59: 24.39972777 | H59: 42.92506516 | I59: 26.80689716 | J59: 34.20134413 | K59: 40.14549727 | L59: 33.92359484 | M59: 27.00159257 | N59: 20.17870494 | O59: 17.93233459 | P59: 17.97840182 | Q59: 12.2796592 | R59: 50.2842136 | S59: 41.6432729 | T59: 2.55902691
B60: Public tap/standpipe | C60: 33.49505271 | D60: 26.72894974 | E60: 20.36285035 | F60: 17.22651629 | G60: 7.482472959 | H60: 36.38475909 | I60: 38.40135255 | J60: 28.90637289 | K60: 14.31620373 | L60: 6.065261344 | M60: 35.10975701 | N60: 26.84369788 | O60: 12.58266745 | P60: 14.68513034 | Q60: 7.486551271 | R60: 25.09717432 | S60: 25.29925568 | T60: 16.10696116
B61: Tube well or borehole | C61: 0.4562897052 | D61: 0.1556088518 | E61: 1.412348398 | F61: 0.5225542126 | G61: 0.1688054849 | H61: 0.6716851635 | I61: 2.716499453 | J61: 0 | K61: 0.5356304692 | L61: 0 | M61: 0.3195216737 | N61: 0.1630585287 | O61: 0.9146401072 | P61: 0.7633095121 | Q61: 0 | R61: 1.64219697 | S61: 0.2918715621 | T61: 0.6443416566
B62: Protected well | C62: 2.551363342 | D62: 5.923097632 | E62: 6.188717731 | F62: 8.468390802 | G62: 11.53093817 | H62: 0.9199438662 | I62: 0.2669012074 | J62: 1.444541158 | K62: 1.797948138 | L62: 6.974767005 | M62: 1.811820178 | N62: 6.991362301 | O62: 9.113513054 | P62: 8.367023395 | Q62: 19.02048314 | R62: 0.7696383 | S62: 0.1079362083 | T62: 14.86691862
B63: Unprotected well | C63: 1.811032317 | D63: 2.105166278 | E63: 3.144645477 | F63: 2.500972179 | G63: 3.292547108 | H63: 0.347198284 | I63: 0.0951401342 | J63: 0 | K63: 0 | L63: 0 | M63: 1.908683468 | N63: 2.869461416 | O63: 3.968245109 | P63: 4.009814817 | Q63: 5.768112341 | R63: 2.241377714 | S63: 0 | T63: 5.272825069
B64: Protected spring | C64: 3.004530982 | D64: 3.49080079 | E64: 3.105407962 | F64: 4.565250719 | G64: 5.81309631 | H64: 0.413472797 | I64: 1.418951213 | J64: 0.7786866145 | K64: 2.998167699 | L64: 2.864951299 | M64: 3.834499167 | N64: 2.342650295 | O64: 5.558111487 | P64: 5.49961222 | Q64: 8.002830081 | R64: 0 | S64: 1.871511146 | T64: 6.763991453
B65: Unprotected spring | C65: 3.682133319 | D65: 2.096768387 | E65: 2.631456447 | F65: 1.801049623 | G65: 0.8387337924 | H65: 0.3876407525 | I65: 0 | J65: 0 | K65: 0.2518750284 | L65: 0.966274151 | M65: 3.541356823 | N65: 4.130690945 | O65: 3.014113217 | P65: 3.084730772 | Q65: 1.590677828 | R65: 1.681286535 | S65: 1.923566661 | T65: 2.581909539
B66: River/dam/lake/ponds/stream/canal/irrigation channel | C66: 2.453125958 | D66: 1.184813955 | E66: 0.2713663567 | F66: 0 | G66: 0.2279990677 | H66: 0.619283477 | I66: 0.3466061039 | J66: 0 | K66: 0 | L66: 0.2529478904 | M66: 2.995368373 | N66: 1.508901517 | O66: 0.6462351528 | P66: 0.09922490614 | Q66: 0.2162184837 | R66: 2.044628127 | S66: 1.45862928 | T66: 0
B67: Rainwater | C67: 7.213212678 | D67: 20.81389685 | E67: 19.47289133 | F67: 18.47876796 | G67: 19.67927765 | H67: 1.688733766 | I67: 4.709708473 | J67: 9.460868794 | K67: 9.531135265 | L67: 10.87586349 | M67: 6.961179229 | N67: 21.88254904 | O67: 27.90753583 | P67: 24.06379431 | Q67: 27.44148545 | R67: 0 | S67: 1.493007546 | T67: 35.75252355
B68: Tanker truck | C68: 0.8121838929 | D68: 2.962509845 | E68: 2.705782109 | F68: 3.971489872 | G68: 3.277035303 | H68: 0.3456984959 | I68: 2.464733566 | J68: 2.936852688 | K68: 1.379193555 | L68: 2.721355546 | M68: 0.8334839452 | N68: 3.15239021 | O68: 3.731755858 | P68: 2.981922467 | Q68: 4.814609987 | R68: 0 | S68: 0.0333737754 | T68: 5.944398834
B69: Cart with small tank | C69: 0.4113368016 | D69: 0.1985438749 | E69: 0.1284499798 | F69: 0.4193194927 | G69: 0.07937914056 | H69: 0.6344046514 | I69: 0.4085520411 | J69: 1.344282174 | K69: 0 | L69: 0.2529478904 | M69: 0.598286478 | N69: 0 | O69: 0 | P69: 0 | Q69: 0 | R69: 0 | S69: 0.5121279808 | T69: 0.009873825507
B70: Bottled water | C70: 0.5398601007 | D70: 0 | E70: 0.03050262682 | F70: 0.1636623488 | G70: 1.224424536 | H70: 0 | I70: 0 | J70: 0.1567484647 | K70: 0 | L70: 1.690251077 | M70: 0.7707574671 | N70: 0.01446170231 | O70: 0 | P70: 0.2120012955 | Q70: 1.009654979 | R70: 0 | S70: 0.3359968457 | T70: 0.5042595245
B71: Other | C71: 7.909926768 | D71: 4.525697731 | E71: 3.695582178 | F71: 2.098048622 | G71: 0.8383854892 | H71: 6.998869964 | I71: 0.2517433654 | J71: 0.4886094977 | K71: 0.564361504 | L71: 0 | M71: 8.059563226 | N71: 4.458640534 | O71: 5.027534237 | P71: 4.888890072 | Q71: 1.544786458 | R71: 2.142287649 | S71: 5.917617257 | T71: 1.879829152
A108: =A1026 -> Comoros
A109: =A1034 -> 2012
A110: Use of sanitation facilities
A111: by wealth quintile and sub-national region
A112: Notes:
A113: WHO/UNICEF JMP customised wealth index excludes water,
A114: sanitation and hygiene assets.
A115: Survey used for analysis: | B115: =A1025 -> DHS12
A116: =B1030 -> 
A117: =B1029 -> 
A120: Use of sanitation facilities | C120: NATIONAL wealth index quintile | H120: URBAN wealth index quintile | M120: RURAL wealth index quintile | R120: SUB-REGIONS: | BA120: Raw numbers of respondents: | BB120: Use of sanitation facilities | BC120: NATIONAL wealth index quintile | BH120: URBAN wealth index quintile | BM120: RURAL wealth index quintile | BR120: SUB-REGIONS:
A121: Weighted percentage (used in graphs) | C121: Poorest | D121: Poor | E121: Middle | F121: Rich | G121: Richest | H121: Poorest | I121: Poor | J121: Middle | K121: Rich | L121: Richest | M121: Poorest | N121: Poor | O121: Middle | P121: Rich | Q121: Richest | R121: Mohéli | S121: Ndzouani | T121: Ngazidja | BA121: Sanitation data, raw numbers (weighted) | BC121: Poorest | BD121: Poor | BE121: Middle | BF121: Rich | BG121: Richest | BH121: Poorest | BI121: Poor | BJ121: Middle | BK121: Rich | BL121: Richest | BM121: Poorest | BN121: Poor | BO121: Middle | BP121: Rich | BQ121: Richest | BR121: Mohéli | BS121: Ndzouani | BT121: Ngazidja
A122: Sanitation | B122: Improved | C122: =C153+C154+C155+C157+C158+C159+C162 -> 33.36663861 | D122: =D153+D154+D155+D157+D158+D159+D162 -> 29.19830882 | E122: 29.98559898 | F122: 39.6596945 | G122: 59.40572701 | H122: 36.59197643 | I122: 40.32024495 | J122: 48.91138309 | K122: 63.46172084 | L122: 74.97247961 | M122: 31.63982561 | N122: 29.8769702 | O122: 24.63096681 | P122: 29.2433375 | Q122: 42.9298868 | R122: 48.78327873 | S122: 52.21838197 | T122: 22.43508966 | BA122: Sanitation | BB122: Improved | BC122: 1621.892444 | BD122: 1424.871058 | BE122: 1457.551757 | BF122: 1935.406026 | BG122: 2877.419179 | BH122: 557.960102 | BI122: 616.93922 | BJ122: 744.538706 | BK122: 968.092323 | BL122: 1144.497038 | BM122: 1057.382342 | BN122: 999.865163 | BO122: 822.639724 | BP122: 976.968002 | BQ122: 1428.257844 | BR122: 786.91658 | BS122: 6021.998146 | BT122: 2508.225738
B123: Not Improved | C123: 66.63336139 | D123: 70.80169118 | E123: 70.06636793 | F123: 60.3403055 | G123: 40.81360315 | H123: 63.40802357 | I123: 59.69778248 | J123: 51.08861691 | K123: 36.70960256 | L123: 25.09570385 | M123: 68.36017439 | N123: 70.1230298 | O123: 75.36903319 | P123: 70.82438165 | Q123: 57.22991507 | R123: 51.21672127 | S123: 47.89148109 | T123: 77.56907154 | BB123: Not Improved | BC123: 3238.928159 | BD123: 3455.106981 | BE123: 3411.726229 | BF123: 2944.626588 | BG123: 1984.203309 | BH123: 966.855326 | BI123: 913.843099 | BJ123: 777.680988 | BK123: 561.511475 | BL123: 383.44875 | BM123: 2284.552456 | BN123: 2346.743132 | BO123: 2517.219935 | BP123: 2371.608848 | BQ123: 1911.127257 | BR123: 826.170118 | BS123: 5534.649926 | BT123: 8673.771222
A124: Sanitation ladder | B124: Basic | C124: =C122*C129/100 -> 24.16320765 | D124: =D122*D129/100 -> 18.67992533 | E124: =E122*E129/100 -> 22.41648425 | F124: 29.18669554 | G124: 53.27190734 | H124: 23.35968442 | I124: 28.58589479 | J124: 36.21324222 | K124: 48.5612436 | L124: 65.80413162 | M124: 22.91786975 | N124: 19.45505508 | O124: 19.0312496 | P124: 20.91645012 | Q124: 40.24332215 | R124: 39.16510264 | S124: 36.43702479 | T124: 20.98581133 | BA124: Sanitation ladder | BB124: Basic | BC124: 1174.530176 | BD124: 911.576254 | BE124: 1089.629259 | BF124: 1417.201258 | BG124: 2580.31701 | BH124: 356.192072 | BI124: 437.392175 | BJ124: 544.082993 | BK124: 740.789353 | BL124: 1004.537053 | BM124: 765.900264 | BN124: 651.084487 | BO124: 635.617028 | BP124: 698.781474 | BQ124: 1338.877058 | BR124: 631.767061 | BS124: 4195.289358 | BT124: 2346.197538
B125: Limited | C125: =C122*C128/100 -> 9.203430954 | D125: =D122*D128/100 -> 10.51838348 | E125: =E122*E128/100 -> 7.569114736 | F125: 10.47299895 | G125: 6.133819665 | H125: 13.23229201 | I125: 11.73435016 | J125: 12.69814087 | K125: 14.90047724 | L125: 9.168347993 | M125: 8.721955861 | N125: 10.42191512 | O125: 5.599717207 | P125: 8.326887381 | Q125: 2.686564643 | R125: 9.618176084 | S125: 15.78135718 | T125: 1.449278324 | BB125: Limited | BC125: 447.362268 | BD125: 513.294804 | BE125: 367.922498 | BF125: 508.531268 | BG125: 297.102169 | BH125: 201.76803 | BI125: 179.547045 | BJ125: 190.782213 | BK125: 227.30297 | BL125: 139.959985 | BM125: 291.482078 | BN125: 348.780676 | BO125: 187.022696 | BP125: 278.186528 | BQ125: 89.380786 | BR125: 155.149519 | BS125: 1817.035288 | BT125: 162.0282
B126: Unimproved | C126: =100-C124-C125-C127 -> 65.82635041 | D126: =100-D124-D125-D127 -> 70.35182389 | E126: =100-E124-E125-E127 -> 69.26263026 | F126: 59.8731109 | G126: 40.52927311 | H126: 62.85403409 | I126: 58.67855293 | J126: 50.79076135 | K126: 36.39668923 | L126: 24.96244714 | M126: 67.42223859 | N126: 69.50419822 | O126: 75.21752117 | P126: 69.98647566 | Q126: 56.78993468 | R126: 48.57709012 | S126: 47.31228934 | T126: 77.32409567 | BB126: Unimproved | BC126: 3199.700803 | BD126: 3433.153556 | BE126: 3375.120421 | BF126: 2921.872533 | BG126: 1981.04326 | BH126: 958.408009 | BI126: 898.516874 | BJ126: 773.175785 | BK126: 559.34571 | BL126: 382.454466 | BM126: 2253.207253 | BN126: 2326.033263 | BO126: 2512.159646 | BP126: 2345.81855 | BQ126: 1901.771017 | BR126: 783.590579 | BS126: 5480.456661 | BT126: 8646.843333
B127: Open defecation | C127: 0.8070109803 | D127: 0.4498672909 | E127: 0.7517707575 | F127: 0.4671946045 | G127: 0.06499988446 | H127: 0.553989476 | I127: 1.001202118 | J127: 0.2978555642 | K127: 0.1415899335 | L127: 0.06507325115 | M127: 0.9379358035 | N127: 0.6188315803 | O127: 0.151512025 | P127: 0.7701868333 | Q127: 0.2801785274 | R127: 2.639631153 | S127: 0.4693286944 | T127: 0.2408146693 | BB127: Open defecation | BC127: 39.227356 | BD127: 21.953425 | BE127: 36.605808 | BF127: 22.754055 | BG127: 3.160049 | BH127: 8.447317 | BI127: 15.326225 | BJ127: 4.505203 | BK127: 2.165765 | BL127: 0.994284 | BM127: 31.345203 | BN127: 20.709869 | BO127: 5.060289 | BP127: 25.790298 | BQ127: 9.35624 | BR127: 42.579539 | BS127: 54.193265 | BT127: 26.927889
A128: Shared among Improved Sanitation | B128: Yes | C128: 27.58273335 | D128: 36.02394765 | E128: 25.24249971 | F128: 26.40715993 | G128: 10.32530023 | H128: 36.16173079 | I128: 29.10287419 | J128: 25.96152484 | K128: 23.47947242 | L128: 12.22895126 | M128: 27.56638412 | N128: 34.88277109 | O128: 22.73445964 | P128: 28.47447689 | Q128: 6.258028715 | R128: 19.71613293 | S128: 30.22184255 | T128: 6.459873111 | BA128: Shared among improved sanitation facilities | BB128: Yes | BC128: N/A | BD128: N/A | BE128: N/A | BF128: N/A | BG128: N/A | BH128: N/A | BI128: N/A | BJ128: N/A | BK128: N/A | BL128: N/A | BM128: N/A | BN128: N/A | BO128: N/A | BP128: N/A | BQ128: N/A | BR128: N/A | BS128: N/A | BT128: N/A
B129: No | C129: 72.41726665 | D129: 63.97605235 | E129: 74.75750029 | F129: 73.59284007 | G129: 89.67469977 | H129: 63.83826921 | I129: 70.89712581 | J129: 74.03847516 | K129: 76.52052758 | L129: 87.77104874 | M129: 72.43361588 | N129: 65.11722891 | O129: 77.26554036 | P129: 71.52552311 | Q129: 93.74197129 | R129: 80.28386707 | S129: 69.77815745 | T129: 93.54012689 | BB129: No | BC129: N/A | BD129: N/A | BE129: N/A | BF129: N/A | BG129: N/A | BH129: N/A | BI129: N/A | BJ129: N/A | BK129: N/A | BL129: N/A | BM129: N/A | BN129: N/A | BO129: N/A | BP129: N/A | BQ129: N/A | BR129: N/A | BS129: N/A | BT129: N/A
A130: Manually calculated ratios | B130: Improved latrines | C130: =(C159)/(C159+C160+C164)*100 -> 27.73722694 | D130: =(D159)/(D159+D160+D164)*100 -> 26.56102087 | E130: 25.57501647 | F130: 33.46313361 | G130: 34.0763759 | H130: 34.48631703 | I130: 34.73728878 | J130: 43.01255546 | K130: 53.68907754 | L130: 36.59776722 | M130: 25.85054029 | N130: 25.79426018 | O130: 21.64892818 | P130: 24.33373443 | Q130: 25.24409343 | R130: 44.45803737 | S130: 45.03307484 | T130: 10.57831222
B131: Other
B132: Other
C133: NATIONAL wealth index quintile | H133: URBAN wealth index quintile | M133: RURAL wealth index quintile | R133: SUB-REGIONS: | BA133: Raw numbers of respondents: | BB133: Use of sanitation facilities | BC133: NATIONAL wealth index quintile | BH133: URBAN wealth index quintile | BM133: RURAL wealth index quintile | BR133: SUB-REGIONS:
A134: Percentage based on weighted population | C134: Poorest | D134: Poor | E134: Middle | F134: Rich | G134: Richest | H134: Poorest | I134: Poor | J134: Middle | K134: Rich | L134: Richest | M134: Poorest | N134: Poor | O134: Middle | P134: Rich | Q134: Richest | R134: Mohéli | S134: Ndzouani | T134: Ngazidja | BA134: Sanitation data, raw numbers (weighted) | BC134: Poorest | BD134: Poor | BE134: Middle | BF134: Rich | BG134: Richest | BH134: Poorest | BI134: Poor | BJ134: Middle | BK134: Rich | BL134: Richest | BM134: Poorest | BN134: Poor | BO134: Middle | BP134: Rich | BQ134: Richest | BR134: Mohéli | BS134: Ndzouani | BT134: Ngazidja
A135: Sanitation type | B135: Sewer connection | C135: 1.072348195 | D135: 0.4094068219 | E135: 1.607954634 | F135: 3.022843568 | G135: 17.73064602 | H135: 0 | I135: 1.461982656 | J135: 3.179765391 | K135: 8.246990114 | L135: 23.92478155 | M135: 0.7000188637 | N135: 1.201950705 | O135: 0.5355478321 | P135: 2.636693884 | Q135: 12.8056125 | R135: 1.639802934 | S135: 3.104963686 | T135: 6.927486439 | BA135: Sanitation type | BB135: Sewer connection | BC135: N/A | BD135: N/A | BE135: N/A | BF135: N/A | BG135: N/A | BH135: N/A | BI135: N/A | BJ135: N/A | BK135: N/A | BL135: N/A | BM135: N/A | BN135: N/A | BO135: N/A | BP135: N/A | BQ135: N/A | BR135: N/A | BS135: N/A | BT135: N/A
B136: Septic tank connection | C136: 2.672208576 | D136: 1.788226408 | E136: 1.774247933 | F136: 2.904710956 | G136: 13.76285723 | H136: 1.343564514 | I136: 2.619218193 | J136: 2.566641277 | K136: 7.676780167 | L136: 25.26668551 | M136: 2.436026312 | N136: 2.851224601 | O136: 1.140834882 | P136: 1.989412457 | Q136: 6.878885126 | R136: 6.74116141 | S136: 4.1900332 | T136: 4.663122534 | BB136: Septic tank connection | BC136: N/A | BD136: N/A | BE136: N/A | BF136: N/A | BG136: N/A | BH136: N/A | BI136: N/A | BJ136: N/A | BK136: N/A | BL136: N/A | BM136: N/A | BN136: N/A | BO136: N/A | BP136: N/A | BQ136: N/A | BR136: N/A | BS136: N/A | BT136: N/A
B137: Improved latrines | C137: 29.62208184 | D137: 27.00067559 | E137: 26.55142951 | F137: 33.73213997 | G137: 27.6928936 | H137: 35.24841191 | I137: 36.22101667 | J137: 43.16497642 | K137: 47.36662716 | L137: 25.71282909 | M137: 28.50378043 | N137: 25.82379489 | O137: 22.95458409 | P137: 24.54951201 | Q137: 23.08558731 | R137: 40.40231438 | S137: 44.81352202 | T137: 10.84031948 | BB137: Improved latrines | BC137: N/A | BD137: N/A | BE137: N/A | BF137: N/A | BG137: N/A | BH137: N/A | BI137: N/A | BJ137: N/A | BK137: N/A | BL137: N/A | BM137: N/A | BN137: N/A | BO137: N/A | BP137: N/A | BQ137: N/A | BR137: N/A | BS137: N/A | BT137: N/A
B138: Unimproved facilities | C138: 65.82635041 | D138: 70.35182389 | E138: 69.31459717 | F138: 59.874037 | G138: 40.74860327 | H138: 62.85403409 | I138: 58.69658036 | J138: 50.79265418 | K138: 36.56801263 | L138: 25.0306306 | M138: 67.42223859 | N138: 69.50419822 | O138: 75.21752117 | P138: 70.05419481 | Q138: 56.94973654 | R138: 48.57709012 | S138: 47.42254525 | T138: 77.32825688 | BB138: Unimproved facilities | BC138: N/A | BD138: N/A | BE138: N/A | BF138: N/A | BG138: N/A | BH138: N/A | BI138: N/A | BJ138: N/A | BK138: N/A | BL138: N/A | BM138: N/A | BN138: N/A | BO138: N/A | BP138: N/A | BQ138: N/A | BR138: N/A | BS138: N/A | BT138: N/A
B139: Open defecation | C139: 0.8070109803 | D139: 0.4498672909 | E139: 0.7517707575 | F139: 0.4662685027 | G139: 0.06499988446 | H139: 0.553989476 | I139: 1.001202118 | J139: 0.2959627324 | K139: 0.1415899335 | L139: 0.06507325115 | M139: 0.9379358035 | N139: 0.6188315803 | O139: 0.151512025 | P139: 0.7701868333 | Q139: 0.2801785274 | R139: 2.639631153 | S139: 0.4689358425 | T139: 0.2408146693 | BB139: Open defecation | BC139: N/A | BD139: N/A | BE139: N/A | BF139: N/A | BG139: N/A | BH139: N/A | BI139: N/A | BJ139: N/A | BK139: N/A | BL139: N/A | BM139: N/A | BN139: N/A | BO139: N/A | BP139: N/A | BQ139: N/A | BR139: N/A | BS139: N/A | BT139: N/A
A140: Septic tank emptying practices | B140: Not emptied/treated and disposed in situ | C140: N/A | D140: N/A | E140: N/A | F140: N/A | G140: N/A | H140: N/A | I140: N/A | J140: N/A | K140: N/A | L140: N/A | M140: N/A | N140: N/A | O140: N/A | P140: N/A | Q140: N/A | R140: N/A | S140: N/A | T140: N/A | BA140: Septic tank emptying practices | BB140: Not emptied/treated and disposed in situ | BC140: N/A | BD140: N/A | BE140: N/A | BF140: N/A | BG140: N/A | BH140: N/A | BI140: N/A | BJ140: N/A | BK140: N/A | BL140: N/A | BM140: N/A | BN140: N/A | BO140: N/A | BP140: N/A | BQ140: N/A | BR140: N/A | BS140: N/A | BT140: N/A
B141: Emptied and buried on site | C141: N/A | D141: N/A | E141: N/A | F141: N/A | G141: N/A | H141: N/A | I141: N/A | J141: N/A | K141: N/A | L141: N/A | M141: N/A | N141: N/A | O141: N/A | P141: N/A | Q141: N/A | R141: N/A | S141: N/A | T141: N/A | BB141: Emptied and buried on site | BC141: N/A | BD141: N/A | BE141: N/A | BF141: N/A | BG141: N/A | BH141: N/A | BI141: N/A | BJ141: N/A | BK141: N/A | BL141: N/A | BM141: N/A | BN141: N/A | BO141: N/A | BP141: N/A | BQ141: N/A | BR141: N/A | BS141: N/A | BT141: N/A
B142: Emptied and discharged locally | C142: N/A | D142: N/A | E142: N/A | F142: N/A | G142: N/A | H142: N/A | I142: N/A | J142: N/A | K142: N/A | L142: N/A | M142: N/A | N142: N/A | O142: N/A | P142: N/A | Q142: N/A | R142: N/A | S142: N/A | T142: N/A | BB142: Emptied and discharged locally | BC142: N/A | BD142: N/A | BE142: N/A | BF142: N/A | BG142: N/A | BH142: N/A | BI142: N/A | BJ142: N/A | BK142: N/A | BL142: N/A | BM142: N/A | BN142: N/A | BO142: N/A | BP142: N/A | BQ142: N/A | BR142: N/A | BS142: N/A | BT142: N/A
B143: Emptied and removed offsite | C143: N/A | D143: N/A | E143: N/A | F143: N/A | G143: N/A | H143: N/A | I143: N/A | J143: N/A | K143: N/A | L143: N/A | M143: N/A | N143: N/A | O143: N/A | P143: N/A | Q143: N/A | R143: N/A | S143: N/A | T143: N/A | BB143: Emptied and removed offsite | BC143: N/A | BD143: N/A | BE143: N/A | BF143: N/A | BG143: N/A | BH143: N/A | BI143: N/A | BJ143: N/A | BK143: N/A | BL143: N/A | BM143: N/A | BN143: N/A | BO143: N/A | BP143: N/A | BQ143: N/A | BR143: N/A | BS143: N/A | BT143: N/A
A144: Latrine emptying practices | B144: Not emptied/treated and disposed in situ | C144: N/A | D144: N/A | E144: N/A | F144: N/A | G144: N/A | H144: N/A | I144: N/A | J144: N/A | K144: N/A | L144: N/A | M144: N/A | N144: N/A | O144: N/A | P144: N/A | Q144: N/A | R144: N/A | S144: N/A | T144: N/A | BA144: Latrine emptying practices | BB144: Not emptied/treated and disposed in situ | BC144: N/A | BD144: N/A | BE144: N/A | BF144: N/A | BG144: N/A | BH144: N/A | BI144: N/A | BJ144: N/A | BK144: N/A | BL144: N/A | BM144: N/A | BN144: N/A | BO144: N/A | BP144: N/A | BQ144: N/A | BR144: N/A | BS144: N/A | BT144: N/A
B145: Emptied and buried on site | C145: N/A | D145: N/A | E145: N/A | F145: N/A | G145: N/A | H145: N/A | I145: N/A | J145: N/A | K145: N/A | L145: N/A | M145: N/A | N145: N/A | O145: N/A | P145: N/A | Q145: N/A | R145: N/A | S145: N/A | T145: N/A | BB145: Emptied and buried on site | BC145: N/A | BD145: N/A | BE145: N/A | BF145: N/A | BG145: N/A | BH145: N/A | BI145: N/A | BJ145: N/A | BK145: N/A | BL145: N/A | BM145: N/A | BN145: N/A | BO145: N/A | BP145: N/A | BQ145: N/A | BR145: N/A | BS145: N/A | BT145: N/A
B146: Emptied and discharged locally | C146: N/A | D146: N/A | E146: N/A | F146: N/A | G146: N/A | H146: N/A | I146: N/A | J146: N/A | K146: N/A | L146: N/A | M146: N/A | N146: N/A | O146: N/A | P146: N/A | Q146: N/A | R146: N/A | S146: N/A | T146: N/A | BB146: Emptied and discharged locally | BC146: N/A | BD146: N/A | BE146: N/A | BF146: N/A | BG146: N/A | BH146: N/A | BI146: N/A | BJ146: N/A | BK146: N/A | BL146: N/A | BM146: N/A | BN146: N/A | BO146: N/A | BP146: N/A | BQ146: N/A | BR146: N/A | BS146: N/A | BT146: N/A
B147: Emptied and removed offsite | C147: N/A | D147: N/A | E147: N/A | F147: N/A | G147: N/A | H147: N/A | I147: N/A | J147: N/A | K147: N/A | L147: N/A | M147: N/A | N147: N/A | O147: N/A | P147: N/A | Q147: N/A | R147: N/A | S147: N/A | T147: N/A | BB147: Emptied and removed offsite | BC147: N/A | BD147: N/A | BE147: N/A | BF147: N/A | BG147: N/A | BH147: N/A | BI147: N/A | BJ147: N/A | BK147: N/A | BL147: N/A | BM147: N/A | BN147: N/A | BO147: N/A | BP147: N/A | BQ147: N/A | BR147: N/A | BS147: N/A | BT147: N/A
A148: Shared among improved sanitation facilities | B148: Yes | C148: 9.203430954 | D148: 10.51838348 | E148: 7.555996989 | F148: 10.42065306 | G148: 6.111173168 | H148: 13.23229201 | I148: 11.72910366 | J148: 12.5331589 | K148: 14.86025141 | L148: 9.160009871 | M148: 8.721955861 | N148: 10.42191512 | O148: 5.599717207 | P148: 8.307604707 | Q148: 2.676564197 | R148: 9.618176084 | S148: 15.72285733 | T148: 1.449009516 | BA148: Shared among improved sanitation facilities | BB148: Yes | BC148: N/A | BD148: N/A | BE148: N/A | BF148: N/A | BG148: N/A | BH148: N/A | BI148: N/A | BJ148: N/A | BK148: N/A | BL148: N/A | BM148: N/A | BN148: N/A | BO148: N/A | BP148: N/A | BQ148: N/A | BR148: N/A | BS148: N/A | BT148: N/A
B149: No | C149: 24.16320765 | D149: 18.67992533 | E149: 22.37763509 | F149: 29.0408153 | G149: 53.07522368 | H149: 23.35968442 | I149: 28.57311386 | J149: 35.74273774 | K149: 48.43014603 | L149: 65.74428628 | M149: 22.91786975 | N149: 19.45505508 | O149: 19.0312496 | P149: 20.86801365 | Q149: 40.09352074 | R149: 39.16510264 | S149: 36.30195652 | T149: 20.98191894 | BB149: No | BC149: N/A | BD149: N/A | BE149: N/A | BF149: N/A | BG149: N/A | BH149: N/A | BI149: N/A | BJ149: N/A | BK149: N/A | BL149: N/A | BM149: N/A | BN149: N/A | BO149: N/A | BP149: N/A | BQ149: N/A | BR149: N/A | BS149: N/A | BT149: N/A
B150: DK/missing | C150: 66.63336139 | D150: 70.80169118 | E150: 70.06636793 | F150: 60.53853164 | G150: 40.81360315 | H150: 63.40802357 | I150: 59.69778248 | J150: 51.72410337 | K150: 36.70960256 | L150: 25.09570385 | M150: 68.36017439 | N150: 70.1230298 | O150: 75.36903319 | P150: 70.82438165 | Q150: 57.22991507 | R150: 51.21672127 | S150: 47.97518616 | T150: 77.56907154 | BB150: DK/missing | BC150: N/A | BD150: N/A | BE150: N/A | BF150: N/A | BG150: N/A | BH150: N/A | BI150: N/A | BJ150: N/A | BK150: N/A | BL150: N/A | BM150: N/A | BN150: N/A | BO150: N/A | BP150: N/A | BQ150: N/A | BR150: N/A | BS150: N/A | BT150: N/A
A151: Shared among all sanitation facilities | B151: Yes | C151: 21.65531463 | D151: 23.20038583 | E151: 23.8599222 | F151: 19.23438806 | G151: 9.662796695 | H151: 35.94616024 | I151: 39.57666635 | J151: 32.42452338 | K151: 21.99504273 | L151: 11.80953465 | M151: 20.61696681 | N151: 19.85631434 | O151: 15.73949227 | P151: 15.7563256 | Q151: 5.507451967 | R151: 17.21650019 | S151: 29.41555525 | T151: 9.628961463 | BA151: Shared among all sanitation facilities | BB151: Yes | BC151: N/A | BD151: N/A | BE151: N/A | BF151: N/A | BG151: N/A | BH151: N/A | BI151: N/A | BJ151: N/A | BK151: N/A | BL151: N/A | BM151: N/A | BN151: N/A | BO151: N/A | BP151: N/A | BQ151: N/A | BR151: N/A | BS151: N/A | BT151: N/A
B152: No | C152: 78.34468537 | D152: 76.79961417 | E152: 75.91241866 | F152: 80.11088149 | G152: 90.3372033 | H152: 64.05383976 | I152: 60.42333365 | J152: 65.26609879 | K152: 78.00495727 | L152: 88.19046535 | M152: 79.38303319 | N152: 80.14368566 | O152: 84.26050773 | P152: 84.01030582 | Q152: 94.49254803 | R152: 82.78349981 | S152: 70.24054927 | T152: 90.3419246 | BB152: No | BC152: N/A | BD152: N/A | BE152: N/A | BF152: N/A | BG152: N/A | BH152: N/A | BI152: N/A | BJ152: N/A | BK152: N/A | BL152: N/A | BM152: N/A | BN152: N/A | BO152: N/A | BP152: N/A | BQ152: N/A | BR152: N/A | BS152: N/A | BT152: N/A
A153: Type of toilet facility | B153: Flush to piped sewer system | C153: 1.072348195 | D153: 0.4094068219 | E153: 1.610746157 | F153: 3.022843568 | G153: 17.79635141 | H153: 0 | I153: 1.462636609 | J153: 3.179765391 | K153: 8.269314233 | L153: 23.94655967 | M153: 0.7000188637 | N153: 1.201950705 | O153: 0.5355478321 | P153: 2.64281388 | Q153: 12.85345811 | R153: 1.639802934 | S153: 3.11151004 | T153: 6.928771569 | BA153: Type of toilet facility | BB153: Flush to piped sewer system | BC153: 52.124922 | BD153: 19.978963 | BE153: 78.295781 | BF153: 147.515752 | BG153: 861.997074 | BH153: 0 | BI153: 22.379772 | BJ153: 48.403015 | BK153: 126.146274 | BL153: 365.557692 | BM153: 23.394174 | BN153: 40.224582 | BO153: 17.886546 | BP153: 88.291721 | BQ153: 427.628716 | BR153: 26.451443 | BS153: 358.829726 | BT153: 774.631323
B154: Flush to septic tank | C154: 2.672208576 | D154: 1.788226408 | E154: 1.777328153 | F154: 2.904710956 | G154: 13.81385898 | H154: 1.343564514 | I154: 2.620389785 | J154: 2.566641277 | K154: 7.697560762 | L154: 25.28968513 | M154: 2.436026312 | N154: 2.851224601 | O154: 1.140834882 | P154: 1.994030057 | Q154: 6.904586703 | R154: 6.74116141 | S154: 4.198867261 | T154: 4.663987598 | BB154: Flush to septic tank | BC154: 129.891265 | BD154: 87.265056 | BE154: 86.393064 | BF154: 141.750842 | BG154: 669.098162 | BH154: 20.486879 | BI154: 40.094529 | BJ154: 39.069919 | BK154: 117.424321 | BL154: 386.061257 | BM154: 81.410411 | BN154: 95.419319 | BO154: 38.102284 | BP154: 66.617005 | BQ154: 229.712465 | BR154: 108.740778 | BS154: 484.227391 | BT154: 521.43022
B155: Flush to pit latrine | C155: 1.297145403 | D155: 0.5145956764 | E155: 1.419058455 | F155: 1.943318508 | G155: 4.402998356 | H155: 1.530991068 | I155: 3.184890267 | J155: 3.370596321 | K155: 4.109117587 | L155: 7.239598698 | M155: 1.125112256 | N155: 0.6580871455 | O155: 0.7617497619 | P155: 0.3145439175 | Q155: 2.196756907 | R155: 0.4723793835 | S155: 2.721436222 | T155: 1.286043192 | BB155: Flush to pit latrine | BC155: 63.051911 | BD155: 25.112156 | BE155: 68.97815 | BF155: 94.834577 | BG155: 213.266844 | BH155: 23.344788 | BI155: 48.731939 | BJ155: 51.307881 | BK155: 62.683538 | BL155: 110.516543 | BM155: 37.600518 | BN155: 22.023599 | BO155: 25.441373 | BP155: 10.508354 | BQ155: 73.085105 | BR155: 7.619889 | BS155: 313.845111 | BT155: 143.778638
B156: Flush to somewhere else | C156: 0.7761041619 | D156: 0.2044802645 | E156: 0.1368988295 | F156: 0.02664080556 | G156: 1.055445643 | H156: 1.034292657 | I156: 0.3102538739 | J156: 0 | K156: 0.3904966147 | L156: 0.3778474706 | M156: 0.656924157 | N156: 0.2981703002 | O156: 0.05710551325 | P156: 0 | Q156: 1.223263942 | R156: 0.06537714317 | S156: 0.4538567616 | T156: 0.4775131656 | BB156: Flush to somewhere else | BC156: 37.725031 | BD156: 9.978592 | BE156: 6.654432 | BF156: 1.30008 | BG156: 51.122336 | BH156: 15.771054 | BI156: 4.747188 | BJ156: 0 | BK156: 5.956926 | BL156: 5.768054 | BM156: 21.953977 | BN156: 9.978592 | BO156: 1.907244 | BP156: 0 | BQ156: 40.697436 | BR156: 1.05459 | BS156: 52.340277 | BT156: 53.385604
B157: Flush, don't know where | C157: 2.265800325 | D157: 0.08435210091 | E157: 0.1892222634 | F157: 0.01349579095 | G157: 0.04584995694 | H157: 0.3619240663 | I157: 0.6011242822 | J157: 0.0432656996 | K157: 0 | L157: 0.1454792163 | M157: 2.586554802 | N157: 0.6661432123 | O157: 0 | P157: 0 | Q157: 0 | R157: 0 | S157: 1.070474064 | T157: 0.02575528483 | BB157: Flush, don't know where | BC157: 110.136489 | BD157: 4.116364 | BE157: 9.19779 | BF157: 0.658599 | BG157: 2.220822 | BH157: 5.518674 | BI157: 9.19779 | BJ157: 0.658599 | BK157: 0 | BL157: 2.220822 | BM157: 86.440975 | BN157: 22.293204 | BO157: 0 | BP157: 0 | BQ157: 0 | BR157: 0 | BS157: 123.450643 | BT157: 2.879421
B158: Ventilated Improved Pit latrine (VIP) | C158: 0 | D158: 0.04170461391 | E158: 0.04361189297 | F158: 0 | G158: 0.8999172261 | H158: 0.133470318 | I158: 0 | J158: 0 | K158: 0 | L158: 2.299895866 | M158: 0 | N158: 0 | O158: 0.06347284666 | P158: 0 | Q158: 0.2548830993 | R158: 0.2575856589 | S158: 0.1767899737 | T158: 0.2075241314 | BB158: Ventilated Improved Pit latrine (VIP) | BC158: 0 | BD158: 2.035176 | BE158: 2.119904 | BF158: 0 | BG158: 43.589048 | BH158: 2.035176 | BI158: 0 | BJ158: 0 | BK158: 0 | BL158: 35.109203 | BM158: 0 | BN158: 0 | BO158: 2.119904 | BP158: 0 | BQ158: 8.479845 | BR158: 4.15508 | BS158: 20.38801 | BT158: 23.201038
B159: Pit latrine with slab | C159: 24.92815074 | D159: 25.3642908 | E159: 23.7535604 | F159: 30.09882376 | G159: 20.27097678 | H159: 32.51281754 | I159: 31.06737163 | J159: 38.3368981 | K159: 41.74217629 | L159: 14.19097165 | M159: 23.22254732 | N159: 24.05633707 | O159: 20.76732842 | P159: 22.50657938 | Q159: 18.63710526 | R159: 38.78903705 | S159: 38.26427481 | T159: 9.090710439 | BB159: Pit latrine with slab | BC159: 1211.712687 | BD159: 1237.771821 | BE159: 1154.622381 | BF159: 1468.832416 | BG159: 981.859836 | BH159: 495.760458 | BI159: 475.3612 | BJ159: 583.571813 | BK159: 636.766225 | BL159: 216.633158 | BM159: 776.08239 | BN159: 805.071372 | BO159: 693.599624 | BP159: 751.90487 | BQ159: 620.048031 | BR159: 625.700797 | BS159: 4412.763921 | BT159: 1016.334423
B160: Pit latrine without slab/open pit | C160: 61.52176639 | D160: 65.22875059 | E160: 62.5386467 | F160: 54.98371005 | G160: 35.58210408 | H160: 57.43930452 | I160: 53.18707735 | J160: 48.19905181 | K160: 34.64578221 | L160: 22.31442959 | M160: 62.70023117 | N160: 63.57705711 | O160: 70.19519448 | P160: 62.87189654 | Q160: 49.88871265 | R160: 37.9924795 | S160: 41.90497522 | T160: 73.11986841 | BB160: Pit latrine without slab/open pit | BC160: 2990.462696 | BD160: 3183.148704 | BE160: 3039.903069 | BF160: 2683.222983 | BG160: 1723.48078 | BH160: 875.843377 | BI160: 813.814352 | BJ160: 733.695459 | BK160: 528.512548 | BL160: 340.642309 | BM160: 2095.400844 | BN160: 2127.675067 | BO160: 2344.420983 | BP160: 2100.438472 | BQ160: 1659.774821 | BR160: 612.851633 | BS160: 4832.621647 | BT160: 8174.744952
B161: No facility/bush/field | C161: 0.8070109803 | D161: 0.4498672909 | E161: 0.7530758849 | F161: 0.4662685027 | G161: 0.06524075796 | H161: 0.553989476 | I161: 1.001649962 | J161: 0.2959627324 | K161: 0.1419732091 | L161: 0.06513248566 | M161: 0.9379358035 | N161: 0.6188315803 | O161: 0.151512025 | P161: 0.771974504 | Q161: 0.2812253584 | R161: 2.639631153 | S161: 0.4699245239 | T161: 0.2408593432 | BB161: No facility/bush/field | BC161: 39.227356 | BD161: 21.953425 | BE161: 36.605808 | BF161: 22.754055 | BG161: 3.160049 | BH161: 8.447317 | BI161: 15.326225 | BJ161: 4.505203 | BK161: 2.165765 | BL161: 0.994284 | BM161: 31.345203 | BN161: 20.709869 | BO161: 5.060289 | BP161: 25.790298 | BQ161: 9.35624 | BR161: 42.579539 | BS161: 54.193265 | BT161: 26.927889
B162: Composting toilet | C162: 1.130985372 | D162: 0.9957323908 | E162: 1.192071664 | F162: 1.67650191 | G162: 2.175774299 | H162: 0.7092089181 | I162: 1.383832371 | J162: 1.414216298 | K162: 1.643551969 | L162: 1.860289385 | M162: 1.56956605 | N162: 0.4432274617 | O162: 1.362033069 | P162: 1.785370274 | Q162: 2.083096715 | R162: 0.8833122868 | S162: 2.675029597 | T162: 0.2322974417 | BB162: Composting toilet | BC162: 54.97517 | BD162: 48.591522 | BE162: 57.944687 | BF162: 81.81384 | BG162: 105.387393 | BH162: 10.814127 | BI162: 21.17399 | BJ162: 21.527479 | BK162: 25.071965 | BL162: 28.398363 | BM162: 52.453874 | BN162: 14.833087 | BO162: 45.489993 | BP162: 59.646052 | BQ162: 69.303682 | BR162: 14.248593 | BS162: 308.493344 | BT162: 25.970675
B163: Bucket toilet | C163: 0.1058556861 | D163: 0.01722204472 | E163: 0 | F163: 0 | G163: 0.2576718105 | H163: 0.05511696593 | I163: 0 | J163: 0 | K163: 0 | L163: 0 | M163: 0.1539663492 | N163: 0 | O163: 0 | P163: 0 | Q163: 0.3751412777 | R163: 0.05210085738 | S163: 0.1528418723 | T163: 0 | BB163: Bucket toilet | BC163: 5.145455 | BD163: 0.840432 | BE163: 0 | BF163: 0 | BG163: 12.48078 | BH163: 0.840432 | BI163: 0 | BJ163: 0 | BK163: 0 | BL163: 0 | BM163: 5.145455 | BN163: 0 | BO163: 0 | BP163: 0 | BQ163: 12.48078 | BR163: 0.840432 | BS163: 17.626235 | BT163: 0
B164: Hanging toilet/latrine | C164: 3.422624174 | D164: 4.901370992 | E164: 6.5857796 | F164: 4.863686143 | G164: 3.633810701 | H164: 4.325319956 | I164: 5.180773868 | J164: 2.593602366 | K164: 1.360027125 | L164: 2.27011085 | M164: 3.91111691 | N164: 5.628970808 | O164: 4.965221175 | P164: 7.112791454 | Q164: 5.301769971 | R164: 10.46713262 | S164: 4.800019655 | T164: 3.726669421 | BB164: Hanging toilet/latrine | BC164: 166.367621 | BD164: 239.185828 | BE164: 320.124158 | BF164: 237.34947 | BG164: 176.009909 | BH164: 65.953146 | BI164: 79.270912 | BJ164: 39.480326 | BK164: 20.746866 | BL164: 34.654518 | BM164: 130.706977 | BN164: 188.379604 | BO164: 165.831419 | BP164: 237.625738 | BQ164: 176.38748 | BR164: 168.843924 | BS164: 553.554292 | BT164: 416.63877
BB165: Total | BC165: 4860.820603 | BD165: 4879.978039 | BE165: 4860.839224 | BF165: 4880.032614 | BG165: 4843.673033 | BH165: 1524.815428 | BI165: 1530.097897 | BJ165: 1522.219694 | BK165: 1525.474428 | BL165: 1526.556203 | BM165: 3341.934798 | BN165: 3346.608295 | BO165: 3339.859659 | BP165: 3340.82251 | BQ165: 3326.954601 | BR165: 1613.086698 | BS165: 11532.33386 | BT165: 11179.92295
A208: =A1026 -> Comoros
A209: =A1034 -> 2012
A210: Access to hygiene facilities
A211: by wealth quintile and sub-national region
A212: Notes:
A213: WHO/UNICEF JMP customised wealth index excludes water,
A214: sanitation and hygiene assets.
A215: Survey used for analysis: | B215: =A1025 -> DHS12
A220: Access to handwashing | C220: NATIONAL wealth index quintile | H220: URBAN wealth index quintile | M220: RURAL wealth index quintile | R220: SUB-REGIONS: | BA220: Raw numbers of respondents: | BB220: Access to handwashing | BC220: NATIONAL wealth index quintile | BH220: URBAN wealth index quintile | BM220: RURAL wealth index quintile | BR220: SUB-REGIONS:
A221: Weighted percentage (used in graphs) | C221: Poorest | D221: Poor | E221: Middle | F221: Rich | G221: Richest | H221: Poorest | I221: Poor | J221: Middle | K221: Rich | L221: Richest | M221: Poorest | N221: Poor | O221: Middle | P221: Rich | Q221: Richest | R221: Mohéli | S221: Ndzouani | T221: Ngazidja | BA221: Hygiene data, raw numbers (weighted) | BC221: Poorest | BD221: Poor | BE221: Middle | BF221: Rich | BG221: Richest | BH221: Poorest | BI221: Poor | BJ221: Middle | BK221: Rich | BL221: Richest | BM221: Poorest | BN221: Poor | BO221: Middle | BP221: Rich | BQ221: Richest | BR221: Mohéli | BS221: Ndzouani | BT221: Ngazidja
A222: Hygiene ladder | B222: Basic | C222: 12.54827606 | D222: 10.68948773 | E222: 13.44886057 | F222: 15.9021298 | G222: 26.3372888 | H222: 12.73373961 | I222: 9.401939743 | J222: 13.98667278 | K222: 21.133875 | L222: 33.15640473 | M222: 12.67289349 | N222: 9.020603041 | O222: 14.78632018 | P222: 17.36504276 | Q222: 19.70899826 | R222: 23.69040808 | S222: 24.41329807 | T222: 5.608176947 | BA222: Hygiene ladder | BB222: Basic | BC222: 590.780226 | BD222: 506.683377 | BE222: 642.66062 | BF222: 752.106354 | BG222: 1235.116418 | BH222: 192.367921 | BI222: 140.663425 | BJ222: 207.437205 | BK222: 320.481728 | BL222: 493.578887 | BM222: 405.03567 | BN222: 294.523401 | BO222: 482.457246 | BP222: 562.118186 | BQ222: 628.683326 | BR222: 380.263731 | BS222: 2740.558017 | BT222: 606.525247
B223: Limited | C223: 38.00605782 | D223: 34.39195703 | E223: 31.1859281 | F223: 35.69798012 | G223: 40.70680864 | H223: 48.19784645 | I223: 31.82433038 | J223: 38.7702437 | K223: 45.64981286 | L223: 45.76088589 | M223: 32.54884626 | N223: 32.64140314 | O223: 33.74875995 | P223: 31.60047085 | Q223: 35.24562178 | R223: 57.07204928 | S223: 39.61722396 | T223: 29.06829881 | BB223: Limited | BC223: 1789.347583 | BD223: 1630.1841 | BE223: 1490.235383 | BF223: 1688.369923 | BG223: 1908.991015 | BH223: 728.12228 | BI223: 476.127207 | BJ223: 575.003871 | BK223: 692.250281 | BL223: 681.214001 | BM223: 1040.286795 | BN223: 1065.744388 | BO223: 1101.175518 | BP223: 1022.928627 | BQ223: 1124.275036 | BR223: 916.085123 | BS223: 4447.301647 | BT223: 3143.741234
B224: No facility | C224: 49.44566612 | D224: 54.91855524 | E224: 55.36521133 | F224: 48.39989008 | G224: 32.95590257 | H224: 39.06841394 | I224: 58.77372987 | J224: 47.24308352 | K224: 33.21631214 | L224: 21.08270938 | M224: 54.77826026 | N224: 58.33799382 | O224: 51.46491987 | P224: 51.03448639 | Q224: 45.04537995 | R224: 19.23754264 | S224: 35.96947797 | T224: 65.32352424 | BB224: No facility | BC224: 2327.931078 | BD224: 2603.14804 | BE224: 2645.654689 | BF224: 2289.118836 | BG224: 1545.503664 | BH224: 590.204433 | BI224: 879.320052 | BJ224: 700.66508 | BK224: 503.704177 | BL224: 313.845253 | BM224: 1750.756397 | BN224: 1904.740101 | BO224: 1679.229396 | BP224: 1652.020862 | BQ224: 1436.870556 | BR224: 308.789098 | BS224: 4037.81746 | BT224: 7064.749749
A225: Place where household members wash their hands | B225: Observed | C225: 48.96555548 | D225: 43.78846503 | E225: 43.80312665 | F225: 50.00942555 | G225: 64.67197815 | H225: 60.36731949 | I225: 40.29251085 | J225: 51.40132394 | K225: 66.20877971 | L225: 76.88707919 | M225: 43.24807491 | N225: 40.6461608 | O225: 47.41614695 | P225: 47.33493911 | Q225: 52.49344742 | R225: 80.36448727 | S225: 62.19675133 | T225: 33.53843231 | BA225: Observed handwashing place | BB225: Fixed | BC225: N/A | BD225: N/A | BE225: N/A | BF225: N/A | BG225: N/A | BH225: N/A | BI225: N/A | BJ225: N/A | BK225: N/A | BL225: N/A | BM225: N/A | BN225: N/A | BO225: N/A | BP225: N/A | BQ225: N/A | BR225: N/A | BS225: N/A | BT225: N/A
B226: Not observed: not in dwelling | C226: 40.7599533 | D226: 48.56462642 | E226: 51.29434882 | F226: 44.45909908 | G226: 28.52127995 | H226: 34.26318677 | I226: 53.22340844 | J226: 41.8046823 | K226: 29.18903899 | L226: 17.3757418 | M226: 45.76099019 | N226: 49.26556978 | O226: 47.67897279 | P226: 48.09540307 | Q226: 40.0860708 | R226: 18.95519171 | S226: 29.49610913 | T226: 59.8333738 | BB226: Mobile | BC226: N/A | BD226: N/A | BE226: N/A | BF226: N/A | BG226: N/A | BH226: N/A | BI226: N/A | BJ226: N/A | BK226: N/A | BL226: N/A | BM226: N/A | BN226: N/A | BO226: N/A | BP226: N/A | BQ226: N/A | BR226: N/A | BS226: N/A | BT226: N/A
B227: Not observed: no permission to see | C227: 2.431382716 | D227: 1.879025259 | E227: 1.042734203 | F227: 1.450300799 | G227: 2.893608715 | H227: 0.8628982734 | I227: 1.512786025 | J227: 1.194387582 | K227: 0.4238378597 | L227: 1.836221496 | M227: 3.329788842 | N227: 1.557082945 | O227: 1.425577924 | P227: 1.788035237 | Q227: 3.359769107 | R227: 0.1728775027 | S227: 1.784791652 | T227: 2.352491509 | BA227: Water / Soap | BB227: Water and soap | BC227: N/A | BD227: N/A | BE227: N/A | BF227: N/A | BG227: N/A | BH227: N/A | BI227: N/A | BJ227: N/A | BK227: N/A | BL227: N/A | BM227: N/A | BN227: N/A | BO227: N/A | BP227: N/A | BQ227: N/A | BR227: N/A | BS227: N/A | BT227: N/A
B228: Not observed: other reason | C228: 7.131776675 | D228: 4.778811178 | E228: 3.039264844 | F228: 2.448760294 | G228: 3.268594063 | H228: 4.443427956 | I228: 4.219118891 | J228: 4.224486994 | K228: 3.741330145 | L228: 3.164597748 | M228: 6.626518929 | N228: 7.649967771 | O228: 2.599469046 | P228: 1.23961106 | Q228: 2.941927242 | R228: 0.1875548291 | S228: 5.443238637 | T228: 3.34630488 | BB228: Water only | BC228: N/A | BD228: N/A | BE228: N/A | BF228: N/A | BG228: N/A | BH228: N/A | BI228: N/A | BJ228: N/A | BK228: N/A | BL228: N/A | BM228: N/A | BN228: N/A | BO228: N/A | BP228: N/A | BQ228: N/A | BR228: N/A | BS228: N/A | BT228: N/A
B229: missing | C229: 0.7113318269 | D229: 0.989072115 | E229: 0.8205254889 | F229: 1.632414275 | G229: 0.6445391241 | H229: 0.06316751407 | I229: 0.7521757899 | J229: 1.375119182 | K229: 0.4370132977 | L229: 0.7363597641 | M229: 1.034627127 | N229: 0.8812186967 | O229: 0.8798332864 | P229: 1.542011526 | Q229: 1.118785431 | R229: 0.3198886958 | S229: 1.079109247 | T229: 0.9293975072 | BB229: Soap only | BC229: N/A | BD229: N/A | BE229: N/A | BF229: N/A | BG229: N/A | BH229: N/A | BI229: N/A | BJ229: N/A | BK229: N/A | BL229: N/A | BM229: N/A | BN229: N/A | BO229: N/A | BP229: N/A | BQ229: N/A | BR229: N/A | BS229: N/A | BT229: N/A
BB230: Neither | BC230: N/A | BD230: N/A | BE230: N/A | BF230: N/A | BG230: N/A | BH230: N/A | BI230: N/A | BJ230: N/A | BK230: N/A | BL230: N/A | BM230: N/A | BN230: N/A | BO230: N/A | BP230: N/A | BQ230: N/A | BR230: N/A | BS230: N/A | BT230: N/A
BA231: Place where household members wash their hands | BB231: Observed | BC231: 2380.127809 | BD231: 2136.867477 | BE231: 2132.896003 | BF231: 2440.476277 | BG231: 3144.107433 | BH231: 920.490201 | BI231: 616.790632 | BJ231: 782.441076 | BK231: 1012.732009 | BL231: 1174.792888 | BM231: 1445.322465 | BN231: 1360.267789 | BO231: 1583.632764 | BP231: 1585.046813 | BQ231: 1752.958362 | BR231: 1296.348854 | BS231: 7187.859664 | BT231: 3750.266481
BB232: Not observed: not in dwelling | BC232: 1981.268208 | BD232: 2369.943104 | BE232: 2497.664435 | BF232: 2169.618535 | BG232: 1386.59696 | BH232: 522.450358 | BI232: 814.734526 | BJ232: 636.359107 | BK232: 446.476649 | BL232: 265.491915 | BM232: 1529.302455 | BN232: 1648.725645 | BO232: 1592.410778 | BP232: 1610.511533 | BQ232: 1338.628276 | BR232: 305.763676 | BS232: 3408.761527 | BT232: 6690.566039
BB233: Not observed: no permission to see | BC233: 118.185152 | BD233: 91.69602 | BE233: 50.773627 | BF233: 70.775152 | BG233: 140.676332 | BH233: 13.157606 | BI233: 23.157461 | BJ233: 18.181203 | BK233: 6.48304 | BL233: 28.056469 | BM233: 111.279372 | BN233: 52.109467 | BO233: 47.612302 | BP233: 59.873734 | BQ233: 112.195629 | BR233: 2.788664 | BS233: 206.26209 | BT233: 263.055529
BB234: Not observed: other reason | BC234: 346.66287 | BD234: 233.204936 | BE234: 147.990254 | BF234: 119.500301 | BG234: 158.906704 | BH234: 67.754075 | BI234: 64.585526 | BJ234: 64.305973 | BK234: 57.227528 | BL234: 48.353338 | BM234: 221.453942 | BN234: 256.014456 | BO234: 86.818618 | BP234: 41.509329 | BQ234: 98.24228 | BR234: 3.025422 | BS234: 629.055933 | BT234: 374.18371
BB235: missing | BC235: 34.576564 | BD235: 48.266502 | BE235: 39.953667 | BF235: 79.662349 | BG235: 31.335059 | BH235: 0.963188 | BI235: 11.514174 | BJ235: 20.932335 | BK235: 6.684572 | BL235: 11.251178 | BM235: 34.576564 | BN235: 29.490938 | BO235: 29.385197 | BP235: 51.635441 | BQ235: 37.360554 | BR235: 5.160082 | BS235: 124.708858 | BT235: 103.925201
BB236: Total | BC236: 4860.820603 | BD236: 4879.978039 | BE236: 4869.277986 | BF236: 4880.032614 | BG236: 4861.622488 | BH236: 1524.815428 | BI236: 1530.782319 | BJ236: 1522.219694 | BK236: 1529.603798 | BL236: 1527.945788 | BM236: 3341.934798 | BN236: 3346.608295 | BO236: 3339.859659 | BP236: 3348.57685 | BQ236: 3339.385101 | BR236: 1613.086698 | BS236: 11556.64807 | BT236: 11181.99696
BA259: Raw numbers of respondents: | BB259: Menstrual health and hygiene | BC259: NATIONAL wealth index quintile | BH259: URBAN wealth index quintile | BM259: RURAL wealth index quintile | BR259: SUB-REGIONS:
BA260: MHH data, raw numbers (weighted) | BC260: Poorest | BD260: Poor | BE260: Middle | BF260: Rich | BG260: Richest | BH260: Poorest | BI260: Poor | BJ260: Middle | BK260: Rich | BL260: Richest | BM260: Poorest | BN260: Poor | BO260: Middle | BP260: Rich | BQ260: Richest | BR260: Mohéli | BS260: Ndzouani | BT260: Ngazidja
BA261: Private place to wash and change | BB261: Yes | BC261: N/A | BD261: N/A | BE261: N/A | BF261: N/A | BG261: N/A | BH261: N/A | BI261: N/A | BJ261: N/A | BK261: N/A | BL261: N/A | BM261: N/A | BN261: N/A | BO261: N/A | BP261: N/A | BQ261: N/A | BR261: N/A | BS261: N/A | BT261: N/A
BB262: No | BC262: N/A | BD262: N/A | BE262: N/A | BF262: N/A | BG262: N/A | BH262: N/A | BI262: N/A | BJ262: N/A | BK262: N/A | BL262: N/A | BM262: N/A | BN262: N/A | BO262: N/A | BP262: N/A | BQ262: N/A | BR262: N/A | BS262: N/A | BT262: N/A
BB263: DK/not sure/missing | BC263: N/A | BD263: N/A | BE263: N/A | BF263: N/A | BG263: N/A | BH263: N/A | BI263: N/A | BJ263: N/A | BK263: N/A | BL263: N/A | BM263: N/A | BN263: N/A | BO263: N/A | BP263: N/A | BQ263: N/A | BR263: N/A | BS263: N/A | BT263: N/A
BA264: Use of menstrual materials | BB264: Materials reusable | BC264: N/A | BD264: N/A | BE264: N/A | BF264: N/A | BG264: N/A | BH264: N/A | BI264: N/A | BJ264: N/A | BK264: N/A | BL264: N/A | BM264: N/A | BN264: N/A | BO264: N/A | BP264: N/A | BQ264: N/A | BR264: N/A | BS264: N/A | BT264: N/A
BB265: Materials not reusable | BC265: N/A | BD265: N/A | BE265: N/A | BF265: N/A | BG265: N/A | BH265: N/A | BI265: N/A | BJ265: N/A | BK265: N/A | BL265: N/A | BM265: N/A | BN265: N/A | BO265: N/A | BP265: N/A | BQ265: N/A | BR265: N/A | BS265: N/A | BT265: N/A
BB266: No materials used | BC266: N/A | BD266: N/A | BE266: N/A | BF266: N/A | BG266: N/A | BH266: N/A | BI266: N/A | BJ266: N/A | BK266: N/A | BL266: N/A | BM266: N/A | BN266: N/A | BO266: N/A | BP266: N/A | BQ266: N/A | BR266: N/A | BS266: N/A | BT266: N/A
